{"text_format":"3","workbook":"xlsx","n_sheets":2,"sheets":["Sheet2","Turk_Survey_Feb2010_1K_particip"],"not_rendered":{"charts":1,"pivot_tables":1},"read":"whole","date_system":"1900"}

{"sheet":"Sheet2","index":0,"n_rows":5,"n_cols":4,"rows_kept":5}
["Count of AssignmentId","Column Labels"]
["Row Labels","India","United States","Grand Total"]
["FALSE",{"v":0.6294117647058823,"d":"62.94%"},{"v":0.38461538461538464,"d":"38.46%"},{"v":0.4876237623762376,"d":"48.76%"}]
["TRUE",{"v":0.37058823529411766,"d":"37.06%"},{"v":0.6153846153846154,"d":"61.54%"},{"v":0.5123762376237624,"d":"51.24%"}]
["Grand Total",{"v":1,"d":"100.00%"},{"v":1,"d":"100.00%"},{"v":1,"d":"100.00%"}]

{"sheet":"Turk_Survey_Feb2010_1K_particip","index":1,"n_rows":1001,"n_cols":28,"rows_kept":1001}
["AssignmentId","SubmitTime","WorkTimeInSeconds","DemographicsQ1Gender","DemographicsQ2age","DemographicsQ3education","DemographicsQ4income","DemographicsQ5marritalstatus","DemographicsQ6Children","DemographicsQ7hhsize","DemographicsQ10race","DemographicsQ9state","DemographicsQ8country","EngagementQ7mturkhits","EngagementQ4tenure","EngagementQ5mturkincome","EngagementQ6mturktime","EngagementQ1reasons","MotivationFruitful","MotivationEntertainment","MotivationKilltime","MotivationPrimaryIncome","MotivationSeondaryIncome","MotivationUnemployed","EngagementQ2recession","EngagementQ3participation","EngagementQ1comment","EngagementFeedback"]
["NYHZYE9RABEZ74ZTEY80ZZSZP1ZSAG7ZV8M3T330","Tue Feb 02 09:14:38 GMT 2010",57,"Female",1991,"Some college, no degree","$100,000 - $149,999","single","No","5+","White",null,"Canada","Less than 1 HIT per week","3-6 months","Less than $1 per week","Less than 1 hour per week","fruitful|killtime",{"$f":"ISNUMBER(FIND(\"fruitful\", $R2))","v":true},{"$f":"ISNUMBER(FIND(\"entertainment\", $R2))","v":false},{"$f":"ISNUMBER(FIND(\"killtime\", $R2))","v":true},{"$f":"ISNUMBER(FIND(\"primary_income\", $R2))","v":false},{"$f":"ISNUMBER(FIND(\"secondary_income\", $R2))","v":false},{"$f":"ISNUMBER(FIND(\"unemployed\", R2))","v":false},"I started working on MTurk after the recession but the recession has nothing to do with my decision","I was not active before the recession."]
["NYHZYE9RABEZ74ZTEY80TVAEYPYJYX9Z1789SY10","Mon Feb 08 18:07:08 GMT 2010",57,"Female",1981,null,"Less than $10,000","cohabitating","Yes, 1 child",1,"Asian","Arkansas","Argentina","10-20 HITs per week","3-6 months","$1-$5 per week","4-8 hours per week","secondary_income",{"$f":"ISNUMBER(FIND(\"fruitful\", $R3))","v":false},{"$f":"ISNUMBER(FIND(\"entertainment\", $R3))","v":false},{"$f":"ISNUMBER(FIND(\"killtime\", $R3))","v":false},{"$f":"ISNUMBER(FIND(\"primary_income\", $R3))","v":false},{"$f":"ISNUMBER(FIND(\"secondary_income\", $R3))","v":true},{"$f":"ISNUMBER(FIND(\"unemployed\", R3))","v":false},"Yes, I started working on MTurk after the recession.","I work more on MTurk after the recession."]
["NYHZYE9RABEZ74ZTEY80XWB0QQWCPK6G62MVWYV0","Sun Jan 31 23:27:24 GMT 2010",64,"Male",1986,"Bachelors degree","$75,000 - $99,999","single","No",4,"White","Virginia","United States","100-200 HITs per week","0-3 months","$1-$5 per week",null,"fruitful",true,false,false,false,false,false,"I started working on MTurk after the recession but the recession has nothing to do with my decision","I was not active before the recession."]
["NYHZYE9RABEZ74ZTEY80Z8EZVC410YF2H5YSBHG0","Sun Jan 31 15:56:46 GMT 2010",65,"Male",1925,"Some college, no degree","$40,500 - $59,999","engaged","Yes, 1 child",4,"White","Iowa","Bahrain","1-5 HITs per week","3-6 months","$20-$50 per week","Less than 1 hour per week","killtime",false,false,true,false,false,false,"No, I was active before the recession.","I was not active before the recession.",null,"it's a great thing this poll."]
["NYHZYE9RABEZ74ZTEY808YECVFYYFT5ZP7YJZRTZ","Thu Feb 11 14:21:35 GMT 2010",66,"Male",1971,"Some college, no degree","$40,500 - $59,999","married","Yes, 2 children",4,"White","Arizona","United States","500-1000 HITs per week","1-2 years","$20-$50 per week","4-8 hours per week","fruitful|secondary_income|killtime",true,false,true,false,true,false,"No, I was active before the recession.","I work the same amount of time on MTurk as before."]
["NYHZYE9RABEZ74ZTEY80CHSZWNY8Y22ZKAXP3RK0","Mon Feb 08 15:08:28 GMT 2010",70,"Male",1976,"Graduate degree, Masters","$15,000 - $24,999","single","No",1,"White","Louisiana","United States","1000-5000 HITs per week","2-4 years","$200-$500 per week","8-20 hours per week","fruitful|secondary_income|entertainment|unemployed",true,true,false,false,true,true,"No, I was active before the recession.","I work the same amount of time on MTurk as before."]
["NYHZYE9RABEZ74ZTEY80G29RMMYW9AN6GNZZBZZZ","Wed Feb 10 03:24:16 GMT 2010",71,"Female",1986,"Some college, no degree","$60,000 - $74,999","married","Yes, 2 children",2,"Asian",null,"India","10-20 HITs per week","3-6 months","$20-$50 per week","2-4 hours per week","secondary_income",false,false,false,false,true,false,"Yes, I started working on MTurk after the recession.","I was not active before the recession.","none"]
["NYHZYE9RABEZ74ZTEY804TMT0BSJRX8RK7RGSX1Z","Mon Feb 08 17:49:36 GMT 2010",74,"Male",1987,null,"$10,000 - $14,999","single","No",1,"Black","Connecticut","India","100-200 HITs per week","1-2 years","$50-$100 per week","2-4 hours per week","secondary_income",false,false,false,false,true,false,"Yes, I started working on MTurk after the recession.","I work more on MTurk after the recession."]
["NYHZYE9RABEZ74ZTEY80JBX6N1HB531ZSCWD7S8Z","Mon Feb 01 08:31:17 GMT 2010",75,"Female",1987,"Some college, no degree","$10,000 - $14,999","single","No",1,"White","Ohio","United States","200-500 HITs per week","1-2 years","$5-$10 per week","2-4 hours per week","secondary_income|entertainment",false,true,false,false,true,false,"I started working on MTurk after the recession but the recession has nothing to do with my decision","I was not active before the recession."]
["NYHZYE9RABEZ74ZTEY80K9XTGARZ2WKZY0ZDB0DZ","Mon Feb 08 04:44:42 GMT 2010",80,"Male",1991,"Some college, no degree","$40,500 - $59,999","single","No",2,"Black","Delaware","United States","50-100 HITs per week","0-3 months","$10-$20 per week","2-4 hours per week","fruitful|primary_income|secondary_income|unemployed",true,false,false,true,true,true,"I started working on MTurk after the recession but the recession has nothing to do with my decision","I was not active before the recession."]
["NYHZYE9RABEZ74ZTEY80BZWZTDY15JFZYCZVGZ20","Sun Jan 31 12:37:50 GMT 2010",82,"Female",1983,"Bachelors degree","$40,500 - $59,999","single","No",2,"Asian","Minnesota","United States","100-200 HITs per week","0-3 months","$10-$20 per week","4-8 hours per week","fruitful|killtime|entertainment",true,true,true,false,false,false,"I started working on MTurk after the recession but the recession has nothing to do with my decision","I work the same amount of time on MTurk as before."]
["NYHZYE9RABEZ74ZTEY80XG6ZXRZ87H9GSMYG9KC0","Thu Feb 11 22:38:31 GMT 2010",82,"Female",1976,"Associates degree","$25,000 - $39,499","single","No",3,"White","Florida","United States","50-100 HITs per week","3-6 months","$10-$20 per week","4-8 hours per week","secondary_income",false,false,false,false,true,false,"Yes, I started working on MTurk after the recession.","I was not active before the recession."]
["NYHZYE9RABEZ74ZTEY805R1EH6Y8HYHGZ3RCVWRZ","Sun Feb 07 07:23:29 GMT 2010",85,"Female",1987,"Some college, no degree","$25,000 - $39,499","cohabitating","No",2,"White","California","United States","10-20 HITs per week","0-3 months","Less than $1 per week","Less than 1 hour per week","fruitful|killtime|entertainment",true,true,true,false,false,false,"I started working on MTurk after the recession but the recession has nothing to do with my decision","I was not active before the recession."]
["NYHZYE9RABEZ74ZTEY80CWK2W7WPAXWRZY8C3GZZ","Thu Feb 11 05:55:23 GMT 2010",85,"Female",1979,"Graduate degree, Doctorate","$60,000 - $74,999","married","No",2,"Asian","California","United States","1-5 HITs per week","3-6 months","Less than $1 per week","Less than 1 hour per week","secondary_income|killtime",false,false,true,false,true,false,"Yes, I started working on MTurk after the recession.","I work more on MTurk after the recession."]
["NYHZYE9RABEZ74ZTEY80Z30ZW05VC3RERJCQNWX0","Thu Jan 28 04:12:16 GMT 2010",86,"Male",1985,"Bachelors degree","Less than $10,000","single","No",1,"Asian",null,"India","20-50 HITs per week","0-3 months","$1-$5 per week","8-20 hours per week","fruitful",true,false,false,false,false,false,"I started working on MTurk after the recession but the recession has nothing to do with my decision","I was not active before the recession."]
["NYHZYE9RABEZ74ZTEY800X9ZX5S5VZC2WEYXFZNZ","Mon Feb 08 04:21:39 GMT 2010",87,"Female",1958,"Some college, no degree","$75,000 - $99,999","married","Yes, 3 children",4,"White","Non-US","Canada","20-50 HITs per week","3-6 months","Less than $1 per week","1-2 hours per week","fruitful|killtime|unemployed",true,false,true,false,false,true,"Yes, I started working on MTurk after the recession.","I was not active before the recession."]
["NYHZYE9RABEZ74ZTEY809ZTZZ5Y9EZ326XMRTWMZ","Mon Feb 01 13:36:02 GMT 2010",89,"Male",1957,"Some college, no degree","$10,000 - $14,999","married","Yes, 2 children",4,"Asian",null,"India","20-50 HITs per week","1-2 years","$10-$20 per week","4-8 hours per week","unemployed",false,false,false,false,false,true,"Yes, I started working on MTurk after the recession.","I work more on MTurk after the recession."]
["NYHZYE9RABEZ74ZTEY801XDZVCZDJWXEVSY4B2MZ","Mon Feb 08 05:15:58 GMT 2010",89,"Male",1987,"High School Graduate","$15,000 - $24,999","single","No",1,"Black","Wisconsin","United States","50-100 HITs per week","6-12 months","$5-$10 per week","8-20 hours per week","secondary_income|killtime",false,false,true,false,true,false,"No, I was active before the recession.","I work more on MTurk after the recession."]
["NYHZYE9RABEZ74ZTEY80JZ9ZY8YBWXM0RQYT9WHZ","Wed Feb 10 05:51:45 GMT 2010",89,"Female",1985,"Some college, no degree","$40,500 - $59,999","cohabitating","No","5+","Asian","California","United States","1000-5000 HITs per week","0-3 months","$50-$100 per week","8-20 hours per week","fruitful",true,false,false,false,false,false,"I started working on MTurk after the recession but the recession has nothing to do with my decision","I was not active before the recession."]
["NYHZYE9RABEZ74ZTEY80CY1ZX5D4SZMZVVZF7RP0","Sun Jan 31 10:08:59 GMT 2010",90,"Male",1981,"Bachelors degree","$60,000 - $74,999","engaged","No",2,"White","Non-US","Japan","10-20 HITs per week","3-6 months","$1-$5 per week","1-2 hours per week","fruitful",true,false,false,false,false,false,"I started working on MTurk after the recession but the recession has nothing to do with my decision","I was not active before the recession."]
["NYHZYE9RABEZ74ZTEY807S463XN66YK2MFYN8RQZ","Thu Jan 28 01:25:59 GMT 2010",91,"Male",1977,"Some college, no degree","$25,000 - $39,499","single","No",1,"White","Texas","United States","200-500 HITs per week","0-3 months","$10-$20 per week","2-4 hours per week","fruitful|killtime",true,false,true,false,false,false,"Yes, I started working on MTurk after the recession.","I work more on MTurk after the recession."]
["NYHZYE9RABEZ74ZTEY80PWNZQY8G5H4ZS8ZWXYVZ","Fri Jan 29 20:49:04 GMT 2010",91,"Male",1977,"Graduate degree, Masters","$150,000 - $199,999","married","No",2,"White","Georgia","United States","5-10 HITs per week","0-3 months","$1-$5 per week","Less than 1 hour per week","secondary_income",false,false,false,false,true,false,"No, I was active before the recession.","I was not active before the recession."]
["NYHZYE9RABEZ74ZTEY80WX06XCN9X1FW7RZHETGZ","Mon Feb 01 08:26:23 GMT 2010",91,"Female",1981,"Bachelors degree","Less than $10,000","single","No",1,"Asian","Non-US","Philippines","20-50 HITs per week","6-12 months","$1-$5 per week","4-8 hours per week","fruitful|secondary_income|entertainment",true,true,false,false,true,false,"No, I was active before the recession.","I work the same amount of time on MTurk as before."]
["NYHZYE9RABEZ74ZTEY80F2605DWE5YEZHPCJXZV0","Mon Feb 01 14:20:58 GMT 2010",91,"Male",1990,"Some college, no degree","Less than $10,000","single","No",3,"Asian",null,"India","10-20 HITs per week","0-3 months","$1-$5 per week","8-20 hours per week","entertainment",false,true,false,false,false,false,"I started working on MTurk after the recession but the recession has nothing to do with my decision","I work the same amount of time on MTurk as before."]
["NYHZYE9RABEZ74ZTEY808BA8XHYSNTJ4R1YR0X10","Tue Feb 02 01:25:19 GMT 2010",91,"Female",1986,"Bachelors degree","$40,500 - $59,999","single","No",3,"White","Virginia","United States","10-20 HITs per week","3-6 months","$1-$5 per week","1-2 hours per week","fruitful",true,false,false,false,false,false,"I started working on MTurk after the recession but the recession has nothing to do with my decision","I work the same amount of time on MTurk as before.","I spend a lot on Amazon and every little bit off purchases helps."]
["NYHZYE9RABEZ74ZTEY80BYG0QFYE2J7Z01Y84W8Z","Mon Feb 08 15:01:55 GMT 2010",91,"Female",1963,"Some college, no degree","$40,500 - $59,999","married","Yes, 2 children",4,"White","Arizona","United States","1000-5000 HITs per week","6-12 months","$50-$100 per week","8-20 hours per week","fruitful|secondary_income|entertainment",true,true,false,false,true,false,"Yes, I started working on MTurk after the recession.","I work more on MTurk after the recession."]
["NYHZYE9RABEZ74ZTEY806YDZXYXYAZJZR40FZZN0","Mon Feb 08 17:30:28 GMT 2010",91,"Male",1987,"Some college, no degree","$25,000 - $39,499","single","No",4,"Asian",null,"India","10-20 HITs per week","0-3 months","$1-$5 per week","4-8 hours per week","fruitful",true,false,false,false,false,false,"I started working on MTurk after the recession but the recession has nothing to do with my decision","I was not active before the recession.","Now a days it has become my hobby"]
["NYHZYE9RABEZ74ZTEY80SHDZRMDX808ZVKNHBYBZ","Tue Feb 09 15:29:22 GMT 2010",93,"Male",1973,"Bachelors degree","$60,000 - $74,999","married","Yes, 2 children",4,"White","Alabama","United States","5-10 HITs per week","6-12 months","$1-$5 per week","1-2 hours per week","fruitful|killtime|entertainment",true,true,true,false,false,false,"No, I was active before the recession.","I work the same amount of time on MTurk as before."]
["NYHZYE9RABEZ74ZTEY80FYTCH1YNCY96VGZE4WBZ","Thu Feb 04 20:44:58 GMT 2010",95,"Female",1991,"Some college, no degree","$40,500 - $59,999","engaged","No",3,"Black","District of Columbia","United States","100-200 HITs per week","0-3 months","$5-$10 per week","4-8 hours per week","fruitful|killtime|unemployed",true,false,true,false,false,true,"I started working on MTurk after the recession but the recession has nothing to do with my decision","I work the same amount of time on MTurk as before."]
["NYHZYE9RABEZ74ZTEY802ZWEYMW411E4K24CCW90","Fri Feb 12 10:15:00 GMT 2010",96,"Male",1982,"Associates degree","$10,000 - $14,999","married","No",2,"Other","California","United States","50-100 HITs per week","1-2 years","$1-$5 per week","4-8 hours per week","secondary_income",false,false,false,false,true,false,"Yes, I started working on MTurk after the recession.","I work the same amount of time on MTurk as before."]
["NYHZYE9RABEZ74ZTEY80KYGASTDSDXAZNTZ9XSN0","Tue Feb 02 18:21:27 GMT 2010",97,"Female",1990,"High School Graduate","$15,000 - $24,999","single","No",2,"White","Pennsylvania","United States","100-200 HITs per week","0-3 months","$10-$20 per week","4-8 hours per week","secondary_income|killtime|unemployed",false,false,true,false,true,true,"I started working on MTurk after the recession but the recession has nothing to do with my decision","I was not active before the recession."]
["NYHZYE9RABEZ74ZTEY80BZ2Z4JY7NZV27ZCCXAYZ","Mon Feb 08 03:35:19 GMT 2010",97,"Male",1990,"High School Graduate","$75,000 - $99,999","single","No","5+","White","Pennsylvania","United States","100-200 HITs per week","0-3 months","$5-$10 per week","4-8 hours per week","fruitful|secondary_income",true,false,false,false,true,false,"I started working on MTurk after the recession but the recession has nothing to do with my decision","I work the same amount of time on MTurk as before."]
["NYHZYE9RABEZ74ZTEY806X3ZZWYXRSZE7SHQWWZ0","Mon Feb 08 22:59:13 GMT 2010",97,"Male",1989,"Bachelors degree","Less than $10,000","single","No",1,"White","Non-US","United Kingdom","1-5 HITs per week","2-4 years","Less than $1 per week","Less than 1 hour per week","fruitful|unemployed",true,false,false,false,false,true,"No, I was active before the recession.","I work the same amount of time on MTurk as before."]
["NYHZYE9RABEZ74ZTEY800VYMVRX0XRYGSW8TW0C0","Fri Feb 12 10:26:24 GMT 2010",97,"Female",1971,"Graduate degree, Doctorate","$100,000 - $149,999","married","Yes, 3 children","5+","White","California","United States","200-500 HITs per week","0-3 months","$20-$50 per week","8-20 hours per week","secondary_income|unemployed",false,false,false,false,true,true,"Yes, I started working on MTurk after the recession.","I was not active before the recession.","I'm broke."]
["NYHZYE9RABEZ74ZTEY80MG4ZTW5X1KDY31Y20WMZ","Tue Feb 02 11:46:28 GMT 2010",98,"Male",1975,"Some college, no degree","Less than $10,000","single","No",3,"White",null,"Spain","100-200 HITs per week","0-3 months","$10-$20 per week","8-20 hours per week","fruitful|entertainment|unemployed",true,true,false,false,false,true,"Yes, I started working on MTurk after the recession.","I work more on MTurk after the recession."]
["NYHZYE9RABEZ74ZTEY80004Z5YZHEWRZT0Y0TZ60","Thu Jan 28 21:54:43 GMT 2010",99,"Male",1967,"Graduate degree, Masters","Less than $10,000","single","No",1,"White","Massachusetts","United States","20-50 HITs per week","6-12 months","$5-$10 per week","2-4 hours per week","fruitful|secondary_income|unemployed",true,false,false,false,true,true,"No, I was active before the recession.","I work the same amount of time on MTurk as before."]
["NYHZYE9RABEZ74ZTEY80YXKZ3KH3SZ9C22Z463SZ","Sat Feb 06 20:43:29 GMT 2010",99,"Female",1982,"Bachelors degree","$40,500 - $59,999","married","Yes, 1 child",3,"White","Montana","United States","20-50 HITs per week","0-3 months","$1-$5 per week","1-2 hours per week","fruitful|killtime|entertainment",true,true,true,false,false,false,"I started working on MTurk after the recession but the recession has nothing to do with my decision","I was not active before the recession."]
["NYHZYE9RABEZ74ZTEY80ZH0Z0M4ZASA2XSRRTK6Z","Thu Jan 28 02:18:26 GMT 2010",100,"Male",1981,"Bachelors degree","Less than $10,000","married","No",null,"Asian","Rhode Island","United States","100-200 HITs per week","0-3 months","$5-$10 per week","8-20 hours per week","primary_income|entertainment",false,true,false,true,false,false,"Yes, I started working on MTurk after the recession.","I work more on MTurk after the recession."]
["NYHZYE9RABEZ74ZTEY80VY4J37ZBVHC4PNYKPHJ0","Fri Jan 29 21:15:25 GMT 2010",100,"Male",1988,"Bachelors degree","$10,000 - $14,999","married","No",3,"White","Pennsylvania","United States","50-100 HITs per week","6-12 months","$10-$20 per week","2-4 hours per week","fruitful|secondary_income",true,false,false,false,true,false,"Yes, I started working on MTurk after the recession.","I was not active before the recession."]
["NYHZYE9RABEZ74ZTEY808GHZR2HSSR3Z4EYC8JHZ","Wed Feb 10 03:22:49 GMT 2010",100,"Male",1986,"Some college, no degree","$25,000 - $39,499","engaged","Yes, 2 children",3,"Asian","New Jersey","Aruba","5-10 HITs per week","3-6 months","$5-$10 per week","2-4 hours per week","secondary_income",false,false,false,false,true,false,"No, I was active before the recession.","I work more on MTurk after the recession.","none"]
["NYHZYE9RABEZ74ZTEY8009GZVZZYBZBZK3HD6G30","Thu Jan 28 21:59:37 GMT 2010",101,"Female",1988,"Bachelors degree","Less than $10,000","single","No",1,"Asian","Nebraska","United States","20-50 HITs per week","6-12 months","$5-$10 per week","1-2 hours per week","fruitful|secondary_income",true,false,false,false,true,false,"No, I was active before the recession.","I work the same amount of time on MTurk as before.","It's to allow me some guilt free spending money."]
["NYHZYE9RABEZ74ZTEY80TJMZRT1DE2DZSCXBPX9Z","Fri Feb 05 06:00:21 GMT 2010",101,"Male",1986,"Bachelors degree","$10,000 - $14,999","single","No",4,"Asian","Non-US","India","50-100 HITs per week","0-3 months","$1-$5 per week","4-8 hours per week","secondary_income",false,false,false,false,true,false,"Yes, I started working on MTurk after the recession.","I work more on MTurk after the recession.",null,"thank you"]
["NYHZYE9RABEZ74ZTEY80DW6ZKYZ69BTZ3NZRC33Z","Fri Jan 29 10:27:50 GMT 2010",102,"Female",1980,"Graduate degree, Masters","$15,000 - $24,999","married","No",3,"Asian",null,"India","200-500 HITs per week","0-3 months","$5-$10 per week","20-40 hours per week","fruitful|secondary_income|entertainment",true,true,false,false,true,false,"I started working on MTurk after the recession but the recession has nothing to do with my decision","I was not active before the recession."]
["NYHZYE9RABEZ74ZTEY80AWNZJPYVCWAZ5RY8NWZZ","Mon Feb 08 04:24:59 GMT 2010",102,"Female",1965,"High School Graduate","$25,000 - $39,499","married","Yes, 2 children",4,"Asian",null,"India","200-500 HITs per week","3-6 months","$10-$20 per week","8-20 hours per week","fruitful",true,false,false,false,false,false,"I started working on MTurk after the recession but the recession has nothing to do with my decision","I work the same amount of time on MTurk as before."]
["NYHZYE9RABEZ74ZTEY804ZFZR2H4DZ8ZXJDTFJGZ","Tue Feb 09 00:20:07 GMT 2010",102,"Female",1980,"Graduate degree, Doctorate","$40,500 - $59,999","cohabitating","No",2,"White","Massachusetts","United States","100-200 HITs per week","0-3 months","$10-$20 per week","1-2 hours per week","fruitful|killtime",true,false,true,false,false,false,"Yes, I started working on MTurk after the recession.","I work more on MTurk after the recession."]
["NYHZYE9RABEZ74ZTEY804Z8MV7Y0WZTM64Z1DJ50","Tue Feb 09 21:16:22 GMT 2010",102,"Female",1978,"Graduate degree, Masters","$75,000 - $99,999","single","No",1,"White","New York","United States","5-10 HITs per week","6-12 months","$1-$5 per week","2-4 hours per week","fruitful|killtime",true,false,true,false,false,false,"No, I was active before the recession.","I work the same amount of time on MTurk as before."]
["NYHZYE9RABEZ74ZTEY80AJTYTFGR9X9TRQYD0Z8Z","Fri Jan 29 18:40:26 GMT 2010",103,"Male",1975,"Bachelors degree","$25,000 - $39,499","married","Yes, 3 children","5+","White","Oregon","United States","500-1000 HITs per week","2-4 years","$20-$50 per week","4-8 hours per week","fruitful|secondary_income",true,false,false,false,true,false,"No, I was active before the recession.","I work the same amount of time on MTurk as before."]
["NYHZYE9RABEZ74ZTEY801ASZNGDPCZXC1BYRN1KZ","Tue Feb 09 21:14:16 GMT 2010",103,"Male",1984,"Bachelors degree","$40,500 - $59,999","single","No",1,"White","New York","United States","5-10 HITs per week","6-12 months","$1-$5 per week","1-2 hours per week","fruitful|secondary_income|killtime",true,false,true,false,true,false,"I started working on MTurk after the recession but the recession has nothing to do with my decision","I work the same amount of time on MTurk as before."]
["NYHZYE9RABEZ74ZTEY801K8ZXSWN1J96Q5XGZXAZ","Wed Jan 27 23:46:09 GMT 2010",104,"Female",1979,"Associates degree","$10,000 - $14,999","single","No",1,"White","Michigan","United States","200-500 HITs per week",null,"$20-$50 per week","4-8 hours per week","fruitful|primary_income|killtime|entertainment",true,true,true,true,false,false,"No, I was active before the recession.","I work more on MTurk after the recession."]
["NYHZYE9RABEZ74ZTEY80QWPA18HM0W5TG8ZA3WXZ","Thu Jan 28 17:51:24 GMT 2010",104,"Female",1982,"Graduate degree, Masters","$40,500 - $59,999","married","Yes, 1 child",3,"White","Arkansas","United States","20-50 HITs per week","3-6 months","$5-$10 per week","1-2 hours per week","primary_income|entertainment|unemployed",false,true,false,true,false,true,"Yes, I started working on MTurk after the recession.","I work more on MTurk after the recession."]
["NYHZYE9RABEZ74ZTEY80AXE8K4XXDYYG5FZA4XRZ","Sat Feb 06 18:36:53 GMT 2010",104,"Male",1980,"Graduate degree, Masters","$40,500 - $59,999","married","No",2,"White","Illinois","United States","100-200 HITs per week","3-6 months","$5-$10 per week","8-20 hours per week","fruitful|secondary_income|killtime|entertainment",true,true,true,false,true,false,"I started working on MTurk after the recession but the recession has nothing to do with my decision","I was not active before the recession."]
["NYHZYE9RABEZ74ZTEY80SYZ0XRD06038WWYV3ZJZ","Mon Feb 08 09:59:40 GMT 2010",106,"Male",1985,"Bachelors degree","$25,000 - $39,499","single","No",3,"Asian",null,"India","100-200 HITs per week","3-6 months","$10-$20 per week","8-20 hours per week","fruitful",true,false,false,false,false,false,"Yes, I started working on MTurk after the recession.","I work more on MTurk after the recession."]
["NYHZYE9RABEZ74ZTEY802YARTMZHK29ZJBZJQG3Z","Mon Feb 01 23:35:39 GMT 2010",107,"Female",1982,"High School Graduate","$15,000 - $24,999","single","No",1,"White","Kansas","United States","200-500 HITs per week","0-3 months",null,"4-8 hours per week","fruitful|primary_income|secondary_income|killtime|entertainment",true,true,true,true,true,false,"I started working on MTurk after the recession but the recession has nothing to do with my decision","I work the same amount of time on MTurk as before."]
["NYHZYE9RABEZ74ZTEY8020FZKJCRFXPZPPDBV250","Wed Jan 27 23:46:12 GMT 2010",108,"Female",1986,"High School Graduate","$25,000 - $39,499","cohabitating","No",2,"White","Pennsylvania","United States","1-5 HITs per week","0-3 months","$1-$5 per week","1-2 hours per week","fruitful|secondary_income",true,false,false,false,true,false,"I started working on MTurk after the recession but the recession has nothing to do with my decision","I was not active before the recession."]
["NYHZYE9RABEZ74ZTEY80GYEES74JPZM82RYX0ZJ0","Thu Jan 28 00:44:47 GMT 2010",108,"Female",1980,"Graduate degree, Doctorate","$40,500 - $59,999","single","No",3,"White","Rhode Island","United States","20-50 HITs per week","1-2 years","$5-$10 per week","2-4 hours per week","fruitful|secondary_income|killtime|entertainment",true,true,true,false,true,false,"No, I was active before the recession.","I work less on MTurk after the recession."]
["NYHZYE9RABEZ74ZTEY80HTSGWWYQATGZSBCGCRF0","Thu Jan 28 08:04:35 GMT 2010",108,"Female",1985,"Bachelors degree","Less than $10,000","single","No",1,"White","California","United States","50-100 HITs per week","3-6 months","$1-$5 per week","4-8 hours per week","fruitful|secondary_income|killtime|entertainment|unemployed",true,true,true,false,true,true,"I started working on MTurk after the recession but the recession has nothing to do with my decision","I was not active before the recession.","I think it's a great way to generate funds for a \"rainy day\"."]
["NYHZYE9RABEZ74ZTEY80PVJZV0YW9YEPN4S3JY1Z","Tue Feb 09 22:42:21 GMT 2010",108,"Male",1976,"Bachelors degree","$40,500 - $59,999","single","No",1,"White","Colorado","United States","500-1000 HITs per week","3-6 months","$20-$50 per week","8-20 hours per week","fruitful|secondary_income|killtime",true,false,true,false,true,false,"Yes, I started working on MTurk after the recession.","I was not active before the recession."]
["NYHZYE9RABEZ74ZTEY80KW5Z4Y4E9YRZY4004GSZ","Thu Feb 11 14:18:51 GMT 2010",108,"Male",1988,"Bachelors degree","$75,000 - $99,999","single","No",4,"Asian",null,"India","20-50 HITs per week","6-12 months","$5-$10 per week","1-2 hours per week","killtime|entertainment",false,true,true,false,false,false,"No, I was active before the recession.","I work more on MTurk after the recession."]
["NYHZYE9RABEZ74ZTEY806XE4WQYXDZPW7XRNYXK0","Mon Feb 08 04:22:17 GMT 2010",109,"Male",1989,"Some college, no degree","$150,000 - $199,999","single","No","5+","White","Georgia","United States","1-5 HITs per week","6-12 months","Less than $1 per week","Less than 1 hour per week","fruitful|secondary_income",true,false,false,false,true,false,"No, I was active before the recession.","I work the same amount of time on MTurk as before."]
["NYHZYE9RABEZ74ZTEY80MHGMRY86DZ7ZYV1VKYEZ","Thu Jan 28 04:57:56 GMT 2010",110,"Male",1985,"Bachelors degree","$15,000 - $24,999","single","No",1,"White","North Dakota","United States","10-20 HITs per week","3-6 months","$1-$5 per week","1-2 hours per week","secondary_income|killtime|unemployed",false,false,true,false,true,true,"Yes, I started working on MTurk after the recession.","I was not active before the recession."]
["NYHZYE9RABEZ74ZTEY806BDZSGZBFZ4Z79ZV3ZG0","Thu Jan 28 13:53:36 GMT 2010",110,"Male",1988,"Bachelors degree","$40,500 - $59,999","single","No","5+","Asian",null,"India","1000-5000 HITs per week","3-6 months","$100-$200 per week","4-8 hours per week","fruitful",true,false,false,false,false,false,"Yes, I started working on MTurk after the recession.","I work more on MTurk after the recession."]
["NYHZYE9RABEZ74ZTEY80KYDZZVSS7WYZHWG4903Z","Sat Feb 06 04:42:35 GMT 2010",110,"Male",1987,"Some college, no degree","$10,000 - $14,999","single","No",3,"Asian",null,"India","10-20 HITs per week","0-3 months","$1-$5 per week","4-8 hours per week","fruitful",true,false,false,false,false,false,"I started working on MTurk after the recession but the recession has nothing to do with my decision","I work the same amount of time on MTurk as before."]
["NYHZYE9RABEZ74ZTEY80ZJEZWRYPSZSYTWYB3RGZ","Sun Jan 31 15:29:35 GMT 2010",111,"Female",1986,"High School Graduate","$15,000 - $24,999","engaged","No",2,"Other",null,"Canada","1-5 HITs per week","0-3 months","$1-$5 per week","2-4 hours per week","fruitful",true,false,false,false,false,false,"Yes, I started working on MTurk after the recession.","I work more on MTurk after the recession."]
["NYHZYE9RABEZ74ZTEY80ZXFZQHY8XW1YQ7YD3KQ0","Fri Feb 05 15:03:57 GMT 2010",111,"Female",1956,"Bachelors degree","$25,000 - $39,499","widowed","No",2,"White","Wyoming","United States","200-500 HITs per week","0-3 months","$10-$20 per week","4-8 hours per week","fruitful",true,false,false,false,false,false,"Yes, I started working on MTurk after the recession.","I was not active before the recession."]
["NYHZYE9RABEZ74ZTEY803X2ZQNX6R98ZY3Y7CBQZ","Sun Jan 31 10:58:09 GMT 2010",112,{"$nulls":10},"20-50 HITs per week","3-6 months",null,"20-40 hours per week","secondary_income",false,false,false,false,true,false,"No, I was active before the recession.","I work less on MTurk after the recession.","none"]
["NYHZYE9RABEZ74ZTEY801WKZXES5ZGJZSAS0QYJZ","Sun Jan 31 07:58:01 GMT 2010",113,"Male",1983,"Graduate degree, Masters","Less than $10,000","married","Yes, 1 child",3,"Asian",null,"India","20-50 HITs per week","0-3 months","$1-$5 per week","1-2 hours per week","fruitful",{"$f":"ISNUMBER(FIND(\"fruitful\", $R67))","v":true},{"$f":"ISNUMBER(FIND(\"entertainment\", $R67))","v":false},{"$f":"ISNUMBER(FIND(\"killtime\", $R67))","v":false},{"$f":"ISNUMBER(FIND(\"primary_income\", $R67))","v":false},{"$f":"ISNUMBER(FIND(\"secondary_income\", $R67))","v":false},{"$f":"ISNUMBER(FIND(\"unemployed\", R67))","v":false},"No, I was active before the recession.","I work the same amount of time on MTurk as before."]
["NYHZYE9RABEZ74ZTEY803YR0R8Z82Z66G2C88XWZ","Sun Jan 31 18:13:02 GMT 2010",113,"Female",1986,"Bachelors degree","$40,500 - $59,999","single","No",4,"White","Ohio","United States","200-500 HITs per week","6-12 months","$5-$10 per week","8-20 hours per week","unemployed",false,false,false,false,false,true,"Yes, I started working on MTurk after the recession.","I was not active before the recession.","I quit my job in November, and I am on the job hunt again."]
["NYHZYE9RABEZ74ZTEY805KHWZ6YYSX1M6DZMGX20","Mon Feb 01 23:18:18 GMT 2010",113,"Female",1969,"Bachelors degree","$100,000 - $149,999","cohabitating","Yes, 1 child",3,"Black","California","United States","1000-5000 HITs per week","6-12 months","$20-$50 per week","2-4 hours per week","unemployed",false,false,false,false,false,true,"No, I was active before the recession.","I work the same amount of time on MTurk as before."]
["NYHZYE9RABEZ74ZTEY80EGXPKNYCZXGYRGYVKGA0","Mon Feb 08 04:34:42 GMT 2010",113,"Male",1985,"Bachelors degree","$60,000 - $74,999","married","No",2,"White","South Carolina","United States","200-500 HITs per week","0-3 months","$10-$20 per week","4-8 hours per week","fruitful|secondary_income|killtime",true,false,true,false,true,false,"I started working on MTurk after the recession but the recession has nothing to do with my decision","I was not active before the recession.","I can do it while watching TV, so it doesn't feel like a waste of time to watch."]
["NYHZYE9RABEZ74ZTEY806ZMGK9Z01XCZZEYBTAC0","Wed Feb 10 03:17:46 GMT 2010",113,"Male",1984,"High School Graduate","$15,000 - $24,999","single","No",2,"Asian","Hawaii","India","50-100 HITs per week","3-6 months","Less than $1 per week","1-2 hours per week","primary_income",false,false,false,true,false,false,null,"I was not active before the recession.","none"]
["NYHZYE9RABEZ74ZTEY806W7ZK8Z9TYPZY9ZN1XM0","Wed Feb 03 08:06:25 GMT 2010",114,"Male",1970,"Bachelors degree","$75,000 - $99,999","married","Yes, 2 children",4,"Asian","Indiana","India","100-200 HITs per week","3-6 months","$5-$10 per week","8-20 hours per week","fruitful|primary_income",true,false,false,true,false,false,"No, I was active before the recession.","I work more on MTurk after the recession.",null,"very useful site for all people"]
["NYHZYE9RABEZ74ZTEY809K5ZJXS5X9GZTXZE9HS0","Mon Feb 08 19:22:11 GMT 2010",114,"Male",1991,"High School Graduate","$15,000 - $24,999","single","No","5+","White","Non-US","Ireland","50-100 HITs per week","0-3 months","$20-$50 per week","2-4 hours per week","fruitful|secondary_income",true,false,false,false,true,false,"I started working on MTurk after the recession but the recession has nothing to do with my decision","I was not active before the recession."]
["NYHZYE9RABEZ74ZTEY80Z1HPJ8ZA5WWRR25CYY00","Thu Jan 28 01:54:38 GMT 2010",115,"Female",1965,"Some college, no degree","$10,000 - $14,999","married","No",2,"White","California","United States","500-1000 HITs per week","3-6 months","$20-$50 per week","20-40 hours per week","secondary_income",false,false,false,false,true,false,"Yes, I started working on MTurk after the recession.","I was not active before the recession."]
["NYHZYE9RABEZ74ZTEY80KXXZ10YWTWGTVRYFMW1Z","Fri Jan 29 02:23:49 GMT 2010",115,"Female",1969,"Graduate degree, Masters","$75,000 - $99,999","married","Yes, 2 children",4,"White","Massachusetts","United States","50-100 HITs per week","0-3 months","$5-$10 per week","4-8 hours per week","fruitful|unemployed",true,false,false,false,false,true,"Yes, I started working on MTurk after the recession.","I was not active before the recession."]
["NYHZYE9RABEZ74ZTEY80XSKZ6G4PRJ6ZQD91CK30","Tue Feb 09 17:28:15 GMT 2010",115,"Female",1984,"High School Graduate","$10,000 - $14,999","married","Yes, 1 child",4,"White","Florida","United States","10-20 HITs per week","1-2 years","$1-$5 per week","1-2 hours per week","fruitful|killtime|entertainment",true,true,true,false,false,false,"No, I was active before the recession.","I work the same amount of time on MTurk as before."]
["NYHZYE9RABEZ74ZTEY80CWYCV54H6YFZPJZ84ZWZ","Tue Feb 02 22:16:32 GMT 2010",116,"Male",1979,"Bachelors degree","$75,000 - $99,999","married","Yes, 2 children",4,"White","California","United States","10-20 HITs per week","2-4 years","$1-$5 per week","2-4 hours per week","fruitful|killtime|entertainment",true,true,true,false,false,false,"No, I was active before the recession.","I work the same amount of time on MTurk as before.",null,"Fun survey!"]
["NYHZYE9RABEZ74ZTEY80FA7MZ1YXQXCZ66DJ1KK0","Fri Feb 05 13:01:17 GMT 2010",116,"Female",1983,"Some college, no degree","Less than $10,000","married","Yes, 2 children",4,"Asian",null,"India","20-50 HITs per week","0-3 months","$1-$5 per week","2-4 hours per week","fruitful|primary_income|secondary_income|entertainment|unemployed",true,true,false,true,true,true,"Yes, I started working on MTurk after the recession.","I work more on MTurk after the recession."]
["NYHZYE9RABEZ74ZTEY80M0GEGCZBFWCATS9TDV70","Wed Jan 27 23:50:59 GMT 2010",117,"Male",1984,"Graduate degree, Masters","$300,000 or more","single","No",1,"White","Texas","United States","1-5 HITs per week","0-3 months","$5-$10 per week","1-2 hours per week","fruitful|killtime|unemployed",true,false,true,false,false,true,"I started working on MTurk after the recession but the recession has nothing to do with my decision","I was not active before the recession."]
["NYHZYE9RABEZ74ZTEY803RHZQ9Y9Q85Y4YZCRH7Z","Sat Jan 30 04:43:29 GMT 2010",117,"Female",1989,"Some college, no degree","Less than $10,000","single","No",1,"White","New Hampshire","United States","50-100 HITs per week","0-3 months","$10-$20 per week","2-4 hours per week","fruitful|secondary_income",true,false,false,false,true,false,"I started working on MTurk after the recession but the recession has nothing to do with my decision","I work the same amount of time on MTurk as before.","College student taking way too many majors/minors for a real job, so this helps me make the money to have a little spending cash to buy fiction books and cute jewelry."]
["NYHZYE9RABEZ74ZTEY80NX8Z2JYZ2SAZ3VCY9YMZ","Tue Feb 09 18:00:42 GMT 2010",117,"Female",1984,"Bachelors degree","$60,000 - $74,999","single","No",2,"White","New York","United States","50-100 HITs per week","0-3 months","$10-$20 per week","4-8 hours per week","secondary_income",false,false,false,false,true,false,"Yes, I started working on MTurk after the recession.","I work more on MTurk after the recession.","I need a little bit more spending case"]
["NYHZYE9RABEZ74ZTEY80GX7CHEZ8JYSZT7ZMMB1Z","Thu Jan 28 00:24:27 GMT 2010",118,"Male",1986,"Some college, no degree","Less than $10,000","single","No",2,"White","Florida","United States","100-200 HITs per week","0-3 months","$20-$50 per week","8-20 hours per week","primary_income",false,false,false,true,false,false,"I started working on MTurk after the recession but the recession has nothing to do with my decision","I was not active before the recession."]
["NYHZYE9RABEZ74ZTEY80DZA4W8Z1WWXZZ0NZYWN0","Tue Feb 09 01:08:43 GMT 2010",118,"Male",1990,"Bachelors degree","Less than $10,000","single","No",3,"Asian",null,"India","5-10 HITs per week","0-3 months","Less than $1 per week","4-8 hours per week","fruitful",true,false,false,false,false,false,"I started working on MTurk after the recession but the recession has nothing to do with my decision","I was not active before the recession."]
["NYHZYE9RABEZ74ZTEY8099NZZJCVMZJZZZX0T060","Mon Feb 08 15:07:56 GMT 2010",119,"Male",1970,"Graduate degree, Masters","$150,000 - $199,999","married","Yes, 2 children",4,"White","West Virginia","United States","50-100 HITs per week","1-2 years","$20-$50 per week","4-8 hours per week","fruitful",true,false,false,false,false,false,"No, I was active before the recession.","I work the same amount of time on MTurk as before."]
["NYHZYE9RABEZ74ZTEY807TW2JN1DKW8ZZE4E4WE0","Wed Feb 10 05:33:32 GMT 2010",119,"Male",1974,"Graduate degree, Doctorate","$25,000 - $39,499","separated","Yes, 4 or more children","5+","White","Alaska","United States","10-20 HITs per week","3-6 months","Less than $1 per week","1-2 hours per week","fruitful|secondary_income|entertainment|unemployed",true,true,false,false,true,true,"I started working on MTurk after the recession but the recession has nothing to do with my decision","I work more on MTurk after the recession."]
["NYHZYE9RABEZ74ZTEY80ABJWP3YAASEZ4S8FCW10","Wed Feb 10 21:16:47 GMT 2010",119,"Female",1987,"Bachelors degree","Less than $10,000","single","No",1,"White","North Dakota","United States","20-50 HITs per week","3-6 months","$1-$5 per week","1-2 hours per week","fruitful|primary_income|secondary_income|unemployed",true,false,false,true,true,true,"I started working on MTurk after the recession but the recession has nothing to do with my decision","I work the same amount of time on MTurk as before."]
["NYHZYE9RABEZ74ZTEY80R3XZ3FYRGGWCXDZC8Z8Z","Thu Feb 11 18:43:49 GMT 2010",119,"Female",1987,"High School Graduate","$25,000 - $39,499","single","No",3,"White","Ohio","United States","50-100 HITs per week","0-3 months","$1-$5 per week","1-2 hours per week","fruitful|secondary_income",true,false,false,false,true,false,"I started working on MTurk after the recession but the recession has nothing to do with my decision","I work more on MTurk after the recession."]
["NYHZYE9RABEZ74ZTEY809KT4Z4GB3XXRYMYY3Z60","Fri Jan 29 20:49:04 GMT 2010",120,"Female",1985,"Bachelors degree","$15,000 - $24,999","single","No",3,"White","New York","United States","100-200 HITs per week","0-3 months","$5-$10 per week","4-8 hours per week","primary_income|unemployed",false,false,false,true,false,true,"Yes, I started working on MTurk after the recession.","I was not active before the recession."]
["NYHZYE9RABEZ74ZTEY80FW2ZWS0RDKTZ3ANKNW4Z","Sun Jan 31 08:42:07 GMT 2010",120,"Female",1985,"Some college, no degree","$10,000 - $14,999","single","No",1,"White","California","United States","50-100 HITs per week","1-2 years","$10-$20 per week","4-8 hours per week","entertainment|unemployed",false,true,false,false,false,true,"No, I was active before the recession.","I work the same amount of time on MTurk as before."]
["NYHZYE9RABEZ74ZTEY80MYQZ47YCHX8ZVMYC4310","Wed Feb 03 16:45:07 GMT 2010",120,"Male",1983,"Graduate degree, Masters","$25,000 - $39,499","single","No",4,"White","Massachusetts","United States","10-20 HITs per week","0-3 months","$1-$5 per week","1-2 hours per week","fruitful|killtime",true,false,true,false,false,false,"I started working on MTurk after the recession but the recession has nothing to do with my decision","I was not active before the recession."]
["NYHZYE9RABEZ74ZTEY80BAR4YCY4HZTZQSDZ22XZ","Fri Feb 05 23:12:20 GMT 2010",120,"Female",1990,"Some college, no degree","$60,000 - $74,999","single","No",2,"White","Florida","United States","20-50 HITs per week","0-3 months","Less than $1 per week","1-2 hours per week","fruitful",true,false,false,false,false,false,"Yes, I started working on MTurk after the recession.","I was not active before the recession.","It's interesting!!! :)"]
["NYHZYE9RABEZ74ZTEY80RZPZXGY4YHP43B46VXG0","Mon Feb 08 15:33:56 GMT 2010",120,"Male",1989,"High School Graduate","Less than $10,000","single","No",2,"Asian","Oregon","India","20-50 HITs per week","6-12 months","$50-$100 per week","4-8 hours per week","secondary_income",false,false,false,false,true,false,"Yes, I started working on MTurk after the recession.","I work more on MTurk after the recession."]
["NYHZYE9RABEZ74ZTEY80JYKZ3N8J8KT0VYSWKRJZ","Fri Feb 12 13:57:34 GMT 2010",120,"Male",1975,"Some college, no degree","Less than $10,000","married","Yes, 1 child",3,"White","Non-US","Venezuela","100-200 HITs per week","0-3 months","$1-$5 per week","8-20 hours per week","fruitful|secondary_income|killtime|entertainment",true,true,true,false,true,false,"I started working on MTurk after the recession but the recession has nothing to do with my decision","I was not active before the recession."]
["NYHZYE9RABEZ74ZTEY806R6ZQAZP6Y2Z18ZGW00Z","Thu Jan 28 03:01:24 GMT 2010",121,"Female",1982,"Bachelors degree","$25,000 - $39,499","married","Yes, 2 children",4,"White","Ohio","United States","50-100 HITs per week","1-2 years","$5-$10 per week","2-4 hours per week","fruitful",true,false,false,false,false,false,"No, I was active before the recession.","I work the same amount of time on MTurk as before.","I take surveys, but I like this because you can take them whenever you feel like, instead of having them sent to you."]
["NYHZYE9RABEZ74ZTEY804ZP0ZXHN423Z3ZDDBWBZ","Fri Jan 29 13:40:26 GMT 2010",121,"Female",1988,"Associates degree","$25,000 - $39,499","single","No",2,"Black","Georgia","United States","20-50 HITs per week","3-6 months","$5-$10 per week","2-4 hours per week","secondary_income|unemployed",false,false,false,false,true,true,"Yes, I started working on MTurk after the recession.","I work more on MTurk after the recession.","I find that it's a good way to spend my time on the computer and make some cash at the same time"]
["NYHZYE9RABEZ74ZTEY80B0VZMHYXKJZZJYZ2MJY0","Sat Jan 30 16:19:58 GMT 2010",121,"Female",1983,"High School Graduate","$25,000 - $39,499","married","Yes, 3 children","5+","White","Missouri","United States","100-200 HITs per week","0-3 months","$1-$5 per week","8-20 hours per week","primary_income|unemployed",false,false,false,true,false,true,"Yes, I started working on MTurk after the recession.","I work more on MTurk after the recession."]
["NYHZYE9RABEZ74ZTEY80KVEZW3MGMXTTMFW10X10","Tue Feb 09 21:06:25 GMT 2010",121,"Female",1988,"Some college, no degree","$75,000 - $99,999","married","No","5+","White","Texas","United States","1000-5000 HITs per week","0-3 months","$20-$50 per week","20-40 hours per week","fruitful|secondary_income|killtime|entertainment|unemployed",true,true,true,false,true,true,"Yes, I started working on MTurk after the recession.","I was not active before the recession."]
["NYHZYE9RABEZ74ZTEY809VDZZV1PYHR8Y74N6W00","Thu Feb 11 19:30:54 GMT 2010",121,"Male",1992,"High School Graduate","$60,000 - $74,999","single","No",2,"White","Iowa","United States","500-1000 HITs per week","6-12 months","$20-$50 per week","20-40 hours per week","primary_income|unemployed",false,false,false,true,false,true,"Yes, I started working on MTurk after the recession.","I work more on MTurk after the recession."]
["NYHZYE9RABEZ74ZTEY807YRZXAH0KXGZ67YVW04Z","Fri Jan 29 19:10:38 GMT 2010",122,"Male",1986,"Associates degree","$40,500 - $59,999","engaged","No",4,"White","Non-US","Uruguay","100-200 HITs per week","2-4 years","$5-$10 per week","4-8 hours per week","fruitful",true,false,false,false,false,false,"No, I was active before the recession.","I work the same amount of time on MTurk as before."]
["NYHZYE9RABEZ74ZTEY80AXXCYTYVFYAZZ6XFB0XZ","Thu Feb 04 01:06:18 GMT 2010",122,"Female",1981,"Graduate degree, Masters","$15,000 - $24,999","single","No",1,"White","Illinois","United States","10-20 HITs per week","3-6 months","$1-$5 per week","Less than 1 hour per week","fruitful|secondary_income|killtime|unemployed",true,false,true,false,true,true,"Yes, I started working on MTurk after the recession.","I was not active before the recession."]
["NYHZYE9RABEZ74ZTEY80VW1YPDZTEY6Z3YZ1CYK0","Mon Feb 08 04:33:59 GMT 2010",122,"Female",1985,"Some college, no degree","Less than $10,000","single","No",2,"White","Colorado","United States","5-10 HITs per week","0-3 months","$1-$5 per week","1-2 hours per week","fruitful|secondary_income|killtime|entertainment|unemployed",true,true,true,false,true,true,"I started working on MTurk after the recession but the recession has nothing to do with my decision","I was not active before the recession."]
["NYHZYE9RABEZ74ZTEY809VYZW1MVVXGZW18R69HZ","Wed Feb 10 05:03:30 GMT 2010",122,"Female",1972,"High School Graduate","$15,000 - $24,999","single","Yes, 4 or more children","5+","White","Indiana","United States","20-50 HITs per week","1-2 years","Less than $1 per week","Less than 1 hour per week","fruitful",true,false,false,false,false,false,"No, I was active before the recession.","I work more on MTurk after the recession."]
["NYHZYE9RABEZ74ZTEY80GXDZHVYX7T4Z5PZ3MX60","Thu Jan 28 00:58:58 GMT 2010",123,"Male",1979,"Bachelors degree","$60,000 - $74,999","married","No",2,"Other","Florida","United States","100-200 HITs per week","1-2 years","$1-$5 per week","2-4 hours per week","fruitful|secondary_income|entertainment",true,true,false,false,true,false,"No, I was active before the recession.","I work more on MTurk after the recession."]
["NYHZYE9RABEZ74ZTEY80XWWWN9Z7492P4SRBDWK0","Thu Jan 28 13:04:08 GMT 2010",123,"Male",1980,"High School Graduate","Less than $10,000","single","No",4,"Asian","Non-US","India","200-500 HITs per week","0-3 months","$5-$10 per week","8-20 hours per week","unemployed",false,false,false,false,false,true,"Yes, I started working on MTurk after the recession.","I work more on MTurk after the recession."]
["NYHZYE9RABEZ74ZTEY80VH2ZNDM8BZMZSQ07Y2M0","Thu Jan 28 17:08:35 GMT 2010",123,"Female",1982,"High School Graduate","$40,500 - $59,999","married","Yes, 1 child",3,"White","Rhode Island","United States","200-500 HITs per week","2-4 years","$10-$20 per week","4-8 hours per week","secondary_income|entertainment|unemployed",false,true,false,false,true,true,"I started working on MTurk after the recession but the recession has nothing to do with my decision","I work the same amount of time on MTurk as before."]
["NYHZYE9RABEZ74ZTEY8063CZVFWKNWK21XHMBZ5Z","Tue Feb 02 06:58:22 GMT 2010",123,"Female",1977,"Bachelors degree","$60,000 - $74,999","single","No",1,"White","New York","United States","100-200 HITs per week","6-12 months","$20-$50 per week","4-8 hours per week","fruitful|secondary_income|killtime|entertainment",true,true,true,false,true,false,"Yes, I started working on MTurk after the recession.","I work more on MTurk after the recession."]
["NYHZYE9RABEZ74ZTEY802R9Z06ZVEBFEHMYYQ1D0","Fri Feb 05 18:08:32 GMT 2010",123,"Female",1979,"Graduate degree, Doctorate","$25,000 - $39,499","married","No",2,"White","Connecticut","United States","20-50 HITs per week","3-6 months","$10-$20 per week","4-8 hours per week","fruitful",true,false,false,false,false,false,"Yes, I started working on MTurk after the recession.","I was not active before the recession.",null,"None."]
["NYHZYE9RABEZ74ZTEY80TYVZXNSS8XF8V9YKXSXZ","Mon Feb 08 16:26:17 GMT 2010",123,"Male",1985,"Bachelors degree","$25,000 - $39,499","single","No","5+","Asian","Indiana","India","50-100 HITs per week","1-2 years","$50-$100 per week","20-40 hours per week","secondary_income",false,false,false,false,true,false,"Yes, I started working on MTurk after the recession.","I work less on MTurk after the recession."]
["NYHZYE9RABEZ74ZTEY80YXXRV9GXHH8CK01FX8RZ","Thu Feb 11 14:45:15 GMT 2010",123,"Female",1974,"Bachelors degree","$75,000 - $99,999","married","Yes, 2 children",4,"White","Illinois","United States","50-100 HITs per week","6-12 months","$5-$10 per week","2-4 hours per week","fruitful|secondary_income|unemployed",true,false,false,false,true,true,"I started working on MTurk after the recession but the recession has nothing to do with my decision","I work more on MTurk after the recession."]
["NYHZYE9RABEZ74ZTEY80JW1M3T40TYZZXYY08ZG0","Thu Jan 28 00:38:50 GMT 2010",124,"Female",1978,"High School Graduate","$40,500 - $59,999","single","No",4,"White","West Virginia","United States","200-500 HITs per week","6-12 months","$20-$50 per week","20-40 hours per week","fruitful|primary_income|unemployed",true,false,false,true,false,true,"I started working on MTurk after the recession but the recession has nothing to do with my decision","I work more on MTurk after the recession."]
["NYHZYE9RABEZ74ZTEY80EAEZW9ZXT3WZSEYWNJ4Z","Sun Jan 31 05:54:16 GMT 2010",124,"Female",1990,"Some college, no degree","$200,000 - $249,999","single","No","5+","Asian","New York","United States","50-100 HITs per week","0-3 months","$5-$10 per week","2-4 hours per week","fruitful|killtime|entertainment",true,true,true,false,false,false,"I started working on MTurk after the recession but the recession has nothing to do with my decision","I was not active before the recession."]
["NYHZYE9RABEZ74ZTEY806W7Y5RZSWBS0X6DX9W40","Wed Feb 03 09:42:02 GMT 2010",124,"Female",1988,"Some college, no degree","$10,000 - $14,999","cohabitating","No",2,"White","Non-US","Slovenia","50-100 HITs per week","1-2 years","$5-$10 per week","4-8 hours per week","fruitful|secondary_income|killtime",true,false,true,false,true,false,"No, I was active before the recession.","I work the same amount of time on MTurk as before."]
["NYHZYE9RABEZ74ZTEY80GY4ZXYY4BZTMSJWQWXG0","Thu Feb 11 00:52:39 GMT 2010",124,"Female",1980,"Bachelors degree","$60,000 - $74,999","married","No",2,"White","Arkansas","United States","50-100 HITs per week","0-3 months","$1-$5 per week","1-2 hours per week","fruitful|secondary_income",true,false,false,false,true,false,"I started working on MTurk after the recession but the recession has nothing to do with my decision","I work the same amount of time on MTurk as before."]
["NYHZYE9RABEZ74ZTEY80JXDEXBYCYJC4014GX200","Thu Feb 11 15:20:32 GMT 2010",124,"Female",1970,"Bachelors degree","$150,000 - $199,999","married","No",2,"White","Illinois","United States","50-100 HITs per week","1-2 years","$1-$5 per week","2-4 hours per week","secondary_income|entertainment",false,true,false,false,true,false,"No, I was active before the recession.","I work the same amount of time on MTurk as before.","I sit in front of a computer all day, so MTurk is a great way to build up pennies which I can then use on Amazon."]
["NYHZYE9RABEZ74ZTEY80BZTR0KZWCXP8Z8WJ8ZHZ","Fri Feb 12 11:56:23 GMT 2010",124,"Male",1959,"Graduate degree, Masters","$40,500 - $59,999","married","Yes, 2 children",2,"White","Michigan","United States","50-100 HITs per week","1-2 years","$5-$10 per week","4-8 hours per week","unemployed",false,false,false,false,false,true,"Yes, I started working on MTurk after the recession.","I was not active before the recession."]
["NYHZYE9RABEZ74ZTEY80FG8ZYQCN726G3VDJY8P0","Thu Jan 28 16:29:21 GMT 2010",125,"Female",1970,"Bachelors degree","$100,000 - $149,999","married","Yes, 3 children",3,"White","Washington","United States","100-200 HITs per week","1-2 years","$5-$10 per week","2-4 hours per week","secondary_income",false,false,false,false,true,false,"I started working on MTurk after the recession but the recession has nothing to do with my decision","I was not active before the recession.","I use the money to make extra payments on a credit card I am trying to pay off."]
["NYHZYE9RABEZ74ZTEY80EAFZK3DFKYYEQXSTXS9Z","Fri Jan 29 07:10:47 GMT 2010",125,"Female",1983,"Associates degree","$25,000 - $39,499","single","No","5+","White","Non-US","Canada","1000-5000 HITs per week","0-3 months","$20-$50 per week","8-20 hours per week","fruitful|secondary_income",true,false,false,false,true,false,"I started working on MTurk after the recession but the recession has nothing to do with my decision","I was not active before the recession."]
["NYHZYE9RABEZ74ZTEY8019NWHBNVAZ5ESDY8TJQZ","Wed Feb 10 05:01:42 GMT 2010",125,"Male",1977,"Some college, no degree","$25,000 - $39,499","single","No",1,"White","California","United States","More than 5000 HITs per week","1-2 years","$100-$200 per week","More than 40 hours per week","primary_income",false,false,false,true,false,false,"I started working on MTurk after the recession but the recession has nothing to do with my decision","I work the same amount of time on MTurk as before.","Was in a car accident many years ago and this is all I can do right now for income.","Thank you!"]
["NYHZYE9RABEZ74ZTEY80HYCYJCZPHW5ZKZZTZV6Z","Thu Jan 28 00:25:16 GMT 2010",126,"Female",1981,"Bachelors degree","$40,500 - $59,999","engaged","No",1,"White","Indiana","United States","10-20 HITs per week","1-2 years","$1-$5 per week","Less than 1 hour per week","fruitful|secondary_income",true,false,false,false,true,false,"No, I was active before the recession.","I work more on MTurk after the recession."]
["NYHZYE9RABEZ74ZTEY80ERMT4PC6WX3ZXVCNJBM0","Fri Jan 29 04:34:43 GMT 2010",126,"Female",1985,"Bachelors degree","$15,000 - $24,999","single","No",1,"White","Texas","United States","5-10 HITs per week","3-6 months","$1-$5 per week","2-4 hours per week","fruitful|secondary_income",true,false,false,false,true,false,"I started working on MTurk after the recession but the recession has nothing to do with my decision","I was not active before the recession."]
["NYHZYE9RABEZ74ZTEY806V8ZRAZC8VW0ZEY8SAQZ","Sun Jan 31 16:06:08 GMT 2010",126,"Female",1971,"Bachelors degree","Less than $10,000","single","No",1,"White","Wisconsin","United States","200-500 HITs per week","3-6 months","$50-$100 per week","20-40 hours per week","unemployed",false,false,false,false,false,true,"I started working on MTurk after the recession but the recession has nothing to do with my decision","I was not active before the recession.","I need the money very badly. I have almost no other income source."]
["NYHZYE9RABEZ74ZTEY804XPMK2ZCAZJZX2YP6JV0","Mon Feb 08 04:08:57 GMT 2010",126,"Female",1988,"Some college, no degree",null,"single","No",4,"White","Maine","United States","20-50 HITs per week","0-3 months","$1-$5 per week","1-2 hours per week","fruitful|secondary_income|entertainment|unemployed",true,true,false,false,true,true,"Yes, I started working on MTurk after the recession.","I was not active before the recession."]
["NYHZYE9RABEZ74ZTEY80D3WZ22CP71PZ1B0QMXB0","Thu Jan 28 05:05:19 GMT 2010",127,"Female",1987,"Associates degree","$25,000 - $39,499","single","No",3,"White","Non-US","Canada","20-50 HITs per week","0-3 months","$5-$10 per week","1-2 hours per week","fruitful|secondary_income|killtime|entertainment|unemployed",true,true,true,false,true,true,"I started working on MTurk after the recession but the recession has nothing to do with my decision","I was not active before the recession."]
["NYHZYE9RABEZ74ZTEY80C90ZZ3ZMHGMZ49H3DGD0","Thu Jan 28 08:10:59 GMT 2010",127,"Male",1979,"Graduate degree, Masters","$40,500 - $59,999","single","No",1,"White","Non-US","Germany","1000-5000 HITs per week","2-4 years","$20-$50 per week","20-40 hours per week","secondary_income",false,false,false,false,true,false,"Yes, I started working on MTurk after the recession.","I work more on MTurk after the recession."]
["NYHZYE9RABEZ74ZTEY803XFG32Z069WESGY5AW90","Fri Jan 29 10:21:36 GMT 2010",127,"Female",1988,"Some college, no degree","$40,500 - $59,999","single","No","5+","Asian",null,"Singapore","20-50 HITs per week","0-3 months","$1-$5 per week","4-8 hours per week","killtime|entertainment",false,true,true,false,false,false,"I started working on MTurk after the recession but the recession has nothing to do with my decision","I was not active before the recession.","I participate to try and get Cash for Offerpal, which I can then use on Gaiaonline.","Sometimes, Mturk hits requiring many words are not worth the effort to complete."]
["NYHZYE9RABEZ74ZTEY80BXW4V1YVJJTAV3YXYAB0","Fri Jan 29 15:42:40 GMT 2010",127,"Female",1975,"Bachelors degree","$100,000 - $149,999","married","Yes, 2 children","5+","White","Illinois","United States","20-50 HITs per week","6-12 months","$5-$10 per week","2-4 hours per week","fruitful|secondary_income",true,false,false,false,true,false,"I started working on MTurk after the recession but the recession has nothing to do with my decision","I work the same amount of time on MTurk as before."]
["NYHZYE9RABEZ74ZTEY80V862XMYXBWHZYA5PWXB0","Sun Jan 31 06:02:40 GMT 2010",127,"Male",1983,"Graduate degree, Masters","$10,000 - $14,999","single","No",4,"Asian",null,"India","10-20 HITs per week","6-12 months","Less than $1 per week","2-4 hours per week","fruitful|secondary_income|entertainment",true,true,false,false,true,false,"No, I was active before the recession.","I work the same amount of time on MTurk as before.","extra income","no comments"]
["NYHZYE9RABEZ74ZTEY80P8JRV0ZZ60CZSHZSGZ5Z","Fri Feb 05 03:52:38 GMT 2010",127,"Female",1985,"Graduate degree, Masters","$25,000 - $39,499","married","No",2,"White","Ohio","United States","100-200 HITs per week","0-3 months","$10-$20 per week","4-8 hours per week","secondary_income|entertainment",false,true,false,false,true,false,"I started working on MTurk after the recession but the recession has nothing to do with my decision","I was not active before the recession.","Easy to do tasks that can provide me with income to buy wants while I'm watching tv."]
["NYHZYE9RABEZ74ZTEY80EY4J3SY6YVCZ21YQBZ0Z","Fri Feb 05 16:16:24 GMT 2010",127,"Female",1989,"Some college, no degree","Less than $10,000","single","No","5+","White",null,"Romania","500-1000 HITs per week","6-12 months","$10-$20 per week","4-8 hours per week","fruitful|secondary_income",true,false,false,false,true,false,"No, I was active before the recession.","I work more on MTurk after the recession."]
["NYHZYE9RABEZ74ZTEY80QRXZX8Z5G1TZ67ZHQYA0","Tue Feb 09 21:07:41 GMT 2010",127,"Male",1973,"Graduate degree, Doctorate","$300,000 or more","single","No",1,"Other","Kentucky","United States","100-200 HITs per week","0-3 months","$50-$100 per week","4-8 hours per week","fruitful|secondary_income|killtime|entertainment",true,true,true,false,true,false,"I started working on MTurk after the recession but the recession has nothing to do with my decision","I was not active before the recession."]
["NYHZYE9RABEZ74ZTEY801KKZZ5YVEZYZTBMEJWKZ","Fri Feb 12 14:34:58 GMT 2010",127,"Male",1957,"Some college, no degree","$15,000 - $24,999","married","Yes, 2 children",3,"Other","Non-US","Spain","20-50 HITs per week","0-3 months","$1-$5 per week","2-4 hours per week","primary_income",{"$f":"ISNUMBER(FIND(\"fruitful\", $R131))","v":false},{"$f":"ISNUMBER(FIND(\"entertainment\", $R131))","v":false},{"$f":"ISNUMBER(FIND(\"killtime\", $R131))","v":false},{"$f":"ISNUMBER(FIND(\"primary_income\", $R131))","v":true},{"$f":"ISNUMBER(FIND(\"secondary_income\", $R131))","v":false},{"$f":"ISNUMBER(FIND(\"unemployed\", R131))","v":false},"Yes, I started working on MTurk after the recession.","I was not active before the recession."]
["NYHZYE9RABEZ74ZTEY80CXRZXNZ6GBDCK089Q3SZ","Tue Feb 02 01:22:12 GMT 2010",128,"Male",1987,"Bachelors degree","$25,000 - $39,499","cohabitating","No",2,"White","Pennsylvania","United States","50-100 HITs per week","0-3 months","$1-$5 per week","1-2 hours per week","fruitful|secondary_income|killtime|entertainment|unemployed",true,true,true,false,true,true,"I started working on MTurk after the recession but the recession has nothing to do with my decision","I work more on MTurk after the recession.",null,"Hope this helps!  Good luck with your research!"]
["NYHZYE9RABEZ74ZTEY80YWA8M91Y4XNZX4ZWHYY0","Sat Feb 06 07:00:19 GMT 2010",128,"Female",1977,"Some college, no degree","$10,000 - $14,999","separated","Yes, 1 child",2,"White","Texas","United States","5-10 HITs per week","6-12 months","Less than $1 per week","Less than 1 hour per week","fruitful",true,false,false,false,false,false,"No, I was active before the recession.","I work more on MTurk after the recession."]
["NYHZYE9RABEZ74ZTEY80MYYZXV9HWZKZ24SG5RT0","Thu Jan 28 08:11:39 GMT 2010",129,"Female",1987,"Some college, no degree","$15,000 - $24,999","married","No",2,"White","Indiana","United States","50-100 HITs per week","0-3 months","$10-$20 per week","2-4 hours per week","fruitful|killtime",true,false,true,false,false,false,"I started working on MTurk after the recession but the recession has nothing to do with my decision","I was not active before the recession.",null,"Nothing, this was interesting!"]
["NYHZYE9RABEZ74ZTEY80YS3ZRTWGZZHWXPHEZZJ0","Sat Jan 30 14:58:49 GMT 2010",129,"Female",1982,"Graduate degree, Masters","$15,000 - $24,999","married","No",1,"Asian",null,"India","50-100 HITs per week","3-6 months","$20-$50 per week","20-40 hours per week","primary_income",false,false,false,true,false,false,"I started working on MTurk after the recession but the recession has nothing to do with my decision","I was not active before the recession.",null,"None."]
["NYHZYE9RABEZ74ZTEY80DYPZ1V1N5YNZ1FYV6Y30","Mon Feb 08 04:33:23 GMT 2010",129,"Female",1985,"Graduate degree, Masters","Less than $10,000","cohabitating","No",2,"White","Michigan","United States","Less than 1 HIT per week","6-12 months","Less than $1 per week","Less than 1 hour per week","fruitful|secondary_income",true,false,false,false,true,false,"I started working on MTurk after the recession but the recession has nothing to do with my decision","I was not active before the recession."]
["NYHZYE9RABEZ74ZTEY80SWYZXSZW3YKZTYXZBHFZ","Tue Feb 09 03:03:47 GMT 2010",129,"Female",1989,"Some college, no degree","$75,000 - $99,999","single","No",4,"Asian",null,"New Zealand","10-20 HITs per week","1-2 years","$10-$20 per week","2-4 hours per week","fruitful|secondary_income|unemployed",true,false,false,false,true,true,"No, I was active before the recession.","I work the same amount of time on MTurk as before."]
["NYHZYE9RABEZ74ZTEY80KWJJJRN5DWRJSZXKDZ3Z","Thu Jan 28 16:31:04 GMT 2010",130,"Female",1984,"Bachelors degree","$40,500 - $59,999","cohabitating","No",2,"White","Colorado","United States","50-100 HITs per week","6-12 months","$5-$10 per week","4-8 hours per week","secondary_income|killtime",false,false,true,false,true,false,"No, I was active before the recession.","I work the same amount of time on MTurk as before."]
["NYHZYE9RABEZ74ZTEY80JTEAZWZ6E2CZVPYF7B20","Fri Jan 29 23:58:32 GMT 2010",130,"Female",1963,"Some college, no degree","$25,000 - $39,499","married","Yes, 2 children",2,"White","Indiana","United States","50-100 HITs per week","3-6 months","$20-$50 per week","8-20 hours per week","fruitful|primary_income|secondary_income|entertainment|unemployed",true,true,false,true,true,true,"Yes, I started working on MTurk after the recession.","I work more on MTurk after the recession.",null,"Just started working on a lot more hits last 2 weeks. Have been very adversely affected by econmic conditions. Need every dime."]
["NYHZYE9RABEZ74ZTEY808WPGKEYXZXJ2KTY58YFZ","Sun Jan 31 18:41:37 GMT 2010",130,"Male",1978,"Bachelors degree","$60,000 - $74,999","married","No",2,"White","Missouri","United States","200-500 HITs per week","1-2 years","$20-$50 per week","4-8 hours per week","fruitful",true,false,false,false,false,false,"No, I was active before the recession.","I work the same amount of time on MTurk as before."]
["NYHZYE9RABEZ74ZTEY803X8ZSK8F3KNYY89Y5W00","Thu Feb 04 21:59:15 GMT 2010",130,"Male",1980,"High School Graduate","$25,000 - $39,499","single","No",4,"White","California","United States","20-50 HITs per week","0-3 months","$5-$10 per week","2-4 hours per week","fruitful|secondary_income|killtime|entertainment",true,true,true,false,true,false,"Yes, I started working on MTurk after the recession.","I was not active before the recession."]
["NYHZYE9RABEZ74ZTEY80VRHCYXYRGWPZ0WC7QWA0","Thu Feb 04 23:20:45 GMT 2010",130,"Male",1963,"Some college, no degree","$40,500 - $59,999","married","Yes, 1 child",2,"White","Texas","United States","50-100 HITs per week","6-12 months","$1-$5 per week","4-8 hours per week","fruitful|secondary_income|entertainment",true,true,false,false,true,false,"Yes, I started working on MTurk after the recession.","I work more on MTurk after the recession."]
["NYHZYE9RABEZ74ZTEY802J1RWGZR1XDZVWZGV1PZ","Wed Feb 10 16:30:47 GMT 2010",130,"Female",1980,"Associates degree","$25,000 - $39,499","single","Yes, 1 child",2,"Black","New York","United States","5-10 HITs per week","0-3 months","$1-$5 per week","2-4 hours per week","fruitful|secondary_income|killtime|entertainment",true,true,true,false,true,false,"Yes, I started working on MTurk after the recession.","I work more on MTurk after the recession."]
["NYHZYE9RABEZ74ZTEY80J0JZYG8D9B2ATAZJ3XCZ","Fri Feb 12 10:16:02 GMT 2010",130,"Male",1960,"High School Graduate","$40,500 - $59,999","married","Yes, 2 children",2,"Asian","Indiana","India","10-20 HITs per week","3-6 months","$10-$20 per week","2-4 hours per week","secondary_income",false,false,false,false,true,false,"Yes, I started working on MTurk after the recession.","I work more on MTurk after the recession.","none"]
["NYHZYE9RABEZ74ZTEY80KX6ZS8YNMAYENZY0DYNZ","Thu Jan 28 00:06:24 GMT 2010",131,"Female",1969,"Some college, no degree","$25,000 - $39,499","married","No",2,"White","Pennsylvania","United States","1000-5000 HITs per week","0-3 months","$50-$100 per week","More than 40 hours per week","primary_income|unemployed",false,false,false,true,false,true,"I started working on MTurk after the recession but the recession has nothing to do with my decision","I was not active before the recession."]
["NYHZYE9RABEZ74ZTEY803YGCXZZS2YGZQDYN6V40","Thu Jan 28 05:00:59 GMT 2010",131,"Female",1977,"Graduate degree, Masters","$40,500 - $59,999","married","Yes, 2 children",4,"White",null,"Turkey","100-200 HITs per week","0-3 months","$5-$10 per week","2-4 hours per week","fruitful|secondary_income",true,false,false,false,true,false,"I started working on MTurk after the recession but the recession has nothing to do with my decision","I work the same amount of time on MTurk as before."]
["NYHZYE9RABEZ74ZTEY80Q3YZQ9ZHKX8ZTGZ1MZN0","Sat Jan 30 18:17:13 GMT 2010",131,"Female",1983,"Graduate degree, Masters","Less than $10,000","single","No",4,"Asian","Non-US","India","10-20 HITs per week","0-3 months","$1-$5 per week","1-2 hours per week","fruitful|killtime|unemployed",true,false,true,false,false,true,"I started working on MTurk after the recession but the recession has nothing to do with my decision","I was not active before the recession.",null,"thanks"]
["NYHZYE9RABEZ74ZTEY80WJST1FZCAYX07S8SVT20","Wed Feb 03 15:21:18 GMT 2010",131,"Male",1981,"Bachelors degree","$40,500 - $59,999","cohabitating","No",2,"White","New York","United States","100-200 HITs per week","0-3 months","$1-$5 per week","2-4 hours per week","fruitful",true,false,false,false,false,false,"I started working on MTurk after the recession but the recession has nothing to do with my decision","I was not active before the recession.","Its a nice way to spend free time when I am on the computer with nothing to do.  I also find some of the tasks to be interesting."]
["NYHZYE9RABEZ74ZTEY804WEMG4MPAYSZJ9Y8TX80","Mon Feb 08 15:03:32 GMT 2010",131,"Female",1968,"High School Graduate","$40,500 - $59,999","separated","Yes, 1 child",2,"Asian","California","United States","100-200 HITs per week","1-2 years","$20-$50 per week","4-8 hours per week","secondary_income",false,false,false,false,true,false,"I started working on MTurk after the recession but the recession has nothing to do with my decision","I work more on MTurk after the recession."]
["NYHZYE9RABEZ74ZTEY802WPY29YT4K8ZQC5SHGK0","Thu Jan 28 23:08:57 GMT 2010",132,"Female",1990,"Some college, no degree","$100,000 - $149,999","single","No","5+","White","Minnesota","United States","20-50 HITs per week","0-3 months","$1-$5 per week","1-2 hours per week","fruitful|secondary_income|killtime|entertainment",true,true,true,false,true,false,"I started working on MTurk after the recession but the recession has nothing to do with my decision","I was not active before the recession.","As a college student who spends all my income on tuition and books, I thought it would be a fun way to get a little money that I can spend on something fun."]
["NYHZYE9RABEZ74ZTEY80ZZBZPAYTCBKG71YF98P0","Tue Feb 02 05:00:25 GMT 2010",132,"Male",1978,"Bachelors degree","$40,500 - $59,999","married","Yes, 2 children",4,"White","Colorado","United States","50-100 HITs per week","3-6 months","$1-$5 per week","2-4 hours per week","fruitful",true,false,false,false,false,false,"I started working on MTurk after the recession but the recession has nothing to do with my decision","I work the same amount of time on MTurk as before."]
["NYHZYE9RABEZ74ZTEY8059NZXD14A18JRBY470Z0","Mon Feb 08 04:18:26 GMT 2010",132,"Female",1963,"Bachelors degree","$15,000 - $24,999","married","Yes, 3 children","5+","Asian",null,"India","20-50 HITs per week","0-3 months","$5-$10 per week","4-8 hours per week","fruitful",true,false,false,false,false,false,"No, I was active before the recession.","I work more on MTurk after the recession.","I like mturk as it offers some money for shopping needs.","I love Mturk."]
["NYHZYE9RABEZ74ZTEY807W10KNZ4SZVC3SYX9ZGZ","Wed Feb 10 06:05:34 GMT 2010",132,"Male",1977,"Graduate degree, Masters","$25,000 - $39,499","married","Yes, 1 child","5+","Asian",null,"India","50-100 HITs per week","3-6 months","$5-$10 per week","8-20 hours per week","fruitful",true,false,false,false,false,false,"No, I was active before the recession.","I work more on MTurk after the recession."]
["NYHZYE9RABEZ74ZTEY80VYEMRRWAQZ4Z0N8X5T9Z","Thu Jan 28 02:37:22 GMT 2010",133,"Male",1960,"Graduate degree, Doctorate","$75,000 - $99,999","married","Yes, 2 children","5+","White","Massachusetts","United States","50-100 HITs per week","3-6 months","$10-$20 per week","4-8 hours per week","fruitful|secondary_income|killtime|entertainment",true,true,true,false,true,false,"Yes, I started working on MTurk after the recession.","I was not active before the recession."]
["NYHZYE9RABEZ74ZTEY80V85ZZDZXX32MRANT1WP0","Sun Jan 31 16:08:48 GMT 2010",133,"Male",1982,"Bachelors degree","Less than $10,000","single","No",3,"Asian",null,"India","200-500 HITs per week","6-12 months","$10-$20 per week","8-20 hours per week","fruitful|primary_income",true,false,false,true,false,false,"I started working on MTurk after the recession but the recession has nothing to do with my decision","I work more on MTurk after the recession."]
["NYHZYE9RABEZ74ZTEY804W7ZTA54BWZAM8YDP01Z","Tue Feb 02 15:03:56 GMT 2010",133,"Male",1975,"Graduate degree, Doctorate","$40,500 - $59,999","married","No",2,"White","Non-US","Belgium","20-50 HITs per week","3-6 months","$1-$5 per week","4-8 hours per week","secondary_income",false,false,false,false,true,false,"I started working on MTurk after the recession but the recession has nothing to do with my decision","I work the same amount of time on MTurk as before."]
["NYHZYE9RABEZ74ZTEY80XVXP5MWKFAMZ1GYN6YF0","Wed Feb 10 05:35:36 GMT 2010",133,"Female",1982,"Graduate degree, Masters","$25,000 - $39,499","married","No",2,"White","Georgia","United States","10-20 HITs per week","3-6 months","$1-$5 per week","1-2 hours per week","secondary_income",false,false,false,false,true,false,"I started working on MTurk after the recession but the recession has nothing to do with my decision","I work more on MTurk after the recession."]
["NYHZYE9RABEZ74ZTEY805HVT74MPZXTP66Z5VYWZ","Thu Feb 11 14:24:45 GMT 2010",133,"Male",1990,"Some college, no degree","$300,000 or more","single","No",3,"White","Michigan","United States","10-20 HITs per week","0-3 months","Less than $1 per week","4-8 hours per week","fruitful",true,false,false,false,false,false,"Yes, I started working on MTurk after the recession.","I was not active before the recession."]
["NYHZYE9RABEZ74ZTEY80QWJG77DFQWTZJAYK0WV0","Thu Jan 28 00:32:31 GMT 2010",135,"Male",1983,"High School Graduate","$15,000 - $24,999","single","No",1,"White",null,"Canada","10-20 HITs per week","6-12 months","$1-$5 per week","2-4 hours per week","fruitful|secondary_income|killtime",true,false,true,false,true,false,"No, I was active before the recession.","I work the same amount of time on MTurk as before.","I just like doing hits"]
["NYHZYE9RABEZ74ZTEY80DA7ZK945SKBZXWYVEWPZ","Thu Jan 28 01:17:20 GMT 2010",135,"Male",1975,"Bachelors degree","$150,000 - $199,999","married","Yes, 2 children",4,"White",null,"Canada","50-100 HITs per week","1-2 years","$1-$5 per week","2-4 hours per week","fruitful|secondary_income",true,false,false,false,true,false,"No, I was active before the recession.","I work the same amount of time on MTurk as before."]
["NYHZYE9RABEZ74ZTEY80PXHE0AWMTXY0WNXQPSMZ","Mon Feb 01 13:35:40 GMT 2010",135,"Female",1969,"Some college, no degree","Less than $10,000","married","Yes, 2 children",4,"Asian",null,"India","20-50 HITs per week","0-3 months","$1-$5 per week","20-40 hours per week","fruitful|primary_income",true,false,false,true,false,false,"No, I was active before the recession.","I was not active before the recession."]
["NYHZYE9RABEZ74ZTEY80TWSEWTYMPWVMVAYG3HQ0","Tue Feb 02 05:19:51 GMT 2010",135,"Female",1985,"Some college, no degree","Less than $10,000","engaged","No",2,"White","Tennessee","United States","100-200 HITs per week","0-3 months","$10-$20 per week","4-8 hours per week","fruitful|killtime|unemployed",true,false,true,false,false,true,"Yes, I started working on MTurk after the recession.","I was not active before the recession."]
["NYHZYE9RABEZ74ZTEY80AZPZGYSPKTTZ7A1N9R6Z","Sun Feb 07 18:49:48 GMT 2010",135,"Female",1960,"Some college, no degree","$60,000 - $74,999","married","Yes, 4 or more children","5+","Other","New York","United States","10-20 HITs per week","2-4 years","$1-$5 per week","1-2 hours per week","fruitful|secondary_income|killtime|entertainment",true,true,true,false,true,false,"No, I was active before the recession.","I work more on MTurk after the recession."]
["NYHZYE9RABEZ74ZTEY80TW5ZG88EM9V455ZW6RF0","Thu Jan 28 13:01:29 GMT 2010",136,"Male",1980,"High School Graduate","Less than $10,000","single","No",4,"Asian","Non-US","India","200-500 HITs per week","0-3 months","$5-$10 per week","8-20 hours per week","unemployed",false,false,false,false,false,true,"Yes, I started working on MTurk after the recession.","I work more on MTurk after the recession."]
["NYHZYE9RABEZ74ZTEY80WHQZJDZ9XA9P0RCTAYFZ","Thu Jan 28 16:03:08 GMT 2010",136,"Male",1984,"Bachelors degree","Less than $10,000","single","No","5+","Asian",null,"India","10-20 HITs per week","6-12 months","$1-$5 per week","2-4 hours per week","fruitful|secondary_income",true,false,false,false,true,false,"No, I was active before the recession.","I work the same amount of time on MTurk as before."]
["NYHZYE9RABEZ74ZTEY80MGMZ5FSKXYDGKDRMRWG0","Thu Feb 04 02:17:27 GMT 2010",136,"Male",1978,"Bachelors degree","$40,500 - $59,999","married","Yes, 2 children",4,"Other","Florida","United States","5-10 HITs per week","0-3 months","$1-$5 per week","1-2 hours per week","fruitful|secondary_income",true,false,false,false,true,false,"I started working on MTurk after the recession but the recession has nothing to do with my decision","I was not active before the recession."]
["NYHZYE9RABEZ74ZTEY80FXWZG6YZZZ6MRR1DSYZZ","Fri Feb 05 11:12:39 GMT 2010",136,"Male",1994,"Some High School","Less than $10,000","single","No",2,"White",null,"Romania","10-20 HITs per week","0-3 months","$20-$50 per week","2-4 hours per week","secondary_income",false,false,false,false,true,false,"Yes, I started working on MTurk after the recession.","I work more on MTurk after the recession."]
["NYHZYE9RABEZ74ZTEY807Y9GMJYXS83ZWVR9NYAZ","Mon Feb 08 04:10:52 GMT 2010",136,"Female",1960,"Some college, no degree","$15,000 - $24,999","divorced","Yes, 3 children",1,"White","Kentucky","United States","1000-5000 HITs per week","1-2 years","$100-$200 per week","More than 40 hours per week","primary_income",false,false,false,true,false,false,"I started working on MTurk after the recession but the recession has nothing to do with my decision","I work the same amount of time on MTurk as before."]
["NYHZYE9RABEZ74ZTEY80VTCZMHZEQ01Z09HK007Z","Tue Feb 09 09:15:49 GMT 2010",136,"Male",1978,"Bachelors degree","$10,000 - $14,999","married","Yes, 1 child",2,"White",null,"Romania","5-10 HITs per week","1-2 years","$1-$5 per week","Less than 1 hour per week","fruitful",true,false,false,false,false,false,"No, I was active before the recession.","I work less on MTurk after the recession."]
["NYHZYE9RABEZ74ZTEY80GAYZYZYCPSP2T2M3DX9Z","Fri Jan 29 03:07:16 GMT 2010",137,"Male",1980,"Some High School","$75,000 - $99,999","single","No",1,"White","Minnesota","United States","100-200 HITs per week","0-3 months","$5-$10 per week","20-40 hours per week","fruitful",true,false,false,false,false,false,"I started working on MTurk after the recession but the recession has nothing to do with my decision","I was not active before the recession."]
["NYHZYE9RABEZ74ZTEY804WR2M701SZDRXDZPV390","Sat Jan 30 04:41:17 GMT 2010",137,"Female",1986,"Bachelors degree","Less than $10,000","single","No",1,"White","Non-US","Canada","Less than 1 HIT per week","6-12 months","Less than $1 per week","Less than 1 hour per week","fruitful|secondary_income|killtime|entertainment",true,true,true,false,true,false,"I started working on MTurk after the recession but the recession has nothing to do with my decision","I work the same amount of time on MTurk as before."]
["NYHZYE9RABEZ74ZTEY80X2SZW6RPZX5YRNZ3ZXFZ","Wed Feb 10 20:26:41 GMT 2010",137,"Female",1990,"High School Graduate","$40,500 - $59,999","engaged","No",2,"White",null,"Canada","5-10 HITs per week","0-3 months","$1-$5 per week","2-4 hours per week","fruitful|killtime",true,false,true,false,false,false,"I started working on MTurk after the recession but the recession has nothing to do with my decision","I work the same amount of time on MTurk as before."]
["NYHZYE9RABEZ74ZTEY80RXGZ2FXY1ZHTYH4CG8E0","Wed Feb 03 21:47:49 GMT 2010",138,"Male",1978,"High School Graduate","$75,000 - $99,999","divorced","No",3,"White","Missouri","United States","200-500 HITs per week","6-12 months","$20-$50 per week","8-20 hours per week","secondary_income",false,false,false,false,true,false,"Yes, I started working on MTurk after the recession.","I was not active before the recession."]
["NYHZYE9RABEZ74ZTEY80EGMZNACN3X7ZJEZSHR90","Thu Feb 04 17:45:37 GMT 2010",138,"Male",1966,"Bachelors degree","$75,000 - $99,999","married","Yes, 3 children","5+","White","Indiana","United States","10-20 HITs per week","1-2 years","Less than $1 per week","Less than 1 hour per week","fruitful|secondary_income|killtime|entertainment",true,true,true,false,true,false,"No, I was active before the recession.","I work the same amount of time on MTurk as before."]
["NYHZYE9RABEZ74ZTEY802WD6S8Y35G7ZV6ZR0TP0","Sun Feb 07 17:36:58 GMT 2010",138,"Male",1976,"Bachelors degree","$15,000 - $24,999","single","No",2,"White","Ohio","United States","20-50 HITs per week","3-6 months","$10-$20 per week","8-20 hours per week","fruitful|secondary_income",true,false,false,false,true,false,"Yes, I started working on MTurk after the recession.","I work more on MTurk after the recession."]
["NYHZYE9RABEZ74ZTEY80E81W7N47JZCZ23D7MK7Z","Wed Feb 10 05:03:08 GMT 2010",138,"Female",1961,"Graduate degree, Masters","$100,000 - $149,999","single","No",2,"White","Texas","United States","1000-5000 HITs per week","0-3 months","$50-$100 per week","8-20 hours per week","fruitful|secondary_income|killtime|entertainment",true,true,true,false,true,false,"I started working on MTurk after the recession but the recession has nothing to do with my decision",null,"I'm putting the money away in a travel account."]
["NYHZYE9RABEZ74ZTEY808922XJSE42KRNT14CZ30","Thu Feb 11 19:32:18 GMT 2010",138,"Female",1983,"Associates degree","$25,000 - $39,499","single","No",1,"White","Indiana","United States","100-200 HITs per week","3-6 months","$5-$10 per week","4-8 hours per week","fruitful|secondary_income|killtime|entertainment",true,true,true,false,true,false,"No, I was active before the recession.","I work the same amount of time on MTurk as before."]
["NYHZYE9RABEZ74ZTEY80BK48NMZZTBDTZBZWY1JZ","Fri Jan 29 07:31:25 GMT 2010",139,"Male",1988,"Some college, no degree","$25,000 - $39,499","single","No",1,"White","Maryland","United States","1-5 HITs per week","0-3 months","Less than $1 per week","1-2 hours per week","fruitful|killtime|entertainment",true,true,true,false,false,false,"I started working on MTurk after the recession but the recession has nothing to do with my decision","I was not active before the recession."]
["NYHZYE9RABEZ74ZTEY80417861ZQ1WMEV5HA410Z","Mon Feb 01 04:27:37 GMT 2010",139,"Female",1974,"Graduate degree, Masters","$15,000 - $24,999","single","No",1,"White","Alabama","United States","20-50 HITs per week","3-6 months","$5-$10 per week","4-8 hours per week","secondary_income",false,false,false,false,true,false,"Yes, I started working on MTurk after the recession.","I was not active before the recession."]
["NYHZYE9RABEZ74ZTEY80JZZEP1SYZ9MZH3YVJ3V0","Mon Feb 08 04:11:50 GMT 2010",139,"Female",1987,"Bachelors degree","$75,000 - $99,999","single","No",3,"White","Illinois","United States","50-100 HITs per week","3-6 months","$1-$5 per week","1-2 hours per week","fruitful|secondary_income|unemployed",true,false,false,false,true,true,"Yes, I started working on MTurk after the recession.","I work more on MTurk after the recession."]
["NYHZYE9RABEZ74ZTEY80HY5ZSCZ868AZTT1PVRPZ","Mon Feb 08 13:14:12 GMT 2010",139,"Male",1980,"Some college, no degree","Less than $10,000","single","No",2,"White","Wisconsin","United States","200-500 HITs per week","0-3 months","$20-$50 per week","8-20 hours per week","fruitful|secondary_income|killtime|entertainment",true,true,true,false,true,false,"I started working on MTurk after the recession but the recession has nothing to do with my decision","I work the same amount of time on MTurk as before."]
["NYHZYE9RABEZ74ZTEY80NBDPSAZGRXFM1ZYP8GJZ","Fri Feb 12 10:14:20 GMT 2010",139,"Male",1979,"High School Graduate","Less than $10,000","single","No",3,"Asian","Non-US","India","100-200 HITs per week","3-6 months","$10-$20 per week","8-20 hours per week","unemployed",false,false,false,false,false,true,"Yes, I started working on MTurk after the recession.","I work more on MTurk after the recession."]
["NYHZYE9RABEZ74ZTEY80EX0YRT1JGYP2YRYB6ZR0","Wed Jan 27 23:46:17 GMT 2010",140,"Female",1960,"Bachelors degree","$75,000 - $99,999","married","Yes, 2 children",3,"White","North Carolina","United States","200-500 HITs per week","2-4 years","More than $500 per week","8-20 hours per week","fruitful|entertainment|unemployed",true,true,false,false,false,true,"No, I was active before the recession.","I work more on MTurk after the recession.",null,"Great site, great survey!  Thank you."]
["NYHZYE9RABEZ74ZTEY808XTZSSW2CWNET3XB124Z","Thu Jan 28 04:35:36 GMT 2010",140,"Female",1976,"Bachelors degree","$25,000 - $39,499","married","Yes, 1 child",3,"White",null,"Germany","50-100 HITs per week","0-3 months","$5-$10 per week","2-4 hours per week","fruitful|secondary_income",true,false,false,false,true,false,"I started working on MTurk after the recession but the recession has nothing to do with my decision","I was not active before the recession."]
["NYHZYE9RABEZ74ZTEY80XJ9Z5BYR7ZJRQDHX3TE0","Thu Jan 28 15:40:49 GMT 2010",140,"Male",1969,"Graduate degree, Masters","$40,500 - $59,999","single","No",1,"White","California","United States","20-50 HITs per week","0-3 months","$5-$10 per week","1-2 hours per week","fruitful|secondary_income|entertainment",true,true,false,false,true,false,"I started working on MTurk after the recession but the recession has nothing to do with my decision","I was not active before the recession."]
["NYHZYE9RABEZ74ZTEY80RHWWRSCCSSW4GS8NFWNZ","Fri Feb 05 10:06:40 GMT 2010",140,"Male",1988,"Some High School","$60,000 - $74,999","cohabitating","Yes, 1 child",1,"Black","Non-US","Argentina","10-20 HITs per week","3-6 months","$20-$50 per week","1-2 hours per week","fruitful",true,false,false,false,false,false,"Yes, I started working on MTurk after the recession.","I work less on MTurk after the recession."]
["NYHZYE9RABEZ74ZTEY807YQZSKZKVXKGZQ42Z2P0","Tue Feb 09 22:25:50 GMT 2010",140,"Male",1981,"Bachelors degree","$40,500 - $59,999","cohabitating","No",2,"White","Illinois","United States","50-100 HITs per week","3-6 months","$5-$10 per week","4-8 hours per week","fruitful|secondary_income",true,false,false,false,true,false,"Yes, I started working on MTurk after the recession.","I was not active before the recession."]
["NYHZYE9RABEZ74ZTEY80WXEE00ZG3G4ZGGYQPW60","Thu Jan 28 06:23:04 GMT 2010",141,"Female",1981,"Graduate degree, Masters","Less than $10,000","single","No",4,"Asian",null,"India","20-50 HITs per week","6-12 months","$5-$10 per week","2-4 hours per week","fruitful|secondary_income|unemployed",true,false,false,false,true,true,"I started working on MTurk after the recession but the recession has nothing to do with my decision","I work the same amount of time on MTurk as before.",null,"Thank you !!"]
["NYHZYE9RABEZ74ZTEY80W254XPZHRHJEKGZBSXG0","Sun Jan 31 19:04:05 GMT 2010",141,"Female",1955,"Bachelors degree","$60,000 - $74,999","married","Yes, 3 children",4,"White","Illinois","United States","5-10 HITs per week","1-2 years","$1-$5 per week","1-2 hours per week","fruitful|secondary_income|killtime",true,false,true,false,true,false,"Yes, I started working on MTurk after the recession.","I work more on MTurk after the recession."]
["NYHZYE9RABEZ74ZTEY803HZG5JGB281YGEYNZWAZ","Sun Feb 07 05:49:39 GMT 2010",141,"Male",1988,"Bachelors degree","$10,000 - $14,999","single","No",4,"Asian",null,"India","200-500 HITs per week","1-2 years","$10-$20 per week","8-20 hours per week","secondary_income",false,false,false,false,true,false,"Yes, I started working on MTurk after the recession.","I work the same amount of time on MTurk as before."]
["NYHZYE9RABEZ74ZTEY80480Z5TY2CY3WMQYZT81Z","Fri Jan 29 15:16:11 GMT 2010",142,"Male",1988,"Bachelors degree","Less than $10,000","single","No",4,"Asian",null,"India","50-100 HITs per week","3-6 months","$5-$10 per week","4-8 hours per week","primary_income",false,false,false,true,false,false,"No, I was active before the recession.","I work less on MTurk after the recession."]
["NYHZYE9RABEZ74ZTEY804GRPKXY0XZ2ZG3830ZZZ","Mon Feb 01 18:31:37 GMT 2010",142,"Male",1991,"Some High School","$10,000 - $14,999","single","No",3,"White","Non-US","Romania","5-10 HITs per week","0-3 months","Less than $1 per week","1-2 hours per week","fruitful",true,false,false,false,false,false,"I started working on MTurk after the recession but the recession has nothing to do with my decision","I work the same amount of time on MTurk as before."]
["NYHZYE9RABEZ74ZTEY80KZQZYPYTN26ZVWNDHVWZ","Fri Feb 05 12:05:12 GMT 2010",142,"Male",1992,"Some college, no degree","$25,000 - $39,499","single","No",1,"Black",null,"Morocco","10-20 HITs per week","1-2 years","$5-$10 per week","1-2 hours per week","secondary_income|killtime",false,false,true,false,true,false,"No, I was active before the recession.","I work the same amount of time on MTurk as before."]
["NYHZYE9RABEZ74ZTEY80ZY62RBZ11YN2VHZA9XVZ","Sun Feb 07 03:23:25 GMT 2010",142,"Female",1987,"Bachelors degree","$300,000 or more","single","No",4,"White","New Jersey","United States","1-5 HITs per week","6-12 months","$1-$5 per week","1-2 hours per week","fruitful|secondary_income",true,false,false,false,true,false,"I started working on MTurk after the recession but the recession has nothing to do with my decision","I was not active before the recession."]
["NYHZYE9RABEZ74ZTEY80YWEZ1XMDCXFZWSH2TVAZ","Sun Feb 07 15:32:37 GMT 2010",142,"Male",1986,"Graduate degree, Masters","$40,500 - $59,999","single","No","5+","Asian","Non-US","India","200-500 HITs per week","3-6 months","$10-$20 per week","8-20 hours per week","fruitful",{"$f":"ISNUMBER(FIND(\"fruitful\", $R195))","v":true},{"$f":"ISNUMBER(FIND(\"entertainment\", $R195))","v":false},{"$f":"ISNUMBER(FIND(\"killtime\", $R195))","v":false},{"$f":"ISNUMBER(FIND(\"primary_income\", $R195))","v":false},{"$f":"ISNUMBER(FIND(\"secondary_income\", $R195))","v":false},{"$f":"ISNUMBER(FIND(\"unemployed\", R195))","v":false},"I started working on MTurk after the recession but the recession has nothing to do with my decision","I work more on MTurk after the recession."]
["NYHZYE9RABEZ74ZTEY802GKZ78831X68W9N92W0Z","Mon Feb 08 16:17:35 GMT 2010",142,"Male",1985,"Associates degree","$40,500 - $59,999","engaged","No",4,"Asian","Indiana","India","100-200 HITs per week","2-4 years","$100-$200 per week","8-20 hours per week","secondary_income",false,false,false,false,true,false,"Yes, I started working on MTurk after the recession.","I work less on MTurk after the recession."]
["NYHZYE9RABEZ74ZTEY80TW3JGMZXFXW63QSCHH3Z","Thu Feb 11 02:31:20 GMT 2010",142,"Female",1981,"Bachelors degree","$75,000 - $99,999","married","No",2,"Asian","New York","United States","5-10 HITs per week","1-2 years","$1-$5 per week","1-2 hours per week","fruitful|killtime",true,false,true,false,false,false,"No, I was active before the recession.","I work the same amount of time on MTurk as before."]
["NYHZYE9RABEZ74ZTEY808RYG7EYB9J46VQCDKJR0","Thu Jan 28 00:36:30 GMT 2010",143,"Female",1972,"Associates degree","Less than $10,000","divorced","Yes, 4 or more children","5+","Black","Ohio","United States","20-50 HITs per week","0-3 months","$5-$10 per week","20-40 hours per week","fruitful",true,false,false,false,false,false,"Yes, I started working on MTurk after the recession.","I was not active before the recession."]
["NYHZYE9RABEZ74ZTEY80M1FZTKWY5RTZX6YZQY90","Thu Jan 28 20:12:22 GMT 2010",143,"Female",1960,"Associates degree","$75,000 - $99,999","married","Yes, 4 or more children","5+","White","Tennessee","United States","20-50 HITs per week","2-4 years","$10-$20 per week","2-4 hours per week","fruitful|secondary_income",true,false,false,false,true,false,"No, I was active before the recession.","I work the same amount of time on MTurk as before."]
["NYHZYE9RABEZ74ZTEY80SYGZVBHS69Q2YPY12Y20","Fri Jan 29 07:31:17 GMT 2010",143,"Female",1989,"Some college, no degree","$10,000 - $14,999","cohabitating","No",2,"White","Minnesota","United States","50-100 HITs per week","0-3 months","$20-$50 per week","4-8 hours per week","fruitful|primary_income|secondary_income|killtime|entertainment",true,true,true,true,true,false,"I started working on MTurk after the recession but the recession has nothing to do with my decision","I was not active before the recession."]
["NYHZYE9RABEZ74ZTEY80Q09ZSKY8Q20Z6506XZK0","Sat Jan 30 00:20:05 GMT 2010",143,"Female",1979,"Bachelors degree","$25,000 - $39,499","single","No",3,"White","Florida","United States","5-10 HITs per week","1-2 years","Less than $1 per week","1-2 hours per week","secondary_income|killtime|entertainment",false,true,true,false,true,false,"No, I was active before the recession.","I work less on MTurk after the recession.",null,"Glad to provide assistance in this study."]
["NYHZYE9RABEZ74ZTEY806WDZG4YK5WDPG00YRZD0","Sat Jan 30 04:55:45 GMT 2010",143,"Male",1968,"Bachelors degree","$25,000 - $39,499","single","No",3,"Asian",null,"Canada","50-100 HITs per week","0-3 months","$1-$5 per week","2-4 hours per week","fruitful",true,false,false,false,false,false,"I started working on MTurk after the recession but the recession has nothing to do with my decision","I was not active before the recession."]
["NYHZYE9RABEZ74ZTEY80BTYZ4PC2NWAZRDZDZW40","Wed Feb 03 05:09:07 GMT 2010",143,"Female",1977,"Bachelors degree","$60,000 - $74,999","married","Yes, 1 child",3,"Asian","Texas","United States","5-10 HITs per week","6-12 months","$1-$5 per week","1-2 hours per week","fruitful",true,false,false,false,false,false,"No, I was active before the recession.","I work the same amount of time on MTurk as before."]
["NYHZYE9RABEZ74ZTEY800XPZWFYE62SZY24DXRVZ","Sat Feb 06 05:30:43 GMT 2010",143,"Female",1969,"Graduate degree, Masters","Less than $10,000","married","Yes, 2 children",4,"Asian",null,"India","5-10 HITs per week","1-2 years","$1-$5 per week","4-8 hours per week","fruitful|primary_income|secondary_income|entertainment",true,true,false,true,true,false,"No, I was active before the recession.","I work more on MTurk after the recession."]
["NYHZYE9RABEZ74ZTEY80DX2J55Z0XBQRSXZBHYC0","Mon Feb 08 04:31:22 GMT 2010",143,"Female",1976,"Associates degree","$40,500 - $59,999","single","No",1,"White","Connecticut","United States","50-100 HITs per week","3-6 months","$10-$20 per week","2-4 hours per week","fruitful|secondary_income|killtime|unemployed",true,false,true,false,true,true,"I started working on MTurk after the recession but the recession has nothing to do with my decision","I was not active before the recession."]
["NYHZYE9RABEZ74ZTEY806WGZXPHSGYYYQ7YGNS4Z","Tue Feb 09 19:52:37 GMT 2010",143,"Female",1983,"Graduate degree, Masters","$10,000 - $14,999","cohabitating","No",2,"White","District of Columbia","United States","5-10 HITs per week","6-12 months","Less than $1 per week","Less than 1 hour per week","fruitful|secondary_income",true,false,false,false,true,false,"Yes, I started working on MTurk after the recession.","I was not active before the recession.","I like having the ability to spend small amounts of time earning money."]
["NYHZYE9RABEZ74ZTEY804WP6PTYTXBJZTPZ7GY10","Wed Feb 10 03:51:42 GMT 2010",143,"Female",1980,"Some college, no degree","$60,000 - $74,999","married","No",2,"White","Louisiana","United States","1-5 HITs per week","3-6 months","$1-$5 per week","1-2 hours per week","secondary_income",false,false,false,false,true,false,"I started working on MTurk after the recession but the recession has nothing to do with my decision","I work the same amount of time on MTurk as before."]
["NYHZYE9RABEZ74ZTEY80FYQZ2NZETX6ZWPYX9K4Z","Thu Feb 11 21:16:58 GMT 2010",143,"Male",1979,"Some college, no degree","Less than $10,000","single","No",1,"White","Georgia","United States","50-100 HITs per week","0-3 months","$5-$10 per week","4-8 hours per week","killtime",false,false,true,false,false,false,"No, I was active before the recession.","I was not active before the recession.","mostly just to kill time while watching tv, and making a tiny bit of $ for gas or beer."]
["NYHZYE9RABEZ74ZTEY80FZJCXXZDTXCZN1NFPKM0","Thu Jan 28 08:14:17 GMT 2010",144,"Male",1982,"Bachelors degree","$15,000 - $24,999","married","No",2,"Other","Non-US","Peru","1-5 HITs per week","0-3 months","Less than $1 per week","Less than 1 hour per week","entertainment",false,true,false,false,false,false,"No, I was active before the recession.","I work less on MTurk after the recession."]
["NYHZYE9RABEZ74ZTEY80EZHTX2HE5XMZ2PR7RZ00","Thu Jan 28 16:02:02 GMT 2010",144,"Male",1983,"Bachelors degree","Less than $10,000","single","No",3,"White",null,"Russia","200-500 HITs per week","0-3 months","$5-$10 per week","4-8 hours per week","fruitful|secondary_income|entertainment",true,true,false,false,true,false,"I started working on MTurk after the recession but the recession has nothing to do with my decision","I was not active before the recession."]
["NYHZYE9RABEZ74ZTEY80NA3ZGKM9PXGMXPYFNX5Z","Sat Jan 30 06:18:02 GMT 2010",144,"Female",1965,"Graduate degree, Masters","$25,000 - $39,499","single","No",2,"White","California","United States","10-20 HITs per week","1-2 years","$1-$5 per week","Less than 1 hour per week","fruitful|secondary_income",true,false,false,false,true,false,"No, I was active before the recession.","I work the same amount of time on MTurk as before."]
["NYHZYE9RABEZ74ZTEY80PZ3ZK6ZSV9RCY3YMAW70","Tue Feb 02 14:21:30 GMT 2010",144,"Male",1973,"Graduate degree, Masters","$25,000 - $39,499","married","Yes, 2 children",4,"White","Non-US","Hungary","20-50 HITs per week","0-3 months","$5-$10 per week","2-4 hours per week","secondary_income|entertainment",false,true,false,false,true,false,"I started working on MTurk after the recession but the recession has nothing to do with my decision","I was not active before the recession.","Just trying out to see what it is like."]
["NYHZYE9RABEZ74ZTEY80AT4TV3ZEKXZZGTZZX9CZ","Tue Feb 02 20:05:15 GMT 2010",144,"Female",1971,"Graduate degree, Masters","$25,000 - $39,499","separated","Yes, 1 child",2,"White","Tennessee","United States","20-50 HITs per week","0-3 months","$1-$5 per week","2-4 hours per week","fruitful|secondary_income",true,false,false,false,true,false,"Yes, I started working on MTurk after the recession.","I was not active before the recession."]
["NYHZYE9RABEZ74ZTEY80WWCASFY7CZSZ2NSFVWT0","Sun Feb 07 12:01:08 GMT 2010",144,"Female",1988,"Some college, no degree","$15,000 - $24,999","engaged","No",2,"White","Kentucky","United States","10-20 HITs per week","0-3 months","$1-$5 per week","Less than 1 hour per week","fruitful",true,false,false,false,false,false,"I started working on MTurk after the recession but the recession has nothing to do with my decision","I was not active before the recession."]
["NYHZYE9RABEZ74ZTEY80KJTMJVYM7W2Z199W9WN0","Mon Feb 08 15:07:55 GMT 2010",144,"Male",1989,"Associates degree","Less than $10,000","single","No",2,"White","Delaware","United States","500-1000 HITs per week","1-2 years","$50-$100 per week","8-20 hours per week","fruitful|primary_income|secondary_income|killtime",true,false,true,true,true,false,"Yes, I started working on MTurk after the recession.","I work more on MTurk after the recession."]
["NYHZYE9RABEZ74ZTEY80MYR2SGZWEWPZ2QXQTHMZ","Thu Feb 11 14:18:51 GMT 2010",144,"Female",1975,"Associates degree","$40,500 - $59,999","married","Yes, 2 children",4,"White",null,"Canada","200-500 HITs per week","1-2 years","$10-$20 per week","4-8 hours per week","fruitful",true,false,false,false,false,false,"No, I was active before the recession.","I work the same amount of time on MTurk as before."]
["NYHZYE9RABEZ74ZTEY80WZZZSGSRPWEZHE89RR6Z","Fri Jan 29 06:29:35 GMT 2010",145,"Female",1965,"Bachelors degree","$15,000 - $24,999","married","No",2,"Asian",null,"India","20-50 HITs per week","0-3 months","$1-$5 per week","8-20 hours per week","fruitful|secondary_income|entertainment",true,true,false,false,true,false,"I started working on MTurk after the recession but the recession has nothing to do with my decision","I work the same amount of time on MTurk as before."]
["NYHZYE9RABEZ74ZTEY80BWMG46X1989ZMCYGHZKZ","Tue Feb 02 15:56:06 GMT 2010",145,"Female",1984,"Bachelors degree","$60,000 - $74,999","married","No",2,"White","Minnesota","United States","50-100 HITs per week","6-12 months","$10-$20 per week","4-8 hours per week","fruitful|secondary_income",true,false,false,false,true,false,"I started working on MTurk after the recession but the recession has nothing to do with my decision","I was not active before the recession.","I am currently saving up towards a vacation, and am using the earnings on Mechanical Turk as one of my primary methods of saving for this trip."]
["NYHZYE9RABEZ74ZTEY80RV5P7DDJRZA0W9Y3KWKZ","Fri Feb 05 09:57:36 GMT 2010",145,"Female",1985,"Some college, no degree","$25,000 - $39,499","married","No",2,"Other","California","United States","10-20 HITs per week","3-6 months","$1-$5 per week","2-4 hours per week","secondary_income",false,false,false,false,true,false,"I started working on MTurk after the recession but the recession has nothing to do with my decision","I work the same amount of time on MTurk as before."]
["NYHZYE9RABEZ74ZTEY80P3NZVMX3DXGYYQZNBBFZ","Sat Jan 30 06:36:02 GMT 2010",146,"Male",1985,"Bachelors degree","$40,500 - $59,999","single","No",1,"White","Wisconsin","United States","10-20 HITs per week","0-3 months","Less than $1 per week","1-2 hours per week","secondary_income|killtime",false,false,true,false,true,false,"I started working on MTurk after the recession but the recession has nothing to do with my decision","I work the same amount of time on MTurk as before."]
["NYHZYE9RABEZ74ZTEY80KHEA1PYY20ZR5YZVAVMZ","Sun Jan 31 05:35:49 GMT 2010",146,"Female",1980,"Bachelors degree","Less than $10,000","married","Yes, 1 child","5+","Asian",null,"India","200-500 HITs per week","3-6 months","$10-$20 per week","8-20 hours per week","primary_income",false,false,false,true,false,false,"I started working on MTurk after the recession but the recession has nothing to do with my decision","I work more on MTurk after the recession.","This is my one and only one income."]
["NYHZYE9RABEZ74ZTEY80MRVZRXZX1WTZWXC55XFZ","Wed Feb 03 05:15:28 GMT 2010",146,"Female",1979,"High School Graduate","$10,000 - $14,999","single","No",1,"Other",null,"Canada","10-20 HITs per week","0-3 months","$5-$10 per week","1-2 hours per week","fruitful|secondary_income|killtime",true,false,true,false,true,false,"I started working on MTurk after the recession but the recession has nothing to do with my decision","I was not active before the recession."]
["NYHZYE9RABEZ74ZTEY8013ZZ5MY1MZJJZ4XWQYNZ","Thu Feb 04 20:01:41 GMT 2010",146,"Male",1991,"High School Graduate","$60,000 - $74,999","single","No",3,"White",null,"Romania","1-5 HITs per week","0-3 months","$1-$5 per week","Less than 1 hour per week","fruitful",true,false,false,false,false,false,"I started working on MTurk after the recession but the recession has nothing to do with my decision","I work more on MTurk after the recession."]
["NYHZYE9RABEZ74ZTEY80BXWTJCCZGZNYSW0XAAXZ","Tue Feb 09 02:43:39 GMT 2010",146,"Female",1982,"Bachelors degree","$60,000 - $74,999","married","No",2,"White","California","United States","500-1000 HITs per week","1-2 years","$100-$200 per week","8-20 hours per week","fruitful|secondary_income|killtime|entertainment",true,true,true,false,true,false,"No, I was active before the recession.","I work the same amount of time on MTurk as before."]
["NYHZYE9RABEZ74ZTEY80XV8JZMZ16VK2KA014KN0","Tue Feb 09 21:14:08 GMT 2010",146,"Female",1989,"High School Graduate","Less than $10,000","single","No",3,"White",null,"Ukraine","200-500 HITs per week","0-3 months","$5-$10 per week","8-20 hours per week","primary_income",false,false,false,true,false,false,"I started working on MTurk after the recession but the recession has nothing to do with my decision","I was not active before the recession."]
["NYHZYE9RABEZ74ZTEY804Y2WV3YFBY1ZVCS0FZZZ","Mon Feb 08 06:35:33 GMT 2010",147,"Female",1989,"Some college, no degree","$100,000 - $149,999","single","No","5+","White","Illinois","United States","200-500 HITs per week","1-2 years","$1-$5 per week","4-8 hours per week","fruitful|secondary_income",true,false,false,false,true,false,"No, I was active before the recession.","I work the same amount of time on MTurk as before."]
["NYHZYE9RABEZ74ZTEY80RX9ZGXYP8YHZ36ZCZVF0","Wed Jan 27 23:52:40 GMT 2010",148,"Female",1972,"Bachelors degree","$15,000 - $24,999","divorced","Yes, 1 child",2,"White","Hawaii","United States","200-500 HITs per week","0-3 months","$20-$50 per week","4-8 hours per week","fruitful|primary_income|entertainment|unemployed",true,true,false,true,false,true,"Yes, I started working on MTurk after the recession.","I work the same amount of time on MTurk as before."]
["NYHZYE9RABEZ74ZTEY801A8ZXQZQ41T0VPYN1XWZ","Mon Feb 08 04:21:00 GMT 2010",148,"Female",1976,"Some college, no degree","$60,000 - $74,999","separated","Yes, 4 or more children","5+","Black","Connecticut","United States",null,"2-4 years","$50-$100 per week","20-40 hours per week","fruitful|secondary_income|entertainment|unemployed",true,true,false,false,true,true,"No, I was active before the recession.","I work more on MTurk after the recession."]
["NYHZYE9RABEZ74ZTEY800WWZX60SRX6TTRY49HBZ","Wed Jan 27 23:46:45 GMT 2010",149,"Female",1977,"Some college, no degree","Less than $10,000","single","No",2,"White",null,"Serbia","50-100 HITs per week","1-2 years","$5-$10 per week","2-4 hours per week","fruitful|secondary_income|entertainment|unemployed",true,true,false,false,true,true,"I started working on MTurk after the recession but the recession has nothing to do with my decision","I work the same amount of time on MTurk as before."]
["NYHZYE9RABEZ74ZTEY80SWWZM7YVPX2ZMSC6YYQ0","Sat Jan 30 04:36:43 GMT 2010",149,"Female",1985,"Bachelors degree","$10,000 - $14,999","single","No",1,"White",null,"Canada","100-200 HITs per week","6-12 months","$5-$10 per week","4-8 hours per week","fruitful",true,false,false,false,false,false,"I started working on MTurk after the recession but the recession has nothing to do with my decision","I work more on MTurk after the recession."]
["NYHZYE9RABEZ74ZTEY80SXDZVF52HYC0REZJ2AD0","Mon Feb 08 07:34:19 GMT 2010",149,"Female",1964,"High School Graduate","$40,500 - $59,999","married","No",2,"White","Ohio","United States","200-500 HITs per week","0-3 months","$20-$50 per week","8-20 hours per week","fruitful|secondary_income|entertainment",true,true,false,false,true,false,"I started working on MTurk after the recession but the recession has nothing to do with my decision","I was not active before the recession."]
["NYHZYE9RABEZ74ZTEY80FV0APNDJZYXAXHZ16ZC0","Wed Jan 27 23:46:44 GMT 2010",150,"Male",1948,"Graduate degree, Doctorate","$100,000 - $149,999","married","Yes, 2 children",2,"White","Virginia","United States","50-100 HITs per week","0-3 months","$5-$10 per week","4-8 hours per week","fruitful|killtime|entertainment",true,true,true,false,false,false,"I started working on MTurk after the recession but the recession has nothing to do with my decision","I was not active before the recession."]
["NYHZYE9RABEZ74ZTEY800JCWX2YW0HJZXAYK6X80","Mon Feb 01 16:42:53 GMT 2010",150,"Male",1983,"Bachelors degree","Less than $10,000","single","Yes, 1 child","5+","Asian",null,"Philippines","50-100 HITs per week","1-2 years","$1-$5 per week","4-8 hours per week","fruitful",true,false,false,false,false,false,"No, I was active before the recession.","I was not active before the recession."]
["NYHZYE9RABEZ74ZTEY8031EZPTYNJ10ZK5ZZSXGZ","Tue Feb 09 16:36:45 GMT 2010",150,"Female",1980,"High School Graduate","Less than $10,000","married","Yes, 1 child",3,"Asian",null,"India","50-100 HITs per week","0-3 months","$1-$5 per week","4-8 hours per week","primary_income",false,false,false,true,false,false,"Yes, I started working on MTurk after the recession.","I work more on MTurk after the recession."]
["NYHZYE9RABEZ74ZTEY802Y1CJMY0HXRCT2Z96YFZ","Fri Feb 12 10:26:24 GMT 2010",150,"Male",1987,"Bachelors degree","$10,000 - $14,999","single","No",4,"Asian",null,"India","50-100 HITs per week","0-3 months","$10-$20 per week","4-8 hours per week","fruitful",true,false,false,false,false,false,"No, I was active before the recession.","I was not active before the recession."]
["NYHZYE9RABEZ74ZTEY80R3PZGE4YCXKZP1Y7NXJ0","Fri Feb 12 11:46:25 GMT 2010",150,"Male",1982,"Graduate degree, Masters","$75,000 - $99,999","married","No",2,"White",null,"Japan","10-20 HITs per week","0-3 months","$1-$5 per week","1-2 hours per week","fruitful|secondary_income|entertainment",true,true,false,false,true,false,"I started working on MTurk after the recession but the recession has nothing to do with my decision","I work the same amount of time on MTurk as before.","Academic survey type tasks are interesting to complete and I feel that I am helping with research and advancement.\r\n\r\nThe Turk is more interesting & profitable than TV or video games as a way to unwind after work."]
["NYHZYE9RABEZ74ZTEY80BWW0STZP8YG2TXYKQWS0","Thu Jan 28 00:32:31 GMT 2010",151,"Male",1968,"Bachelors degree","$25,000 - $39,499","cohabitating","No",2,"White","Washington","United States","100-200 HITs per week","6-12 months","$5-$10 per week","4-8 hours per week","fruitful|secondary_income|unemployed",true,false,false,false,true,true,"I started working on MTurk after the recession but the recession has nothing to do with my decision","I work the same amount of time on MTurk as before."]
["NYHZYE9RABEZ74ZTEY80XVAGNVY6XW2ZPFYSA2K0","Thu Jan 28 02:51:06 GMT 2010",151,"Male",1978,"Associates degree","$60,000 - $74,999","married","Yes, 1 child",3,"Asian",null,"India","100-200 HITs per week","6-12 months","$5-$10 per week","8-20 hours per week","fruitful",true,false,false,false,false,false,"I started working on MTurk after the recession but the recession has nothing to do with my decision","I work more on MTurk after the recession."]
["NYHZYE9RABEZ74ZTEY808Y9YS2YX6WQMS5YPG3KZ","Mon Feb 01 16:25:47 GMT 2010",151,"Male",1983,"Bachelors degree","$25,000 - $39,499","married","Yes, 1 child",3,"Asian","Non-US","India","50-100 HITs per week","0-3 months","$1-$5 per week","2-4 hours per week","fruitful",true,false,false,false,false,false,"Yes, I started working on MTurk after the recession.","I work more on MTurk after the recession.","i want to  earn some cash in my free time.","na"]
["NYHZYE9RABEZ74ZTEY80TXWZZ0YNVWDZN4194X5Z","Mon Feb 08 04:46:27 GMT 2010",151,"Female",1967,"Bachelors degree","$60,000 - $74,999","married","Yes, 2 children",4,"White",null,"Canada","100-200 HITs per week","6-12 months","$5-$10 per week","2-4 hours per week","fruitful|secondary_income|entertainment",true,true,false,false,true,false,"Yes, I started working on MTurk after the recession.","I work more on MTurk after the recession."]
["NYHZYE9RABEZ74ZTEY8030GZST07GZ7P59H6Q0N0","Tue Feb 09 21:16:48 GMT 2010",151,"Female",1958,"Bachelors degree","$75,000 - $99,999","married","Yes, 2 children",4,"White","Tennessee","United States","50-100 HITs per week","0-3 months","$10-$20 per week","4-8 hours per week","secondary_income|killtime|entertainment|unemployed",false,true,true,false,true,true,"Yes, I started working on MTurk after the recession.","I was not active before the recession."]
["NYHZYE9RABEZ74ZTEY80PZ5ZX3YFC1RZKBYH5BD0","Thu Feb 11 14:28:40 GMT 2010",151,"Male",1980,"Bachelors degree","$15,000 - $24,999","married","Yes, 2 children",4,"White",null,"Netherlands","200-500 HITs per week","0-3 months","$20-$50 per week","8-20 hours per week","secondary_income",false,false,false,false,true,false,"I started working on MTurk after the recession but the recession has nothing to do with my decision","I was not active before the recession."]
["NYHZYE9RABEZ74ZTEY80TW5ZR1H04X4Y2HYDW8BZ","Thu Jan 28 18:05:41 GMT 2010",152,"Female",1976,"Bachelors degree","$40,500 - $59,999","cohabitating","No",2,"White","Delaware","United States","50-100 HITs per week","1-2 years","$1-$5 per week","1-2 hours per week","fruitful|secondary_income|entertainment",true,true,false,false,true,false,"No, I was active before the recession.","I work more on MTurk after the recession."]
["NYHZYE9RABEZ74ZTEY80HWWYH80H8K0M6Y1V81YZ","Fri Jan 29 07:10:55 GMT 2010",152,"Female",1978,"Bachelors degree","$40,500 - $59,999","married","Yes, 2 children",2,"Asian","Non-US","India","10-20 HITs per week","2-4 years","$1-$5 per week","2-4 hours per week","fruitful|entertainment",true,true,false,false,false,false,"No, I was active before the recession.","I work the same amount of time on MTurk as before."]
["NYHZYE9RABEZ74ZTEY80YJ1ZTX4G39EMZ7ZZBZ2Z","Fri Jan 29 08:00:04 GMT 2010",152,"Female",1980,"Graduate degree, Masters","Less than $10,000","single","Yes, 1 child","5+","Asian",null,"India","50-100 HITs per week","2-4 years","$1-$5 per week","8-20 hours per week","fruitful|primary_income|secondary_income",true,false,false,true,true,false,"I started working on MTurk after the recession but the recession has nothing to do with my decision","I work the same amount of time on MTurk as before.","None","None"]
["NYHZYE9RABEZ74ZTEY80XYS40SZV4YWGV3YY0WEZ","Fri Jan 29 10:34:22 GMT 2010",152,"Male",1961,"Graduate degree, Masters","$75,000 - $99,999","married","Yes, 2 children",2,"White",null,"Portugal","20-50 HITs per week","1-2 years","$5-$10 per week","2-4 hours per week","fruitful",true,false,false,false,false,false,"No, I was active before the recession.","I work the same amount of time on MTurk as before."]
["NYHZYE9RABEZ74ZTEY802T34QYZRQXYZH6YY313Z","Sun Jan 31 01:34:59 GMT 2010",152,"Female",1991,"Some college, no degree","$40,500 - $59,999","single","No",4,"Asian","New York","United States","10-20 HITs per week","0-3 months","$1-$5 per week","2-4 hours per week","fruitful|killtime|unemployed",true,false,true,false,false,true,"I started working on MTurk after the recession but the recession has nothing to do with my decision","I was not active before the recession."]
["NYHZYE9RABEZ74ZTEY80DYEZ7S8JWW2Z5XYEYX3Z","Mon Feb 01 02:25:33 GMT 2010",152,"Male",1972,"Graduate degree, Masters","$75,000 - $99,999","married","Yes, 3 children","5+","Other","Texas","United States","20-50 HITs per week","2-4 years","$1-$5 per week","Less than 1 hour per week","fruitful|secondary_income|killtime|entertainment",true,true,true,false,true,false,"No, I was active before the recession.","I work less on MTurk after the recession.","It can be relaxing when I have nothing else to do, as well some of the tasks are fund to do."]
["NYHZYE9RABEZ74ZTEY80GWEZWQZG1WBZV0YMAXQ0","Tue Feb 02 05:53:34 GMT 2010",152,"Male",1970,"Associates degree","$100,000 - $149,999","married","Yes, 3 children","5+","White","California","United States","50-100 HITs per week","3-6 months","$1-$5 per week","2-4 hours per week","fruitful|killtime",true,false,true,false,false,false,"I started working on MTurk after the recession but the recession has nothing to do with my decision","I was not active before the recession."]
["NYHZYE9RABEZ74ZTEY80ETDRK5ZNZH7MHC18SZ2Z","Mon Feb 08 05:19:41 GMT 2010",152,"Female",1960,"Graduate degree, Doctorate","$75,000 - $99,999","single","No",1,"White","South Carolina","United States","50-100 HITs per week","0-3 months","$10-$20 per week","1-2 hours per week","fruitful|killtime|entertainment",true,true,true,false,false,false,"Yes, I started working on MTurk after the recession.","I was not active before the recession.","Curiosity!"]
["NYHZYE9RABEZ74ZTEY80720ESEYQ4ZWZW8YBQYJZ","Tue Feb 09 21:15:10 GMT 2010",152,"Male",1945,"Graduate degree, Masters","$60,000 - $74,999","married","Yes, 2 children",2,"White","Wisconsin","United States","50-100 HITs per week","3-6 months","$10-$20 per week","4-8 hours per week","fruitful|secondary_income|killtime|entertainment",true,true,true,false,true,false,"Yes, I started working on MTurk after the recession.","I was not active before the recession."]
["NYHZYE9RABEZ74ZTEY80DW6ZW0Z8XSBZH0M1TYSZ","Wed Feb 10 03:58:12 GMT 2010",152,"Male",1988,"Bachelors degree","$25,000 - $39,499","single","No",4,"Asian","Non-US","India","10-20 HITs per week","0-3 months","$1-$5 per week","1-2 hours per week","primary_income",false,false,false,true,false,false,"No, I was active before the recession.","I work more on MTurk after the recession.",null,"really it is very useful site for all"]
["NYHZYE9RABEZ74ZTEY802B5ZJEZP8JRPYQN573H0","Fri Feb 12 10:25:53 GMT 2010",152,"Female",1982,"Associates degree","$25,000 - $39,499","cohabitating","Yes, 1 child",3,"Asian","California","United States","1000-5000 HITs per week","3-6 months","$50-$100 per week","8-20 hours per week","fruitful|secondary_income|unemployed",true,false,false,false,true,true,"I started working on MTurk after the recession but the recession has nothing to do with my decision","I was not active before the recession."]
["NYHZYE9RABEZ74ZTEY80Z8FZY9Y4NVA0SHR9EZ3Z","Fri Feb 12 10:40:32 GMT 2010",152,"Female",1990,"Some college, no degree","Less than $10,000","single","No",1,"Asian","Nevada","United States","20-50 HITs per week","0-3 months","Less than $1 per week","1-2 hours per week","fruitful|secondary_income|killtime|unemployed",true,false,true,false,true,true,"I started working on MTurk after the recession but the recession has nothing to do with my decision","I was not active before the recession."]
["NYHZYE9RABEZ74ZTEY801VFCRQ8WJSRZWFC16YN0","Thu Jan 28 21:30:13 GMT 2010",153,"Male",1985,"Some college, no degree","$25,000 - $39,499","single","No",3,"White","Non-US","Italy","5-10 HITs per week","6-12 months","$1-$5 per week","1-2 hours per week","secondary_income|entertainment|unemployed",false,true,false,false,true,true,"I started working on MTurk after the recession but the recession has nothing to do with my decision","I work more on MTurk after the recession."]
["NYHZYE9RABEZ74ZTEY80NTFMXRZECWKZZM0A3Y00","Fri Jan 29 17:38:28 GMT 2010",153,"Female",1989,"Some college, no degree","$15,000 - $24,999","single","No",1,"White","Massachusetts","United States","20-50 HITs per week","6-12 months","$5-$10 per week","2-4 hours per week","fruitful|secondary_income|killtime|unemployed",true,false,true,false,true,true,"No, I was active before the recession.","I work the same amount of time on MTurk as before."]
["NYHZYE9RABEZ74ZTEY809ZCZP348SZ5R5X09BJR0","Tue Feb 02 13:45:53 GMT 2010",153,"Male",1988,"Bachelors degree","Less than $10,000","single","No",3,"Asian",null,"India","20-50 HITs per week","0-3 months","$1-$5 per week","2-4 hours per week","fruitful|secondary_income",true,false,false,false,true,false,"Yes, I started working on MTurk after the recession.","I work more on MTurk after the recession."]
["NYHZYE9RABEZ74ZTEY807GNZWHY2R3K67ZSYSWQZ","Sun Feb 07 14:10:38 GMT 2010",153,"Male",1985,"Bachelors degree","$40,500 - $59,999","single","No","5+","Other","New York","United States","1000-5000 HITs per week","0-3 months","$10-$20 per week","20-40 hours per week","fruitful|secondary_income|killtime|entertainment|unemployed",true,true,true,false,true,true,"I started working on MTurk after the recession but the recession has nothing to do with my decision","I was not active before the recession."]
["NYHZYE9RABEZ74ZTEY80EXZWZZSZHXEZNTXRFJW0","Wed Jan 27 23:46:44 GMT 2010",154,"Female",1985,"Some college, no degree","$15,000 - $24,999","separated","Yes, 2 children",4,"White","California","United States","200-500 HITs per week","0-3 months","$20-$50 per week","8-20 hours per week","fruitful|secondary_income",{"$f":"ISNUMBER(FIND(\"fruitful\", $R259))","v":true},{"$f":"ISNUMBER(FIND(\"entertainment\", $R259))","v":false},{"$f":"ISNUMBER(FIND(\"killtime\", $R259))","v":false},{"$f":"ISNUMBER(FIND(\"primary_income\", $R259))","v":false},{"$f":"ISNUMBER(FIND(\"secondary_income\", $R259))","v":true},{"$f":"ISNUMBER(FIND(\"unemployed\", R259))","v":false},"Yes, I started working on MTurk after the recession.","I was not active before the recession."]
["NYHZYE9RABEZ74ZTEY80ZXP4RBYRJ3EZH74EVZG0","Fri Jan 29 08:08:40 GMT 2010",154,"Male",1983,"Bachelors degree","$40,500 - $59,999","cohabitating","No",2,"White",null,"United Kingdom","200-500 HITs per week","6-12 months","$5-$10 per week","8-20 hours per week","fruitful|entertainment",true,true,false,false,false,false,"I started working on MTurk after the recession but the recession has nothing to do with my decision","I was not active before the recession."]
["NYHZYE9RABEZ74ZTEY8060G4WZZ9FXPZXEYGHY3Z","Sat Jan 30 18:13:52 GMT 2010",154,"Female",1982,"Bachelors degree","$15,000 - $24,999","cohabitating","No",4,"White","Alabama","United States","200-500 HITs per week","3-6 months","$20-$50 per week","20-40 hours per week","primary_income|secondary_income|unemployed",false,false,false,true,true,true,"Yes, I started working on MTurk after the recession.","I was not active before the recession."]
["NYHZYE9RABEZ74ZTEY80MXMZXBZCKH6ZVYYFY3YZ","Wed Feb 10 09:54:11 GMT 2010",154,"Male",1983,"Bachelors degree","$25,000 - $39,499","separated","Yes, 4 or more children",1,"White","Washington","United States","20-50 HITs per week","0-3 months","$5-$10 per week","2-4 hours per week","killtime|entertainment",false,true,true,false,false,false,"I started working on MTurk after the recession but the recession has nothing to do with my decision","I was not active before the recession."]
["NYHZYE9RABEZ74ZTEY80MJX0GVZ6X3QZXT4YFJGZ","Thu Feb 11 20:09:41 GMT 2010",154,"Female",1965,"Graduate degree, Masters","$150,000 - $199,999","married","Yes, 2 children","5+","White","California","United States","500-1000 HITs per week","2-4 years","$20-$50 per week","8-20 hours per week","fruitful",true,false,false,false,false,false,"No, I was active before the recession.","I work the same amount of time on MTurk as before."]
["NYHZYE9RABEZ74ZTEY807B2ZGPZGSA2MYMYDXJK0","Fri Feb 12 10:50:54 GMT 2010",154,"Female",1990,"High School Graduate","Less than $10,000","single","No","5+","White","Maryland","United States","500-1000 HITs per week","0-3 months","$20-$50 per week","8-20 hours per week","fruitful|primary_income|secondary_income|killtime|entertainment|unemployed",true,true,true,true,true,true,"Yes, I started working on MTurk after the recession.","I work more on MTurk after the recession."]
["NYHZYE9RABEZ74ZTEY80SZ6ZQ7SGWX9Z68XSR190","Sat Jan 30 04:29:35 GMT 2010",155,"Female",1979,"Bachelors degree","$40,500 - $59,999","cohabitating","No",2,"White","Maryland","United States","1000-5000 HITs per week","1-2 years","$100-$200 per week","More than 40 hours per week","fruitful|secondary_income|killtime|unemployed",true,false,true,false,true,true,"Yes, I started working on MTurk after the recession.","I work more on MTurk after the recession."]
["NYHZYE9RABEZ74ZTEY80CRXJT4Y35YRZ5XYMDR60","Wed Feb 03 13:53:31 GMT 2010",155,"Female",1990,"Associates degree","Less than $10,000","single","No",3,"Asian",null,"India","500-1000 HITs per week","3-6 months","$20-$50 per week","20-40 hours per week","fruitful",true,false,false,false,false,false,"Yes, I started working on MTurk after the recession.","I work more on MTurk after the recession."]
["NYHZYE9RABEZ74ZTEY80KH6PY5MEKYGZRZRKWHYZ","Wed Feb 03 22:59:55 GMT 2010",155,"Male",1982,"High School Graduate","Less than $10,000","cohabitating","No",2,"White","California","United States","100-200 HITs per week","0-3 months","$10-$20 per week","8-20 hours per week","unemployed",false,false,false,false,false,true,"Yes, I started working on MTurk after the recession.","I was not active before the recession.","Its a way to help pay bills until I find real work."]
["NYHZYE9RABEZ74ZTEY805ZHZTBZC8ZMTW3Z1BGQZ","Sun Feb 07 09:20:54 GMT 2010",155,"Female",1977,"Bachelors degree","$60,000 - $74,999","single","No",3,"Asian","California","United States","200-500 HITs per week","0-3 months","$5-$10 per week","2-4 hours per week","fruitful",true,false,false,false,false,false,"Yes, I started working on MTurk after the recession.","I was not active before the recession."]
["NYHZYE9RABEZ74ZTEY80R1E4XAYF5YZCZ1N2ZJZZ","Mon Feb 08 15:01:38 GMT 2010",155,"Male",1987,"Bachelors degree","Less than $10,000","single","No",3,"Asian",null,null,"50-100 HITs per week","0-3 months","$1-$5 per week","1-2 hours per week","secondary_income",false,false,false,false,true,false,"I started working on MTurk after the recession but the recession has nothing to do with my decision","I was not active before the recession.","i like mturk. because it ll give extra income for me.....","i like mturk....."]
["NYHZYE9RABEZ74ZTEY805RP2XCYRWBMG3DYYYW2Z","Tue Feb 09 13:12:44 GMT 2010",155,"Male",1985,"Bachelors degree","$25,000 - $39,499","single","No",4,"Asian",null,"India","10-20 HITs per week","1-2 years","$1-$5 per week","2-4 hours per week","fruitful",true,false,false,false,false,false,"No, I was active before the recession.","I work the same amount of time on MTurk as before."]
["NYHZYE9RABEZ74ZTEY80N02Y6NRGF97ZYGX1NX60","Fri Jan 29 07:26:39 GMT 2010",156,"Female",1978,"Bachelors degree","$10,000 - $14,999","married","Yes, 1 child",3,"Asian","Non-US","India","20-50 HITs per week","6-12 months","$20-$50 per week","2-4 hours per week","fruitful|entertainment|unemployed",true,true,false,false,false,true,"No, I was active before the recession.","I work the same amount of time on MTurk as before.","I learn many things online completing tasks, everything is a learning process."]
["NYHZYE9RABEZ74ZTEY80TW2Z1TSGJ2ZZVNZ1VXCZ","Fri Jan 29 15:23:03 GMT 2010",156,"Male",1983,"Graduate degree, Masters","Less than $10,000","married","No",4,"Asian","Non-US","India","1-5 HITs per week","3-6 months","Less than $1 per week","1-2 hours per week","fruitful",true,false,false,false,false,false,"I started working on MTurk after the recession but the recession has nothing to do with my decision","I was not active before the recession."]
["NYHZYE9RABEZ74ZTEY809XDYWFZGRZ1CJ601MR10","Sun Jan 31 00:42:09 GMT 2010",156,"Female",1961,"Some college, no degree","Less than $10,000","married","Yes, 2 children",4,"Asian",null,"Iceland","200-500 HITs per week","1-2 years","$20-$50 per week","8-20 hours per week","secondary_income",false,false,false,false,true,false,"No, I was active before the recession.","I work more on MTurk after the recession."]
["NYHZYE9RABEZ74ZTEY803YARXFZJHWVJ2S4EYX8Z","Tue Feb 09 04:14:35 GMT 2010",156,"Female",1981,"Bachelors degree","Less than $10,000","single","No",1,"White","New Mexico","United States","10-20 HITs per week","0-3 months","$1-$5 per week","4-8 hours per week","secondary_income|killtime|unemployed",false,false,true,false,true,true,"I started working on MTurk after the recession but the recession has nothing to do with my decision","I was not active before the recession."]
["NYHZYE9RABEZ74ZTEY80FXZG3FN8YHRWT9Y7AX90","Thu Feb 11 21:48:06 GMT 2010",156,"Female",1981,"Bachelors degree","$60,000 - $74,999","married","No",2,"White","New York","United States","200-500 HITs per week","1-2 years","$10-$20 per week","1-2 hours per week","secondary_income",false,false,false,false,true,false,"No, I was active before the recession.","I work less on MTurk after the recession.","Trying to get some extra money for bills."]
["NYHZYE9RABEZ74ZTEY80YWDZZP9DFY0T7Y5FQB4Z","Fri Feb 12 13:06:04 GMT 2010",156,"Female",1984,"Bachelors degree","Less than $10,000","married","No",2,"White","Non-US","Romania","20-50 HITs per week","0-3 months","$5-$10 per week","8-20 hours per week","fruitful|secondary_income|killtime|entertainment",true,true,true,false,true,false,"Yes, I started working on MTurk after the recession.","I was not active before the recession.","I want to have some extra-cash","Simple and easy survey!"]
["NYHZYE9RABEZ74ZTEY800V60MJ1P0WNZZTDSBTB0","Thu Jan 28 01:16:33 GMT 2010",157,"Female",1959,"Bachelors degree","$40,500 - $59,999","divorced","No",1,"White","New York","United States","100-200 HITs per week","0-3 months","$10-$20 per week","8-20 hours per week","fruitful|primary_income|killtime|entertainment|unemployed",true,true,true,true,false,true,"I started working on MTurk after the recession but the recession has nothing to do with my decision","I work more on MTurk after the recession."]
["NYHZYE9RABEZ74ZTEY80S0XZPJZMRT2GT2807WYZ","Fri Jan 29 06:15:07 GMT 2010",157,"Male",1968,"Some college, no degree","$25,000 - $39,499","married","Yes, 1 child",3,"White","South Carolina","United States","10-20 HITs per week","3-6 months","Less than $1 per week","1-2 hours per week","fruitful|secondary_income|killtime|entertainment",true,true,true,false,true,false,"I started working on MTurk after the recession but the recession has nothing to do with my decision","I work the same amount of time on MTurk as before.","Saving up to buy me something \"special\" from Amazon.com!"]
["NYHZYE9RABEZ74ZTEY80MYAZ3NN9ZWNZ4RN0XZ0Z","Fri Jan 29 07:34:42 GMT 2010",157,"Male",1965,"Graduate degree, Masters","$200,000 - $249,999","divorced","Yes, 2 children",1,"Other","Florida","United States","10-20 HITs per week","0-3 months","$5-$10 per week","1-2 hours per week","fruitful|killtime|entertainment",true,true,true,false,false,false,"I started working on MTurk after the recession but the recession has nothing to do with my decision","I was not active before the recession."]
["NYHZYE9RABEZ74ZTEY80FYAGJWZBKXQZPMYZWGY0","Mon Feb 01 19:01:04 GMT 2010",157,"Female",1955,"Some college, no degree","$25,000 - $39,499","single","No",2,"White","Illinois","United States","50-100 HITs per week","6-12 months","$5-$10 per week","2-4 hours per week","fruitful|primary_income|killtime|entertainment|unemployed",true,true,true,true,false,true,"Yes, I started working on MTurk after the recession.","I was not active before the recession.","It supplements other online income when nothing else is available, plus I enjoy seeing what tasks people need done."]
["NYHZYE9RABEZ74ZTEY80YWQMJ1C23HYZY3XPTJPZ","Mon Feb 01 07:27:16 GMT 2010",158,"Male",1969,"Graduate degree, Masters","$10,000 - $14,999","single","No",2,"Asian","California","United States","200-500 HITs per week","0-3 months","$5-$10 per week","8-20 hours per week","fruitful|secondary_income|entertainment|unemployed",true,true,false,false,true,true,"Yes, I started working on MTurk after the recession.","I work more on MTurk after the recession."]
["NYHZYE9RABEZ74ZTEY80ASQZTM5C29GZ7RZB51K0","Tue Feb 02 16:04:09 GMT 2010",158,"Female",1968,"Bachelors degree","$10,000 - $14,999","single","No",1,"White","Texas","United States","10-20 HITs per week","3-6 months","$1-$5 per week","4-8 hours per week","fruitful|primary_income|secondary_income",true,false,false,true,true,false,"I started working on MTurk after the recession but the recession has nothing to do with my decision","I work the same amount of time on MTurk as before."]
["NYHZYE9RABEZ74ZTEY80WSEPZGR2PH32M6CEPBJ0","Thu Feb 04 18:30:03 GMT 2010",158,"Male",1985,"High School Graduate","$25,000 - $39,499","single","No",3,"White",null,"Romania","50-100 HITs per week","0-3 months","$1-$5 per week","2-4 hours per week","fruitful|secondary_income",true,false,false,false,true,false,"I started working on MTurk after the recession but the recession has nothing to do with my decision","I work the same amount of time on MTurk as before."]
["NYHZYE9RABEZ74ZTEY809K3ZY3Y09960KR0SZSRZ","Mon Feb 08 15:16:37 GMT 2010",158,"Male",1947,"Some college, no degree","$60,000 - $74,999","married","Yes, 2 children",2,"White","New York","United States","500-1000 HITs per week","2-4 years","$20-$50 per week","More than 40 hours per week","fruitful|secondary_income|entertainment",true,true,false,false,true,false,"No, I was active before the recession.","I work more on MTurk after the recession.","My job sometimes is boring and by doing Mturk HITS, I can pick up some extra money to pay small bills."]
["NYHZYE9RABEZ74ZTEY80MZZZYK56K970YFZZEXV0","Wed Feb 10 03:21:50 GMT 2010",158,"Male",1985,"High School Graduate","$25,000 - $39,499","married","Yes, 2 children",2,"Asian",null,"India","10-20 HITs per week","3-6 months","$10-$20 per week","2-4 hours per week","killtime",false,false,true,false,false,false,"No, I was active before the recession.","I work more on MTurk after the recession.","none"]
["NYHZYE9RABEZ74ZTEY80MHT0Z2YBR9AZNZG3VYC0","Thu Feb 11 21:02:11 GMT 2010",158,"Male",1971,"Graduate degree, Doctorate","$100,000 - $149,999","married","Yes, 1 child",3,"White","Louisiana","United States","1000-5000 HITs per week","2-4 years","$20-$50 per week","8-20 hours per week","fruitful|secondary_income|killtime",true,false,true,false,true,false,"No, I was active before the recession.","I work the same amount of time on MTurk as before.","It generally just substitutes for less productive ways I would waste time online.  I do use it mainly for Amazon store credit, to buy toys and books for my child."]
["NYHZYE9RABEZ74ZTEY80Y374VXSK8Z9Z4JZ2QWBZ","Thu Jan 28 04:55:22 GMT 2010",159,"Female",1987,"Bachelors degree","Less than $10,000","engaged","No","5+","Asian","Non-US","India","20-50 HITs per week","6-12 months","$1-$5 per week","4-8 hours per week","fruitful|primary_income|secondary_income",true,false,false,true,true,false,"No, I was active before the recession.","I work the same amount of time on MTurk as before.","I need money & I have free time during office hours so I want to make full use of this time & want to make as much money as I can.","Mturk is Amazing!"]
["NYHZYE9RABEZ74ZTEY805JPZWK0YPW0PGKM24YSZ","Wed Feb 03 22:24:49 GMT 2010",159,"Female",1980,"Associates degree","Less than $10,000","single","No","5+","Asian","California","United States","5-10 HITs per week","1-2 years","$1-$5 per week","Less than 1 hour per week","fruitful|secondary_income|entertainment",true,true,false,false,true,false,"Yes, I started working on MTurk after the recession.","I work more on MTurk after the recession."]
["NYHZYE9RABEZ74ZTEY80AZPZR7Y7BXCZWPY97X20","Mon Feb 08 16:10:17 GMT 2010",159,"Female",1974,"Bachelors degree","$10,000 - $14,999","divorced","No",1,"Black","Illinois","United States","50-100 HITs per week","2-4 years","$10-$20 per week","20-40 hours per week","primary_income|secondary_income|entertainment",false,true,false,true,true,false,"No, I was active before the recession.","I work the same amount of time on MTurk as before."]
["NYHZYE9RABEZ74ZTEY80ZHY6S3YXWWSR4RRC1WTZ","Mon Feb 08 16:23:12 GMT 2010",159,"Male",1984,"Bachelors degree","$15,000 - $24,999","single","No","5+","Asian","Indiana","India","50-100 HITs per week","6-12 months","$20-$50 per week","8-20 hours per week","killtime",false,false,true,false,false,false,"Yes, I started working on MTurk after the recession.","I work less on MTurk after the recession."]
["NYHZYE9RABEZ74ZTEY80810ZYTY8JYQ6VFSQQZS0","Thu Jan 28 04:30:27 GMT 2010",160,"Female",1970,"Bachelors degree","$10,000 - $14,999","married","Yes, 2 children",4,"Asian","Non-US","India","5-10 HITs per week","3-6 months","$5-$10 per week",null,"fruitful|secondary_income",true,false,false,false,true,false,"No, I was active before the recession.","I work the same amount of time on MTurk as before.",null,"nice survey....\r\nthank you"]
["NYHZYE9RABEZ74ZTEY80VXSZXYZR4Z1ZS69G0YQZ","Fri Jan 29 20:22:03 GMT 2010",160,"Female",1981,"Bachelors degree","$60,000 - $74,999","married","Yes, 1 child",3,"Asian","Indiana","United States","20-50 HITs per week","3-6 months","$1-$5 per week","4-8 hours per week","fruitful",true,false,false,false,false,false,"Yes, I started working on MTurk after the recession.","I work the same amount of time on MTurk as before."]
["NYHZYE9RABEZ74ZTEY8028WZTTYQZTWZMJCXGY1Z","Fri Jan 29 20:36:38 GMT 2010",160,"Male",1987,"Some college, no degree","$10,000 - $14,999","single","No",3,"Asian",null,"India","10-20 HITs per week","3-6 months","$1-$5 per week","4-8 hours per week","fruitful|entertainment",true,true,false,false,false,false,"I started working on MTurk after the recession but the recession has nothing to do with my decision","I work the same amount of time on MTurk as before."]
["NYHZYE9RABEZ74ZTEY804YRZTKW3HZ5ASVZKJH2Z","Sat Feb 06 08:19:04 GMT 2010",160,"Male",1985,"Bachelors degree","$10,000 - $14,999","single","No",1,"Other","California","United States","20-50 HITs per week","0-3 months","$1-$5 per week","1-2 hours per week","fruitful|killtime|unemployed",true,false,true,false,false,true,"Yes, I started working on MTurk after the recession.","I work more on MTurk after the recession.","I figure I might as well make some kind of money while I surf the net."]
["NYHZYE9RABEZ74ZTEY80ZYSRXQY68XKZS1MY00QZ","Sun Feb 07 13:40:02 GMT 2010",160,"Female",1978,"Bachelors degree","$75,000 - $99,999","single","No",3,"Black",null,"Barbados","50-100 HITs per week","0-3 months","$1-$5 per week","4-8 hours per week","fruitful|secondary_income|killtime|entertainment",true,true,true,false,true,false,"I started working on MTurk after the recession but the recession has nothing to do with my decision","I was not active before the recession."]
["NYHZYE9RABEZ74ZTEY80S09GRZYCJZ4ZRNZKHKZZ","Thu Feb 11 14:15:02 GMT 2010",160,"Male",1989,"High School Graduate","$10,000 - $14,999","single","No",4,"Asian",null,"India","1000-5000 HITs per week","2-4 years","$20-$50 per week","8-20 hours per week","secondary_income",false,false,false,false,true,false,"No, I was active before the recession.","I work the same amount of time on MTurk as before."]
["NYHZYE9RABEZ74ZTEY80MWXZ00YPHYWZRFYQRZGZ","Thu Jan 28 02:54:13 GMT 2010",161,"Male",1985,"Bachelors degree","$40,500 - $59,999","married","No",2,"White","Missouri","United States","500-1000 HITs per week","0-3 months","$20-$50 per week","8-20 hours per week","secondary_income|killtime|entertainment",false,true,true,false,true,false,"I started working on MTurk after the recession but the recession has nothing to do with my decision","I was not active before the recession."]
["NYHZYE9RABEZ74ZTEY80RXTZYAW0XZKZXPS8KXTZ","Thu Jan 28 03:06:04 GMT 2010",161,"Male",1988,"Associates degree","$60,000 - $74,999","single","No",3,"White","Texas","United States","200-500 HITs per week","3-6 months","$20-$50 per week","8-20 hours per week","fruitful|secondary_income|killtime|entertainment|unemployed",true,true,true,false,true,true,"I started working on MTurk after the recession but the recession has nothing to do with my decision","I was not active before the recession."]
["NYHZYE9RABEZ74ZTEY80H3WZ3EZ1HXRZK9X5GW20","Fri Jan 29 18:47:58 GMT 2010",161,"Female",1972,"Graduate degree, Masters","$100,000 - $149,999","married","No",2,"White","Connecticut","United States","20-50 HITs per week","0-3 months","Less than $1 per week","1-2 hours per week","fruitful",true,false,false,false,false,false,"I started working on MTurk after the recession but the recession has nothing to do with my decision","I was not active before the recession."]
["NYHZYE9RABEZ74ZTEY80JXAPN41S9ZBZV2YZY0TZ","Mon Feb 01 07:29:29 GMT 2010",161,"Female",1962,"Bachelors degree","Less than $10,000","married","Yes, 1 child",3,"Asian",null,"India","500-1000 HITs per week","0-3 months","$10-$20 per week","20-40 hours per week","primary_income",false,false,false,true,false,false,"No, I was active before the recession.","I work the same amount of time on MTurk as before."]
["NYHZYE9RABEZ74ZTEY803ZAZ28ZM2Z16Y8ZN4Y4Z","Mon Feb 01 07:40:40 GMT 2010",161,"Female",1971,"Bachelors degree","$40,500 - $59,999","married","Yes, 3 children","5+","Black","South Carolina","United States","1-5 HITs per week","6-12 months","$1-$5 per week","2-4 hours per week","fruitful|secondary_income|killtime|entertainment",true,true,true,false,true,false,"No, I was active before the recession.","I work the same amount of time on MTurk as before.","I enjoy Mechanical Turk because it's fun and gives me something to do.  Some of the studies are thought provoking and gives me a chance to have my opinions heard."]
["NYHZYE9RABEZ74ZTEY80QX5ZMQYTSR6ZZZSW83B0","Sat Feb 06 10:37:51 GMT 2010",161,"Male",1984,"High School Graduate","Less than $10,000","single","No",2,"White",null,"Israel","20-50 HITs per week","0-3 months","$1-$5 per week","2-4 hours per week","secondary_income",false,false,false,false,true,false,"I started working on MTurk after the recession but the recession has nothing to do with my decision","I work the same amount of time on MTurk as before."]
["NYHZYE9RABEZ74ZTEY80D97WXXY2G18ZSNY55X8Z","Mon Feb 08 04:41:30 GMT 2010",161,"Female",1954,"Bachelors degree","$40,500 - $59,999","married","Yes, 2 children",null,"White","Virginia","United States","500-1000 HITs per week","2-4 years","$50-$100 per week","More than 40 hours per week","fruitful|secondary_income|entertainment",true,true,false,false,true,false,"No, I was active before the recession.","I work the same amount of time on MTurk as before."]
["NYHZYE9RABEZ74ZTEY8039DZ6KZ9DWKZR6YGKWE0","Mon Feb 08 04:44:36 GMT 2010",161,"Female",1956,"Bachelors degree","$75,000 - $99,999","cohabitating","No",2,"White","California","United States","100-200 HITs per week","0-3 months","$20-$50 per week","More than 40 hours per week","fruitful|primary_income|secondary_income|killtime|entertainment|unemployed",true,true,true,true,true,true,"Yes, I started working on MTurk after the recession.","I was not active before the recession."]
["NYHZYE9RABEZ74ZTEY80FXTZY4ZF3BTRHX8FN920","Mon Feb 08 15:11:27 GMT 2010",161,"Female",1965,"Graduate degree, Masters","$100,000 - $149,999","married","Yes, 4 or more children","5+","White","Colorado","United States","200-500 HITs per week","6-12 months","$10-$20 per week","4-8 hours per week","fruitful|entertainment",true,true,false,false,false,false,"I started working on MTurk after the recession but the recession has nothing to do with my decision","I work the same amount of time on MTurk as before."]
["NYHZYE9RABEZ74ZTEY80903EK9YZNXQZ2JZ6MAZZ","Tue Feb 09 21:15:42 GMT 2010",161,"Female",1951,"Bachelors degree","$75,000 - $99,999","divorced","Yes, 2 children",2,"White","Hawaii","United States","200-500 HITs per week","6-12 months","$20-$50 per week","4-8 hours per week","fruitful|secondary_income",true,false,false,false,true,false,"I started working on MTurk after the recession but the recession has nothing to do with my decision","I work the same amount of time on MTurk as before."]
["NYHZYE9RABEZ74ZTEY80508ZSYYVZ89MGB92DWB0","Mon Feb 08 20:05:29 GMT 2010",162,"Female",1981,"High School Graduate","Less than $10,000","single","No",3,"White","New Jersey","United States","20-50 HITs per week","6-12 months","$5-$10 per week","4-8 hours per week","secondary_income|unemployed",false,false,false,false,true,true,"I started working on MTurk after the recession but the recession has nothing to do with my decision","I was not active before the recession."]
["NYHZYE9RABEZ74ZTEY80TBDMN9HFV0KZ7AYADH4Z","Thu Feb 11 14:17:23 GMT 2010",162,"Male",1987,"Bachelors degree","Less than $10,000","single","No",4,"Asian",null,"India","1000-5000 HITs per week","1-2 years","$20-$50 per week","More than 40 hours per week","primary_income|unemployed",false,false,false,true,false,true,"Yes, I started working on MTurk after the recession.","I was not active before the recession.","I like this website very much for giving income opportunity"]
["NYHZYE9RABEZ74ZTEY80NZZZW5ZXVYN2RGZYPXE0","Wed Jan 27 23:47:28 GMT 2010",163,"Male",1981,"Graduate degree, Masters","$15,000 - $24,999","single","No",3,"White","Non-US","Spain","200-500 HITs per week","0-3 months","$10-$20 per week","2-4 hours per week","fruitful|entertainment|unemployed",true,true,false,false,false,true,"I started working on MTurk after the recession but the recession has nothing to do with my decision","I was not active before the recession."]
["NYHZYE9RABEZ74ZTEY809TDZNTH139FZT1YJ4JFZ","Thu Jan 28 09:10:37 GMT 2010",163,"Female",1990,"Bachelors degree","Less than $10,000","single","No",3,"Asian",null,"China","10-20 HITs per week","6-12 months","Less than $1 per week","Less than 1 hour per week","fruitful|secondary_income|entertainment",true,true,false,false,true,false,"I started working on MTurk after the recession but the recession has nothing to do with my decision","I work the same amount of time on MTurk as before."]
["NYHZYE9RABEZ74ZTEY804X9E7JZZ9ZYY6ED5TZK0","Thu Jan 28 16:40:40 GMT 2010",163,"Female",1955,"Graduate degree, Doctorate","$15,000 - $24,999","married","No",2,"White","California","United States","10-20 HITs per week","6-12 months","$5-$10 per week","2-4 hours per week","fruitful|secondary_income|unemployed",true,false,false,false,true,true,"I started working on MTurk after the recession but the recession has nothing to do with my decision","I work the same amount of time on MTurk as before."]
["NYHZYE9RABEZ74ZTEY80KXJTZG8NHTEZ1HZZDZNZ","Sat Jan 30 07:51:52 GMT 2010",163,"Male",1984,"Bachelors degree","Less than $10,000","single","No","5+","Asian",null,"Philippines","50-100 HITs per week","0-3 months","$1-$5 per week","4-8 hours per week","fruitful|unemployed",true,false,false,false,false,true,"No, I was active before the recession.","I was not active before the recession.","Well an awesome place where you could earn cash and at the same time enjoy. and you have the choice of task you want to do."]
["NYHZYE9RABEZ74ZTEY80BTXZS5GDVYXZJEG53ZWZ","Tue Feb 02 18:34:19 GMT 2010",163,"Female",1958,"Associates degree","$40,500 - $59,999","married","Yes, 1 child",2,"White","Ohio","United States","100-200 HITs per week","1-2 years","$10-$20 per week","More than 40 hours per week","unemployed",false,false,false,false,false,true,"No, I was active before the recession.","I work the same amount of time on MTurk as before.","just to make a little extra money","thanks for the dime"]
["NYHZYE9RABEZ74ZTEY80GWZZPRYNX38WTD12D2RZ","Wed Jan 27 23:46:59 GMT 2010",164,"Female",1962,"Some college, no degree","$25,000 - $39,499","engaged","Yes, 1 child",2,"White","Nevada","United States","200-500 HITs per week","0-3 months","$20-$50 per week","8-20 hours per week","fruitful|secondary_income|entertainment",true,true,false,false,true,false,"No, I was active before the recession.","I work the same amount of time on MTurk as before.",null,"I really like doing hits on mturk it is fun."]
["NYHZYE9RABEZ74ZTEY80WX1ZH5RE7ZHTHARMBZW0","Thu Jan 28 00:49:11 GMT 2010",164,"Male",1973,"Graduate degree, Masters","$40,500 - $59,999","married","Yes, 2 children",4,"White","Connecticut","United States","10-20 HITs per week","0-3 months","$5-$10 per week","4-8 hours per week","killtime|entertainment|unemployed",false,true,true,false,false,true,"No, I was active before the recession.","I work more on MTurk after the recession.","I find the experience somewhat addictive as the little amounts of cash add up. Everything I do to earn money makes an impact on my family's life.","I found the questions to be clear and not invasive."]
["NYHZYE9RABEZ74ZTEY80X1RY5AZV1XX8R1H5NXP0","Thu Jan 28 05:52:57 GMT 2010",164,"Female",1970,"High School Graduate","Less than $10,000","single","No",2,"Other","Non-US","South Africa","50-100 HITs per week","6-12 months","$5-$10 per week","4-8 hours per week","secondary_income|unemployed",false,false,false,false,true,true,"No, I was active before the recession.","I work more on MTurk after the recession."]
["NYHZYE9RABEZ74ZTEY80Z352H8NPMG8G5QZMJYW0","Fri Jan 29 18:04:42 GMT 2010",164,"Female",1986,"Some college, no degree","$25,000 - $39,499","married","Yes, 1 child",3,"White","Arizona","United States","10-20 HITs per week","6-12 months","$5-$10 per week","8-20 hours per week","fruitful|secondary_income|entertainment",true,true,false,false,true,false,"I started working on MTurk after the recession but the recession has nothing to do with my decision","I work the same amount of time on MTurk as before."]
["NYHZYE9RABEZ74ZTEY80NTSZZRCS6RC8TVYV4XR0","Sun Jan 31 16:15:29 GMT 2010",164,"Female",1984,"Bachelors degree","$25,000 - $39,499","married","No",2,"White","West Virginia","United States","50-100 HITs per week","0-3 months","$5-$10 per week","2-4 hours per week","secondary_income",false,false,false,false,true,false,"Yes, I started working on MTurk after the recession.","I was not active before the recession.","I make enough money from MTurk to pay my credit card bills with."]
["NYHZYE9RABEZ74ZTEY8042J4REZNTYHZS5YC7KF0","Sun Jan 31 17:12:42 GMT 2010",164,"Female",1990,"Some college, no degree","$75,000 - $99,999","single","No",4,"Asian","New Jersey","United States","100-200 HITs per week","0-3 months","$1-$5 per week","4-8 hours per week","killtime|entertainment|unemployed",false,true,true,false,false,true,"I started working on MTurk after the recession but the recession has nothing to do with my decision","I was not active before the recession.","Boredom, really. I would otherwise just play games, and some tasks are like games."]
["NYHZYE9RABEZ74ZTEY80SZDZMQWXFJ3ZSQZ6E860","Thu Feb 04 19:27:18 GMT 2010",164,"Female",1951,"Graduate degree, Masters","$60,000 - $74,999","married","No",2,"White","Florida","United States","20-50 HITs per week","1-2 years","$1-$5 per week","2-4 hours per week","fruitful|secondary_income|killtime",true,false,true,false,true,false,"I started working on MTurk after the recession but the recession has nothing to do with my decision","I was not active before the recession."]
["NYHZYE9RABEZ74ZTEY80DYJZRMYGKXXYRRYDE9MZ","Mon Feb 08 15:08:32 GMT 2010",164,"Male",1964,null,"$25,000 - $39,499","married","Yes, 1 child",3,"White","Non-US","Italy","5-10 HITs per week","1-2 years","Less than $1 per week","Less than 1 hour per week","secondary_income",false,false,false,false,true,false,"No, I was active before the recession.","I work the same amount of time on MTurk as before."]
["NYHZYE9RABEZ74ZTEY8043CWSEW0F38ZY09XWXSZ","Wed Jan 27 23:48:52 GMT 2010",165,"Female",1955,"Associates degree","$40,500 - $59,999","married","Yes, 2 children",4,"White","Texas","United States","200-500 HITs per week","6-12 months","$10-$20 per week","8-20 hours per week","fruitful|secondary_income|entertainment",true,true,false,false,true,false,"I started working on MTurk after the recession but the recession has nothing to do with my decision","I work the same amount of time on MTurk as before."]
["NYHZYE9RABEZ74ZTEY806XCGWSYJ6Z1ZVSCSKJ5Z","Sun Jan 31 01:48:55 GMT 2010",165,"Male",1978,"Bachelors degree","$40,500 - $59,999","cohabitating","No",2,"White","Maryland","United States","50-100 HITs per week","0-3 months","$5-$10 per week","4-8 hours per week","killtime",{"$f":"ISNUMBER(FIND(\"fruitful\", $R323))","v":false},{"$f":"ISNUMBER(FIND(\"entertainment\", $R323))","v":false},{"$f":"ISNUMBER(FIND(\"killtime\", $R323))","v":true},{"$f":"ISNUMBER(FIND(\"primary_income\", $R323))","v":false},{"$f":"ISNUMBER(FIND(\"secondary_income\", $R323))","v":false},{"$f":"ISNUMBER(FIND(\"unemployed\", R323))","v":false},"Yes, I started working on MTurk after the recession.","I work more on MTurk after the recession."]
["NYHZYE9RABEZ74ZTEY80CW3WXVYKSV86TGYVM2ZZ","Wed Feb 03 03:42:38 GMT 2010",165,"Female",1981,"Graduate degree, Masters","$25,000 - $39,499","single","No",1,"White","Louisiana","United States","50-100 HITs per week","6-12 months","$1-$5 per week","2-4 hours per week","fruitful|secondary_income|entertainment",true,true,false,false,true,false,"I started working on MTurk after the recession but the recession has nothing to do with my decision","I work the same amount of time on MTurk as before."]
["NYHZYE9RABEZ74ZTEY80DZWT5BYGJ3RZM5R0CKY0","Thu Feb 04 14:56:05 GMT 2010",165,"Male",1983,"Bachelors degree","$10,000 - $14,999","engaged","No",3,"White",null,"Israel","50-100 HITs per week","0-3 months","$1-$5 per week","2-4 hours per week","killtime|entertainment",false,true,true,false,false,false,"I started working on MTurk after the recession but the recession has nothing to do with my decision","I was not active before the recession."]
["NYHZYE9RABEZ74ZTEY80NZHCX71K7YAR6YST7390","Sun Feb 07 01:59:14 GMT 2010",165,"Female",1981,null,"$15,000 - $24,999","single","Yes, 2 children","5+","White","Wisconsin","United States","10-20 HITs per week","1-2 years","$5-$10 per week","2-4 hours per week","secondary_income",false,false,false,false,true,false,"No, I was active before the recession.","I work the same amount of time on MTurk as before."]
["NYHZYE9RABEZ74ZTEY80G89Y4CY5AZ1ZKBY3V1AZ","Mon Feb 08 04:59:34 GMT 2010",165,"Female",1948,"Graduate degree, Masters","$40,500 - $59,999","single","No",1,"White","New Jersey","United States","5-10 HITs per week","6-12 months","$5-$10 per week","2-4 hours per week","fruitful|secondary_income|unemployed",true,false,false,false,true,true,"Yes, I started working on MTurk after the recession.","I was not active before the recession."]
["NYHZYE9RABEZ74ZTEY80VTTZ6VY4SXNRG50PQZV0","Tue Feb 09 21:40:10 GMT 2010",165,"Female",1982,"Bachelors degree","$25,000 - $39,499","single","No",1,"White","Pennsylvania","United States","20-50 HITs per week","3-6 months","$1-$5 per week","4-8 hours per week","fruitful|secondary_income|entertainment",true,true,false,false,true,false,"Yes, I started working on MTurk after the recession.","I was not active before the recession.","I have a high need for feedback and seeing my HITs get approved supplies me with that satisfaction."]
["NYHZYE9RABEZ74ZTEY80V2D6H5YXBWPZNB1SS2M0","Wed Feb 10 12:05:38 GMT 2010",165,"Female",1977,"Graduate degree, Masters","$75,000 - $99,999","cohabitating","No",2,"Other","Oregon","United States","100-200 HITs per week","1-2 years","$10-$20 per week","2-4 hours per week","fruitful|secondary_income",true,false,false,false,true,false,"No, I was active before the recession.","I work less on MTurk after the recession.","It gives me the opportunity to work when I can."]
["NYHZYE9RABEZ74ZTEY8083DCWEZ48YFZ5YZX7190","Thu Jan 28 00:24:29 GMT 2010",167,"Male",1972,"Graduate degree, Masters","$150,000 - $199,999","separated","Yes, 2 children",3,"White","New York","United States","50-100 HITs per week","0-3 months","$20-$50 per week","1-2 hours per week","fruitful|secondary_income|entertainment",true,true,false,false,true,false,"I started working on MTurk after the recession but the recession has nothing to do with my decision","I was not active before the recession."]
["NYHZYE9RABEZ74ZTEY80Z0QZV4W81SSZGZZ3KSJZ","Thu Jan 28 00:29:32 GMT 2010",167,"Male",1957,"Some college, no degree","$40,500 - $59,999","married","Yes, 1 child",3,"White","Kansas","United States","50-100 HITs per week","0-3 months","$5-$10 per week","2-4 hours per week","killtime|entertainment",false,true,true,false,false,false,"I started working on MTurk after the recession but the recession has nothing to do with my decision","I was not active before the recession."]
["NYHZYE9RABEZ74ZTEY80AY7ZNBZC0XX2G8DDQ9KZ","Mon Feb 01 12:40:02 GMT 2010",167,"Female",1989,"Bachelors degree","$15,000 - $24,999","single","No",3,"Asian",null,"India","100-200 HITs per week","0-3 months","$5-$10 per week","8-20 hours per week","fruitful|secondary_income",true,false,false,false,true,false,"I started working on MTurk after the recession but the recession has nothing to do with my decision","I was not active before the recession."]
["NYHZYE9RABEZ74ZTEY80GKKZ5EZX110RXQ8MRBVZ","Tue Feb 02 20:33:25 GMT 2010",167,"Male",1955,"Bachelors degree","$25,000 - $39,499","single","No",1,"White","Kansas","United States","200-500 HITs per week","3-6 months","$10-$20 per week","4-8 hours per week","unemployed",false,false,false,false,false,true,"I started working on MTurk after the recession but the recession has nothing to do with my decision","I was not active before the recession.","I am trying to generate self employment income.","Good survey."]
["NYHZYE9RABEZ74ZTEY80BT0MRAZWH3AMG1M4JYJ0","Thu Jan 28 11:18:02 GMT 2010",168,"Male",1986,"Bachelors degree","Less than $10,000","cohabitating","No",2,"White","Non-US","Lithuania","200-500 HITs per week","0-3 months","$5-$10 per week","2-4 hours per week","fruitful|unemployed",true,false,false,false,false,true,"Yes, I started working on MTurk after the recession.","I was not active before the recession."]
["NYHZYE9RABEZ74ZTEY80P1202RYF39PWM8YPM8GZ","Fri Jan 29 08:06:22 GMT 2010",168,"Male",1987,"Some college, no degree","$25,000 - $39,499","cohabitating","No",2,"White","Texas","United States","200-500 HITs per week","0-3 months","$5-$10 per week","2-4 hours per week","secondary_income|entertainment|unemployed",false,true,false,false,true,true,"I started working on MTurk after the recession but the recession has nothing to do with my decision","I work the same amount of time on MTurk as before."]
["NYHZYE9RABEZ74ZTEY80CBJZTXY3HX9ZXYXNR1N0","Mon Feb 01 19:10:32 GMT 2010",168,"Male",1983,"Bachelors degree","$25,000 - $39,499","single","No",1,"White","Arkansas","United States","10-20 HITs per week","1-2 years","$1-$5 per week","1-2 hours per week","fruitful|secondary_income|killtime|entertainment",true,true,true,false,true,false,"No, I was active before the recession.","I work the same amount of time on MTurk as before."]
["NYHZYE9RABEZ74ZTEY80HS4Z6BXEG0BWTVY2QWCZ","Tue Feb 02 19:03:12 GMT 2010",168,"Female",1959,"Bachelors degree","$150,000 - $199,999","married","Yes, 2 children",4,"White","Massachusetts","United States","500-1000 HITs per week","1-2 years","$50-$100 per week","8-20 hours per week","fruitful|secondary_income",true,false,false,false,true,false,"No, I was active before the recession.","I work the same amount of time on MTurk as before."]
["NYHZYE9RABEZ74ZTEY809XY64QZEXYGZVGYQ5Z8Z","Mon Feb 08 15:01:59 GMT 2010",168,"Male",1947,"Bachelors degree","$25,000 - $39,499","single","No",1,"White","New Hampshire","United States","200-500 HITs per week","2-4 years","$5-$10 per week","2-4 hours per week","fruitful|secondary_income",true,false,false,false,true,false,"No, I was active before the recession.","I work the same amount of time on MTurk as before."]
["NYHZYE9RABEZ74ZTEY80N1GZ3MWVS27ZY0Z2N8DZ","Tue Feb 09 22:53:24 GMT 2010",168,"Female",1978,"Bachelors degree","$40,500 - $59,999","married","Yes, 1 child",3,"White","New Jersey","United States","5-10 HITs per week","3-6 months","$1-$5 per week","2-4 hours per week","secondary_income|killtime",false,false,true,false,true,false,"I started working on MTurk after the recession but the recession has nothing to do with my decision","I work the same amount of time on MTurk as before.","Something to do and make money at it."]
["NYHZYE9RABEZ74ZTEY8033R2414NWW7WN7SMEZ80","Wed Feb 10 10:14:31 GMT 2010",168,"Female",1991,"High School Graduate","$40,500 - $59,999","engaged","No",4,"White","California","United States","20-50 HITs per week","1-2 years","$1-$5 per week","1-2 hours per week","fruitful|killtime|entertainment|unemployed",true,true,true,false,false,true,"No, I was active before the recession.","I work the same amount of time on MTurk as before.","I enjoy it. I may only make a few cents, but every cent counts."]
["NYHZYE9RABEZ74ZTEY809ZV8XWY6S8WGPBYNVBN0","Fri Feb 12 13:05:37 GMT 2010",168,"Male",1977,"Some college, no degree","$40,500 - $59,999","married","No",2,"White","Ohio","United States","100-200 HITs per week","0-3 months","$10-$20 per week","8-20 hours per week","fruitful|secondary_income|entertainment",true,true,false,false,true,false,"Yes, I started working on MTurk after the recession.","I work more on MTurk after the recession."]
["NYHZYE9RABEZ74ZTEY800W6YNY1X8YAZY3ZV5J1Z","Wed Jan 27 23:47:21 GMT 2010",169,"Male",1960,"Graduate degree, Doctorate","$40,500 - $59,999","married","Yes, 2 children",3,"White","Georgia","United States","200-500 HITs per week","1-2 years","$5-$10 per week","2-4 hours per week","secondary_income",false,false,false,false,true,false,"No, I was active before the recession.","I work the same amount of time on MTurk as before."]
["NYHZYE9RABEZ74ZTEY807WT0TYY29X8AT0ZB98NZ","Thu Jan 28 00:20:16 GMT 2010",169,"Female",1968,"Graduate degree, Masters","$40,500 - $59,999","married","Yes, 2 children",4,"White","Pennsylvania","United States","5-10 HITs per week","6-12 months","$1-$5 per week","4-8 hours per week","secondary_income",false,false,false,false,true,false,"Yes, I started working on MTurk after the recession.","I work more on MTurk after the recession.",null,"Rates should be higher!"]
["NYHZYE9RABEZ74ZTEY8099CGX21WZTDAS5Z25970","Tue Feb 09 10:47:34 GMT 2010",169,"Female",1985,"Bachelors degree","Less than $10,000","single","No","5+","Other",null,"France","500-1000 HITs per week","3-6 months","$1-$5 per week","2-4 hours per week","secondary_income",false,false,false,false,true,false,"Yes, I started working on MTurk after the recession.","I was not active before the recession."]
["NYHZYE9RABEZ74ZTEY8030AYYCR6XY8GVZZ3WSAZ","Tue Feb 09 10:48:13 GMT 2010",169,"Female",1978,"Associates degree","$60,000 - $74,999","married","Yes, 3 children","5+","White","Non-US","Ireland","20-50 HITs per week","0-3 months","Less than $1 per week","Less than 1 hour per week","fruitful|entertainment|unemployed",true,true,false,false,false,true,"I started working on MTurk after the recession but the recession has nothing to do with my decision","I work the same amount of time on MTurk as before."]
["NYHZYE9RABEZ74ZTEY808VXZNWN4FW16GZ8A9HA0","Tue Feb 09 16:33:42 GMT 2010",169,"Male",1988,null,"$10,000 - $14,999","single","No",3,"Asian",null,"India","5-10 HITs per week","0-3 months","Less than $1 per week","8-20 hours per week","entertainment",false,true,false,false,false,false,"I started working on MTurk after the recession but the recession has nothing to do with my decision","I work the same amount of time on MTurk as before."]
["NYHZYE9RABEZ74ZTEY8033EZ57Y29Y4ZXEY0N8NZ","Wed Jan 27 23:49:04 GMT 2010",170,"Male",1988,"Some college, no degree","Less than $10,000","single","No",4,"Asian","Non-US","India","100-200 HITs per week","0-3 months","Less than $1 per week","1-2 hours per week","fruitful",true,false,false,false,false,false,"Yes, I started working on MTurk after the recession.","I work more on MTurk after the recession."]
["NYHZYE9RABEZ74ZTEY80NY94HJRCSXB6S7D84V8Z","Sat Jan 30 01:42:06 GMT 2010",170,"Female",1982,"Some college, no degree","$60,000 - $74,999","married","Yes, 2 children",4,"White","Louisiana","United States","20-50 HITs per week","6-12 months","$5-$10 per week","2-4 hours per week","secondary_income|unemployed",false,false,false,false,true,true,"I started working on MTurk after the recession but the recession has nothing to do with my decision","I was not active before the recession.","I have agoraphobia which doesn't let me work outside the home.  By turking, I feel that I can at least help out in some way with the bills and stuff."]
["NYHZYE9RABEZ74ZTEY804Z14WWZT5XZRZBZNXXEZ","Tue Feb 02 16:58:13 GMT 2010",170,"Male",1989,"Some college, no degree","Less than $10,000","single","No","5+","Asian",null,"Malaysia","10-20 HITs per week","0-3 months","$1-$5 per week","2-4 hours per week","killtime",false,false,true,false,false,false,"I started working on MTurk after the recession but the recession has nothing to do with my decision","I work the same amount of time on MTurk as before."]
["NYHZYE9RABEZ74ZTEY80EKZ2YEXGKXEZ0KZFAHDZ","Tue Feb 02 23:56:17 GMT 2010",170,"Male",1976,"Bachelors degree","$60,000 - $74,999","married","Yes, 3 children","5+","White","Ohio","United States","200-500 HITs per week","0-3 months","$20-$50 per week","4-8 hours per week","fruitful",true,false,false,false,false,false,"Yes, I started working on MTurk after the recession.","I work more on MTurk after the recession."]
["NYHZYE9RABEZ74ZTEY803WQ82P43AXVZZRZGZJVZ","Fri Feb 05 08:42:21 GMT 2010",170,"Male",1992,"High School Graduate","Less than $10,000","single","No",4,"White","Non-US","Romania","20-50 HITs per week","0-3 months","$1-$5 per week","1-2 hours per week","fruitful|secondary_income",true,false,false,false,true,false,"No, I was active before the recession.","I was not active before the recession."]
["NYHZYE9RABEZ74ZTEY80K1DWZ2X7BYPZQEDBDA1Z","Mon Feb 08 05:10:41 GMT 2010",170,"Male",1989,"Some college, no degree","$15,000 - $24,999","married","Yes, 1 child",3,"White","Ohio","United States","20-50 HITs per week","1-2 years","$50-$100 per week","2-4 hours per week","fruitful",true,false,false,false,false,false,"No, I was active before the recession.","I work the same amount of time on MTurk as before."]
["NYHZYE9RABEZ74ZTEY80Z1AZMJDF0XHJT75TZ05Z","Mon Feb 08 16:30:36 GMT 2010",170,"Male",1985,"Bachelors degree","$25,000 - $39,499","single","No",4,"Asian","Indiana","India","20-50 HITs per week","6-12 months","$50-$100 per week","8-20 hours per week","secondary_income",false,false,false,false,true,false,"No, I was active before the recession.","I work more on MTurk after the recession."]
["NYHZYE9RABEZ74ZTEY809K6Z6CRYCXRZSWDFDSRZ","Thu Feb 11 16:10:18 GMT 2010",170,"Male",1961,"High School Graduate","$15,000 - $24,999","single","No",1,"White","Non-US","Italy","10-20 HITs per week","1-2 years","$1-$5 per week","2-4 hours per week","fruitful|killtime|entertainment",true,true,true,false,false,false,"No, I was active before the recession.","I work the same amount of time on MTurk as before."]
["NYHZYE9RABEZ74ZTEY80FTAZ5CNDVVTGWFWVDRYZ","Fri Jan 29 15:43:17 GMT 2010",171,"Male",1960,"Bachelors degree","Less than $10,000","single","No",1,"White","Pennsylvania","United States","10-20 HITs per week","1-2 years","$1-$5 per week","1-2 hours per week","fruitful",true,false,false,false,false,false,"No, I was active before the recession.","I work the same amount of time on MTurk as before."]
["NYHZYE9RABEZ74ZTEY80EHHZXKS00Y7TGEZPWZZZ","Thu Jan 28 09:19:23 GMT 2010",172,"Male",1981,"Graduate degree, Masters","$60,000 - $74,999","single","No",4,"Asian","Florida","India","50-100 HITs per week","6-12 months","$10-$20 per week","1-2 hours per week","fruitful",true,false,false,false,false,false,"No, I was active before the recession.","I work more on MTurk after the recession."]
["NYHZYE9RABEZ74ZTEY80HZKZW6ZQ7K9W6GWYQZCZ","Sun Jan 31 16:28:21 GMT 2010",172,"Male",1981,"Bachelors degree","$15,000 - $24,999","single","No",1,"White",null,"Canada","1-5 HITs per week","1-2 years","Less than $1 per week","Less than 1 hour per week","fruitful",true,false,false,false,false,false,"No, I was active before the recession.","I work the same amount of time on MTurk as before."]
["NYHZYE9RABEZ74ZTEY80GXB653Z9G8CEXXZQP82Z","Sun Jan 31 21:31:19 GMT 2010",172,"Female",1989,"Some college, no degree","$40,500 - $59,999","single","No",3,"White","Pennsylvania","United States","50-100 HITs per week","6-12 months","$1-$5 per week","2-4 hours per week","fruitful|secondary_income",true,false,false,false,true,false,"No, I was active before the recession.","I work more on MTurk after the recession.",null,"no"]
["NYHZYE9RABEZ74ZTEY809W7ZTYYSM8PW7DZ4VYCZ","Fri Feb 05 19:55:00 GMT 2010",172,"Female",1955,"Bachelors degree","$75,000 - $99,999","married","Yes, 2 children",3,"White","South Carolina","United States","10-20 HITs per week",null,"$1-$5 per week","8-20 hours per week","fruitful|secondary_income|entertainment",true,true,false,false,true,false,"Yes, I started working on MTurk after the recession.","I was not active before the recession.",null,"enjoy surveys on behavior research and such; also grammar and spelling related questions"]
["NYHZYE9RABEZ74ZTEY80JYXZJ0M848B4Z5YKRSK0","Tue Feb 09 21:04:25 GMT 2010",172,"Female",1984,"Some college, no degree","$15,000 - $24,999","married","Yes, 2 children",4,"Other","South Dakota","United States","10-20 HITs per week","0-3 months","$1-$5 per week","4-8 hours per week","fruitful|secondary_income|entertainment|unemployed",true,true,false,false,true,true,"I started working on MTurk after the recession but the recession has nothing to do with my decision","I was not active before the recession.","I am primarily a stay at home mom who is trying to bring in any extra money I can earn for my family.  I have a part-time job, but I want to do everything I can to make sure we're comfortable."]
["NYHZYE9RABEZ74ZTEY802WKZ0QG73ZEZXVZYKW90","Tue Feb 09 21:32:10 GMT 2010",172,"Female",1952,"Associates degree","$10,000 - $14,999","divorced","Yes, 2 children",3,"Other","Texas","United States","10-20 HITs per week","0-3 months","Less than $1 per week","2-4 hours per week","fruitful|entertainment",true,true,false,false,false,false,"I started working on MTurk after the recession but the recession has nothing to do with my decision","I was not active before the recession.","I also find it a fun way to learn new things."]
["NYHZYE9RABEZ74ZTEY8021M6V30TWKZZ2MG3ZYG0","Wed Jan 27 23:59:50 GMT 2010",173,"Female",1991,"High School Graduate","$25,000 - $39,499","single","No",2,"White","California","United States","20-50 HITs per week","0-3 months","$5-$10 per week","2-4 hours per week","fruitful|secondary_income|killtime",true,false,true,false,true,false,"I started working on MTurk after the recession but the recession has nothing to do with my decision","I work the same amount of time on MTurk as before."]
["NYHZYE9RABEZ74ZTEY808ZPZVN8AYW5ZZXY3MYEZ","Fri Jan 29 21:00:01 GMT 2010",173,"Female",1987,"Bachelors degree","$10,000 - $14,999","married","No",3,"White","Pennsylvania","United States","50-100 HITs per week","3-6 months","$10-$20 per week","4-8 hours per week","fruitful|secondary_income|killtime",true,false,true,false,true,false,"Yes, I started working on MTurk after the recession.","I was not active before the recession.",null,"Thanks!"]
["NYHZYE9RABEZ74ZTEY80PXHZ1KRB4WTYZFZY7Z9Z","Thu Feb 04 13:41:08 GMT 2010",173,"Male",1976,"Bachelors degree","$10,000 - $14,999","single","No",3,"Asian",null,"India","20-50 HITs per week","3-6 months","$1-$5 per week","4-8 hours per week","unemployed",false,false,false,false,false,true,"I started working on MTurk after the recession but the recession has nothing to do with my decision","I was not active before the recession."]
["NYHZYE9RABEZ74ZTEY807Z78Y50E2VTZXPZVA3J0","Mon Feb 08 04:44:39 GMT 2010",173,"Male",1990,"Some High School","$25,000 - $39,499","single","No",3,"Other","New York","United States","200-500 HITs per week","1-2 years","$20-$50 per week","4-8 hours per week","primary_income|killtime|unemployed",false,false,true,true,false,true,"No, I was active before the recession.","I work the same amount of time on MTurk as before."]
["NYHZYE9RABEZ74ZTEY80CZ7ZVDYMSG3ZSMYX9Z4Z","Wed Feb 10 20:26:56 GMT 2010",173,"Female",1972,"Graduate degree, Masters","$75,000 - $99,999","married","Yes, 1 child",3,"White","North Carolina","United States","5-10 HITs per week","3-6 months","$1-$5 per week","1-2 hours per week","killtime",false,false,true,false,false,false,"I started working on MTurk after the recession but the recession has nothing to do with my decision","I work the same amount of time on MTurk as before."]
["NYHZYE9RABEZ74ZTEY808B9CYAYS4RJMTJG8SZ2Z","Tue Feb 02 19:38:08 GMT 2010",174,"Male",1977,"Bachelors degree","$60,000 - $74,999","married","Yes, 3 children","5+","White","California","United States","20-50 HITs per week","3-6 months","$1-$5 per week","2-4 hours per week","fruitful|secondary_income|entertainment",true,true,false,false,true,false,"Yes, I started working on MTurk after the recession.","I was not active before the recession."]
["NYHZYE9RABEZ74ZTEY80CXKZKAZ4FJTY0EY0ZXWZ","Wed Feb 03 18:30:15 GMT 2010",174,"Female",1960,"High School Graduate","Less than $10,000","married","Yes, 3 children","5+","Asian","Non-US","India","1-5 HITs per week","0-3 months","$1-$5 per week","1-2 hours per week","fruitful|secondary_income|entertainment",true,true,false,false,true,false,"Yes, I started working on MTurk after the recession.","I work more on MTurk after the recession."]
["NYHZYE9RABEZ74ZTEY80JRWZYRW5TVTZY0ZEHZD0","Thu Jan 28 00:54:30 GMT 2010",175,"Female",1986,"Bachelors degree","$40,500 - $59,999","single","No",1,"White","Massachusetts","United States","200-500 HITs per week","0-3 months","$10-$20 per week","8-20 hours per week","fruitful|secondary_income|entertainment",true,true,false,false,true,false,"I started working on MTurk after the recession but the recession has nothing to do with my decision","I was not active before the recession.","I feel instant gratification doing the tasks and getting paid."]
["NYHZYE9RABEZ74ZTEY80HZ2ZW5NZY0X8HWZ1GW2Z","Thu Jan 28 01:18:08 GMT 2010",175,"Female",1982,"Bachelors degree","$25,000 - $39,499","single","No",3,"White","Idaho","United States","200-500 HITs per week","6-12 months","$20-$50 per week","8-20 hours per week","fruitful|secondary_income|killtime|entertainment|unemployed",true,true,true,false,true,true,"I started working on MTurk after the recession but the recession has nothing to do with my decision","I was not active before the recession.","It's a supplement to my part time job to give me some extra spending money, plus it's fun.","No comments."]
["NYHZYE9RABEZ74ZTEY80GAJTY4ZTGRTET193XJVZ","Thu Jan 28 03:56:52 GMT 2010",175,"Male",1988,"Bachelors degree","Less than $10,000","single","No",4,"Asian",null,"India","200-500 HITs per week","0-3 months","$5-$10 per week","More than 40 hours per week","unemployed",false,false,false,false,false,true,"Yes, I started working on MTurk after the recession.","I work more on MTurk after the recession.","I HAVE NO JOB, I AM WORKING ON MTURK AS A FULL TIME WORKER. MY EARNINGS ARE LITERALLY LOW. BUT I TRYING EVERY DAY TO IMPROVE"]
["NYHZYE9RABEZ74ZTEY80YWEMM5GX0XSZGZZ66X50","Thu Jan 28 05:55:53 GMT 2010",175,"Male",1983,"Bachelors degree","Less than $10,000","single","No",1,null,null,"India","10-20 HITs per week","1-2 years","$1-$5 per week","4-8 hours per week","fruitful|secondary_income|killtime|entertainment",true,true,true,false,true,false,"Yes, I started working on MTurk after the recession.","I work more on MTurk after the recession."]
["NYHZYE9RABEZ74ZTEY8099PZTJX05ZWMX24TXZJ0","Fri Jan 29 13:00:25 GMT 2010",175,"Female",1967,"Bachelors degree","$100,000 - $149,999","married","Yes, 1 child",3,"White","Tennessee","United States","20-50 HITs per week","3-6 months","$1-$5 per week","4-8 hours per week","fruitful|secondary_income|entertainment",true,true,false,false,true,false,"I started working on MTurk after the recession but the recession has nothing to do with my decision","I work the same amount of time on MTurk as before."]
["NYHZYE9RABEZ74ZTEY80KYZZYAYFVY0ZQHM28VNZ","Thu Feb 04 12:55:32 GMT 2010",175,"Male",1988,"High School Graduate","$40,500 - $59,999","single","No",4,"White",null,"Croatia","100-200 HITs per week","0-3 months","$20-$50 per week","1-2 hours per week","fruitful|secondary_income|killtime|unemployed",true,false,true,false,true,true,"Yes, I started working on MTurk after the recession.","I was not active before the recession."]
["NYHZYE9RABEZ74ZTEY80GHSAVRN38HWZXBZNSZ80","Sun Feb 07 04:15:54 GMT 2010",175,"Male",1993,"Some High School","$200,000 - $249,999","single","No",4,"White","Florida","United States","20-50 HITs per week","0-3 months","$5-$10 per week","1-2 hours per week","fruitful|secondary_income",true,false,false,false,true,false,"I started working on MTurk after the recession but the recession has nothing to do with my decision","I was not active before the recession.","it enables me to buy some $10 or $15 things on amazon.com that i want such as music or movies"]
["NYHZYE9RABEZ74ZTEY803Z8CGR4XG13ZV9ZKRZQZ","Thu Feb 11 14:02:31 GMT 2010",175,"Female",1970,"Associates degree","$100,000 - $149,999","cohabitating","Yes, 1 child",4,"White","Non-US","Canada","5-10 HITs per week","6-12 months","$1-$5 per week","Less than 1 hour per week","fruitful",true,false,false,false,false,false,"I started working on MTurk after the recession but the recession has nothing to do with my decision","I work the same amount of time on MTurk as before.","instead of video games and also to get to know what is going on behind the curtains"]
["NYHZYE9RABEZ74ZTEY80K9ZZHHZ30WR8V1ZS7SHZ","Fri Feb 12 11:14:53 GMT 2010",175,"Male",1984,"Bachelors degree","Less than $10,000","single","No",1,"White",null,"Lithuania","1-5 HITs per week","0-3 months","$1-$5 per week","Less than 1 hour per week","fruitful|secondary_income|entertainment",true,true,false,false,true,false,"I started working on MTurk after the recession but the recession has nothing to do with my decision","I was not active before the recession."]
["NYHZYE9RABEZ74ZTEY8069ZZSERNY9A4WCYSRB0Z","Sat Jan 30 04:05:48 GMT 2010",176,"Female",1978,"Bachelors degree","Less than $10,000","married","Yes, 1 child",3,"White",null,"India","10-20 HITs per week","6-12 months","$1-$5 per week","4-8 hours per week","primary_income",false,false,false,true,false,false,"No, I was active before the recession.","I work the same amount of time on MTurk as before."]
["NYHZYE9RABEZ74ZTEY80CGR4R0ZZHYMZY88MTJ10","Sat Jan 30 23:28:21 GMT 2010",176,"Female",1956,"Some college, no degree","$25,000 - $39,499","divorced","No",1,"White","Wisconsin","United States","20-50 HITs per week","6-12 months","$1-$5 per week","2-4 hours per week","fruitful|entertainment",true,true,false,false,false,false,"Yes, I started working on MTurk after the recession.","I work more on MTurk after the recession.","It really helps me learn about a lot of new things sometimes."]
["NYHZYE9RABEZ74ZTEY80RJ5WVDRYG048N8ZZEGFZ","Mon Feb 08 04:07:13 GMT 2010",176,"Female",1976,"Some college, no degree","$40,500 - $59,999","married","Yes, 3 children","5+","White","Florida","United States","1000-5000 HITs per week","2-4 years","$10-$20 per week","More than 40 hours per week","primary_income|unemployed",false,false,false,true,false,true,"No, I was active before the recession.","I work the same amount of time on MTurk as before."]
["NYHZYE9RABEZ74ZTEY80ZWV4RD08MVYRJ7YR3TFZ","Wed Feb 03 02:32:28 GMT 2010",177,"Female",1970,"Some college, no degree","$60,000 - $74,999","married","Yes, 1 child",3,"White","Virginia","United States","5-10 HITs per week","0-3 months","$1-$5 per week","2-4 hours per week","primary_income|secondary_income|entertainment",false,true,false,true,true,false,"I started working on MTurk after the recession but the recession has nothing to do with my decision","I was not active before the recession.","I am a stay at home Mom and this gives me a way to add income."]
["NYHZYE9RABEZ74ZTEY80TZ2CXDZ07RGZ0F80MWVZ","Thu Feb 11 19:33:06 GMT 2010",177,"Female",1974,"Graduate degree, Masters","$75,000 - $99,999","married","Yes, 3 children","5+","White",null,"Canada","100-200 HITs per week","0-3 months","$5-$10 per week","2-4 hours per week","fruitful|secondary_income|entertainment",true,true,false,false,true,false,"I started working on MTurk after the recession but the recession has nothing to do with my decision","I was not active before the recession."]
["NYHZYE9RABEZ74ZTEY801YYYNTD9CRNZTEZV33B0","Thu Jan 28 02:16:43 GMT 2010",178,"Female",1984,"Bachelors degree","$10,000 - $14,999","married","No",null,"Asian","Rhode Island","United States","50-100 HITs per week","3-6 months","$5-$10 per week","4-8 hours per week","fruitful|secondary_income",true,false,false,false,true,false,"I started working on MTurk after the recession but the recession has nothing to do with my decision","I work the same amount of time on MTurk as before."]
["NYHZYE9RABEZ74ZTEY80T8DZX3YPHWK603Z5BAY0","Thu Jan 28 23:15:25 GMT 2010",178,"Female",1959,"Some college, no degree","$25,000 - $39,499","married","No",2,"White","South Carolina","United States","1-5 HITs per week","1-2 years","Less than $1 per week","Less than 1 hour per week","fruitful|secondary_income|killtime|entertainment|unemployed",true,true,true,false,true,true,"No, I was active before the recession.","I work the same amount of time on MTurk as before."]
["NYHZYE9RABEZ74ZTEY80FKH0SKY7M3DJYFZ6FVJ0","Sun Jan 31 03:03:34 GMT 2010",178,"Female",1984,"Bachelors degree","$40,500 - $59,999","married","Yes, 1 child",3,"White","Texas","United States","20-50 HITs per week","6-12 months","$1-$5 per week","2-4 hours per week","fruitful|secondary_income|killtime",true,false,true,false,true,false,"I started working on MTurk after the recession but the recession has nothing to do with my decision","I work the same amount of time on MTurk as before.","Primarily for birthday and Christmas gifts"]
["NYHZYE9RABEZ74ZTEY804WSYHNZQT1VZQ7W5BWY0","Wed Feb 10 15:25:40 GMT 2010",178,"Male",1989,"Some college, no degree","$15,000 - $24,999","engaged","No",2,"White","Michigan","United States","100-200 HITs per week","0-3 months","$10-$20 per week","20-40 hours per week","fruitful|secondary_income|killtime|entertainment",true,true,true,false,true,false,"I started working on MTurk after the recession but the recession has nothing to do with my decision","I was not active before the recession."]
["NYHZYE9RABEZ74ZTEY8063EZTF8HC9DR1RYYRWBZ","Sat Jan 30 21:22:07 GMT 2010",179,"Female",1988,"Associates degree","$75,000 - $99,999","engaged","No","5+","White","North Carolina","United States","50-100 HITs per week","0-3 months","$5-$10 per week","1-2 hours per week","fruitful|secondary_income|unemployed",{"$f":"ISNUMBER(FIND(\"fruitful\", $R387))","v":true},{"$f":"ISNUMBER(FIND(\"entertainment\", $R387))","v":false},{"$f":"ISNUMBER(FIND(\"killtime\", $R387))","v":false},{"$f":"ISNUMBER(FIND(\"primary_income\", $R387))","v":false},{"$f":"ISNUMBER(FIND(\"secondary_income\", $R387))","v":true},{"$f":"ISNUMBER(FIND(\"unemployed\", R387))","v":true},"Yes, I started working on MTurk after the recession.","I was not active before the recession."]
["NYHZYE9RABEZ74ZTEY801ZWZ7S5WW2SJ5SY6TZ70","Mon Feb 01 23:56:17 GMT 2010",179,"Female",1971,"High School Graduate","$25,000 - $39,499","divorced","No",3,"White","Ohio","United States","Less than 1 HIT per week","0-3 months","Less than $1 per week","1-2 hours per week","fruitful|unemployed",true,false,false,false,false,true,"I started working on MTurk after the recession but the recession has nothing to do with my decision","I was not active before the recession."]
["NYHZYE9RABEZ74ZTEY80MB1ZZEZN21RZWMYCCTV0","Tue Feb 02 07:16:22 GMT 2010",179,"Female",1988,"Bachelors degree","$25,000 - $39,499","single","No",3,"Asian",null,"China","100-200 HITs per week","6-12 months","$5-$10 per week","8-20 hours per week","secondary_income|entertainment",false,true,false,false,true,false,"Yes, I started working on MTurk after the recession.","I work more on MTurk after the recession.","I also want to practice my English.","This is a great site."]
["NYHZYE9RABEZ74ZTEY8051EZVRCM0W1ZGPYCMTPZ","Fri Feb 05 04:52:10 GMT 2010",179,"Female",1986,"Bachelors degree","Less than $10,000","engaged","Yes, 1 child","5+","Asian",null,"Philippines","200-500 HITs per week","6-12 months","$1-$5 per week","More than 40 hours per week","fruitful|secondary_income|entertainment",true,true,false,false,true,false,"I started working on MTurk after the recession but the recession has nothing to do with my decision","I was not active before the recession."]
["NYHZYE9RABEZ74ZTEY80PXBZNQ9B0XP2R8ZXMHG0","Mon Feb 08 04:51:06 GMT 2010",179,"Female",1970,"Associates degree","$25,000 - $39,499","divorced","Yes, 1 child",2,"White","New York","United States","50-100 HITs per week","3-6 months","$1-$5 per week","4-8 hours per week","fruitful|primary_income|entertainment",true,true,false,true,false,false,"I started working on MTurk after the recession but the recession has nothing to do with my decision","I work the same amount of time on MTurk as before."]
["NYHZYE9RABEZ74ZTEY80G0KRS6NPAXK8P2Y5WZWZ","Thu Jan 28 00:01:27 GMT 2010",180,"Male",1976,"Bachelors degree","$40,500 - $59,999","married","Yes, 4 or more children","5+","White","Maryland","Uruguay","50-100 HITs per week","0-3 months","$10-$20 per week","4-8 hours per week","secondary_income",false,false,false,false,true,false,"Yes, I started working on MTurk after the recession.","I was not active before the recession.","A second job is not possible with the hours of my primary job.  Mechanical Turk has greater flexibility."]
["NYHZYE9RABEZ74ZTEY8060JZT70Z6ZTZSCZDXB7Z","Fri Jan 29 08:19:36 GMT 2010",180,"Male",1979,"Graduate degree, Masters","Less than $10,000","single","No",1,"Asian",null,"India","500-1000 HITs per week","3-6 months","$20-$50 per week","More than 40 hours per week","primary_income|unemployed",false,false,false,true,false,true,"No, I was active before the recession.","I work the same amount of time on MTurk as before.","Just to earn money."]
["NYHZYE9RABEZ74ZTEY80WH9ZGTZ31896TPN8H270","Thu Feb 04 19:41:58 GMT 2010",180,"Male",1994,"Some High School","Less than $10,000","single","No","5+","White","Non-US","Romania","500-1000 HITs per week","3-6 months","$5-$10 per week","4-8 hours per week","primary_income|killtime|entertainment",false,true,true,true,false,false,"No, I was active before the recession.","I work the same amount of time on MTurk as before."]
["NYHZYE9RABEZ74ZTEY80ATRJXVYPTXAZ5GY20V00","Fri Feb 05 20:05:38 GMT 2010",180,"Male",1983,"Graduate degree, Masters","$10,000 - $14,999","single","No",2,"White",null,"Argentina","20-50 HITs per week","0-3 months","$5-$10 per week","4-8 hours per week","fruitful",true,false,false,false,false,false,"I started working on MTurk after the recession but the recession has nothing to do with my decision","I was not active before the recession."]
["NYHZYE9RABEZ74ZTEY80186Z7XZBEW6TT6Y3KY60","Mon Feb 08 05:20:20 GMT 2010",180,"Female",1972,"Bachelors degree","$75,000 - $99,999","married","Yes, 3 children","5+","White","South Carolina","United States","200-500 HITs per week","0-3 months","$1-$5 per week","1-2 hours per week","fruitful|entertainment",true,true,false,false,false,false,"No, I was active before the recession.","I was not active before the recession.","I was directed by a gaming site to earn money to be used on that could be used to buy special things on that site."]
["NYHZYE9RABEZ74ZTEY804ZFRX78TWYVWPH4E2X9Z","Wed Feb 10 20:28:35 GMT 2010",180,"Female",1976,"Associates degree","$75,000 - $99,999","married","Yes, 4 or more children","5+","White","California","United States","1000-5000 HITs per week","3-6 months","$20-$50 per week","4-8 hours per week","secondary_income",false,false,false,false,true,false,"I started working on MTurk after the recession but the recession has nothing to do with my decision","I was not active before the recession."]
["NYHZYE9RABEZ74ZTEY80DGAZ46YPRY6JTASBPT60","Thu Jan 28 03:40:42 GMT 2010",181,"Female",1965,"Bachelors degree","$75,000 - $99,999","married","Yes, 2 children",3,"White","Georgia","United States","10-20 HITs per week","3-6 months","$1-$5 per week","1-2 hours per week","fruitful|secondary_income|killtime|entertainment",true,true,true,false,true,false,"Yes, I started working on MTurk after the recession.","I was not active before the recession.","I like having money in my Amazon payments account, and I use it to splurge on little things I wouldn't otherwise by, especially now that my budget is tighter.  I don't feel pressure - I do it for fun.","Both my children are over 18, and 1 no longer lives at home."]
["NYHZYE9RABEZ74ZTEY80P8A0GS5PZX1Z1EYQFXK0","Sat Jan 30 04:33:48 GMT 2010",181,"Male",1981,"High School Graduate","$15,000 - $24,999","single","No",2,"White",null,"Australia","100-200 HITs per week","0-3 months","$10-$20 per week","8-20 hours per week","fruitful|killtime|unemployed",true,false,true,false,false,true,"I started working on MTurk after the recession but the recession has nothing to do with my decision","I was not active before the recession."]
["NYHZYE9RABEZ74ZTEY80XHPZGKYWZZCGVCYSAS8Z","Fri Feb 05 11:55:25 GMT 2010",181,"Male",1977,"Bachelors degree","$25,000 - $39,499","married","Yes, 1 child",3,"Asian",null,"India","1-5 HITs per week","6-12 months","$1-$5 per week","2-4 hours per week","fruitful|secondary_income|entertainment",true,true,false,false,true,false,"I started working on MTurk after the recession but the recession has nothing to do with my decision","I was not active before the recession.",null,"Nothing. A very good site."]
["NYHZYE9RABEZ74ZTEY809YAMZ947EZXJS6ZZFYWZ","Fri Feb 05 11:58:08 GMT 2010",181,"Male",1988,"Some High School","Less than $10,000","single","No","5+","Asian",null,"Bangladesh","10-20 HITs per week","1-2 years","$1-$5 per week","4-8 hours per week","secondary_income",false,false,false,false,true,false,"No, I was active before the recession.","I work the same amount of time on MTurk as before.",null,"Useful."]
["NYHZYE9RABEZ74ZTEY803XSZVQ4V1V3Z2GYYTAXZ","Sat Feb 06 09:36:36 GMT 2010",181,"Female",1994,"Some High School","$15,000 - $24,999","single","No",2,"White","Kentucky","United States","50-100 HITs per week","0-3 months","$1-$5 per week","2-4 hours per week","fruitful|secondary_income|killtime",true,false,true,false,true,false,"I started working on MTurk after the recession but the recession has nothing to do with my decision","I was not active before the recession."]
["NYHZYE9RABEZ74ZTEY80KXJZRRZ30WZZZED3DKQ0","Thu Jan 28 00:10:30 GMT 2010",182,"Female",1973,"Bachelors degree","Less than $10,000","married","Yes, 2 children",4,"Asian",null,"India","100-200 HITs per week","0-3 months","$1-$5 per week","1-2 hours per week","fruitful",true,false,false,false,false,false,"Yes, I started working on MTurk after the recession.","I work more on MTurk after the recession.","It is a secured site for earning income."]
["NYHZYE9RABEZ74ZTEY800YRAZ0Y9XYDAJ2Y6M34Z","Sun Jan 31 04:10:58 GMT 2010",182,"Male",1980,"Bachelors degree","$10,000 - $14,999","single","No",4,"Asian",null,"India","20-50 HITs per week","6-12 months","$1-$5 per week","4-8 hours per week","secondary_income",false,false,false,false,true,false,"No, I was active before the recession.","I work more on MTurk after the recession.","Some tasks are really interesting"]
["NYHZYE9RABEZ74ZTEY80882ZM6YN7WCYPJ4MM3EZ","Tue Feb 09 19:29:31 GMT 2010",182,"Female",1981,"High School Graduate","$25,000 - $39,499","married","No",2,"White","California","United States","20-50 HITs per week","0-3 months","Less than $1 per week","1-2 hours per week","fruitful",true,false,false,false,false,false,"Yes, I started working on MTurk after the recession.","I work more on MTurk after the recession.","I enjoy taking surveys and getting some cash back is a big perk."]
["NYHZYE9RABEZ74ZTEY80WX1Y3TYW2WBT7RSB33RZ","Mon Feb 08 05:46:20 GMT 2010",183,"Male",1990,"Bachelors degree","$40,500 - $59,999","single","No","5+","Asian","Non-US","Philippines","20-50 HITs per week","0-3 months","Less than $1 per week","Less than 1 hour per week","secondary_income|killtime",false,false,true,false,true,false,"I started working on MTurk after the recession but the recession has nothing to do with my decision","I work the same amount of time on MTurk as before.","In this game called mousehunt, you can pay money to get extra benefits. I use MTURK to earn money for that."]
["NYHZYE9RABEZ74ZTEY802W4ZS85ZS1MGZ504E0TZ","Wed Jan 27 23:47:37 GMT 2010",184,"Male",1970,"Bachelors degree","$40,500 - $59,999","single","No",2,"White","Ohio","United States","50-100 HITs per week","1-2 years","$5-$10 per week","2-4 hours per week","killtime|entertainment",false,true,true,false,false,false,"No, I was active before the recession.","I work the same amount of time on MTurk as before."]
["NYHZYE9RABEZ74ZTEY80ZXAJ0ZZ95YWZZ7ZGMX60","Thu Jan 28 01:51:06 GMT 2010",184,"Female",1969,"Graduate degree, Masters","$100,000 - $149,999","married","No",2,"White","Missouri","United States","200-500 HITs per week","0-3 months","$10-$20 per week","4-8 hours per week","secondary_income|entertainment",false,true,false,false,true,false,"I started working on MTurk after the recession but the recession has nothing to do with my decision","I was not active before the recession.","I buy things from Amazon.com and like the ability to earn credits toward their site.","Am thankful for the opportunity to earn this money. Am trying to get debt free from credit cards"]
["NYHZYE9RABEZ74ZTEY80FYTGJPYFZX1ZRKYZDR00","Sun Jan 31 03:39:01 GMT 2010",184,"Female",1985,"Graduate degree, Masters","$100,000 - $149,999","single","No",4,"White","Pennsylvania","United States","1-5 HITs per week","1-2 years","Less than $1 per week","Less than 1 hour per week","secondary_income|unemployed",false,false,false,false,true,true,"No, I was active before the recession.","I work more on MTurk after the recession."]
["NYHZYE9RABEZ74ZTEY80EZFZ2DH9DX4ZK1ZNXWWZ","Mon Feb 01 16:04:14 GMT 2010",184,"Female",1984,"Some college, no degree","$60,000 - $74,999","married","No",2,"White","Connecticut","United States","1-5 HITs per week","0-3 months","Less than $1 per week","Less than 1 hour per week","fruitful",true,false,false,false,false,false,"I started working on MTurk after the recession but the recession has nothing to do with my decision","I was not active before the recession."]
["NYHZYE9RABEZ74ZTEY80PVFM57YT7W8ZTTM1BH00","Tue Feb 09 21:07:36 GMT 2010",184,"Female",1979,"Some college, no degree","$25,000 - $39,499","single","No",2,"White","Virginia","United States","100-200 HITs per week","0-3 months","$1-$5 per week","8-20 hours per week","fruitful|entertainment",true,true,false,false,false,false,"Yes, I started working on MTurk after the recession.","I was not active before the recession.","I googled easy ways to make money and this came up in the search results."]
["NYHZYE9RABEZ74ZTEY80PG9ZS7YGFZAMMMWFSWHZ","Thu Feb 11 14:26:41 GMT 2010",184,"Male",1973,"Bachelors degree","$40,500 - $59,999","cohabitating","No",2,"White",null,"Spain","1-5 HITs per week","0-3 months","Less than $1 per week","1-2 hours per week","fruitful|unemployed",true,false,false,false,false,true,"I started working on MTurk after the recession but the recession has nothing to do with my decision","I was not active before the recession."]
["NYHZYE9RABEZ74ZTEY80RA583QY82S7ZYFYA6W00","Thu Jan 28 00:12:18 GMT 2010",185,"Female",1986,"Bachelors degree","$25,000 - $39,499","single","No",1,"White","Arizona","United States","10-20 HITs per week","1-2 years","$5-$10 per week","1-2 hours per week","fruitful|primary_income|secondary_income|killtime",true,false,true,true,true,false,"No, I was active before the recession.","I work the same amount of time on MTurk as before."]
["NYHZYE9RABEZ74ZTEY80X3RJ0K8WPHEZ60Z5FSR0","Sat Jan 30 05:45:29 GMT 2010",185,"Female",1986,"High School Graduate","Less than $10,000","single","No","5+","White","Minnesota","United States","20-50 HITs per week","6-12 months","$1-$5 per week","1-2 hours per week","fruitful|secondary_income",true,false,false,false,true,false,"No, I was active before the recession.","I work the same amount of time on MTurk as before."]
["NYHZYE9RABEZ74ZTEY80MH4ZYNH02AKAPDYF9K7Z","Mon Feb 01 19:10:53 GMT 2010",185,"Female",1975,"Graduate degree, Masters","$40,500 - $59,999","married","Yes, 4 or more children","5+","White","Kansas","United States","10-20 HITs per week","3-6 months","$5-$10 per week","4-8 hours per week","secondary_income|entertainment",false,true,false,false,true,false,"Yes, I started working on MTurk after the recession.","I was not active before the recession."]
["NYHZYE9RABEZ74ZTEY802Z161CSWDZCZ13YB9SE0","Tue Feb 09 21:07:27 GMT 2010",185,"Male",1981,"Bachelors degree","$15,000 - $24,999","married","Yes, 1 child",3,"Asian","Non-US","United Arab Emirates","1000-5000 HITs per week","1-2 years","$100-$200 per week","20-40 hours per week","fruitful|secondary_income|entertainment",true,true,false,false,true,false,"No, I was active before the recession.","I work the same amount of time on MTurk as before."]
["NYHZYE9RABEZ74ZTEY80GV4ZSG15Y2NZGEY5WXRZ","Thu Jan 28 00:07:51 GMT 2010",186,"Male",1986,"Bachelors degree","$60,000 - $74,999","married","Yes, 1 child",3,"White","Texas","United States","200-500 HITs per week","0-3 months","$20-$50 per week","8-20 hours per week","fruitful|killtime|entertainment|unemployed",true,true,true,false,false,true,"I started working on MTurk after the recession but the recession has nothing to do with my decision","I was not active before the recession."]
["NYHZYE9RABEZ74ZTEY80ZSSEZPRY00H4MQ8ACX70","Thu Jan 28 04:33:29 GMT 2010",186,"Male",1983,"Bachelors degree","$15,000 - $24,999","married","No",2,"Asian",null,"India","5-10 HITs per week","0-3 months","$1-$5 per week","2-4 hours per week","secondary_income|entertainment",false,true,false,false,true,false,"I started working on MTurk after the recession but the recession has nothing to do with my decision","I was not active before the recession."]
["NYHZYE9RABEZ74ZTEY806SEZ0HZ8NWHYTCYG5RJ0","Fri Jan 29 07:20:03 GMT 2010",186,"Male",1986,null,"$25,000 - $39,499","single","No","5+","Asian","Non-US","India","100-200 HITs per week","3-6 months","$1-$5 per week","4-8 hours per week","fruitful",true,false,false,false,false,false,"I started working on MTurk after the recession but the recession has nothing to do with my decision","I work the same amount of time on MTurk as before."]
["NYHZYE9RABEZ74ZTEY80PXBZW3S5BXJZX4X0CSX0","Sun Jan 31 11:48:03 GMT 2010",186,"Male",1978,"Bachelors degree","$40,500 - $59,999","married","No",2,"White",null,"Brazil","5-10 HITs per week","0-3 months","$1-$5 per week","1-2 hours per week","fruitful|killtime|entertainment",true,true,true,false,false,false,"I started working on MTurk after the recession but the recession has nothing to do with my decision","I was not active before the recession.","My next Amazon purchase S&H is already paid."]
["NYHZYE9RABEZ74ZTEY80WW6ZXMY6MZCMMQYESSTZ","Mon Feb 08 14:39:58 GMT 2010",186,"Male",1984,"Bachelors degree","Less than $10,000","single","No",3,"White","Non-US","India","1000-5000 HITs per week","1-2 years","$5-$10 per week","20-40 hours per week","unemployed",false,false,false,false,false,true,"Yes, I started working on MTurk after the recession.","I work more on MTurk after the recession."]
["NYHZYE9RABEZ74ZTEY800WWZN8YKSWWZR4YW7WBZ","Thu Jan 28 06:50:16 GMT 2010",187,"Female",1964,"High School Graduate","$100,000 - $149,999","married","Yes, 3 children",2,"White","Washington","United States","5-10 HITs per week","0-3 months","$5-$10 per week","1-2 hours per week","fruitful|entertainment",true,true,false,false,false,false,"Yes, I started working on MTurk after the recession.","I work the same amount of time on MTurk as before."]
["NYHZYE9RABEZ74ZTEY8028TZ5DY2ZX5Z6GYHNZ90","Fri Jan 29 16:04:26 GMT 2010",187,"Female",1956,"High School Graduate","$60,000 - $74,999","married","Yes, 2 children",3,"White","California","United States","200-500 HITs per week","3-6 months","$1-$5 per week","8-20 hours per week","fruitful|entertainment",true,true,false,false,false,false,"I started working on MTurk after the recession but the recession has nothing to do with my decision","I was not active before the recession."]
["NYHZYE9RABEZ74ZTEY80K12TS5ZFMKWZRS1BNWWZ","Sat Jan 30 14:20:11 GMT 2010",187,"Male",1980,"Graduate degree, Masters","$15,000 - $24,999","married","No",1,"Asian",null,"India","100-200 HITs per week","3-6 months","$20-$50 per week","20-40 hours per week","secondary_income",false,false,false,false,true,false,"I started working on MTurk after the recession but the recession has nothing to do with my decision","I was not active before the recession.","No.","None."]
["NYHZYE9RABEZ74ZTEY80MYDMTCC1NWYZW7Y5X240","Sat Jan 30 22:14:26 GMT 2010",187,"Female",1974,"Bachelors degree","$75,000 - $99,999","married","Yes, 2 children",4,"White","Nevada","United States","20-50 HITs per week","0-3 months","$10-$20 per week","4-8 hours per week","fruitful|secondary_income|entertainment",true,true,false,false,true,false,"I started working on MTurk after the recession but the recession has nothing to do with my decision","I was not active before the recession."]
["NYHZYE9RABEZ74ZTEY8003ECZYNMFZ0ZTPYHCXBZ","Tue Feb 09 21:14:08 GMT 2010",187,"Female",1974,"High School Graduate","$25,000 - $39,499","single","Yes, 1 child",4,"White","Arizona","United States","1000-5000 HITs per week","1-2 years","$50-$100 per week","20-40 hours per week","primary_income|unemployed",false,false,false,true,false,true,"No, I was active before the recession.","I work more on MTurk after the recession.","No work for a year now, without Mturk we wouldnt have a phone, electricity and sometimes groceries."]
["NYHZYE9RABEZ74ZTEY80DXK0VZYJHVRZX2SZBGW0","Thu Jan 28 00:23:29 GMT 2010",188,"Male",1968,"Bachelors degree","$100,000 - $149,999","married","Yes, 2 children",4,"White","Virginia","United States","50-100 HITs per week","0-3 months","$5-$10 per week","2-4 hours per week","secondary_income",false,false,false,false,true,false,"I started working on MTurk after the recession but the recession has nothing to do with my decision","I was not active before the recession."]
["NYHZYE9RABEZ74ZTEY80W8EWSMZC4T0Z5GZZYWP0","Thu Jan 28 02:26:02 GMT 2010",188,"Female",1969,"Associates degree","$75,000 - $99,999","married","Yes, 2 children",4,"Other","California","United States","100-200 HITs per week","3-6 months","$10-$20 per week","4-8 hours per week","secondary_income|killtime",false,false,true,false,true,false,"Yes, I started working on MTurk after the recession.","I was not active before the recession."]
["NYHZYE9RABEZ74ZTEY80VWQZ6HYBMXBYXGC72A30","Thu Jan 28 02:53:04 GMT 2010",188,"Female",1977,"Graduate degree, Masters","$75,000 - $99,999","married","Yes, 2 children",4,"Asian",null,"India","50-100 HITs per week","0-3 months","$20-$50 per week","More than 40 hours per week","fruitful|secondary_income|unemployed",true,false,false,false,true,true,"I started working on MTurk after the recession but the recession has nothing to do with my decision","I was not active before the recession."]
["NYHZYE9RABEZ74ZTEY80QXRZSCSHFWA44XDTDB60","Fri Jan 29 11:56:15 GMT 2010",188,"Male",1986,"Graduate degree, Masters","Less than $10,000","single","No","5+","Asian",null,"Sweden","20-50 HITs per week","0-3 months","$1-$5 per week","8-20 hours per week","secondary_income",false,false,false,false,true,false,"I started working on MTurk after the recession but the recession has nothing to do with my decision","I work the same amount of time on MTurk as before."]
["NYHZYE9RABEZ74ZTEY80HXSZW9HNTZKZP7ZEGZY0","Tue Feb 02 17:18:46 GMT 2010",188,"Male",1989,"Bachelors degree","Less than $10,000","single","No",2,"Other",null,"India","200-500 HITs per week","0-3 months","$5-$10 per week","8-20 hours per week","fruitful|secondary_income",true,false,false,false,true,false,"No, I was active before the recession.","I was not active before the recession.","To earn money from my free time ."]
["NYHZYE9RABEZ74ZTEY805ZC8ZT8SD1ATK8ZKNZGZ","Thu Feb 04 15:59:11 GMT 2010",188,"Female",1983,"Some college, no degree","Less than $10,000","single","No","5+","Other","Non-US","Argentina","5-10 HITs per week","0-3 months","Less than $1 per week","2-4 hours per week","secondary_income|entertainment|unemployed",false,true,false,false,true,true,"I started working on MTurk after the recession but the recession has nothing to do with my decision","I was not active before the recession."]
["NYHZYE9RABEZ74ZTEY80KY6Z2WN5H2YPTY4F4XG0","Thu Feb 04 18:00:32 GMT 2010",188,"Female",1984,"Graduate degree, Masters","$25,000 - $39,499","single","No",1,"White","Utah","United States","50-100 HITs per week","6-12 months","$5-$10 per week","4-8 hours per week","fruitful|secondary_income",true,false,false,false,true,false,"I started working on MTurk after the recession but the recession has nothing to do with my decision","I work more on MTurk after the recession."]
["NYHZYE9RABEZ74ZTEY802YVZG8ZGKR0Z1VYVA0R0","Wed Feb 10 14:20:43 GMT 2010",188,"Male",1972,"Some college, no degree","$75,000 - $99,999","cohabitating","Yes, 2 children",4,"White","Texas","United States","50-100 HITs per week","0-3 months","$5-$10 per week","4-8 hours per week","fruitful|primary_income|entertainment",true,true,false,true,false,false,"Yes, I started working on MTurk after the recession.","I was not active before the recession.","I need steady income"]
["NYHZYE9RABEZ74ZTEY809ZSZR1ND8Y4ZYJN0M0MZ","Sun Jan 31 11:20:54 GMT 2010",189,"Male",1982,"Bachelors degree","Less than $10,000","married","No",4,"Asian",null,"India","50-100 HITs per week","0-3 months","$1-$5 per week","8-20 hours per week","fruitful|primary_income|entertainment|unemployed",true,true,false,true,false,true,"Yes, I started working on MTurk after the recession.","I work more on MTurk after the recession."]
["NYHZYE9RABEZ74ZTEY80F92G3DDDVYXZQM0CY3VZ","Tue Feb 02 05:52:35 GMT 2010",189,"Female",1987,"Graduate degree, Masters","Less than $10,000","single","No","5+","Asian","New York","United States","10-20 HITs per week","6-12 months","$1-$5 per week","1-2 hours per week","fruitful|secondary_income|killtime",true,false,true,false,true,false,"No, I was active before the recession.","I work more on MTurk after the recession.","I love to see the money grows!"]
["NYHZYE9RABEZ74ZTEY80JYFGH85T7YFZXWZ8WZQ0","Thu Jan 28 04:59:53 GMT 2010",190,"Male",1987,"Bachelors degree","$15,000 - $24,999","single","No",4,"Asian","Non-US","India","50-100 HITs per week","1-2 years","$10-$20 per week","20-40 hours per week","fruitful|primary_income",true,false,false,true,false,false,"I started working on MTurk after the recession but the recession has nothing to do with my decision","I work the same amount of time on MTurk as before."]
["NYHZYE9RABEZ74ZTEY80FWYZ7FZCARXZK18613N0","Sun Jan 31 03:15:12 GMT 2010",190,"Male",1979,"Some college, no degree","$25,000 - $39,499","married","No",2,"White","Texas","United States","1000-5000 HITs per week","0-3 months","$20-$50 per week","8-20 hours per week","secondary_income",false,false,false,false,true,false,"I started working on MTurk after the recession but the recession has nothing to do with my decision","I work the same amount of time on MTurk as before.","I participate because of the time freedom, ability to discern between good jobs and to use some different skillsets, or take advantage of my expert skillsets"]
["NYHZYE9RABEZ74ZTEY80MVVZ4CY46RS8TNYF8X90","Fri Feb 05 11:37:23 GMT 2010",190,"Male",1983,"Bachelors degree","$15,000 - $24,999","single","No",2,"White","Non-US","Spain","1-5 HITs per week","3-6 months","Less than $1 per week",null,"secondary_income",false,false,false,false,true,false,"No, I was active before the recession.","I work the same amount of time on MTurk as before.","As I cannot get my money instead of changing it for an amazon gift card, IÂ´ll get my kindle by working here."]
["NYHZYE9RABEZ74ZTEY80BKFZMQ5J2BBZ0THRBWX0","Mon Feb 08 04:13:43 GMT 2010",190,"Female",1974,"Associates degree","$40,500 - $59,999","married","Yes, 1 child",2,"White","North Carolina","United States","50-100 HITs per week","2-4 years","$5-$10 per week","4-8 hours per week","fruitful|secondary_income|entertainment|unemployed",true,true,false,false,true,true,"No, I was active before the recession.","I work the same amount of time on MTurk as before."]
["NYHZYE9RABEZ74ZTEY80BZQ2PAXPB8PW14Z17BVZ","Wed Feb 10 06:41:17 GMT 2010",190,"Female",1989,"Some college, no degree","Less than $10,000","single","No",1,"White","California","United States","1-5 HITs per week","0-3 months","$1-$5 per week","1-2 hours per week","fruitful|secondary_income|unemployed",true,false,false,false,true,true,"I started working on MTurk after the recession but the recession has nothing to do with my decision","I was not active before the recession.","My hobby is collecting various trading cards. As I'm a college student with no real income, I'd like to raise some money for cards and supplies (such as sleeve protectors)."]
["NYHZYE9RABEZ74ZTEY8032Y8ZB9SJSEZ371HAX30","Fri Jan 29 17:51:34 GMT 2010",191,"Male",1985,"Some High School","Less than $10,000","single","No",4,"Asian",null,"India","5-10 HITs per week","3-6 months","$1-$5 per week","2-4 hours per week","primary_income|secondary_income|entertainment|unemployed",false,true,false,true,true,true,"Yes, I started working on MTurk after the recession.","I work less on MTurk after the recession.","mturk give money so i used it","no"]
["NYHZYE9RABEZ74ZTEY806ZVZP1SCEKB0VBWFN0BZ","Sat Jan 30 17:57:39 GMT 2010",191,"Male",1981,"Bachelors degree","$15,000 - $24,999","single","No",4,"White",null,"Italy","10-20 HITs per week","3-6 months","Less than $1 per week","Less than 1 hour per week","fruitful|entertainment",true,true,false,false,false,false,"No, I was active before the recession.","I was not active before the recession."]
["NYHZYE9RABEZ74ZTEY80RZ7ZMEWMXJ3ZWDNB6RH0","Tue Feb 02 22:48:08 GMT 2010",191,"Female",1954,"Some college, no degree","$100,000 - $149,999","cohabitating","No",2,"White","Illinois","United States","1-5 HITs per week","1-2 years","Less than $1 per week","1-2 hours per week","fruitful|killtime|entertainment",true,true,true,false,false,false,"No, I was active before the recession.","I work the same amount of time on MTurk as before."]
["NYHZYE9RABEZ74ZTEY807HVZVEY06WDZJHM9YBQZ","Thu Feb 11 14:33:11 GMT 2010",191,"Female",1977,"Graduate degree, Masters","$75,000 - $99,999","married","Yes, 2 children",4,"White","Kentucky","United States","500-1000 HITs per week","3-6 months","$10-$20 per week","4-8 hours per week","fruitful",true,false,false,false,false,false,"Yes, I started working on MTurk after the recession.","I was not active before the recession.","I can't sit still so instead of playing online card games while i watch TV i Turk and make some cash."]
["NYHZYE9RABEZ74ZTEY80GK3GZBRDTHK2YZ9JB2B0","Thu Feb 11 15:19:33 GMT 2010",191,"Male",1983,"Bachelors degree","Less than $10,000","single","No","5+","Asian",null,"Philippines","10-20 HITs per week","0-3 months","Less than $1 per week","2-4 hours per week","secondary_income",false,false,false,false,true,false,"I started working on MTurk after the recession but the recession has nothing to do with my decision","I was not active before the recession.","I do it for money for my games, usually facebook.","It's nice here at TURK."]
["NYHZYE9RABEZ74ZTEY80QZJ6K2Z0VZR80KWJ9K3Z","Thu Jan 28 19:53:53 GMT 2010",192,"Male",1952,"Graduate degree, Masters","$100,000 - $149,999","married","Yes, 3 children",3,"White","California","United States","200-500 HITs per week","0-3 months","$10-$20 per week","4-8 hours per week","fruitful|secondary_income|unemployed",true,false,false,false,true,true,"Yes, I started working on MTurk after the recession.","I was not active before the recession."]
["NYHZYE9RABEZ74ZTEY80MXW6Z2YVVZHPRDYEBWVZ","Thu Feb 11 12:16:35 GMT 2010",192,"Male",1986,"Graduate degree, Masters","$75,000 - $99,999","single","No",4,"Asian","Non-US","India","1000-5000 HITs per week","3-6 months","$50-$100 per week","20-40 hours per week","fruitful|primary_income|secondary_income",true,false,false,true,true,false,"Yes, I started working on MTurk after the recession.","I work more on MTurk after the recession."]
["NYHZYE9RABEZ74ZTEY80BZ68Y3YHVWVZPY46TXFZ","Thu Jan 28 05:50:00 GMT 2010",193,"Male",1979,"Some college, no degree","$25,000 - $39,499","cohabitating","No",2,"Other","Washington","United States","20-50 HITs per week","6-12 months","$5-$10 per week","1-2 hours per week","fruitful|secondary_income",true,false,false,false,true,false,"Yes, I started working on MTurk after the recession.","I was not active before the recession.","\"Turking\" is a decent way of making supplemental income during off hours."]
["NYHZYE9RABEZ74ZTEY80DZ0Y0BSNKKERJXYSETW0","Sun Jan 31 02:16:13 GMT 2010",193,"Male",1983,"Graduate degree, Masters","$15,000 - $24,999","single","No","5+","Asian",null,"India","200-500 HITs per week","1-2 years","$10-$20 per week","8-20 hours per week","fruitful|secondary_income|entertainment",true,true,false,false,true,false,"No, I was active before the recession.","I work the same amount of time on MTurk as before.",null,"Short, little, nice survey, need more like this"]
["NYHZYE9RABEZ74ZTEY806BAZNYYJRB7ZW2DMS00Z","Tue Feb 02 14:13:27 GMT 2010",193,"Female",1971,"Associates degree","$25,000 - $39,499","divorced","No",3,"Other","Florida","United States","20-50 HITs per week","6-12 months","$1-$5 per week","1-2 hours per week","secondary_income",{"$f":"ISNUMBER(FIND(\"fruitful\", $R451))","v":false},{"$f":"ISNUMBER(FIND(\"entertainment\", $R451))","v":false},{"$f":"ISNUMBER(FIND(\"killtime\", $R451))","v":false},{"$f":"ISNUMBER(FIND(\"primary_income\", $R451))","v":false},{"$f":"ISNUMBER(FIND(\"secondary_income\", $R451))","v":true},{"$f":"ISNUMBER(FIND(\"unemployed\", R451))","v":false},"Yes, I started working on MTurk after the recession.","I work more on MTurk after the recession."]
["NYHZYE9RABEZ74ZTEY80TB8ZVSMKBA361T0FKWCZ","Mon Feb 08 16:17:05 GMT 2010",193,"Female",1970,"Some college, no degree","$15,000 - $24,999","married","Yes, 3 children",4,"White","Georgia","United States","10-20 HITs per week","1-2 years","$1-$5 per week","4-8 hours per week","secondary_income",false,false,false,false,true,false,"No, I was active before the recession.","I work the same amount of time on MTurk as before.","I use my Turk income to help pay for my horse expenses."]
["NYHZYE9RABEZ74ZTEY803SHAYZZ3ATERR9Y2EW10","Fri Jan 29 11:45:24 GMT 2010",194,"Male",1986,"Bachelors degree","$10,000 - $14,999","single","No",2,"Asian",null,"India","50-100 HITs per week","3-6 months","$1-$5 per week","8-20 hours per week","secondary_income",false,false,false,false,true,false,"No, I was active before the recession.","I was not active before the recession.",null,"Thanks for the HIT."]
["NYHZYE9RABEZ74ZTEY803Z2ZT88WFXTEZYZY0SBZ","Mon Feb 08 16:12:05 GMT 2010",194,"Male",1985,"Associates degree","$60,000 - $74,999","single","No",4,"Asian","Indiana","India","10-20 HITs per week","1-2 years","$20-$50 per week","4-8 hours per week","primary_income",false,false,false,true,false,false,"Yes, I started working on MTurk after the recession.","I was not active before the recession."]
["NYHZYE9RABEZ74ZTEY80WJ1ZWGHKMXMCYNMXXHTZ","Thu Jan 28 02:42:05 GMT 2010",195,"Female",1954,"Bachelors degree","$25,000 - $39,499","single","No",3,"White","Illinois","United States","20-50 HITs per week","0-3 months","$1-$5 per week","4-8 hours per week","fruitful|secondary_income|killtime|entertainment|unemployed",true,true,true,false,true,true,"I started working on MTurk after the recession but the recession has nothing to do with my decision","I was not active before the recession."]
["NYHZYE9RABEZ74ZTEY80Z9YZ3DGSRZVZGS154X4Z","Thu Jan 28 09:24:10 GMT 2010",195,"Male",1976,"Bachelors degree","Less than $10,000","single","No",3,"Asian","Pennsylvania","United States","20-50 HITs per week","2-4 years","$1-$5 per week","8-20 hours per week","primary_income|secondary_income",false,false,false,true,true,false,"No, I was active before the recession.","I work more on MTurk after the recession."]
["NYHZYE9RABEZ74ZTEY80EJEZN2YEDWPZ71DXPHF0","Thu Jan 28 13:45:17 GMT 2010",195,"Male",1984,"Bachelors degree","Less than $10,000","married","No",4,"Asian","Non-US","India","10-20 HITs per week","0-3 months","Less than $1 per week","4-8 hours per week","fruitful",true,false,false,false,false,false,"I started working on MTurk after the recession but the recession has nothing to do with my decision","I work less on MTurk after the recession.",null,"good and simple survey."]
["NYHZYE9RABEZ74ZTEY80W9MZWN9X5AYZT4ZA7YH0","Thu Jan 28 14:32:00 GMT 2010",195,"Female",1988,"Graduate degree, Masters","$25,000 - $39,499","single","No",3,"Asian",null,"India","200-500 HITs per week","0-3 months","$5-$10 per week","8-20 hours per week","unemployed",false,false,false,false,false,true,"No, I was active before the recession.","I work the same amount of time on MTurk as before.",null,"It is very helpfull to me."]
["NYHZYE9RABEZ74ZTEY80YKNMWN87FZPEX8WHHXM0","Fri Jan 29 04:19:18 GMT 2010",195,"Female",1984,"Bachelors degree","Less than $10,000","married","No",2,"White",null,"India","10-20 HITs per week","6-12 months","$1-$5 per week","4-8 hours per week","primary_income",false,false,false,true,false,false,"No, I was active before the recession.","I work the same amount of time on MTurk as before."]
["NYHZYE9RABEZ74ZTEY80AZSETYZ8FWGMVGC99YW0","Fri Jan 29 07:17:19 GMT 2010",195,"Female",1984,"Associates degree","$25,000 - $39,499","divorced","No",2,"White","Tennessee","United States","200-500 HITs per week","3-6 months","$20-$50 per week","8-20 hours per week","fruitful|primary_income|entertainment|unemployed",true,true,false,true,false,true,"I started working on MTurk after the recession but the recession has nothing to do with my decision","I was not active before the recession."]
["NYHZYE9RABEZ74ZTEY80GREATWZ91SKZN9ZWSYJ0","Sat Jan 30 06:53:17 GMT 2010",195,"Male",1983,"Graduate degree, Masters","$10,000 - $14,999","single","No",4,"Asian",null,"India","50-100 HITs per week","0-3 months","$5-$10 per week","20-40 hours per week","fruitful",true,false,false,false,false,false,"I started working on MTurk after the recession but the recession has nothing to do with my decision","I work more on MTurk after the recession.","I am enjoying working on Mturk honestly."]
["NYHZYE9RABEZ74ZTEY802AFZXEY8BZZZWTZ90XBZ","Tue Feb 02 05:37:18 GMT 2010",195,"Male",1969,"Bachelors degree","$25,000 - $39,499","divorced","No",1,"Asian","Oregon","United States","50-100 HITs per week","6-12 months","$1-$5 per week","4-8 hours per week","fruitful|secondary_income",true,false,false,false,true,false,"I started working on MTurk after the recession but the recession has nothing to do with my decision","I work the same amount of time on MTurk as before."]
["NYHZYE9RABEZ74ZTEY80YZ4ZNXZH233ZW1Z50Y30","Fri Jan 29 07:18:13 GMT 2010",196,"Male",1980,"Some college, no degree","$10,000 - $14,999","single","No",2,"White","Idaho","United States","50-100 HITs per week","0-3 months","$5-$10 per week","1-2 hours per week","fruitful|secondary_income|unemployed",true,false,false,false,true,true,"Yes, I started working on MTurk after the recession.","I work more on MTurk after the recession."]
["NYHZYE9RABEZ74ZTEY806WSPKPYXNHSZTVZDKWC0","Sat Feb 06 18:40:23 GMT 2010",196,"Female",1988,"Some college, no degree","Less than $10,000","cohabitating","No",2,"Asian","Pennsylvania","United States","10-20 HITs per week","3-6 months","$1-$5 per week","2-4 hours per week","fruitful|secondary_income|killtime|unemployed",true,false,true,false,true,true,"I started working on MTurk after the recession but the recession has nothing to do with my decision","I was not active before the recession.","I participate on Mechanical Turk because I am a full-time student that likes to earn some cash on the side.  It helps in the long-run.  I could always use more spending cash.","This is a unique survey.  I haven't answered a survey like this at all in the past 3 months that I've been doing these."]
["NYHZYE9RABEZ74ZTEY809AXRM5ZTNWNEMXZX58NZ","Sun Feb 07 09:09:35 GMT 2010",196,"Male",1991,"High School Graduate","$100,000 - $149,999","single","No",4,"White","Massachusetts","United States","500-1000 HITs per week","0-3 months","$10-$20 per week","8-20 hours per week","fruitful|secondary_income",true,false,false,false,true,false,"I started working on MTurk after the recession but the recession has nothing to do with my decision","I was not active before the recession.","I'm a broke college student in Boston; any money I can get helps!"]
["NYHZYE9RABEZ74ZTEY80SJ8JGWXCD96W7VSA6XAZ","Thu Feb 11 14:20:29 GMT 2010",196,"Male",1978,"Graduate degree, Masters","$40,500 - $59,999","cohabitating","No",2,"White","Non-US","Spain","5-10 HITs per week","1-2 years","$1-$5 per week","1-2 hours per week","fruitful|secondary_income",true,false,false,false,true,false,"No, I was active before the recession.","I work less on MTurk after the recession."]
["NYHZYE9RABEZ74ZTEY804ZMZQMCQ0VSE2DY1MXP0","Fri Jan 29 12:52:09 GMT 2010",197,"Male",1985,"Bachelors degree","Less than $10,000","single","No","5+","Other",null,"India","20-50 HITs per week","0-3 months","$1-$5 per week","Less than 1 hour per week","fruitful",true,false,false,false,false,false,"I started working on MTurk after the recession but the recession has nothing to do with my decision","I work the same amount of time on MTurk as before.",null,"thanks for your help...."]
["NYHZYE9RABEZ74ZTEY80294Z42ZPC3QMY8Z6G3J0","Mon Feb 08 06:51:30 GMT 2010",197,"Female",1986,"Some college, no degree","$15,000 - $24,999","cohabitating","No",2,"White","New York","United States","10-20 HITs per week","1-2 years","$1-$5 per week","2-4 hours per week","fruitful|secondary_income|unemployed",true,false,false,false,true,true,"Yes, I started working on MTurk after the recession.","I work more on MTurk after the recession."]
["NYHZYE9RABEZ74ZTEY801WGZ6HNS4YTZGSY9D1VZ","Wed Feb 10 18:42:24 GMT 2010",197,"Male",1974,"Some college, no degree","$300,000 or more","married","Yes, 3 children","5+","White","Ohio","United States","50-100 HITs per week","0-3 months","$5-$10 per week","2-4 hours per week","fruitful|secondary_income|killtime|entertainment",true,true,true,false,true,false,"I started working on MTurk after the recession but the recession has nothing to do with my decision","I was not active before the recession.","Nothing further.  Just killing time.","No comments at this time."]
["NYHZYE9RABEZ74ZTEY80597ZK6ZNMW1Y2YRW6ZJ0","Thu Jan 28 02:07:04 GMT 2010",198,"Male",1967,"Some college, no degree","$40,500 - $59,999","married","Yes, 2 children",3,"White","Kentucky","United States","10-20 HITs per week","6-12 months","$1-$5 per week","1-2 hours per week","secondary_income|entertainment",false,true,false,false,true,false,"No, I was active before the recession.","I work more on MTurk after the recession."]
["NYHZYE9RABEZ74ZTEY8009RZKBWR9RPZVAZDEY5Z","Thu Jan 28 03:01:33 GMT 2010",198,"Female",1962,"Graduate degree, Masters","$60,000 - $74,999","married","Yes, 2 children",4,"Asian",null,"India","500-1000 HITs per week","3-6 months","$20-$50 per week","8-20 hours per week","fruitful",true,false,false,false,false,false,"I started working on MTurk after the recession but the recession has nothing to do with my decision","I work the same amount of time on MTurk as before."]
["NYHZYE9RABEZ74ZTEY80N8FYR6YH8XXZSYYHBRQ0","Sat Jan 30 20:38:08 GMT 2010",198,"Female",1981,"Graduate degree, Masters","Less than $10,000","single","No",1,"White","Non-US","Italy","5-10 HITs per week","0-3 months","$1-$5 per week","1-2 hours per week","fruitful|secondary_income|unemployed",true,false,false,false,true,true,"I started working on MTurk after the recession but the recession has nothing to do with my decision","I was not active before the recession."]
["NYHZYE9RABEZ74ZTEY80TYAZNVZYNARWZGZ63HS0","Tue Feb 09 21:07:27 GMT 2010",198,"Female",1956,"High School Graduate","$25,000 - $39,499","single","Yes, 1 child",3,"White","Michigan","United States","100-200 HITs per week","1-2 years","$1-$5 per week","2-4 hours per week","fruitful|secondary_income|killtime|entertainment",true,true,true,false,true,false,"Yes, I started working on MTurk after the recession.","I was not active before the recession."]
["NYHZYE9RABEZ74ZTEY80EADZQPZSQ12CT004CZ2Z","Thu Jan 28 05:17:29 GMT 2010",199,"Female",1976,"Bachelors degree","Less than $10,000","married","Yes, 2 children",4,"Asian",null,"Philippines","100-200 HITs per week","3-6 months","$20-$50 per week","More than 40 hours per week","primary_income|entertainment|unemployed",false,true,false,true,false,true,"Yes, I started working on MTurk after the recession.","I work the same amount of time on MTurk as before."]
["NYHZYE9RABEZ74ZTEY80D3VZ5BWQWK4M7Z4Z8B2Z","Thu Jan 28 06:28:01 GMT 2010",199,"Male",1990,"Bachelors degree","$40,500 - $59,999","single","No",4,"Asian",null,"India","100-200 HITs per week","1-2 years","$5-$10 per week","4-8 hours per week","fruitful|entertainment|unemployed",true,true,false,false,false,true,"No, I was active before the recession.","I work the same amount of time on MTurk as before."]
["NYHZYE9RABEZ74ZTEY80VWDZTTZ153N65XXNZXY0","Fri Jan 29 18:25:58 GMT 2010",199,"Male",1963,"Some college, no degree","$60,000 - $74,999","cohabitating","No",2,"White","Arkansas","United States","20-50 HITs per week","3-6 months","$10-$20 per week","2-4 hours per week","secondary_income",false,false,false,false,true,false,"I started working on MTurk after the recession but the recession has nothing to do with my decision","I work more on MTurk after the recession."]
["NYHZYE9RABEZ74ZTEY80MZ8PYDZVFX9RV8Y0XSD0","Sat Feb 06 13:08:22 GMT 2010",199,"Male",1973,"Graduate degree, Masters","$25,000 - $39,499","married","Yes, 1 child",3,"White",null,"Russia","1-5 HITs per week","6-12 months","Less than $1 per week","Less than 1 hour per week","entertainment",false,true,false,false,false,false,"I started working on MTurk after the recession but the recession has nothing to do with my decision","I was not active before the recession.","Perhaps, I will use it as Requester in the future","Add 'irregular' to choices about MTurk use stat"]
["NYHZYE9RABEZ74ZTEY80X8SZHD13ZWWZZ8WAWW3Z","Wed Feb 10 05:17:57 GMT 2010",199,"Male",1982,"Bachelors degree","$40,500 - $59,999","married","No",2,"Asian","Maryland","United States","20-50 HITs per week","0-3 months","$1-$5 per week","2-4 hours per week","killtime",false,false,true,false,false,false,"I started working on MTurk after the recession but the recession has nothing to do with my decision","I was not active before the recession."]
["NYHZYE9RABEZ74ZTEY801W52HNZZCTNWQGYHV32Z","Fri Feb 12 10:29:21 GMT 2010",199,"Male",1976,"Bachelors degree","$25,000 - $39,499","married","Yes, 3 children","5+","Asian",null,"Malaysia","200-500 HITs per week","2-4 years","$5-$10 per week","4-8 hours per week","fruitful|secondary_income|killtime",true,false,true,false,true,false,"No, I was active before the recession.","I work more on MTurk after the recession."]
["NYHZYE9RABEZ74ZTEY80YWTY1PY1MZMZ6MZ8D130","Fri Feb 12 13:30:19 GMT 2010",199,"Male",1968,"Graduate degree, Masters","$75,000 - $99,999","married","Yes, 2 children",4,"White","South Dakota","United States","50-100 HITs per week","1-2 years","$5-$10 per week","1-2 hours per week","fruitful|secondary_income|entertainment",true,true,false,false,true,false,"Yes, I started working on MTurk after the recession.","I was not active before the recession."]
["NYHZYE9RABEZ74ZTEY80DJRP5PSBVWWZWHZW8ZMZ","Thu Jan 28 06:07:22 GMT 2010",200,"Male",1987,"Bachelors degree","$15,000 - $24,999","single","No",3,"Asian","Non-US","India","500-1000 HITs per week","6-12 months","$10-$20 per week","8-20 hours per week","unemployed",false,false,false,false,false,true,"I started working on MTurk after the recession but the recession has nothing to do with my decision","I work more on MTurk after the recession."]
["NYHZYE9RABEZ74ZTEY80DY7RP714XZM45SYGAXW0","Sat Jan 30 13:53:27 GMT 2010",200,"Male",1985,"Graduate degree, Masters","Less than $10,000","single","No",2,"Asian","Non-US","India","20-50 HITs per week","0-3 months","$5-$10 per week","1-2 hours per week","fruitful|secondary_income",true,false,false,false,true,false,"I started working on MTurk after the recession but the recession has nothing to do with my decision","I was not active before the recession."]
["NYHZYE9RABEZ74ZTEY80YT2ZVDYFR8DZ7P05XY1Z","Tue Feb 09 14:14:24 GMT 2010",200,"Male",1985,"Some college, no degree","Less than $10,000","single","No","5+","White","Non-US","Guatemala","50-100 HITs per week","1-2 years","$5-$10 per week","2-4 hours per week","entertainment",false,true,false,false,false,false,"No, I was active before the recession.","I work less on MTurk after the recession."]
["NYHZYE9RABEZ74ZTEY800WDZPPZMEYFRKRY9F82Z","Fri Feb 05 13:00:05 GMT 2010",201,"Male",1986,"Graduate degree, Masters","Less than $10,000","single","No",4,"Asian",null,"India","200-500 HITs per week","0-3 months","$10-$20 per week","8-20 hours per week","fruitful",true,false,false,false,false,false,"Yes, I started working on MTurk after the recession.","I was not active before the recession."]
["NYHZYE9RABEZ74ZTEY803XRZ0BW8Y984P75YBV0Z","Mon Feb 08 03:52:00 GMT 2010",201,"Female",1977,"Graduate degree, Doctorate","$100,000 - $149,999","single","No",1,"Asian","Arizona","United States","Less than 1 HIT per week","1-2 years","Less than $1 per week","Less than 1 hour per week","secondary_income",false,false,false,false,true,false,"Yes, I started working on MTurk after the recession.","I work more on MTurk after the recession."]
["NYHZYE9RABEZ74ZTEY805GHRS092AGBZMN5F6H0Z","Fri Feb 05 14:06:19 GMT 2010",202,"Male",1979,"Bachelors degree","$15,000 - $24,999","married","No",2,"Asian",null,"India","200-500 HITs per week","0-3 months","$1-$5 per week","4-8 hours per week","fruitful|secondary_income|entertainment",true,true,false,false,true,false,"I started working on MTurk after the recession but the recession has nothing to do with my decision","I was not active before the recession.","The income from this site complements my income from my full time job."]
["NYHZYE9RABEZ74ZTEY805WMJ7JY4AW0M37Y1YXTZ","Wed Feb 10 05:08:14 GMT 2010",202,"Male",1985,"Bachelors degree","Less than $10,000","single","No",3,{"$nulls":3},"1000-5000 HITs per week","1-2 years","$20-$50 per week","2-4 hours per week","unemployed",false,false,false,false,false,true,"Yes, I started working on MTurk after the recession.","I work more on MTurk after the recession."]
["NYHZYE9RABEZ74ZTEY80AYGT4FY54XVZ4XZ7AX60","Sat Jan 30 15:01:40 GMT 2010",203,"Male",1955,"Graduate degree, Masters","$10,000 - $14,999","married","Yes, 3 children","5+","Asian",null,"India","500-1000 HITs per week","0-3 months","$10-$20 per week","20-40 hours per week","fruitful",true,false,false,false,false,false,"I started working on MTurk after the recession but the recession has nothing to do with my decision","I was not active before the recession."]
["NYHZYE9RABEZ74ZTEY80NWE0H5ZAPXDZX2S4GZP0","Sun Jan 31 18:31:06 GMT 2010",203,"Female",1986,"Bachelors degree","$40,500 - $59,999","married","No",2,"White","Pennsylvania","United States","100-200 HITs per week","0-3 months","$5-$10 per week","4-8 hours per week","fruitful|secondary_income",true,false,false,false,true,false,"I started working on MTurk after the recession but the recession has nothing to do with my decision","I was not active before the recession.","It has become a rather addicting hobby, and I feel like I am getting something out of spending my time on the site."]
["NYHZYE9RABEZ74ZTEY80HY7ZYJZ9HGJ468ZD9XM0","Mon Feb 08 09:26:17 GMT 2010",203,"Male",1986,"Bachelors degree","Less than $10,000","single","No",3,"Asian","Non-US","India","100-200 HITs per week","3-6 months","$20-$50 per week","More than 40 hours per week","fruitful|unemployed",true,false,false,false,false,true,"Yes, I started working on MTurk after the recession.","I work more on MTurk after the recession.","Its a good way to earn some cash for unemployed like me. Recession killed mu future.","done"]
["NYHZYE9RABEZ74ZTEY80T1ATR0YZP99ZXTYC3WX0","Sun Jan 31 09:55:51 GMT 2010",204,"Male",1974,"Graduate degree, Masters","Less than $10,000","single","No",2,"Other","Non-US","India","500-1000 HITs per week","0-3 months","$10-$20 per week","1-2 hours per week","fruitful|killtime",true,false,true,false,false,false,"I started working on MTurk after the recession but the recession has nothing to do with my decision","I was not active before the recession."]
["NYHZYE9RABEZ74ZTEY80R1GZ4JY5BW68QP5XYYJ0","Mon Feb 01 21:35:18 GMT 2010",204,"Female",1982,"Some college, no degree","$40,500 - $59,999","married","No",2,"White","Texas","United States","5-10 HITs per week","6-12 months","$1-$5 per week","1-2 hours per week","secondary_income|entertainment",false,true,false,false,true,false,"I started working on MTurk after the recession but the recession has nothing to do with my decision","I was not active before the recession.","When I started I thought it would be a nice way to earn some extra pocket cash, but right now I am working with a goal in mind since my husband and I are taking a vacation at the end of the year.","I like working on MTurk I wish there was a way however to access more of the hits that are out there."]
["NYHZYE9RABEZ74ZTEY80MYWZK8Z1EWZR0M8BP0A0","Wed Feb 03 03:12:12 GMT 2010",204,"Female",1974,"Some college, no degree","$60,000 - $74,999","cohabitating","Yes, 2 children",4,"White",null,"Australia","20-50 HITs per week","0-3 months","$1-$5 per week","4-8 hours per week","fruitful|primary_income|killtime|entertainment|unemployed",true,true,true,true,false,true,"I started working on MTurk after the recession but the recession has nothing to do with my decision","I was not active before the recession.","Desperately looking for a way to earn some cash."]
["NYHZYE9RABEZ74ZTEY805HJZWQZGKK4ZMFYSVZX0","Mon Feb 08 19:35:18 GMT 2010",204,"Male",1994,"Some High School","$15,000 - $24,999","single","No",4,"White","Non-US","Spain","1-5 HITs per week","0-3 months","Less than $1 per week","Less than 1 hour per week",null,false,false,false,false,false,false,"Yes, I started working on MTurk after the recession.","I was not active before the recession.","I also learn English witn it","I love sports and Internet"]
["NYHZYE9RABEZ74ZTEY80QBWZTN4GPX8ZPK1EPXXZ","Wed Feb 10 05:12:21 GMT 2010",204,"Male",1980,"Graduate degree, Masters","Less than $10,000","single","No","5+","Asian","Non-US","India","5-10 HITs per week","3-6 months","Less than $1 per week","1-2 hours per week","fruitful",{"$f":"ISNUMBER(FIND(\"fruitful\", $R495))","v":true},false,false,false,false,false,"I started working on MTurk after the recession but the recession has nothing to do with my decision","I work the same amount of time on MTurk as before."]
["NYHZYE9RABEZ74ZTEY80KV9AGEX4RZCTRHZ4VX20","Thu Jan 28 04:49:55 GMT 2010",205,"Female",1972,"Bachelors degree","Less than $10,000","single","No","5+","Asian",null,"India","200-500 HITs per week","0-3 months","$10-$20 per week","20-40 hours per week","primary_income",false,false,false,true,false,false,"I started working on MTurk after the recession but the recession has nothing to do with my decision","I was not active before the recession."]
["NYHZYE9RABEZ74ZTEY809Z7C061MCWA80Z8WDZW0","Thu Jan 28 18:39:05 GMT 2010",205,"Male",1986,"Graduate degree, Masters","Less than $10,000","single","No","5+","Asian",null,"India","200-500 HITs per week","0-3 months","$20-$50 per week","20-40 hours per week","fruitful|primary_income|secondary_income|entertainment|unemployed",true,true,false,true,true,true,"No, I was active before the recession.","I work more on MTurk after the recession."]
["NYHZYE9RABEZ74ZTEY80CWDRY1RY0K26H78RPZB0","Wed Feb 03 20:15:09 GMT 2010",205,"Male",1966,"Associates degree","$15,000 - $24,999","single","No",2,"White","California","United States","20-50 HITs per week","0-3 months","$10-$20 per week","1-2 hours per week","primary_income|secondary_income",false,false,false,true,true,false,"Yes, I started working on MTurk after the recession.","I was not active before the recession.","Hours and sales down at my primary job, so I am always looking for opportunities."]
["NYHZYE9RABEZ74ZTEY80FY9ZXVSHKZQC7BZXYWW0","Mon Feb 08 07:43:23 GMT 2010",205,"Male",1982,"Some college, no degree","Less than $10,000","single","No",2,"Asian",null,"India","5-10 HITs per week","0-3 months","Less than $1 per week","Less than 1 hour per week","secondary_income|entertainment",false,true,false,false,true,false,"I started working on MTurk after the recession but the recession has nothing to do with my decision","I work the same amount of time on MTurk as before.","earn money"]
["NYHZYE9RABEZ74ZTEY80DXVT1MZ8ZA5Z32Y2YZG0","Fri Feb 12 10:46:01 GMT 2010",205,"Male",1951,"Graduate degree, Masters","$75,000 - $99,999","single","Yes, 1 child",3,"White","North Carolina","United States","200-500 HITs per week","1-2 years","$10-$20 per week","2-4 hours per week","secondary_income|killtime",false,false,true,false,true,false,"No, I was active before the recession.","I work the same amount of time on MTurk as before."]
["NYHZYE9RABEZ74ZTEY801ZREPYYFM1JZM8YJPJT0","Thu Jan 28 08:35:30 GMT 2010",206,"Female",1987,"Bachelors degree","Less than $10,000","married","No",4,"Asian",null,"India","20-50 HITs per week","0-3 months","$1-$5 per week","1-2 hours per week","fruitful",true,false,false,false,false,false,"I started working on MTurk after the recession but the recession has nothing to do with my decision","I work the same amount of time on MTurk as before.","I AM HOUSEWIFE SO THIS IS THE BEST WAY I CAN EARN SOME MONEY.","good hit"]
["NYHZYE9RABEZ74ZTEY80SYXZYAYV73W2R7DFQ8Q0","Mon Feb 08 19:19:08 GMT 2010",206,"Male",1988,"High School Graduate","$25,000 - $39,499","single","No",4,"White",null,"Romania","200-500 HITs per week","3-6 months","$20-$50 per week","4-8 hours per week","secondary_income|killtime",false,false,true,false,true,false,"I started working on MTurk after the recession but the recession has nothing to do with my decision","I was not active before the recession."]
["NYHZYE9RABEZ74ZTEY80Y8CPWWZ28Y0ZYWZKP2Y0","Thu Feb 11 19:34:14 GMT 2010",206,"Female",1985,"Bachelors degree","$60,000 - $74,999","single","No",4,"Asian",null,"India","20-50 HITs per week","0-3 months","$1-$5 per week","2-4 hours per week","fruitful|secondary_income|entertainment",true,true,false,false,true,false,"I started working on MTurk after the recession but the recession has nothing to do with my decision","I was not active before the recession."]
["NYHZYE9RABEZ74ZTEY803RTZS6N7AKNMX3ZQ8WAZ","Thu Jan 28 01:59:09 GMT 2010",207,"Female",1979,"Some college, no degree","$60,000 - $74,999","single","No",3,"White","Virginia","United States","20-50 HITs per week","2-4 years","$1-$5 per week","1-2 hours per week","fruitful|secondary_income",true,false,false,false,true,false,"No, I was active before the recession.","I work more on MTurk after the recession."]
["NYHZYE9RABEZ74ZTEY80WJEZRBZ4G0EMXFRE1V90","Fri Jan 29 12:34:41 GMT 2010",207,"Male",1954,"Graduate degree, Masters","$40,500 - $59,999","divorced","Yes, 2 children",1,"White","Illinois","United States","200-500 HITs per week","3-6 months","$10-$20 per week","8-20 hours per week","fruitful",true,false,false,false,false,false,"Yes, I started working on MTurk after the recession.","I work the same amount of time on MTurk as before."]
["NYHZYE9RABEZ74ZTEY80KJ3ZVSZDGB2ZXSH4H19Z","Tue Feb 02 17:14:24 GMT 2010",207,"Male",1972,"Bachelors degree","$60,000 - $74,999","single","No",1,"White","Massachusetts","United States","100-200 HITs per week","3-6 months","$1-$5 per week","4-8 hours per week","killtime",false,false,true,false,false,false,"No, I was active before the recession.","I work the same amount of time on MTurk as before."]
["NYHZYE9RABEZ74ZTEY80BYBZZQSVCWNMRWZS69QZ","Sat Feb 06 23:41:11 GMT 2010",207,"Male",1988,"Bachelors degree","Less than $10,000","cohabitating","No","5+","White",null,"Croatia","1-5 HITs per week","0-3 months","Less than $1 per week","Less than 1 hour per week","fruitful",true,false,false,false,false,false,"Yes, I started working on MTurk after the recession.","I was not active before the recession."]
["NYHZYE9RABEZ74ZTEY80QTYZKSYA4JAWW1ZACZ7Z","Sun Feb 07 20:33:24 GMT 2010",207,"Male",1985,"Some college, no degree","Less than $10,000","single","No",3,"Asian","Non-US","India","50-100 HITs per week","6-12 months",null,"More than 40 hours per week","fruitful|secondary_income",true,false,false,false,true,false,null,"I was not active before the recession."]
["NYHZYE9RABEZ74ZTEY801WFTVWM3R9PZ6DZR7KP0","Fri Jan 29 08:44:09 GMT 2010",208,"Female",1966,"Bachelors degree","$40,500 - $59,999","single","No",1,"Black","New York","United States","1-5 HITs per week","0-3 months","Less than $1 per week","2-4 hours per week","killtime|unemployed",false,false,true,false,false,true,"Yes, I started working on MTurk after the recession.","I was not active before the recession.","I feel completing many of the tasks help me retain my skills."]
["NYHZYE9RABEZ74ZTEY8061MZX6RGPWVEP7WZFYCZ","Sun Jan 31 21:04:06 GMT 2010",208,"Male",1977,"Graduate degree, Doctorate","$100,000 - $149,999","married","Yes, 1 child",3,"White","Missouri","United States","10-20 HITs per week","1-2 years","$1-$5 per week","2-4 hours per week","fruitful",true,false,false,false,false,false,"I started working on MTurk after the recession but the recession has nothing to do with my decision","I work the same amount of time on MTurk as before."]
["NYHZYE9RABEZ74ZTEY80T1GJKTSB8ANZJJCYNJW0","Sun Jan 31 22:36:27 GMT 2010",208,"Male",1982,"Some High School","$15,000 - $24,999","married","Yes, 2 children",4,"White",null,"United Kingdom","200-500 HITs per week","0-3 months","$5-$10 per week","4-8 hours per week","secondary_income",false,false,false,false,true,false,"I started working on MTurk after the recession but the recession has nothing to do with my decision","I was not active before the recession.","buy some books for the kids."]
["NYHZYE9RABEZ74ZTEY80XYFGXJGXGW9ZGVNM18HZ","Thu Feb 04 06:33:59 GMT 2010",208,"Male",1986,"Graduate degree, Masters","Less than $10,000","married","No",4,"Asian",null,"India","20-50 HITs per week","0-3 months","$5-$10 per week","2-4 hours per week","fruitful",true,false,false,false,false,false,"I started working on MTurk after the recession but the recession has nothing to do with my decision","I was not active before the recession."]
["NYHZYE9RABEZ74ZTEY80GX1YZV8ZGGBY57Y79JEZ","Mon Feb 08 22:55:22 GMT 2010",208,"Male",1981,"Bachelors degree","Less than $10,000","single","Yes, 1 child",3,"Asian",null,"Philippines","100-200 HITs per week","2-4 years","$5-$10 per week","4-8 hours per week","fruitful",true,false,false,false,false,false,"No, I was active before the recession.","I was not active before the recession."]
["NYHZYE9RABEZ74ZTEY80SZSZS4ZFKW2MRVY7NY2Z","Thu Jan 28 17:43:51 GMT 2010",209,"Male",1982,"Bachelors degree","$40,500 - $59,999","single","No",2,"Asian","Non-US","India","20-50 HITs per week","0-3 months","$5-$10 per week","4-8 hours per week","fruitful",true,false,false,false,false,false,"Yes, I started working on MTurk after the recession.","I work less on MTurk after the recession.",null,"No comments"]
["NYHZYE9RABEZ74ZTEY80CKQT5YZY1ZCZVQZZNY80","Wed Feb 10 05:32:08 GMT 2010",209,"Female",1971,"Some college, no degree","$40,500 - $59,999","married","Yes, 1 child",3,"Asian","California","United States","50-100 HITs per week","6-12 months","$1-$5 per week","4-8 hours per week","fruitful|secondary_income|entertainment",true,{"$f":"ISNUMBER(FIND(\"entertainment\", $R515))","v":true},{"$f":"ISNUMBER(FIND(\"killtime\", $R515))","v":false},{"$f":"ISNUMBER(FIND(\"primary_income\", $R515))","v":false},{"$f":"ISNUMBER(FIND(\"secondary_income\", $R515))","v":true},{"$f":"ISNUMBER(FIND(\"unemployed\", R515))","v":false},"Yes, I started working on MTurk after the recession.","I was not active before the recession."]
["NYHZYE9RABEZ74ZTEY800ZZZSV4GJY9YQ2Z18Z3Z","Thu Jan 28 06:30:43 GMT 2010",210,"Male",1978,"Graduate degree, Masters","Less than $10,000","married","Yes, 1 child",3,"Asian",null,"India","100-200 HITs per week","0-3 months","$1-$5 per week","2-4 hours per week","secondary_income",false,false,false,false,true,false,"I started working on MTurk after the recession but the recession has nothing to do with my decision","I was not active before the recession."]
["NYHZYE9RABEZ74ZTEY80T8XZS3HVVG38YJ97QYF0","Fri Jan 29 07:14:07 GMT 2010",210,"Male",1981,"Some college, no degree","$25,000 - $39,499","married","No",2,"White","Alabama","United States","200-500 HITs per week","1-2 years","$100-$200 per week","20-40 hours per week","fruitful|primary_income|secondary_income",true,false,false,true,true,false,"No, I was active before the recession.","I work the same amount of time on MTurk as before."]
["NYHZYE9RABEZ74ZTEY808X2YR1ZTGTYT6FYSHK50","Sun Jan 31 15:55:37 GMT 2010",211,"Female",1945,"Some college, no degree","$40,500 - $59,999","divorced","Yes, 4 or more children",2,"White","Ohio","United States","10-20 HITs per week","3-6 months","$10-$20 per week","8-20 hours per week","fruitful",true,false,false,false,false,false,"Yes, I started working on MTurk after the recession.","I was not active before the recession."]
["NYHZYE9RABEZ74ZTEY80BYPJYAG4BT0WSDYN8WJZ","Mon Feb 01 10:23:29 GMT 2010",211,"Female",1987,"Graduate degree, Masters","$10,000 - $14,999","single","No",3,"Asian","Non-US","India","10-20 HITs per week","3-6 months","$5-$10 per week","8-20 hours per week","fruitful|unemployed",true,false,false,false,false,true,"I started working on MTurk after the recession but the recession has nothing to do with my decision","I work the same amount of time on MTurk as before.","fun to work with","good"]
["NYHZYE9RABEZ74ZTEY80G9MZRDS128YAH5YK0Y8Z","Mon Feb 08 04:40:34 GMT 2010",211,"Male",1983,"Graduate degree, Masters","$25,000 - $39,499","single","No",1,"White","Alabama","United States","20-50 HITs per week","3-6 months","$1-$5 per week","1-2 hours per week","fruitful|secondary_income|killtime",true,false,true,false,true,false,"I started working on MTurk after the recession but the recession has nothing to do with my decision","I was not active before the recession."]
["NYHZYE9RABEZ74ZTEY805XJZZ4YZQS7Z6YGTSZS0","Thu Feb 11 14:58:44 GMT 2010",211,"Male",1982,"Some college, no degree","$25,000 - $39,499","married","Yes, 1 child",3,"Asian","Non-US","Philippines","50-100 HITs per week","0-3 months","$10-$20 per week","8-20 hours per week","secondary_income",false,false,false,false,true,false,"I started working on MTurk after the recession but the recession has nothing to do with my decision","I work the same amount of time on MTurk as before."]
["NYHZYE9RABEZ74ZTEY80C1NZX90AWZ8TXJZG5JWZ","Fri Feb 12 10:29:06 GMT 2010",211,"Male",1980,"Bachelors degree","Less than $10,000","single","No",4,"Asian","Non-US","India","200-500 HITs per week","3-6 months","$10-$20 per week","4-8 hours per week","unemployed",false,false,false,false,false,true,"Yes, I started working on MTurk after the recession.","I work more on MTurk after the recession.","very good mechanical turk and very nice one"]
["NYHZYE9RABEZ74ZTEY801Y3Z4ZDQN284QCM6GY0Z","Thu Jan 28 07:37:28 GMT 2010",212,"Female",1989,"High School Graduate","$10,000 - $14,999","single","No",3,"Asian","Ohio","United States","200-500 HITs per week","3-6 months","$1-$5 per week","8-20 hours per week","primary_income",false,false,false,true,false,false,"Yes, I started working on MTurk after the recession.","I work more on MTurk after the recession.","No more elaborate description","no thanks"]
["NYHZYE9RABEZ74ZTEY80PY14YNZHVW0ZNRG6DJWZ","Fri Jan 29 19:37:54 GMT 2010",212,"Male",1956,"Bachelors degree","$40,500 - $59,999","divorced","Yes, 1 child",1,"White","Pennsylvania","United States","5-10 HITs per week","6-12 months","Less than $1 per week","Less than 1 hour per week","fruitful|secondary_income|entertainment",true,true,false,false,true,false,"Yes, I started working on MTurk after the recession.","I work the same amount of time on MTurk as before."]
["NYHZYE9RABEZ74ZTEY80KW42TYWZ93AZK2YANGY0","Sun Jan 31 17:15:44 GMT 2010",212,"Male",1980,"Graduate degree, Masters","$10,000 - $14,999","married","Yes, 1 child","5+","Asian",null,"Pakistan","1-5 HITs per week","6-12 months","Less than $1 per week","1-2 hours per week","fruitful",true,false,false,false,false,false,"Yes, I started working on MTurk after the recession.","I work more on MTurk after the recession.",null,"the money paid is very less. minimum pay out should be 5 cents."]
["NYHZYE9RABEZ74ZTEY80QSTT6KZ9X3TW5HNQ9Z0Z","Mon Feb 01 07:38:05 GMT 2010",212,"Female",1985,"Bachelors degree","Less than $10,000","married","Yes, 1 child","5+","Asian",null,"India","5-10 HITs per week","0-3 months","$5-$10 per week","2-4 hours per week","fruitful",true,false,false,false,false,false,"I started working on MTurk after the recession but the recession has nothing to do with my decision","I was not active before the recession."]
["NYHZYE9RABEZ74ZTEY80W3MEZEMVNW6PG6Z0JXSZ","Mon Feb 08 04:07:54 GMT 2010",212,"Male",1987,"Some college, no degree","$25,000 - $39,499","cohabitating","No",2,"White","South Carolina","United States","100-200 HITs per week","6-12 months","$5-$10 per week","2-4 hours per week","fruitful",true,false,false,false,false,false,"Yes, I started working on MTurk after the recession.","I work the same amount of time on MTurk as before."]
["NYHZYE9RABEZ74ZTEY801X2Z6M8NRWEZSXD1YXFZ","Mon Feb 08 16:06:58 GMT 2010",212,"Female",1969,"Bachelors degree","$100,000 - $149,999","single","No",3,"White","Illinois","United States","10-20 HITs per week","0-3 months","$1-$5 per week","1-2 hours per week","secondary_income|unemployed",false,false,false,false,true,true,"I started working on MTurk after the recession but the recession has nothing to do with my decision","I was not active before the recession.","I'm a writer, and working for MT is a good way to get a mental break, but still make money."]
["NYHZYE9RABEZ74ZTEY809Z8CY4ZY0VSPT6D7K990","Tue Feb 09 11:40:23 GMT 2010",212,"Female",1982,"Graduate degree, Masters","$25,000 - $39,499","married","Yes, 1 child",3,"Asian",null,"India","20-50 HITs per week","0-3 months","$1-$5 per week","2-4 hours per week","fruitful|secondary_income|entertainment",true,true,false,false,true,false,"I started working on MTurk after the recession but the recession has nothing to do with my decision","I was not active before the recession.","I'd like to make some extra money,and also keep myself occupied."]
["NYHZYE9RABEZ74ZTEY8091HZSSYBFGVM18Z7CW0Z","Wed Feb 10 06:17:54 GMT 2010",212,"Male",1986,"Bachelors degree","$40,500 - $59,999","single","No","5+","Other","California","United States","200-500 HITs per week","0-3 months","$10-$20 per week","4-8 hours per week","fruitful|unemployed",true,false,false,false,false,true,"Yes, I started working on MTurk after the recession.","I work the same amount of time on MTurk as before."]
["NYHZYE9RABEZ74ZTEY80N34ZQE80SBZJXF9A2JC0","Thu Jan 28 08:12:39 GMT 2010",213,"Male",1990,"Bachelors degree","Less than $10,000","single","No",4,"Asian","Non-US","India","50-100 HITs per week","0-3 months","$5-$10 per week","20-40 hours per week","fruitful|unemployed",true,false,false,false,false,true,"I started working on MTurk after the recession but the recession has nothing to do with my decision","I work the same amount of time on MTurk as before.","i do it because i like it and at the same time it fullfills my some desires. as i am unemployed and a student so it provide me ways to have a good amount as pocket money and i need not to take it from my parents."]
["NYHZYE9RABEZ74ZTEY803ZWAGSDJ51FZ2JZAK980","Fri Jan 29 14:13:38 GMT 2010",213,"Male",1980,"Bachelors degree","$10,000 - $14,999","single","No",4,"Asian","Non-US","India","20-50 HITs per week","1-2 years","$20-$50 per week","20-40 hours per week","primary_income",false,false,false,true,false,false,"Yes, I started working on MTurk after the recession.","I work less on MTurk after the recession.","it mechanical very excellent company and i like in the company","it is very excellent hit so please again sent me your hits"]
["NYHZYE9RABEZ74ZTEY80F3W0HX9R6TRZYNYEKR8Z","Fri Feb 05 07:47:09 GMT 2010",213,"Male",1979,"High School Graduate","$10,000 - $14,999","married","No","5+","Asian","Non-US","India","1000-5000 HITs per week","1-2 years","$10-$20 per week","8-20 hours per week","fruitful|primary_income|entertainment|unemployed",true,true,false,true,false,true,"No, I was active before the recession.","I work more on MTurk after the recession."]
["NYHZYE9RABEZ74ZTEY80G0ECR4CF0ZS8MRYV7JJ0","Fri Feb 12 14:50:43 GMT 2010",213,"Male",1990,"Bachelors degree","Less than $10,000","single","No",4,"Asian","Non-US","India","1-5 HITs per week","0-3 months","$1-$5 per week","2-4 hours per week","fruitful|secondary_income|entertainment",true,true,false,false,true,false,"I started working on MTurk after the recession but the recession has nothing to do with my decision","I was not active before the recession."]
["NYHZYE9RABEZ74ZTEY80BHNZYG526VVANBZYRXG0","Thu Jan 28 06:39:27 GMT 2010",214,"Male",1985,"Bachelors degree","$40,500 - $59,999","single","No",1,"White","Arizona","United States","50-100 HITs per week","6-12 months","$50-$100 per week","2-4 hours per week","fruitful|killtime|entertainment|unemployed",true,true,true,false,false,true,"No, I was active before the recession.","I work the same amount of time on MTurk as before.","Entrepreneur... take any money I can get right now, I don't sleep much as it is, so when I don't have something super important going on, I jump on here!"]
["NYHZYE9RABEZ74ZTEY80DSWZ1KRNGG4YHFZPHR4Z","Thu Jan 28 23:04:52 GMT 2010",214,"Female",1942,"Graduate degree, Masters","$100,000 - $149,999","divorced","No",1,"White","Louisiana","United States","100-200 HITs per week","6-12 months","$10-$20 per week","4-8 hours per week","fruitful|entertainment",true,true,false,false,false,false,"I started working on MTurk after the recession but the recession has nothing to do with my decision","I work the same amount of time on MTurk as before.","I look forward to the variety of HITs every day and try to see if I can earn a self-imposed limit.  It's like a competition with myself."]
["NYHZYE9RABEZ74ZTEY801AJZXAYQEYCZ5MHF9YTZ","Mon Feb 08 04:24:33 GMT 2010",214,"Male",1970,"High School Graduate","$15,000 - $24,999","single","Yes, 2 children",4,"Asian",null,"India","200-500 HITs per week","3-6 months","$10-$20 per week","8-20 hours per week","fruitful",true,false,false,false,false,false,"No, I was active before the recession.","I was not active before the recession."]
["NYHZYE9RABEZ74ZTEY80MZ6ZVDZEBGFGS2Z2B12Z","Tue Feb 09 13:36:56 GMT 2010",214,"Male",1968,"Some college, no degree","$60,000 - $74,999","married","Yes, 2 children",3,"Black","Ohio","United States","200-500 HITs per week","6-12 months","$5-$10 per week","4-8 hours per week","fruitful|primary_income|secondary_income",true,false,false,true,true,false,"I started working on MTurk after the recession but the recession has nothing to do with my decision","I was not active before the recession."]
["NYHZYE9RABEZ74ZTEY80XKQCPMGKGZ700W8DSAG0","Thu Jan 28 15:39:48 GMT 2010",215,"Female",1982,"Associates degree","$25,000 - $39,499","single","Yes, 2 children",3,"Black","New York","United States","10-20 HITs per week","0-3 months","$1-$5 per week","2-4 hours per week","fruitful|secondary_income|killtime|entertainment|unemployed",true,true,true,false,true,true,"I started working on MTurk after the recession but the recession has nothing to do with my decision","I was not active before the recession.","I signed up primarily to make money to buy brownie points for Sorority Life. But I do enjoy the tasks and often find myself losing track of time while doing them"]
["NYHZYE9RABEZ74ZTEY80PKN8HZZJ7XRZ52ZB8W3Z","Tue Feb 02 18:21:00 GMT 2010",215,"Male",1978,"Bachelors degree","$40,500 - $59,999","single","No",2,"White","New Jersey","United States","5-10 HITs per week","1-2 years","$1-$5 per week","1-2 hours per week","fruitful|secondary_income|killtime|entertainment",true,true,true,false,true,false,"Yes, I started working on MTurk after the recession.","I work the same amount of time on MTurk as before.","It's a great way to spend some free time and make a couple of cents since every little bit helps.  I also do it because sometimes by the end of the month, I have enough to pay my portion of the electric bill using the money I made here.","thank you very much for the HIT opportunity, I hope my answers helped in your research."]
["NYHZYE9RABEZ74ZTEY80BKBZMJGGZJ3G64H0RWRZ","Sun Feb 07 11:26:15 GMT 2010",215,"Male",1988,"Graduate degree, Masters","$10,000 - $14,999","single","No",4,"Asian","Non-US","India","20-50 HITs per week","0-3 months","Less than $1 per week","More than 40 hours per week","fruitful|primary_income|secondary_income",true,false,false,true,true,false,"I started working on MTurk after the recession but the recession has nothing to do with my decision","I was not active before the recession.","i love making money in a legal way"]
["NYHZYE9RABEZ74ZTEY80EAC06WHRRWX4X0ZMHS8Z","Mon Feb 08 17:09:10 GMT 2010",215,"Female",1964,"Some college, no degree","$25,000 - $39,499","married","No",2,"White","West Virginia","United States","5-10 HITs per week","1-2 years",null,"1-2 hours per week","fruitful|secondary_income|entertainment",true,true,false,false,true,false,"No, I was active before the recession.","I work more on MTurk after the recession.","I use the money to buy things on Amazon"]
["NYHZYE9RABEZ74ZTEY80TA4ZSE8B8SFZWZZWTYTZ","Wed Feb 10 05:29:36 GMT 2010",215,"Male",1978,"Associates degree","$40,500 - $59,999","single","No",4,"Other","Texas","United States","1-5 HITs per week","3-6 months","$1-$5 per week","1-2 hours per week","fruitful|unemployed",true,false,false,false,false,true,"Yes, I started working on MTurk after the recession.","I was not active before the recession.","It is one of the rare places on the internet to work legitimately. A lot of people have extra time to spare and would rather make money than waste it on nothing."]
["NYHZYE9RABEZ74ZTEY80YZ4ZZ0YQGYTPT18Y3HXZ","Wed Feb 10 16:50:09 GMT 2010",215,"Male",1987,"Some college, no degree","$10,000 - $14,999","single","No",4,"Asian","Ohio","United States","1-5 HITs per week","0-3 months","$1-$5 per week","8-20 hours per week","primary_income",false,false,false,true,false,false,"No, I was active before the recession.","I work more on MTurk after the recession.","For primary income purpose","no thanks"]
["NYHZYE9RABEZ74ZTEY80GH6Z1JY1NX5ZTAYNMV60","Thu Jan 28 00:12:20 GMT 2010",216,"Female",1962,"Some college, no degree","Less than $10,000","married","No",2,"White","Non-US","India","500-1000 HITs per week","0-3 months","$20-$50 per week","8-20 hours per week","primary_income|unemployed",false,false,false,true,false,true,"Yes, I started working on MTurk after the recession.","I was not active before the recession."]
["NYHZYE9RABEZ74ZTEY80TG84JGYJ030P09GBY0KZ","Thu Jan 28 03:02:20 GMT 2010",216,"Male",1963,"Bachelors degree","$75,000 - $99,999","married","Yes, 3 children","5+","White","Maryland","United States","500-1000 HITs per week","3-6 months","$20-$50 per week","8-20 hours per week","primary_income",false,false,false,true,false,false,"Yes, I started working on MTurk after the recession.","I was not active before the recession."]
["NYHZYE9RABEZ74ZTEY80F9VZTG009H5ZRQX1STBZ","Fri Jan 29 18:54:42 GMT 2010",216,"Female",1982,"Graduate degree, Masters","$40,500 - $59,999","married","Yes, 2 children",4,"White","Non-US","Poland","10-20 HITs per week","1-2 years","$1-$5 per week","1-2 hours per week","fruitful|secondary_income|killtime",true,false,true,false,true,false,"No, I was active before the recession.","I work less on MTurk after the recession."]
["NYHZYE9RABEZ74ZTEY806ZEJ0YY6AWZZ7N5ZFR2Z","Sat Jan 30 17:30:37 GMT 2010",216,"Male",1988,"Bachelors degree","Less than $10,000","single","No","5+","Asian",null,"India","100-200 HITs per week","0-3 months","$1-$5 per week","4-8 hours per week","fruitful|secondary_income|entertainment",true,true,false,false,true,false,"I started working on MTurk after the recession but the recession has nothing to do with my decision","I was not active before the recession.","i need pocket money.im a college student and in my spare time its good to work on mturk,as it gives valuable money for the same","Thanks and please mail me back for any such surveys.....!!"]
["NYHZYE9RABEZ74ZTEY80XXXRZJYRCVETTFY1K250","Sun Jan 31 09:55:51 GMT 2010",216,"Male",1989,"Bachelors degree","Less than $10,000","single","No",4,"Asian","Non-US","India","10-20 HITs per week","0-3 months","$5-$10 per week","8-20 hours per week","fruitful",true,false,false,false,false,false,"I started working on MTurk after the recession but the recession has nothing to do with my decision","I was not active before the recession.","it's fun","ok"]
["NYHZYE9RABEZ74ZTEY80SRCWZ8YBSZKCX3HEATG0","Fri Feb 05 11:10:20 GMT 2010",216,"Male",1986,"Bachelors degree","Less than $10,000","single","No",2,"Asian","Non-US","India","20-50 HITs per week","6-12 months","$1-$5 per week","8-20 hours per week","fruitful|primary_income|secondary_income",true,false,false,true,true,false,"I started working on MTurk after the recession but the recession has nothing to do with my decision","I work the same amount of time on MTurk as before.","This is the only site without any spam helps people to earn money. It helps me to complete my basic needs. Thanks to mturk.","i was interested in doing hits like surveys and captcha image hits. could you please provide those hits personally to me. i was eager to do it. thank you."]
["NYHZYE9RABEZ74ZTEY80HZ8ZXJYN5WCR4VYNKWG0","Sun Feb 07 17:25:24 GMT 2010",217,"Female",1986,"Bachelors degree","$15,000 - $24,999","engaged","No",2,"White","Kentucky","United States","50-100 HITs per week","0-3 months","$1-$5 per week","20-40 hours per week","fruitful|unemployed",true,false,false,false,false,true,"I started working on MTurk after the recession but the recession has nothing to do with my decision","I was not active before the recession.","I am unemployed and need a way to make a little extra money so instead of spending all my time watching tv and wondering what can I do."]
["NYHZYE9RABEZ74ZTEY80AZRZ5J5A9WQZWVY0NW30","Mon Feb 08 19:18:30 GMT 2010",217,"Male",1979,"Some college, no degree","Less than $10,000","single","No",1,"White","Ohio","United States","200-500 HITs per week","0-3 months","$50-$100 per week","20-40 hours per week","primary_income|unemployed",false,false,false,true,false,true,"I started working on MTurk after the recession but the recession has nothing to do with my decision","I was not active before the recession."]
["NYHZYE9RABEZ74ZTEY80HZ6MX0YBNHG4N0DBXYPZ","Thu Jan 28 04:49:55 GMT 2010",218,"Male",1975,"Bachelors degree","$60,000 - $74,999","married","Yes, 1 child",3,"White","Washington","United States","5-10 HITs per week","0-3 months","$1-$5 per week","1-2 hours per week","fruitful|secondary_income|killtime|entertainment",true,true,true,false,true,false,"I started working on MTurk after the recession but the recession has nothing to do with my decision","I work the same amount of time on MTurk as before.","I recently learned about it and I'm trying it out in a way"]
["NYHZYE9RABEZ74ZTEY80JZQZ1R1A2Z74WX575SZ0","Thu Jan 28 16:41:16 GMT 2010",218,"Male",1988,"Some college, no degree","Less than $10,000","single","No",4,"Other","Non-US","India","20-50 HITs per week","0-3 months","$5-$10 per week","4-8 hours per week","unemployed",false,false,false,false,false,true,"I started working on MTurk after the recession but the recession has nothing to do with my decision","I work less on MTurk after the recession.","this is a very gud site.... helping me and all","this is very good site ... \r\nall will like and understand easily"]
["NYHZYE9RABEZ74ZTEY809ZCZRYZPS2723Z53TYWZ","Fri Jan 29 21:02:41 GMT 2010",218,"Female",1984,"Graduate degree, Masters","$10,000 - $14,999","married","No",2,"White",null,"Romania","20-50 HITs per week","0-3 months","$1-$5 per week","1-2 hours per week","secondary_income",false,false,false,false,true,false,"I started working on MTurk after the recession but the recession has nothing to do with my decision","I was not active before the recession.","Need income to pay for mini-games I play on the internet social networks (like Facebook's Sorority Life)"]
["NYHZYE9RABEZ74ZTEY80XHPZK981VW4ZTBYT8X80","Mon Feb 08 12:02:18 GMT 2010",218,"Female",1982,"Graduate degree, Masters","$40,500 - $59,999","cohabitating","No",2,"White","Oregon","United States","200-500 HITs per week","3-6 months","$20-$50 per week","4-8 hours per week","fruitful|secondary_income|unemployed",true,false,false,false,true,true,"Yes, I started working on MTurk after the recession.","I was not active before the recession.","I am an underemployed freelancer, and in addition to whatever change I earn here, it keeps me sharp to do a little work on my off days."]
["NYHZYE9RABEZ74ZTEY80W13MSM8ANZTCXM1FDZQZ","Thu Jan 28 23:24:20 GMT 2010",219,"Female",1984,"Bachelors degree","$75,000 - $99,999","cohabitating","No",2,"White","Indiana","United States","20-50 HITs per week","1-2 years","$1-$5 per week","1-2 hours per week","secondary_income|killtime",false,false,true,false,true,false,"No, I was active before the recession.","I work the same amount of time on MTurk as before."]
["NYHZYE9RABEZ74ZTEY803KFTXEXT1RGZ2WDZ6X20","Sat Jan 30 07:03:40 GMT 2010",219,"Male",1985,"Graduate degree, Masters","$15,000 - $24,999","married","No",2,"Asian","Non-US","India","50-100 HITs per week","0-3 months","$5-$10 per week","8-20 hours per week","fruitful",true,false,false,false,false,false,"Yes, I started working on MTurk after the recession.","I work more on MTurk after the recession.","to earn money by sitting at the home."]
["NYHZYE9RABEZ74ZTEY80ZW4ZRBYK49T6GVWWBA40","Tue Feb 09 09:58:33 GMT 2010",219,"Male",1980,"Bachelors degree","Less than $10,000","married","Yes, 1 child",3,"Asian",null,"India","5-10 HITs per week","0-3 months","Less than $1 per week","2-4 hours per week","secondary_income",{"$f":"ISNUMBER(FIND(\"fruitful\", $R559))","v":false},false,false,false,true,false,"I started working on MTurk after the recession but the recession has nothing to do with my decision","I work the same amount of time on MTurk as before."]
["NYHZYE9RABEZ74ZTEY80CK6J7W5V39FZTWYA6TZ0","Thu Feb 11 14:22:11 GMT 2010",219,"Male",1969,"Graduate degree, Masters","$15,000 - $24,999","married","Yes, 3 children","5+","Other",null,"India","500-1000 HITs per week","1-2 years","$50-$100 per week","20-40 hours per week","fruitful|primary_income",true,false,false,true,false,false,"No, I was active before the recession.","I work the same amount of time on MTurk as before."]
["NYHZYE9RABEZ74ZTEY80XWJRPP5RMW4Z4MZC0WPZ","Thu Jan 28 03:36:24 GMT 2010",220,"Male",1988,"Bachelors degree","Less than $10,000","single","No","5+","Asian",null,"India","200-500 HITs per week","3-6 months","$20-$50 per week","20-40 hours per week","fruitful|secondary_income|unemployed",true,false,false,false,true,true,"I started working on MTurk after the recession but the recession has nothing to do with my decision","I work the same amount of time on MTurk as before.",null,"I like this task."]
["NYHZYE9RABEZ74ZTEY808W5GSA16DZ2Z4CC1HJQ0","Thu Jan 28 16:43:06 GMT 2010",220,"Female",1981,"Bachelors degree","Less than $10,000","married","Yes, 1 child",3,"Asian",null,"India","100-200 HITs per week","0-3 months","Less than $1 per week","8-20 hours per week","fruitful|secondary_income|entertainment|unemployed",true,true,false,false,true,true,"I started working on MTurk after the recession but the recession has nothing to do with my decision","I work the same amount of time on MTurk as before."]
["NYHZYE9RABEZ74ZTEY80SW4ZSTYGBXPYK8Y438Q0","Fri Jan 29 04:26:19 GMT 2010",220,"Female",1972,"Graduate degree, Masters","$60,000 - $74,999","married","Yes, 2 children",2,"White","New Hampshire","United States","5-10 HITs per week","2-4 years","Less than $1 per week","Less than 1 hour per week","fruitful|killtime|entertainment",true,true,true,false,false,false,"No, I was active before the recession.","I work the same amount of time on MTurk as before."]
["NYHZYE9RABEZ74ZTEY80WXKZZX4YHA22XH55JBH0","Fri Jan 29 08:16:13 GMT 2010",220,"Male",1987,"Bachelors degree","$40,500 - $59,999","single","No","5+","Asian",null,"Philippines","20-50 HITs per week","0-3 months","$1-$5 per week","4-8 hours per week","fruitful|killtime|entertainment|unemployed",true,true,true,false,false,true,"No, I was active before the recession.","I work more on MTurk after the recession.","My initial wants is to have a money to buy expensive item in the game on Facebook.","Mechanical Turk seems fun and i want to prove to every body it wil give me enough time to have good income..."]
["NYHZYE9RABEZ74ZTEY8070YZVTZTFBX0R2YM5YWZ","Fri Jan 29 12:29:19 GMT 2010",220,"Male",1984,"Graduate degree, Masters","$10,000 - $14,999","married",null,2,"Asian",null,"India","20-50 HITs per week","0-3 months","$10-$20 per week","2-4 hours per week","fruitful|entertainment",true,true,false,false,false,false,"I started working on MTurk after the recession but the recession has nothing to do with my decision","I work the same amount of time on MTurk as before.","its a great way to contribute as workforce with the skills I have in my free time."]
["NYHZYE9RABEZ74ZTEY80SW1RX653G83ZSMZWXX8Z","Fri Feb 05 02:07:39 GMT 2010",220,"Male",1989,"Graduate degree, Doctorate","$15,000 - $24,999","single","No",1,"Asian","California","United States","20-50 HITs per week","0-3 months","$1-$5 per week","1-2 hours per week","fruitful",true,false,false,false,false,false,"I started working on MTurk after the recession but the recession has nothing to do with my decision","I work the same amount of time on MTurk as before.","I would like to earn some quick and easy cash besides doing nothing in my spare time.","I like MTurk because it actually helps me kill some time."]
["NYHZYE9RABEZ74ZTEY80XXXC7TRPZB4ZRE0EFBVZ","Wed Feb 10 22:34:55 GMT 2010",220,"Male",1987,"Bachelors degree","$10,000 - $14,999","single","No",4,"Asian","Non-US","India","50-100 HITs per week","0-3 months","$1-$5 per week","20-40 hours per week","fruitful|secondary_income",true,false,false,false,true,false,"I started working on MTurk after the recession but the recession has nothing to do with my decision","I work the same amount of time on MTurk as before."]
["NYHZYE9RABEZ74ZTEY80AHXG0B4HGX4ZW1N0RXH0","Thu Jan 28 13:14:35 GMT 2010",221,"Female",1984,"Bachelors degree","$25,000 - $39,499","single","No",1,"Asian","New York","United States","10-20 HITs per week","0-3 months","$5-$10 per week","4-8 hours per week","fruitful|secondary_income",true,false,false,false,true,false,"I started working on MTurk after the recession but the recession has nothing to do with my decision","I was not active before the recession.","I use this money to buy things that I want, so I don't have to make room in my budget for this money."]
["NYHZYE9RABEZ74ZTEY809SSZXJZ9ZZEZVNG5HRNZ","Thu Jan 28 16:34:15 GMT 2010",221,"Male",1986,"Graduate degree, Masters","Less than $10,000","single","No","5+","Asian","Non-US","India","200-500 HITs per week","0-3 months","$10-$20 per week","8-20 hours per week","fruitful|unemployed",true,false,false,false,false,true,"Yes, I started working on MTurk after the recession.","I work more on MTurk after the recession.",null,"this very nice opinion survey"]
["NYHZYE9RABEZ74ZTEY80RZEZHFZ4ZR5ZSPRHJXC0","Thu Jan 28 21:27:15 GMT 2010",221,"Female",1973,"Bachelors degree","$75,000 - $99,999","divorced","Yes, 1 child",2,"White",null,"Switzerland","50-100 HITs per week","1-2 years","$1-$5 per week","4-8 hours per week","secondary_income|unemployed",false,false,false,false,true,true,"No, I was active before the recession.","I work the same amount of time on MTurk as before."]
["NYHZYE9RABEZ74ZTEY80KWGZ1PYRMZCZGP095KZZ","Thu Jan 28 22:55:28 GMT 2010",221,"Female",1969,"Bachelors degree","$75,000 - $99,999","married","Yes, 1 child",3,"Other","North Dakota","United States","200-500 HITs per week","0-3 months","$5-$10 per week","8-20 hours per week","fruitful|secondary_income",true,false,false,false,true,false,"Yes, I started working on MTurk after the recession.","I was not active before the recession.","Honestly, I was doing ChaCha for extra cash. They dropped their query from 3 cents to 2 cents per transactions. So, I was on the lookout for another way to make money via the internet at home.","Interesting that it took a lot of searching to find an opportunity such as this. I love it so far!"]
["NYHZYE9RABEZ74ZTEY80RYBZVB8MJYGA6RWX5Y9Z","Thu Jan 28 00:26:42 GMT 2010",222,"Female",1982,"Some college, no degree","$15,000 - $24,999","married","No",2,"White","Arkansas","United States","1000-5000 HITs per week","0-3 months","$20-$50 per week","20-40 hours per week","primary_income",false,false,false,true,false,false,"I started working on MTurk after the recession but the recession has nothing to do with my decision","I was not active before the recession."]
["NYHZYE9RABEZ74ZTEY801V6ZNEGHZ99ZTFRPFZ2Z","Sat Jan 30 16:58:58 GMT 2010",222,"Female",1981,"Bachelors degree","$15,000 - $24,999","single","No","5+","Asian",null,"Philippines","5-10 HITs per week","0-3 months","Less than $1 per week","1-2 hours per week","fruitful|killtime|entertainment",true,true,true,false,false,false,"I started working on MTurk after the recession but the recession has nothing to do with my decision","I was not active before the recession."]
["NYHZYE9RABEZ74ZTEY80GVYC4VXSXXNZ6KYA8ZX0","Sun Jan 31 17:32:13 GMT 2010",222,"Male",1980,"Bachelors degree","$40,500 - $59,999","separated","No",2,"White","North Carolina","United States","5-10 HITs per week","0-3 months","$1-$5 per week","2-4 hours per week","fruitful|entertainment",true,true,false,false,false,false,"Yes, I started working on MTurk after the recession.","I work more on MTurk after the recession.","I would like to purchase items on Amazon.com, but have a hard time justifying their expense as money is tight."]
["NYHZYE9RABEZ74ZTEY8051FZ7PZS3RY4068MK2J0","Thu Jan 28 14:53:43 GMT 2010",223,"Female",1959,"Bachelors degree","$100,000 - $149,999","cohabitating","Yes, 3 children",4,"White",null,"Netherlands","100-200 HITs per week","0-3 months","$5-$10 per week","4-8 hours per week","secondary_income|entertainment|unemployed",false,true,false,false,true,true,"I started working on MTurk after the recession but the recession has nothing to do with my decision","I was not active before the recession."]
["NYHZYE9RABEZ74ZTEY80VXP6Z1ZG6Z4ZYX4ZBZ1Z","Tue Feb 02 03:05:09 GMT 2010",223,"Male",1987,"Bachelors degree","Less than $10,000","single","No",1,"White","Ohio","United States","20-50 HITs per week","0-3 months","$5-$10 per week","4-8 hours per week","fruitful|primary_income|entertainment|unemployed",true,true,false,true,false,true,"I started working on MTurk after the recession but the recession has nothing to do with my decision","I work more on MTurk after the recession.",null,"A useful questionnaire."]
["NYHZYE9RABEZ74ZTEY802H5ZKBYYJ8KZMBYA1RDZ","Tue Feb 09 14:31:41 GMT 2010",223,"Male",1951,"Bachelors degree","$150,000 - $199,999","married","Yes, 2 children",3,"White","Non-US","Dem. Rep. of Congo","20-50 HITs per week","2-4 years","$1-$5 per week","2-4 hours per week","fruitful|killtime|entertainment",true,true,true,false,false,false,"No, I was active before the recession.","I work the same amount of time on MTurk as before.","I also find it a useful way to learn of some of the current social trends."]
["NYHZYE9RABEZ74ZTEY80D9DZWQDS6XDZ0652B1TZ","Thu Feb 11 14:27:04 GMT 2010",223,"Female",1964,"Associates degree","$25,000 - $39,499","married","Yes, 1 child",3,"White","Ohio","United States","20-50 HITs per week","1-2 years","$10-$20 per week","1-2 hours per week","fruitful|secondary_income",true,false,false,false,true,false,"No, I was active before the recession.","I work the same amount of time on MTurk as before."]
["NYHZYE9RABEZ74ZTEY80JY0WTFY8B0EAVG175HTZ","Fri Jan 29 04:01:49 GMT 2010",224,"Male",1983,"Bachelors degree","$25,000 - $39,499","single","No",2,"Asian",null,"India","50-100 HITs per week","6-12 months","$10-$20 per week","4-8 hours per week","fruitful|secondary_income|entertainment",true,{"$f":"ISNUMBER(FIND(\"entertainment\", $R579))","v":true},{"$f":"ISNUMBER(FIND(\"killtime\", $R579))","v":false},{"$f":"ISNUMBER(FIND(\"primary_income\", $R579))","v":false},{"$f":"ISNUMBER(FIND(\"secondary_income\", $R579))","v":true},{"$f":"ISNUMBER(FIND(\"unemployed\", R579))","v":false},"No, I was active before the recession.","I work more on MTurk after the recession.",null,"I love the hits posted on mturk!!!"]
["NYHZYE9RABEZ74ZTEY80BXKZZJREPKX0TS0408NZ","Sun Jan 31 06:21:02 GMT 2010",224,"Male",1985,"Bachelors degree","Less than $10,000","single","No",4,"Asian",null,"Nepal","1-5 HITs per week","0-3 months","Less than $1 per week","2-4 hours per week","fruitful",true,false,false,false,false,false,"I started working on MTurk after the recession but the recession has nothing to do with my decision","I was not active before the recession."]
["NYHZYE9RABEZ74ZTEY80MVT8R1YYBKM8PPY7XTEZ","Sun Jan 31 14:21:25 GMT 2010",224,"Female",1977,"Bachelors degree","$25,000 - $39,499","single","No",3,"White","Non-US","Romania","5-10 HITs per week","0-3 months","$1-$5 per week","1-2 hours per week","fruitful",true,false,false,false,false,false,"I started working on MTurk after the recession but the recession has nothing to do with my decision","I was not active before the recession."]
["NYHZYE9RABEZ74ZTEY80NHEZTZWNEYWZ6CZ99WFZ","Mon Feb 01 11:24:57 GMT 2010",224,"Female",1977,"Graduate degree, Masters","Less than $10,000","married","No",3,"Asian",null,"India","20-50 HITs per week","3-6 months","$1-$5 per week","4-8 hours per week","fruitful|secondary_income|unemployed",true,false,false,false,true,true,"Yes, I started working on MTurk after the recession.","I was not active before the recession.","To earn extra income, at the same time do some useful job for others."]
["NYHZYE9RABEZ74ZTEY80RT2CS5D59WPGS696HKJ0","Thu Feb 11 14:20:10 GMT 2010",224,"Female",1979,"Graduate degree, Masters",null,"single","No",1,"White","Maryland","United States","50-100 HITs per week","1-2 years","$5-$10 per week","2-4 hours per week","fruitful|secondary_income|killtime|entertainment",true,true,true,false,true,false,"No, I was active before the recession.","I work the same amount of time on MTurk as before."]
["NYHZYE9RABEZ74ZTEY805W4T35D7GYKTKYYF3KRZ","Fri Feb 12 11:44:21 GMT 2010",224,"Male",1963,"Graduate degree, Masters","$40,500 - $59,999","married","Yes, 3 children",4,"White","Iowa","United States","200-500 HITs per week","0-3 months","$10-$20 per week","4-8 hours per week","fruitful|secondary_income",true,false,false,false,true,false,"Yes, I started working on MTurk after the recession.","I was not active before the recession."]
["NYHZYE9RABEZ74ZTEY80MSK4WCZFRYWZ6SMYTJB0","Fri Jan 29 20:49:55 GMT 2010",225,"Female",1942,"Some college, no degree","$40,500 - $59,999","married","Yes, 2 children",2,"White","Ohio","United States","20-50 HITs per week","6-12 months","$1-$5 per week","4-8 hours per week","fruitful|secondary_income|entertainment",true,true,false,false,true,false,"No, I was active before the recession.","I work the same amount of time on MTurk as before.","I love to see the minimal amount that I make every day.  It sad but I get excited making $.33 when I use to make 25.00 a hour."]
["NYHZYE9RABEZ74ZTEY80MX8ZTWYXG88EGY1BKV80","Wed Feb 03 04:40:26 GMT 2010",225,"Female",1983,"Graduate degree, Masters","$40,500 - $59,999","married","Yes, 1 child",3,"White","Kansas","United States","50-100 HITs per week","0-3 months","$1-$5 per week","1-2 hours per week","fruitful|secondary_income|killtime|entertainment|unemployed",true,true,true,false,true,true,"Yes, I started working on MTurk after the recession.","I was not active before the recession."]
["NYHZYE9RABEZ74ZTEY80EKEZJMSF09GZRCYGXYV0","Sun Feb 07 02:49:16 GMT 2010",225,"Female",1976,"Bachelors degree","$40,500 - $59,999","married","Yes, 1 child",3,"White","Florida","United States","100-200 HITs per week","0-3 months","$10-$20 per week","4-8 hours per week","secondary_income|unemployed",false,false,false,false,true,true,"Yes, I started working on MTurk after the recession.","I was not active before the recession.","I am unemployed and need to make some money. Although it isn't that lucrative, I feel better about myself that I am doing something that pays money. Also, the tasks are usually somewhat fun for me to do."]
["NYHZYE9RABEZ74ZTEY80F8JPG6NHBJ7GJCZQCVM0","Thu Feb 11 14:24:34 GMT 2010",225,"Male",1987,"Bachelors degree","$10,000 - $14,999","single","No","5+","Asian","Non-US","India","1000-5000 HITs per week","1-2 years","$50-$100 per week","More than 40 hours per week","primary_income",false,false,false,true,false,false,"Yes, I started working on MTurk after the recession.","I work more on MTurk after the recession.","NOW I ONLY DOING THIS JOB ONLY...BECAUSE THIS IS 100% GENUINE ONLINE JOB COMPANY...........I REALLY LOVE THIS WEBSITE....ONE OF THE BEST MONEY MAKING WEBSITE ALSO...","THANKS FOR YOUR EASY HITS.........I REALLY LOVE MTURK...."]
["NYHZYE9RABEZ74ZTEY8068WYQCZ3XY52PMZFWW60","Fri Jan 29 12:30:46 GMT 2010",226,"Female",1969,"Associates degree","$75,000 - $99,999","married","Yes, 3 children",3,"White","Ohio","United States","500-1000 HITs per week","0-3 months","$20-$50 per week","8-20 hours per week","fruitful|entertainment",true,true,false,false,false,false,"I started working on MTurk after the recession but the recession has nothing to do with my decision","I was not active before the recession.","I have recently found out about this and I have to say I enjoy the challenge of some hits.  Besides it is like a game you can get paid for."]
["NYHZYE9RABEZ74ZTEY801T7WWNZPX2EZP6Z1QJD0","Fri Jan 29 22:43:03 GMT 2010",226,"Female",1985,"Bachelors degree","$75,000 - $99,999","single","No",3,"White","California","United States","100-200 HITs per week","0-3 months","$1-$5 per week","2-4 hours per week","fruitful|killtime|entertainment|unemployed",true,true,true,false,false,true,"Yes, I started working on MTurk after the recession.","I was not active before the recession."]
["NYHZYE9RABEZ74ZTEY802XTA4W8DVTRRHFYATYXZ","Sat Jan 30 15:26:47 GMT 2010",226,"Male",1986,"High School Graduate","Less than $10,000","single","No",4,"White",null,"Serbia","100-200 HITs per week","0-3 months","$5-$10 per week","8-20 hours per week","primary_income|secondary_income",false,false,false,true,true,false,"Yes, I started working on MTurk after the recession.","I work more on MTurk after the recession."]
["NYHZYE9RABEZ74ZTEY80BSNZMBZJWXDZS4ZCG270","Mon Feb 01 18:16:47 GMT 2010",226,"Male",1977,"Bachelors degree","Less than $10,000","married","Yes, 1 child",3,"Asian",null,"India","20-50 HITs per week","0-3 months","$1-$5 per week","8-20 hours per week","fruitful",true,false,false,false,false,false,"Yes, I started working on MTurk after the recession.","I work more on MTurk after the recession."]
["NYHZYE9RABEZ74ZTEY801WWJT2C52TPZMN9TY2EZ","Thu Feb 11 14:20:34 GMT 2010",226,"Female",1973,"High School Graduate","$15,000 - $24,999","cohabitating","Yes, 2 children",4,"White","Maine","United States","200-500 HITs per week","1-2 years","$5-$10 per week","4-8 hours per week","secondary_income|killtime",false,false,true,false,true,false,"No, I was active before the recession.","I work less on MTurk after the recession."]
["NYHZYE9RABEZ74ZTEY80AZ6MHJZ3K8QZJ3R78240","Thu Feb 11 14:25:36 GMT 2010",226,"Female",1978,"Bachelors degree","$75,000 - $99,999","divorced","Yes, 1 child",4,"White","Michigan","United States","100-200 HITs per week","3-6 months","$10-$20 per week","4-8 hours per week","fruitful|primary_income|secondary_income|unemployed",true,false,false,true,true,true,"I started working on MTurk after the recession but the recession has nothing to do with my decision","I work the same amount of time on MTurk as before.","It allows me to be at home with my child and take care of his needs, while still providing a small amount of income."]
["NYHZYE9RABEZ74ZTEY805YWZRG98AXATJZZHNJ6Z","Sat Jan 30 13:07:38 GMT 2010",227,"Male",1976,"Associates degree","$60,000 - $74,999","single","No",null,"Asian",null,"Australia","10-20 HITs per week","0-3 months","$1-$5 per week","2-4 hours per week","killtime",false,false,true,false,false,false,"I started working on MTurk after the recession but the recession has nothing to do with my decision","I was not active before the recession."]
["NYHZYE9RABEZ74ZTEY80GKQ0TEZSY3AEJH078ZS0","Mon Feb 08 07:49:09 GMT 2010",227,"Male",1987,"Bachelors degree","$25,000 - $39,499","single","No",3,"White",null,"Romania","10-20 HITs per week","3-6 months","$5-$10 per week","1-2 hours per week","fruitful|secondary_income|killtime",true,false,true,false,true,false,"I started working on MTurk after the recession but the recession has nothing to do with my decision","I was not active before the recession.","The money is not great because you would have to spend a lot of time to make enough of it but it's a fun way to kill time, and raise cash for different items on amazon.com."]
["NYHZYE9RABEZ74ZTEY809WRRZHZ0CZJZVA5ATJT0","Thu Jan 28 08:17:12 GMT 2010",228,"Male",1984,"Bachelors degree","$10,000 - $14,999","single","No",4,"Asian","Non-US",null,"20-50 HITs per week","3-6 months","$5-$10 per week","8-20 hours per week","unemployed",false,false,false,false,false,true,"Yes, I started working on MTurk after the recession.","I work more on MTurk after the recession.","The tasks are very easy to do. thats why i prefer this.","nice task. thank you"]
["NYHZYE9RABEZ74ZTEY80WYERYDZYPX72VPZ44WM0","Thu Jan 28 08:21:26 GMT 2010",228,"Male",1987,"Graduate degree, Masters","Less than $10,000","single","No",3,"Asian","Iowa","India","50-100 HITs per week","0-3 months","$1-$5 per week","4-8 hours per week","primary_income",false,false,false,true,false,false,"I started working on MTurk after the recession but the recession has nothing to do with my decision","I work the same amount of time on MTurk as before.",null,"Very easy to work in mturk."]
["NYHZYE9RABEZ74ZTEY800YBZ7PGZ7XV8V7YYTJGZ","Fri Jan 29 14:52:34 GMT 2010",228,"Female",1987,"Bachelors degree","Less than $10,000","married","Yes, 1 child",3,"Asian",null,"India","200-500 HITs per week","0-3 months","$10-$20 per week","4-8 hours per week","primary_income|unemployed",false,false,false,true,false,true,"Yes, I started working on MTurk after the recession.","I work more on MTurk after the recession.","it is useful to me very much and it is legitimate."]
["NYHZYE9RABEZ74ZTEY800GHZRFXBBXQZVVZF5J40","Sat Jan 30 18:23:41 GMT 2010",228,"Male",1986,"Bachelors degree","Less than $10,000","single","No",3,"Asian","Non-US","India","10-20 HITs per week","0-3 months","$1-$5 per week","4-8 hours per week","unemployed",false,false,false,false,false,true,"Yes, I started working on MTurk after the recession.","I work more on MTurk after the recession."]
["NYHZYE9RABEZ74ZTEY800AMAVKY4SSJ0TJZTAY6Z","Tue Feb 02 19:36:03 GMT 2010",228,"Female",1949,"Graduate degree, Doctorate","$10,000 - $14,999","married","Yes, 2 children",2,"White","Minnesota","United States","100-200 HITs per week","0-3 months","$5-$10 per week","4-8 hours per week","fruitful|primary_income|secondary_income|killtime|entertainment|unemployed",true,true,true,true,true,true,"I started working on MTurk after the recession but the recession has nothing to do with my decision","I was not active before the recession.","It gives me a little cash while I am getting my own business on the internet off the launching pad."]
["NYHZYE9RABEZ74ZTEY80SHN6JZ8D3SMZV3CCP17Z","Wed Feb 03 08:02:44 GMT 2010",228,"Male",1986,"Bachelors degree","$40,500 - $59,999","single","No",null,"Asian","Indiana","India","10-20 HITs per week","0-3 months","$10-$20 per week","4-8 hours per week","fruitful|primary_income",true,false,false,true,false,false,"Yes, I started working on MTurk after the recession.","I work more on MTurk after the recession.",null,"very useful site for all"]
["NYHZYE9RABEZ74ZTEY8022ZZZ8HDWY8ZNMYHVYRZ","Fri Feb 05 03:02:34 GMT 2010",228,"Male",1966,"Graduate degree, Masters","$75,000 - $99,999","married","Yes, 2 children",4,"White","Missouri","United States","5-10 HITs per week","0-3 months","$1-$5 per week","1-2 hours per week",null,false,false,false,false,false,false,"I started working on MTurk after the recession but the recession has nothing to do with my decision","I was not active before the recession.","I use the money I make on mechanical turk to purchase books from Amazon or music"]
["NYHZYE9RABEZ74ZTEY80CG4GQ1MWCYCZWF5DTZWZ","Fri Feb 05 12:10:00 GMT 2010",228,"Female",1987,"Bachelors degree","$25,000 - $39,499","single","No","5+","Asian",null,"Philippines","20-50 HITs per week","0-3 months","Less than $1 per week","1-2 hours per week","fruitful|secondary_income|entertainment",true,true,false,false,true,false,"I started working on MTurk after the recession but the recession has nothing to do with my decision","I was not active before the recession.","I am a medical student with no secondary income. I participate so I can buy books at Amazon.com"]
["NYHZYE9RABEZ74ZTEY801XAZ06Z06YRZ4ANMRYJ0","Thu Jan 28 11:09:07 GMT 2010",229,"Male",1970,"Graduate degree, Masters","$15,000 - $24,999","married","Yes, 2 children","5+","Asian","Non-US","India","10-20 HITs per week","6-12 months","$1-$5 per week","20-40 hours per week","fruitful|secondary_income|entertainment",true,true,false,false,true,false,"I started working on MTurk after the recession but the recession has nothing to do with my decision","I work the same amount of time on MTurk as before."]
["NYHZYE9RABEZ74ZTEY80PZZ0P6Y81XZZQWY3TXAZ","Wed Feb 10 12:36:37 GMT 2010",229,"Male",1983,"High School Graduate","Less than $10,000","single","No",1,"White",null,"Finland","10-20 HITs per week","0-3 months","Less than $1 per week","4-8 hours per week","killtime",false,false,true,false,false,false,"I started working on MTurk after the recession but the recession has nothing to do with my decision","I was not active before the recession."]
["NYHZYE9RABEZ74ZTEY80394GGSZNN1ARHJS75WKZ","Thu Jan 28 06:19:50 GMT 2010",230,"Male",1983,"Bachelors degree","$40,500 - $59,999","single","No",1,"White","California","United States","50-100 HITs per week","0-3 months","$1-$5 per week","4-8 hours per week","fruitful|secondary_income|entertainment|unemployed",true,true,false,false,true,true,"I started working on MTurk after the recession but the recession has nothing to do with my decision","I was not active before the recession.",null,"1. Some HITs take a lot of time to pay you.\r\n2. Some HITs are way too cheap. Paying 1cent for 10 minutes is like getting paid 6 cents for an hour.\r\n3. Good job on this site. I love it."]
["NYHZYE9RABEZ74ZTEY80HWSZV3DVMY5G25NKAY4Z","Fri Jan 29 20:19:23 GMT 2010",230,"Male",1980,"Bachelors degree","Less than $10,000","single","No","5+","Other","Non-US","India","10-20 HITs per week","1-2 years","$1-$5 per week","8-20 hours per week","unemployed",false,false,false,false,false,true,"Yes, I started working on MTurk after the recession.","I was not active before the recession."]
["NYHZYE9RABEZ74ZTEY80W87Z4DZW52YW2115E2WZ","Sat Jan 30 22:23:05 GMT 2010",230,"Female",1990,"Some college, no degree","Less than $10,000","single","No",3,"White","Oregon","United States","5-10 HITs per week","0-3 months","$1-$5 per week","1-2 hours per week","primary_income",false,false,false,true,false,false,"Yes, I started working on MTurk after the recession.","I work more on MTurk after the recession.","I am only able to get temp jobs ... so any little bit of money that I can make helps me stay a float in the long run...","Thanks for another opportunity to make some money.  It's greatly appreciated."]
["NYHZYE9RABEZ74ZTEY80RTFP7GZE9XWMR7835JBZ","Mon Feb 01 00:01:09 GMT 2010",230,"Female",1956,"Bachelors degree","$75,000 - $99,999","married","Yes, 2 children",3,"Asian","New Jersey","United States","500-1000 HITs per week","0-3 months","$5-$10 per week","8-20 hours per week","unemployed",false,false,false,false,false,true,"Yes, I started working on MTurk after the recession.","I was not active before the recession."]
["NYHZYE9RABEZ74ZTEY80FYEA4HYD1Y9CHGYYEG40","Wed Feb 10 06:14:42 GMT 2010",230,"Female",1978,"Associates degree","$150,000 - $199,999","married","No",2,"Asian","California","United States","20-50 HITs per week","6-12 months","$1-$5 per week","2-4 hours per week","fruitful|secondary_income|killtime|entertainment",true,true,true,false,true,false,"I started working on MTurk after the recession but the recession has nothing to do with my decision","I was not active before the recession."]
["NYHZYE9RABEZ74ZTEY80EWHZR5YM5WS41JNWCZ7Z","Wed Feb 10 12:23:44 GMT 2010",230,"Male",1973,"Graduate degree, Masters","$75,000 - $99,999","married","Yes, 1 child",3,"White","North Carolina","United States","10-20 HITs per week","1-2 years","$5-$10 per week","2-4 hours per week","fruitful",true,false,false,false,false,false,"No, I was active before the recession.","I work the same amount of time on MTurk as before."]
["NYHZYE9RABEZ74ZTEY80WX1TP1YFCWWJTWY0Q2MZ","Wed Feb 10 05:04:53 GMT 2010",231,"Female",1962,"Bachelors degree","$15,000 - $24,999","single","No",3,"White","Texas","United States","500-1000 HITs per week","3-6 months","$20-$50 per week","20-40 hours per week","unemployed",false,false,false,false,false,true,"Yes, I started working on MTurk after the recession.","I was not active before the recession."]
["NYHZYE9RABEZ74ZTEY805JCZ2MG4WY7Z1CWGKTYZ","Thu Jan 28 13:52:45 GMT 2010",233,"Male",1977,"Some college, no degree","Less than $10,000","married","Yes, 2 children",4,"Asian","Non-US","India","100-200 HITs per week","3-6 months","$1-$5 per week","8-20 hours per week","primary_income",false,false,false,true,false,false,"I started working on MTurk after the recession but the recession has nothing to do with my decision","I was not active before the recession.",null,"nothing to comment"]
["NYHZYE9RABEZ74ZTEY80KR2ZP1ZWWX1ZJ8Y9A990","Mon Feb 01 17:02:55 GMT 2010",233,"Female",1961,"Associates degree","$75,000 - $99,999","married","Yes, 2 children",4,"White","California","United States","5-10 HITs per week","1-2 years","Less than $1 per week","Less than 1 hour per week","killtime",false,false,true,false,false,false,"Yes, I started working on MTurk after the recession.","I work the same amount of time on MTurk as before.","I look for any way possible to make money, and this is one I can go back to when I am frustrated by lack of clients (doesn't happen too often though).","I just wish there were more tasks on MTurk that paid more."]
["NYHZYE9RABEZ74ZTEY808XCTJX1TGR62MDZGFXHZ","Wed Feb 03 16:36:59 GMT 2010",233,"Female",1973,"Graduate degree, Masters","$10,000 - $14,999","married","Yes, 1 child",3,"Other",null,"India","20-50 HITs per week","0-3 months","$10-$20 per week","4-8 hours per week","fruitful",true,false,false,false,false,false,"Yes, I started working on MTurk after the recession.","I was not active before the recession.","I gain a lot of knowledge by writing articles and going through surveys."]
["NYHZYE9RABEZ74ZTEY80KW64PNZ72YCZ7EHTF2V0","Thu Jan 28 01:31:38 GMT 2010",234,"Male",1969,"Graduate degree, Doctorate","$60,000 - $74,999","married","Yes, 2 children",4,"White","New York","United States","20-50 HITs per week","6-12 months","$1-$5 per week","2-4 hours per week","secondary_income",false,false,false,false,true,false,"Yes, I started working on MTurk after the recession.","I work more on MTurk after the recession."]
["NYHZYE9RABEZ74ZTEY80RZXZY4WT2ZWRNGY669FZ","Fri Jan 29 13:42:41 GMT 2010",234,"Male",1973,"Bachelors degree","Less than $10,000","married","Yes, 1 child","5+","Asian",null,"India","20-50 HITs per week","3-6 months","$5-$10 per week","20-40 hours per week","unemployed",false,false,false,false,false,true,"Yes, I started working on MTurk after the recession.","I work more on MTurk after the recession.","MTurk is an excellent opportunity for educated but unfortunately unemployed indians to earn some money and at the same time, most of the tasks are quite intersting and you get the opportunity to learn. God Bless MTurk"]
["NYHZYE9RABEZ74ZTEY80GY1AZ6Y26WQE65ZE3260","Mon Feb 01 10:50:57 GMT 2010",235,"Female",1988,"High School Graduate","Less than $10,000","single","No","5+","Asian",null,"India","100-200 HITs per week","0-3 months","$5-$10 per week","2-4 hours per week","fruitful|primary_income|entertainment",true,true,false,true,false,false,"I started working on MTurk after the recession but the recession has nothing to do with my decision","I was not active before the recession.","by this,i can earn money easily at home..on this,i can do what i want.","nice task.i enjoy it."]
["NYHZYE9RABEZ74ZTEY80SBF4WFZ3MX3MTAZZ8WXZ","Sun Feb 07 21:24:47 GMT 2010",235,"Female",1948,"Graduate degree, Masters","$15,000 - $24,999","single","No",1,"White","Florida","United States","200-500 HITs per week","1-2 years","$10-$20 per week","8-20 hours per week","entertainment",false,true,false,false,false,false,"No, I was active before the recession.","I work more on MTurk after the recession.","Besides being fun, it gives me an opportunity to look at sites I would not normally check out.","I hope this helps.  I really do enjoy doing MTuk hits."]
["NYHZYE9RABEZ74ZTEY80WYRZXRYX7ZHZNKY2C9QZ","Thu Jan 28 11:36:10 GMT 2010",236,"Male",1988,"Bachelors degree","$25,000 - $39,499","single","No",4,"Asian","Non-US","India","5-10 HITs per week",null,"$1-$5 per week","1-2 hours per week","primary_income",false,false,false,true,false,false,"No, I was active before the recession.","I work more on MTurk after the recession."]
["NYHZYE9RABEZ74ZTEY805VSZX69GAVQZ61ZFZ8Y0","Thu Jan 28 15:10:23 GMT 2010",236,"Female",1985,"Some High School","Less than $10,000","cohabitating","No",2,"White",null,"Netherlands","500-1000 HITs per week","0-3 months","$20-$50 per week","20-40 hours per week","unemployed",false,false,false,false,false,true,"I started working on MTurk after the recession but the recession has nothing to do with my decision","I work the same amount of time on MTurk as before."]
["NYHZYE9RABEZ74ZTEY80RZRMQJXXHWZZJJZ03150","Thu Jan 28 15:13:12 GMT 2010",236,"Male",1990,"High School Graduate","$10,000 - $14,999","single","No",2,"Asian",null,"India","1-5 HITs per week","0-3 months","$1-$5 per week","2-4 hours per week","fruitful|entertainment",{"$f":"ISNUMBER(FIND(\"fruitful\", $R623))","v":true},true,false,false,false,false,"No, I was active before the recession.","I work the same amount of time on MTurk as before.","Its fun earning some cash in freetime rather than killing time unnecessarily."]
["NYHZYE9RABEZ74ZTEY80MYHZPZ440ZPZ6XHEWXQ0","Fri Jan 29 06:15:07 GMT 2010",236,"Female",1978,"Some college, no degree","$40,500 - $59,999","married","No",2,"Asian","Non-US","India","200-500 HITs per week","6-12 months","$10-$20 per week","20-40 hours per week","primary_income",false,false,false,true,false,false,"I started working on MTurk after the recession but the recession has nothing to do with my decision","I was not active before the recession."]
["NYHZYE9RABEZ74ZTEY80QGSAY7HRKR7WHW5JTTCZ","Mon Feb 01 11:52:38 GMT 2010",236,"Female",1985,"Bachelors degree","Less than $10,000","married","No",2,"Asian","Non-US","India","20-50 HITs per week","0-3 months","$1-$5 per week","8-20 hours per week","fruitful",true,false,false,false,false,false,"No, I was active before the recession.","I work more on MTurk after the recession.",null,"thanku"]
["NYHZYE9RABEZ74ZTEY806SWCHFY0C84YKVMMEBJ0","Thu Jan 28 06:32:00 GMT 2010",237,"Male",1959,"Bachelors degree","$40,500 - $59,999","divorced","Yes, 2 children",3,"White","Oklahoma","United States","100-200 HITs per week","0-3 months","$10-$20 per week","4-8 hours per week","fruitful|killtime",true,false,true,false,false,false,"I started working on MTurk after the recession but the recession has nothing to do with my decision","I was not active before the recession."]
["NYHZYE9RABEZ74ZTEY807WJZYNZTGZNGWEZRBVC0","Mon Feb 01 00:20:40 GMT 2010",237,"Female",1950,"Graduate degree, Masters","$10,000 - $14,999","divorced","Yes, 4 or more children","5+","White",null,"Canada","20-50 HITs per week","0-3 months","$5-$10 per week","20-40 hours per week","fruitful|primary_income|unemployed",true,false,false,true,false,true,"Yes, I started working on MTurk after the recession.","I was not active before the recession.","I'm curious. I like to try new things. I'm also always trying to find ways to generate income from home, as I need to be at home to care for my family."]
["NYHZYE9RABEZ74ZTEY80PZEZRAMN1KPENG8WVWX0","Mon Feb 08 04:38:43 GMT 2010",237,"Female",1986,"Bachelors degree","$25,000 - $39,499","single","No",1,"White","California","United States","20-50 HITs per week","3-6 months","$1-$5 per week","1-2 hours per week","fruitful|secondary_income|killtime|entertainment",true,true,true,false,true,false,"I started working on MTurk after the recession but the recession has nothing to do with my decision","I work the same amount of time on MTurk as before."]
["NYHZYE9RABEZ74ZTEY80JWC0WWZ1X1G4NNZXMWY0","Thu Feb 11 14:23:31 GMT 2010",237,"Male",1981,"Graduate degree, Masters","$25,000 - $39,499","married","Yes, 1 child",4,"Other","Non-US","Morocco","1-5 HITs per week","0-3 months","$1-$5 per week","1-2 hours per week","fruitful",true,false,false,false,false,false,"I started working on MTurk after the recession but the recession has nothing to do with my decision","I was not active before the recession.","I'm enjoying the fact of getting some sash online"]
["NYHZYE9RABEZ74ZTEY80FAHZWK46NY68ZGYCEX10","Thu Jan 28 15:16:26 GMT 2010",238,"Female",1986,"Bachelors degree","Less than $10,000","single","No",4,"Other","Non-US","India","100-200 HITs per week","3-6 months","$10-$20 per week","8-20 hours per week","unemployed",false,false,false,false,false,true,"Yes, I started working on MTurk after the recession.","I work more on MTurk after the recession."]
["NYHZYE9RABEZ74ZTEY807Z5ZHWXY2H0ZW9ZSK080","Fri Jan 29 07:32:14 GMT 2010",238,"Female",1971,"Graduate degree, Masters","$25,000 - $39,499","married","Yes, 1 child",3,"Asian","Non-US","India","100-200 HITs per week","1-2 years","$20-$50 per week","20-40 hours per week","primary_income|unemployed",false,false,false,true,false,true,"No, I was active before the recession.","I work more on MTurk after the recession.","I participate on Mturk as it helps me cover various expenses and pay my bills.","Thanks. Hope this helps your research."]
["NYHZYE9RABEZ74ZTEY80JV9JGERQAZ9ZR2SQPYSZ","Fri Feb 05 03:43:24 GMT 2010",238,"Female",1987,"Bachelors degree","$25,000 - $39,499","married","Yes, 1 child","5+","Asian",null,"India","200-500 HITs per week","0-3 months","$5-$10 per week","4-8 hours per week","fruitful",true,false,false,false,false,false,"No, I was active before the recession.","I work less on MTurk after the recession.","i can learn many new thinks from this web"]
["NYHZYE9RABEZ74ZTEY801R7EPGZQ197ZZG1P6WDZ","Thu Jan 28 01:18:05 GMT 2010",239,"Female",1987,"Bachelors degree","$25,000 - $39,499","single","No","5+","Asian","Non-US","Philippines","10-20 HITs per week","1-2 years","$1-$5 per week","4-8 hours per week","fruitful|entertainment",true,true,false,false,false,false,"No, I was active before the recession.","I work the same amount of time on MTurk as before.","Past time as well as source of money"]
["NYHZYE9RABEZ74ZTEY80RGJY1MY79XRMTGS6FSV0","Thu Jan 28 03:54:47 GMT 2010",239,"Male",1979,"Graduate degree, Masters","$25,000 - $39,499","married","Yes, 1 child","5+","Asian",null,"India","200-500 HITs per week","6-12 months","$10-$20 per week","4-8 hours per week","fruitful|killtime|entertainment",true,true,true,false,false,false,"I started working on MTurk after the recession but the recession has nothing to do with my decision","I work the same amount of time on MTurk as before."]
["NYHZYE9RABEZ74ZTEY80ERNZ7M9VQ122TPZ80XF0","Fri Jan 29 07:12:44 GMT 2010",239,"Male",1968,"Graduate degree, Masters","$10,000 - $14,999","single","No",1,"Other","Alabama","United States","1000-5000 HITs per week","1-2 years","$10-$20 per week","4-8 hours per week","primary_income|unemployed",false,false,false,true,false,true,"Yes, I started working on MTurk after the recession.","I work more on MTurk after the recession."]
["NYHZYE9RABEZ74ZTEY8012DZPNYVK89ZTGZK7GYZ","Sun Feb 07 14:58:22 GMT 2010",239,"Female",1981,"Bachelors degree","Less than $10,000","married","Yes, 1 child",4,"Asian",null,"India","20-50 HITs per week","3-6 months","Less than $1 per week","2-4 hours per week","primary_income",false,false,false,true,false,false,"I started working on MTurk after the recession but the recession has nothing to do with my decision","I work more on MTurk after the recession.","If someone works for a corporation, things are pretty clear. Any paper, before being published needs to get approval. Any developed algorithms and code written is the intellectual property of the company and the company owns the copyright for the code,","Nice survey"]
["NYHZYE9RABEZ74ZTEY80D3NATEWZWW7E1ZXM33B0","Thu Jan 28 11:03:35 GMT 2010",240,"Female",1984,"Graduate degree, Masters","$40,500 - $59,999","cohabitating","No",2,"White","Non-US","Germany","5-10 HITs per week","3-6 months","$1-$5 per week","2-4 hours per week","killtime|entertainment",false,true,true,false,false,false,"I started working on MTurk after the recession but the recession has nothing to do with my decision","I work the same amount of time on MTurk as before.","I consider requesting stuff, too, and want to experience what it is to be like to work on those tasks.","I really (as in REALLY) don't get why people keep on to ask the race questions."]
["NYHZYE9RABEZ74ZTEY80CY7ZNA8SFYAMWAZ1H85Z","Mon Feb 08 04:33:55 GMT 2010",240,"Male",1982,"Bachelors degree","$15,000 - $24,999","single","No",3,"Asian","Texas","United States","500-1000 HITs per week","6-12 months","$20-$50 per week","8-20 hours per week","fruitful|primary_income|entertainment",true,true,false,true,false,false,"Yes, I started working on MTurk after the recession.","I work more on MTurk after the recession."]
["NYHZYE9RABEZ74ZTEY80QZ8Z7BYAY1GZZ6Z30XZ0","Mon Feb 08 04:50:57 GMT 2010",240,"Female",1968,"Graduate degree, Masters","$75,000 - $99,999","married","Yes, 2 children",4,"White","Illinois","United States","20-50 HITs per week","0-3 months","$10-$20 per week","1-2 hours per week","fruitful|secondary_income|entertainment",true,true,false,false,true,false,"Yes, I started working on MTurk after the recession.","I was not active before the recession.","I really enjoy reading the university research studies.","Interesting study!"]
["NYHZYE9RABEZ74ZTEY80K8WZ0JY0FSNJZA8V8XY0","Sat Jan 30 07:49:11 GMT 2010",241,"Male",1980,"Bachelors degree","$25,000 - $39,499","married","Yes, 1 child","5+","Asian",null,"India","20-50 HITs per week","2-4 years","$1-$5 per week","2-4 hours per week","fruitful|entertainment",true,true,false,false,false,false,"No, I was active before the recession.","I work the same amount of time on MTurk as before."]
["NYHZYE9RABEZ74ZTEY80838ZWZRESWYZ54Z1D940","Sat Jan 30 22:05:13 GMT 2010",241,"Female",1985,"Bachelors degree","$10,000 - $14,999","married","Yes, 1 child","5+","Asian",null,"India","20-50 HITs per week","0-3 months","$1-$5 per week","20-40 hours per week","primary_income",false,false,false,true,false,false,"Yes, I started working on MTurk after the recession.","I work more on MTurk after the recession."]
["NYHZYE9RABEZ74ZTEY80VWKZTE8G9YTZY9YHPY50","Wed Feb 10 05:26:35 GMT 2010",241,"Male",1957,"Associates degree","$15,000 - $24,999","married","Yes, 1 child",3,"White","Mississippi","United States","100-200 HITs per week","0-3 months","$5-$10 per week","8-20 hours per week","fruitful",true,false,false,false,false,false,"Yes, I started working on MTurk after the recession.","I was not active before the recession."]
["NYHZYE9RABEZ74ZTEY80PZ5ZQYC8PWHZTRWM5GB0","Fri Feb 12 10:28:01 GMT 2010",241,"Male",1969,"Graduate degree, Masters","$40,500 - $59,999","married","No",2,"White","Ohio","United States","200-500 HITs per week","6-12 months","$5-$10 per week","2-4 hours per week","fruitful|secondary_income",true,{"$f":"ISNUMBER(FIND(\"entertainment\", $R643))","v":false},{"$f":"ISNUMBER(FIND(\"killtime\", $R643))","v":false},{"$f":"ISNUMBER(FIND(\"primary_income\", $R643))","v":false},{"$f":"ISNUMBER(FIND(\"secondary_income\", $R643))","v":true},{"$f":"ISNUMBER(FIND(\"unemployed\", R643))","v":false},"Yes, I started working on MTurk after the recession.","I work the same amount of time on MTurk as before."]
["NYHZYE9RABEZ74ZTEY80JZVZRNY71X2ZXZYYJZRZ","Sat Jan 30 02:10:32 GMT 2010",242,"Female",1961,"Graduate degree, Masters","$25,000 - $39,499","single","No",1,"White","New York","United States","10-20 HITs per week","6-12 months","$1-$5 per week","Less than 1 hour per week","secondary_income",false,false,false,false,true,false,"Yes, I started working on MTurk after the recession.","I work more on MTurk after the recession.","I am a freelance writer and sometimes need a bit of money to fill in the gaps - however, the lack of quality hits has not made this a viable option except in absolute emergencies"]
["NYHZYE9RABEZ74ZTEY80BS2GKW5ZRW12MC034YZ0","Sat Jan 30 19:55:29 GMT 2010",242,"Female",1974,"Graduate degree, Masters","$60,000 - $74,999","married","No",2,"Asian",null,"India","20-50 HITs per week","0-3 months","$5-$10 per week","4-8 hours per week","fruitful|primary_income|secondary_income|unemployed",true,false,false,true,true,true,"I started working on MTurk after the recession but the recession has nothing to do with my decision","I work the same amount of time on MTurk as before."]
["NYHZYE9RABEZ74ZTEY802S1ZXKGYZ0P644YC4WP0","Wed Feb 03 09:05:37 GMT 2010",243,"Male",1984,"Graduate degree, Masters","Less than $10,000","single","No",4,"Asian",null,"India","20-50 HITs per week","0-3 months","$5-$10 per week","8-20 hours per week","secondary_income",false,false,false,false,true,false,"I started working on MTurk after the recession but the recession has nothing to do with my decision","I was not active before the recession.","To earn some money in free time."]
["NYHZYE9RABEZ74ZTEY80WY2ZQJ9DGZSZX8ZRY0Y0","Sat Jan 30 05:48:06 GMT 2010",244,"Female",1968,"Associates degree","$150,000 - $199,999","married","Yes, 3 children","5+","White","Florida","United States","500-1000 HITs per week","0-3 months","$10-$20 per week","20-40 hours per week","fruitful|killtime|entertainment",true,true,true,false,false,false,"I started working on MTurk after the recession but the recession has nothing to do with my decision","I was not active before the recession.","because it is fun - it is like a game to see how much i can earn - i wish it paid a bit more - my income is over 160k, but it is better than the farming games i normally do"]
["NYHZYE9RABEZ74ZTEY80DY6ZK7ZC6JECZ7Y2F3GZ","Thu Jan 28 02:04:04 GMT 2010",245,"Female",1960,"Associates degree","$25,000 - $39,499","divorced","No",1,"White","Virginia","United States","10-20 HITs per week","2-4 years","$5-$10 per week","2-4 hours per week","secondary_income|killtime|entertainment",false,true,true,false,true,false,"No, I was active before the recession.","I work the same amount of time on MTurk as before."]
["NYHZYE9RABEZ74ZTEY801ZTG79RC6BEZ1XD6698Z","Fri Jan 29 11:03:01 GMT 2010",245,"Male",1988,"Bachelors degree","$25,000 - $39,499","single","No","5+","Asian","Non-US","India","200-500 HITs per week","6-12 months","$10-$20 per week","4-8 hours per week","unemployed",false,false,false,false,false,true,"I started working on MTurk after the recession but the recession has nothing to do with my decision","I was not active before the recession.",null,"no"]
["NYHZYE9RABEZ74ZTEY80N3DMQ8Y7X9QZ2V9PZAX0","Mon Feb 01 13:03:47 GMT 2010",245,"Male",1958,"High School Graduate","Less than $10,000","married","Yes, 3 children","5+","Asian","Tennessee","India","5-10 HITs per week","0-3 months","$1-$5 per week","1-2 hours per week","primary_income|secondary_income|entertainment|unemployed",false,true,false,true,true,true,"Yes, I started working on MTurk after the recession.","I work more on MTurk after the recession."]
["NYHZYE9RABEZ74ZTEY807W1ZTRZWBGQZWM1HSZC0","Tue Feb 02 14:46:44 GMT 2010",245,"Female",1984,"Some college, no degree","$15,000 - $24,999","single","No",1,"White","West Virginia","United States","20-50 HITs per week","0-3 months","$5-$10 per week","2-4 hours per week","fruitful|secondary_income|unemployed",true,false,false,false,true,true,"Yes, I started working on MTurk after the recession.","I work more on MTurk after the recession.","I am currently unemployed and for some reason absolutely can not find a job. Every job I apply for either turns me down or I don't hear from them at all. I have been doing online surveys, freelance writing, and mturk to try to make the most money I can. I don't make much but when you literally have no savings and no income you take what you can get."]
["NYHZYE9RABEZ74ZTEY80H9TZSM8VW15YPYD77WK0","Thu Feb 11 20:14:29 GMT 2010",245,"Male",1973,"Associates degree","$15,000 - $24,999","single","No",1,"White","Florida","United States","100-200 HITs per week","1-2 years","$5-$10 per week","20-40 hours per week","fruitful|primary_income|entertainment|unemployed",true,true,false,true,false,true,"I started working on MTurk after the recession but the recession has nothing to do with my decision","I work more on MTurk after the recession."]
["NYHZYE9RABEZ74ZTEY806WDZZTR01KQC12ZF0WY0","Thu Jan 28 21:56:44 GMT 2010",246,"Female",1988,"High School Graduate","Less than $10,000","cohabitating","No",2,"White","New Hampshire","United States","10-20 HITs per week","0-3 months","$1-$5 per week","1-2 hours per week","fruitful|secondary_income|killtime|entertainment|unemployed",true,true,true,false,true,true,"I started working on MTurk after the recession but the recession has nothing to do with my decision","I was not active before the recession.","It makes me feel like I am actually doing something with my time."]
["NYHZYE9RABEZ74ZTEY80ARR8PRYTK27ZTYXKFYDZ","Thu Jan 28 13:51:48 GMT 2010",247,"Male",1966,"Bachelors degree","Less than $10,000","married","Yes, 1 child",3,"Asian",null,"India","10-20 HITs per week","1-2 years","Less than $1 per week","4-8 hours per week","unemployed",false,false,false,false,false,true,"I started working on MTurk after the recession but the recession has nothing to do with my decision","I work the same amount of time on MTurk as before."]
["NYHZYE9RABEZ74ZTEY80CY2PW1ZVSB7EVAY06010","Fri Jan 29 12:06:55 GMT 2010",247,"Male",1983,"Bachelors degree","$10,000 - $14,999","single","No",4,"Asian",null,"India","20-50 HITs per week","2-4 years","$1-$5 per week","2-4 hours per week","fruitful",true,false,false,false,false,false,"No, I was active before the recession.","I work the same amount of time on MTurk as before."]
["NYHZYE9RABEZ74ZTEY80AYSM3ZYRAW6Z59Y2VK1Z","Sun Jan 31 20:09:14 GMT 2010",247,"Female",1951,"Graduate degree, Masters","$25,000 - $39,499","divorced","Yes, 2 children",2,"White","Pennsylvania","United States","200-500 HITs per week","6-12 months","$20-$50 per week","8-20 hours per week","fruitful|secondary_income",true,false,false,false,true,false,"Yes, I started working on MTurk after the recession.","I was not active before the recession."]
["NYHZYE9RABEZ74ZTEY80VWGZW0Y78ZMRNKZAHA8Z","Thu Jan 28 16:53:37 GMT 2010",248,"Male",1985,"Graduate degree, Masters","Less than $10,000","single","No",4,"Asian","Non-US","India","100-200 HITs per week","3-6 months","$1-$5 per week","20-40 hours per week","primary_income",false,false,false,true,false,false,"I started working on MTurk after the recession but the recession has nothing to do with my decision","I work more on MTurk after the recession."]
["NYHZYE9RABEZ74ZTEY80WXYZNTRR22826WYD68WZ","Wed Feb 10 16:58:09 GMT 2010",248,"Female",1949,"Graduate degree, Masters","$60,000 - $74,999","married","Yes, 2 children",2,"White","Virginia","United States","1-5 HITs per week","3-6 months","Less than $1 per week","Less than 1 hour per week","secondary_income|entertainment",false,true,false,false,true,false,"I started working on MTurk after the recession but the recession has nothing to do with my decision","I work the same amount of time on MTurk as before.","I use the money to purchase things from Amazon."]
["NYHZYE9RABEZ74ZTEY80MYKZW6902HKPGR0QQWA0","Sun Jan 31 19:05:19 GMT 2010",249,"Male",1982,"Graduate degree, Masters","Less than $10,000","single","No",4,"White",null,"Croatia","10-20 HITs per week","0-3 months","Less than $1 per week","2-4 hours per week","secondary_income",false,false,false,false,true,false,"Yes, I started working on MTurk after the recession.","I was not active before the recession."]
["NYHZYE9RABEZ74ZTEY80TZ4AT3ZTAXNZV5ZSVZX0","Sat Feb 06 09:21:56 GMT 2010",249,"Male",1993,"Some High School","Less than $10,000","single","No",3,"White",null,"Romania","1-5 HITs per week","0-3 months","Less than $1 per week","Less than 1 hour per week","fruitful|entertainment|unemployed",true,true,false,false,false,true,"I started working on MTurk after the recession but the recession has nothing to do with my decision","I was not active before the recession.","I wanted to get some cash."]
["NYHZYE9RABEZ74ZTEY80KSSGGE4RRB7JZVXD5XYZ","Thu Jan 28 00:46:22 GMT 2010",250,"Female",1985,"Bachelors degree","$25,000 - $39,499","single","No",3,"White","Massachusetts","United States","100-200 HITs per week","3-6 months","$1-$5 per week","1-2 hours per week","fruitful|secondary_income|unemployed",true,false,false,false,true,true,"Yes, I started working on MTurk after the recession.","I was not active before the recession."]
["NYHZYE9RABEZ74ZTEY80YWRZ51Z25JY8M5XY10JZ","Wed Feb 10 09:08:32 GMT 2010",251,"Female",1984,"Graduate degree, Masters","$100,000 - $149,999","married","Yes, 1 child",3,"White",null,"Croatia","5-10 HITs per week","0-3 months","$1-$5 per week","1-2 hours per week","fruitful|secondary_income|killtime|entertainment",true,true,true,false,true,false,"I started working on MTurk after the recession but the recession has nothing to do with my decision","I work the same amount of time on MTurk as before."]
["NYHZYE9RABEZ74ZTEY80R0Z0KHYT5X4MNJ5MBW0Z","Mon Feb 08 04:20:12 GMT 2010",252,"Male",1987,"Bachelors degree","$15,000 - $24,999","single","No",3,"Asian",null,"India","100-200 HITs per week","3-6 months","$10-$20 per week","8-20 hours per week","fruitful",true,false,false,false,false,false,"Yes, I started working on MTurk after the recession.","I work more on MTurk after the recession."]
["NYHZYE9RABEZ74ZTEY804RQ8R5ZAVWZJSDZ2ZYEZ","Wed Jan 27 23:48:16 GMT 2010",253,"Female",1968,"Bachelors degree","$75,000 - $99,999","married","Yes, 2 children",4,"Asian","New Jersey","United States","500-1000 HITs per week","6-12 months","$50-$100 per week","More than 40 hours per week","entertainment|unemployed",false,true,false,false,false,true,"I started working on MTurk after the recession but the recession has nothing to do with my decision","I was not active before the recession."]
["NYHZYE9RABEZ74ZTEY80PTFJ6NY163PZSMZFFG10","Wed Feb 03 16:03:36 GMT 2010",253,"Male",1974,"Some college, no degree","$15,000 - $24,999","cohabitating","No",2,"White","Non-US","Bulgaria","500-1000 HITs per week","0-3 months","$100-$200 per week","More than 40 hours per week","fruitful|primary_income|unemployed",true,false,false,true,false,true,"I started working on MTurk after the recession but the recession has nothing to do with my decision","I was not active before the recession."]
["NYHZYE9RABEZ74ZTEY80CXVZZCHE7X0W3YZATYXZ","Thu Jan 28 00:12:40 GMT 2010",254,"Female",1966,"Bachelors degree","$60,000 - $74,999","divorced","No",1,"White","California","United States","50-100 HITs per week","1-2 years","$5-$10 per week","2-4 hours per week","fruitful|secondary_income",true,false,false,false,true,false,"No, I was active before the recession.","I work more on MTurk after the recession."]
["NYHZYE9RABEZ74ZTEY80PZ6ZWHYKQY1JX3YR4ZF0","Thu Jan 28 08:38:19 GMT 2010",256,"Female",1988,"Bachelors degree","$10,000 - $14,999","single","No",4,"Asian","Non-US","India","200-500 HITs per week","6-12 months","$20-$50 per week","20-40 hours per week","primary_income",false,false,false,true,false,false,"No, I was active before the recession.","I work more on MTurk after the recession."]
["NYHZYE9RABEZ74ZTEY80592ZY9YVMKSJ72Y8YWQZ","Sat Jan 30 19:44:49 GMT 2010",256,"Male",1982,"Graduate degree, Masters","$15,000 - $24,999","single","No","5+","White","Non-US","Serbia","5-10 HITs per week","3-6 months","$1-$5 per week","1-2 hours per week","secondary_income",false,false,false,false,true,false,"I started working on MTurk after the recession but the recession has nothing to do with my decision","I work the same amount of time on MTurk as before.","MY only goal is to make enough money to buy a book on Amazon. After that, I'm out of here - too much work for too little money."]
["NYHZYE9RABEZ74ZTEY80CKTAQQ805WDZS85J6YTZ","Wed Feb 10 02:48:46 GMT 2010",256,"Male",1949,"Bachelors degree","$25,000 - $39,499","married","Yes, 2 children",2,"White","Ohio","United States","50-100 HITs per week","6-12 months","$50-$100 per week","20-40 hours per week","fruitful|primary_income|secondary_income|entertainment|unemployed",true,true,false,true,true,true,"I started working on MTurk after the recession but the recession has nothing to do with my decision","I work more on MTurk after the recession.","It keeps my mind active and challenges me.  I enjoy transcription and learn from it in the process as well as making a little bit of mooney."]
["NYHZYE9RABEZ74ZTEY80QJARQJXC8ZWWS2Y7MXG0","Wed Feb 10 04:21:27 GMT 2010",256,"Female",1960,"Bachelors degree","$25,000 - $39,499","single","No",1,"White","District of Columbia","United States","100-200 HITs per week","0-3 months","$10-$20 per week","4-8 hours per week","unemployed",false,false,false,false,false,true,"Yes, I started working on MTurk after the recession.","I was not active before the recession.","started when I was laid off"]
["NYHZYE9RABEZ74ZTEY800YMTNJZ09YTZQMZWSZY0","Sat Feb 06 21:00:36 GMT 2010",257,"Male",1985,"Bachelors degree","$40,500 - $59,999","engaged","No",1,"White","Illinois","United States","5-10 HITs per week","0-3 months","$1-$5 per week","1-2 hours per week","secondary_income",false,false,false,false,true,false,"I started working on MTurk after the recession but the recession has nothing to do with my decision","I was not active before the recession.","I think of it as building up amazon 'gift cards' -- I use this income only for purchasing books/CDs/records @ Amazon."]
["NYHZYE9RABEZ74ZTEY80NXS8WRXR2WAZTYXA2WB0","Mon Feb 08 22:47:16 GMT 2010",257,"Female",1981,"Some college, no degree","$60,000 - $74,999","married","Yes, 3 children","5+","White","Illinois","United States","Less than 1 HIT per week","6-12 months","Less than $1 per week","Less than 1 hour per week","fruitful|secondary_income|killtime|entertainment",true,true,true,false,true,false,"No, I was active before the recession.","I work the same amount of time on MTurk as before."]
["NYHZYE9RABEZ74ZTEY80Q3QZ5VSDXY5Z5AMKMX10","Tue Feb 09 15:43:31 GMT 2010",257,"Male",1976,"Bachelors degree","Less than $10,000","divorced","No",2,"Asian",null,"India","20-50 HITs per week","0-3 months","$1-$5 per week","8-20 hours per week","fruitful|primary_income|secondary_income|killtime|entertainment|unemployed",true,true,true,true,true,true,"Yes, I started working on MTurk after the recession.","I work more on MTurk after the recession.","I am currently unemployed, or have only a part time job, I need the money","Give me more surveys with decent money, god bless"]
["NYHZYE9RABEZ74ZTEY80SS1E4S5EAXJTZSZDJX8Z","Sun Jan 31 02:21:57 GMT 2010",258,"Female",1970,"Bachelors degree","$25,000 - $39,499","married","Yes, 2 children",4,"Asian",null,"Philippines","5-10 HITs per week","2-4 years","$1-$5 per week","Less than 1 hour per week","fruitful",true,false,false,false,false,false,"No, I was active before the recession.","I work less on MTurk after the recession.","I like buying items online and the money I earn on mturk is used for that purpose. This way, I get to shop without using money that I would have needed for necessities."]
["NYHZYE9RABEZ74ZTEY80MB4JZPMPMKCZG6W01ZV0","Sun Jan 31 10:59:32 GMT 2010",258,"Female",1978,"Bachelors degree","$15,000 - $24,999","single","Yes, 1 child",3,"White","Indiana","India","500-1000 HITs per week","6-12 months","$100-$200 per week","1-2 hours per week","fruitful",true,false,false,false,false,false,"I started working on MTurk after the recession but the recession has nothing to do with my decision","I was not active before the recession."]
["NYHZYE9RABEZ74ZTEY806TFPMCCT0WBZTB17YJ2Z","Tue Feb 09 18:42:20 GMT 2010",258,"Female",1947,"Bachelors degree","$40,500 - $59,999","married","Yes, 4 or more children",2,"White","Pennsylvania","United States","1-5 HITs per week","1-2 years","Less than $1 per week","1-2 hours per week","fruitful|secondary_income",true,false,false,false,true,false,"Yes, I started working on MTurk after the recession.","I work more on MTurk after the recession.","I like being able to use my payments toward Amazon purchases. I enjoy doing the hits as it is good mind challenge and enjoy what little money I make."]
["NYHZYE9RABEZ74ZTEY80JVDAS5ZGAZQZTAM3BWRZ","Thu Feb 11 14:17:59 GMT 2010",258,"Male",1965,"Associates degree","$100,000 - $149,999","married","Yes, 2 children",4,"White","New York","United States","500-1000 HITs per week","1-2 years","$10-$20 per week","4-8 hours per week","fruitful",true,false,false,false,false,false,"I started working on MTurk after the recession but the recession has nothing to do with my decision","I work the same amount of time on MTurk as before.","Money for holidays"]
["NYHZYE9RABEZ74ZTEY80FVS8WVSZQW0ZS8Z5KYBZ","Thu Jan 28 13:08:34 GMT 2010",259,"Male",1986,"Some college, no degree","Less than $10,000","married","No","5+","Asian",null,"India","20-50 HITs per week","6-12 months","$1-$5 per week","4-8 hours per week","fruitful|primary_income|secondary_income|entertainment|unemployed",true,true,false,true,true,true,"Yes, I started working on MTurk after the recession.","I work the same amount of time on MTurk as before.","mturk give many more tasks and give rewards so i participate","no"]
["NYHZYE9RABEZ74ZTEY802XKZXN52SJ5J7K4XGA4Z","Mon Feb 01 05:52:24 GMT 2010",259,"Male",1989,"High School Graduate","Less than $10,000","single","No",3,"Asian",null,"India","1-5 HITs per week","6-12 months","$1-$5 per week","2-4 hours per week","secondary_income|unemployed",false,false,false,false,true,true,"No, I was active before the recession.","I work the same amount of time on MTurk as before.","MTurk gives me the opportunity to earn some extra cash by doing tasks which are usually fun and test your principles and knowledge. Also by participating in surveys I get to help research groups which are conducting important studies on human behaviour and manners."]
["NYHZYE9RABEZ74ZTEY80ZBM6KBYKXRPMSHY7BWV0","Mon Feb 08 15:06:42 GMT 2010",259,"Male",1985,"Bachelors degree","$15,000 - $24,999","single","No",4,"Asian",null,"India","500-1000 HITs per week","1-2 years","$10-$20 per week","8-20 hours per week","fruitful|secondary_income",true,false,false,false,true,false,"No, I was active before the recession.","I work the same amount of time on MTurk as before."]
["NYHZYE9RABEZ74ZTEY80PW081BZV918ZZAYKBZHZ","Sat Feb 06 04:57:17 GMT 2010",260,"Female",1980,"High School Graduate","$60,000 - $74,999","married","Yes, 2 children",4,"White","Washington","United States","1-5 HITs per week","0-3 months","Less than $1 per week","Less than 1 hour per week","fruitful",true,false,false,false,false,false,"I started working on MTurk after the recession but the recession has nothing to do with my decision","I was not active before the recession."]
["NYHZYE9RABEZ74ZTEY80RY20VSN7D3Y6101CARGZ","Thu Feb 11 19:34:14 GMT 2010",260,"Female",1959,"Some High School","$40,500 - $59,999","married","No",2,"White","Kansas","United States","500-1000 HITs per week","2-4 years","$10-$20 per week","20-40 hours per week","primary_income|entertainment",false,true,false,true,false,false,"No, I was active before the recession.","I work the same amount of time on MTurk as before."]
["NYHZYE9RABEZ74ZTEY808WWRYZCCXWK2X1YT4X1Z","Thu Jan 28 00:12:13 GMT 2010",261,"Male",1943,"Graduate degree, Masters","$25,000 - $39,499","married","Yes, 2 children",2,"White","Virginia","United States","100-200 HITs per week","3-6 months","$20-$50 per week","8-20 hours per week","primary_income",false,false,false,true,false,false,"Yes, I started working on MTurk after the recession.","I was not active before the recession.",null,"Interesting survey."]
["NYHZYE9RABEZ74ZTEY8079TM5Y02HBTYNTZ5RJAZ","Fri Jan 29 12:11:06 GMT 2010",261,"Male",1975,"Graduate degree, Masters","Less than $10,000","married","Yes, 2 children","5+","Asian",null,"India","5-10 HITs per week","0-3 months","$1-$5 per week","4-8 hours per week","unemployed",false,false,false,false,false,true,"I started working on MTurk after the recession but the recession has nothing to do with my decision","I was not active before the recession.","I have some responsibilities at home and am not in a position to take up a fulltime job. So a work from home option suits me."]
["NYHZYE9RABEZ74ZTEY80QJCCJ7ZTKYCPZD8FBK2Z","Wed Feb 03 10:52:40 GMT 2010",261,"Male",1988,"Bachelors degree","Less than $10,000","single","No",4,"Asian",null,"India","50-100 HITs per week","0-3 months","$1-$5 per week","4-8 hours per week","unemployed",false,false,false,false,false,true,"No, I was active before the recession.","I was not active before the recession.",null,"I think this site is usefull to those who have less source of income at home and whose family members are dependent on them..\r\nAs of me T\r\nThanks and Regards\r\n\r\nYuvraj"]
["NYHZYE9RABEZ74ZTEY80JHJZVPH3AWZZYXY3QSE0","Mon Feb 08 23:29:35 GMT 2010",261,"Female",1994,"Some High School","$60,000 - $74,999","single","No",4,"Asian","Non-US","Canada","20-50 HITs per week","0-3 months","$1-$5 per week","4-8 hours per week","fruitful|secondary_income|killtime",true,false,true,false,true,false,"I started working on MTurk after the recession but the recession has nothing to do with my decision","I work the same amount of time on MTurk as before.","I play on a virtual game site where the best items/only items worth having are sold in the cash shop. Unfortunately, they don't sell the currency where I live so I'm trying to earn some of it here."]
["NYHZYE9RABEZ74ZTEY800XKZWP552ZXZ7SS9DZ00","Sat Jan 30 18:09:52 GMT 2010",262,"Female",1983,"Bachelors degree","Less than $10,000","married","No",4,"Asian",null,"India","10-20 HITs per week","0-3 months","$1-$5 per week","2-4 hours per week","fruitful|primary_income",{"$f":"ISNUMBER(FIND(\"fruitful\", $R687))","v":true},false,false,true,false,false,"I started working on MTurk after the recession but the recession has nothing to do with my decision","I was not active before the recession.",null,"PLZ PROVIDE SOME HITS AMOUNT OF 1$ MORE THAN IT FOR INDIANS ALSO.THIS TYPE OF HITS ARE BASICALLY FOR US CITIZEN ONLY."]
["NYHZYE9RABEZ74ZTEY80ZXYZYVZZTVNZWSYZM9ZZ","Sun Feb 07 16:16:58 GMT 2010",262,"Male",1984,"Graduate degree, Masters","Less than $10,000","single","No",4,"Asian","Non-US","India","20-50 HITs per week","0-3 months","$5-$10 per week","4-8 hours per week","primary_income",false,false,false,true,false,false,"No, I was active before the recession.","I work more on MTurk after the recession."]
["NYHZYE9RABEZ74ZTEY80T8DZ5TMPEXFZ0VZ2EWT0","Tue Feb 09 21:10:19 GMT 2010",262,"Male",1977,"Bachelors degree","$15,000 - $24,999","married","Yes, 2 children","5+","Asian",null,"India","200-500 HITs per week","0-3 months","$20-$50 per week","8-20 hours per week","fruitful|secondary_income|killtime|entertainment",true,true,true,false,true,false,"No, I was active before the recession.","I work more on MTurk after the recession."]
["NYHZYE9RABEZ74ZTEY80BSBZHEYKPKJE5K913Y40","Sun Jan 31 14:33:11 GMT 2010",263,"Female",1977,"Bachelors degree","$40,500 - $59,999","single","No",1,"White","Illinois","United States","1-5 HITs per week","1-2 years","Less than $1 per week","Less than 1 hour per week","secondary_income",false,false,false,false,true,false,"Yes, I started working on MTurk after the recession.","I work the same amount of time on MTurk as before.","With the current economy I am having trouble paying my bills so I am doing anything I can to make extra money and pay my bills."]
["NYHZYE9RABEZ74ZTEY80NH7ZRXYVKKFMYCYE5BG0","Wed Feb 03 01:13:09 GMT 2010",263,"Male",1964,"High School Graduate","$40,500 - $59,999","single","No",2,"White","Pennsylvania","United States","10-20 HITs per week","0-3 months","$5-$10 per week","8-20 hours per week","fruitful|secondary_income|killtime",true,false,true,false,true,false,"Yes, I started working on MTurk after the recession.","I work the same amount of time on MTurk as before."]
["NYHZYE9RABEZ74ZTEY80QGQZJV8MD3TZTMNR7H80","Thu Feb 04 14:39:40 GMT 2010",263,"Male",1979,"Graduate degree, Masters","$75,000 - $99,999","married","No",2,"Asian",null,"India","50-100 HITs per week","0-3 months","$200-$500 per week","More than 40 hours per week","fruitful|secondary_income|entertainment",true,true,false,false,true,false,"Yes, I started working on MTurk after the recession.","I was not active before the recession."]
["NYHZYE9RABEZ74ZTEY80KZFZV69RNHJGNNYY9390","Tue Feb 09 11:42:25 GMT 2010",263,"Female",1983,"Graduate degree, Masters","$15,000 - $24,999","married","Yes, 1 child","5+","Asian",null,"India","20-50 HITs per week","3-6 months","$1-$5 per week","4-8 hours per week","unemployed",false,false,false,false,false,true,"I started working on MTurk after the recession but the recession has nothing to do with my decision","I work the same amount of time on MTurk as before."]
["NYHZYE9RABEZ74ZTEY80QYGMV1W11WXJQTZ6YXFZ","Tue Feb 09 19:45:18 GMT 2010",263,"Female",1946,"Associates degree","$60,000 - $74,999","married","Yes, 1 child",2,"White","North Carolina","United States","5-10 HITs per week","6-12 months","$1-$5 per week","Less than 1 hour per week","fruitful|secondary_income|unemployed",true,false,false,false,true,true,"No, I was active before the recession.","I work the same amount of time on MTurk as before."]
["NYHZYE9RABEZ74ZTEY80BGT04FW04YK0XCZMPTF0","Thu Feb 11 14:16:19 GMT 2010",263,"Female",1958,"Bachelors degree","$75,000 - $99,999","married","Yes, 3 children","5+","White","Missouri","United States","50-100 HITs per week","3-6 months","$5-$10 per week","2-4 hours per week","fruitful|secondary_income",true,false,false,false,true,false,"I started working on MTurk after the recession but the recession has nothing to do with my decision","I was not active before the recession."]
["NYHZYE9RABEZ74ZTEY803WEZGN91HT3GQEWJZ8TZ","Tue Feb 09 22:55:45 GMT 2010",264,"Male",1981,"Graduate degree, Masters","$10,000 - $14,999","married","Yes, 1 child",3,"White",null,"Poland","100-200 HITs per week","0-3 months","$5-$10 per week","4-8 hours per week","fruitful",true,false,false,false,false,false,"Yes, I started working on MTurk after the recession.","I was not active before the recession."]
["NYHZYE9RABEZ74ZTEY80GAHWJQYM5Z2YGJDBBG4Z","Thu Feb 11 17:56:15 GMT 2010",264,"Female",1978,"Graduate degree, Masters","$15,000 - $24,999","married","Yes, 2 children",4,"Asian",null,"India","200-500 HITs per week","0-3 months","$1-$5 per week","2-4 hours per week","fruitful",true,false,false,false,false,false,"I started working on MTurk after the recession but the recession has nothing to do with my decision","I was not active before the recession."]
["NYHZYE9RABEZ74ZTEY80JJ02TPZ0CV1W2AXTBR9Z","Sun Jan 31 07:00:10 GMT 2010",266,"Male",1988,"Some college, no degree","$10,000 - $14,999","single","No",4,"Asian","Indiana","India","20-50 HITs per week","3-6 months","$5-$10 per week","4-8 hours per week","fruitful",true,false,false,false,false,false,"Yes, I started working on MTurk after the recession.","I work more on MTurk after the recession.","good","good"]
["NYHZYE9RABEZ74ZTEY80ZWP6WVCPNHCZGHWP7JKZ","Thu Feb 11 14:22:07 GMT 2010",266,"Male",1981,"Graduate degree, Masters","$10,000 - $14,999","married","No",2,"Asian","Non-US","India","200-500 HITs per week","0-3 months","$5-$10 per week","20-40 hours per week","fruitful|primary_income|secondary_income|entertainment|unemployed",true,true,false,true,true,true,"I started working on MTurk after the recession but the recession has nothing to do with my decision","I was not active before the recession."]
["NYHZYE9RABEZ74ZTEY80BYKPKYZDB3YGGJR53RDZ","Wed Jan 27 23:57:29 GMT 2010",267,"Female",1983,"Some High School","$15,000 - $24,999","married","No","5+","White","Nevada","United States","500-1000 HITs per week","0-3 months","$20-$50 per week","8-20 hours per week","secondary_income",false,false,false,false,true,false,"I started working on MTurk after the recession but the recession has nothing to do with my decision","I was not active before the recession.",null,"Thank You!"]
["NYHZYE9RABEZ74ZTEY80WYQZRQSB3X3ZX8NW1JM0","Fri Jan 29 07:12:41 GMT 2010",267,"Male",1989,"Some college, no degree","Less than $10,000","single","No",1,"White","Minnesota","United States","500-1000 HITs per week","0-3 months","$1-$5 per week","8-20 hours per week","fruitful|secondary_income",true,false,false,false,true,false,"I started working on MTurk after the recession but the recession has nothing to do with my decision","I was not active before the recession."]
["NYHZYE9RABEZ74ZTEY80HB981EZQJJ5ZHDW701JZ","Mon Feb 01 15:12:07 GMT 2010",267,"Male",1970,"Some college, no degree","Less than $10,000","married","Yes, 2 children",4,"Asian",null,"India","5-10 HITs per week","0-3 months","$1-$5 per week","4-8 hours per week","unemployed",false,false,false,false,false,true,"Yes, I started working on MTurk after the recession.","I was not active before the recession.","i was unemployed and need a genuine online source of income.","nothing in particular"]
["NYHZYE9RABEZ74ZTEY809A8W0EWQWZ76M7080Z50","Mon Feb 08 04:22:00 GMT 2010",268,"Female",1955,"Bachelors degree","$60,000 - $74,999","married","Yes, 1 child",2,"White","Michigan","United States","100-200 HITs per week","2-4 years","$5-$10 per week","4-8 hours per week","fruitful|secondary_income|killtime|entertainment|unemployed",true,true,true,false,true,true,"No, I was active before the recession.","I work the same amount of time on MTurk as before.","It justifies some of the time I spend on the computer, if I am making a little money at it, too.  I learn a lot, and I just enjoy answering questions. I was that kid in school that always had her armed raised when the teacher asked \"who knows....\"!!  Based on my answers here, I've been hired by one of the requesters to do work for them, too. So there are side benefits to participation."]
["NYHZYE9RABEZ74ZTEY80M38Z378SYW12ZAZRQZJ0","Thu Feb 11 19:32:46 GMT 2010",268,"Female",1959,"Bachelors degree","$60,000 - $74,999","married","Yes, 3 children",2,"Other","Indiana","United States","50-100 HITs per week","1-2 years","$50-$100 per week","20-40 hours per week","fruitful|secondary_income|entertainment|unemployed",true,true,false,false,true,true,"Yes, I started working on MTurk after the recession.","I work more on MTurk after the recession.","I am very good at writing. I enjoy transcribing tasks, and that's how I mostly earn money.","I'm very grateful for Mechanical Turk. I'm able to work from home on the computer and end up spending less than I would if I had a part time job for clothes, gas, etc."]
["NYHZYE9RABEZ74ZTEY80NWXZWPZNP84WW5CVHWZ0","Thu Jan 28 00:16:59 GMT 2010",271,"Female",1971,"Bachelors degree","$40,500 - $59,999","married","Yes, 4 or more children","5+","Black","Georgia","United States","5-10 HITs per week","0-3 months","$1-$5 per week","2-4 hours per week","secondary_income|entertainment",false,true,false,false,true,false,"I started working on MTurk after the recession but the recession has nothing to do with my decision","I work more on MTurk after the recession."]
["NYHZYE9RABEZ74ZTEY80TG44WY0ZWY6ZGP8R3Y80","Thu Jan 28 11:46:14 GMT 2010",271,"Male",1977,"Some High School","Less than $10,000","single","No",4,"Asian",null,"India","20-50 HITs per week","3-6 months","$5-$10 per week","4-8 hours per week","fruitful",true,false,false,false,false,false,"No, I was active before the recession.","I work the same amount of time on MTurk as before."]
["NYHZYE9RABEZ74ZTEY80VXW2H4ZJWWXZG58KJZH0","Wed Feb 03 18:50:05 GMT 2010",272,"Male",1986,"Graduate degree, Masters","Less than $10,000","single","No","5+","Asian",null,"India","10-20 HITs per week","0-3 months","$1-$5 per week","2-4 hours per week","fruitful",true,{"$f":"ISNUMBER(FIND(\"entertainment\", $R707))","v":false},{"$f":"ISNUMBER(FIND(\"killtime\", $R707))","v":false},{"$f":"ISNUMBER(FIND(\"primary_income\", $R707))","v":false},{"$f":"ISNUMBER(FIND(\"secondary_income\", $R707))","v":false},{"$f":"ISNUMBER(FIND(\"unemployed\", R707))","v":false},"No, I was active before the recession.","I work the same amount of time on MTurk as before."]
["NYHZYE9RABEZ74ZTEY805XKMRQZYBT0MR8GAVGMZ","Wed Feb 03 16:32:09 GMT 2010",273,"Female",1979,"Bachelors degree","$10,000 - $14,999","cohabitating","No",2,"White",null,"Romania","200-500 HITs per week","0-3 months","$10-$20 per week","2-4 hours per week","fruitful",true,false,false,false,false,false,"Yes, I started working on MTurk after the recession.","I work more on MTurk after the recession."]
["NYHZYE9RABEZ74ZTEY801YYENNZ57X64RQHZQXVZ","Thu Jan 28 00:28:19 GMT 2010",274,"Male",1990,"Some college, no degree","$25,000 - $39,499","cohabitating","No",2,"White","Texas","United States","50-100 HITs per week","0-3 months","$10-$20 per week","4-8 hours per week","secondary_income|unemployed",false,false,false,false,true,true,"I started working on MTurk after the recession but the recession has nothing to do with my decision","I work the same amount of time on MTurk as before.","I am currently unemployed. I just finished EMT school and I have to wait to take my exam to get nationally certified so I just kind of do this for fun and a little extra cash to keep me going.","First time I've done a survey about Mturk."]
["NYHZYE9RABEZ74ZTEY80R8EZXKZFDGEJPZ9E5Z2Z","Thu Jan 28 10:18:05 GMT 2010",274,"Female",1983,"Bachelors degree","Less than $10,000","married","Yes, 1 child","5+","Asian",null,"India","200-500 HITs per week","0-3 months","$5-$10 per week","4-8 hours per week","fruitful|unemployed",true,false,false,false,false,true,"I started working on MTurk after the recession but the recession has nothing to do with my decision","I was not active before the recession."]
["NYHZYE9RABEZ74ZTEY80Q13Z5C0TDGYZX3ZBAK6Z","Fri Jan 29 05:35:09 GMT 2010",274,"Male",1970,"Graduate degree, Masters","$40,500 - $59,999","single","No",3,"Asian",null,"India","20-50 HITs per week","6-12 months","$20-$50 per week","2-4 hours per week","fruitful|secondary_income",true,false,false,false,true,false,"Yes, I started working on MTurk after the recession.","I work more on MTurk after the recession.","Since my primary income is not sufficient to run my family i am taking up this job on mechanical turk.","Pretty much interesting survey"]
["NYHZYE9RABEZ74ZTEY80088ZH9Z2FYAZ4FYE3ZJ0","Fri Feb 05 08:39:13 GMT 2010",274,"Female",1987,"Bachelors degree","Less than $10,000","single","No",2,"Asian","Non-US","India","50-100 HITs per week","6-12 months","$5-$10 per week","20-40 hours per week","fruitful|primary_income|unemployed",true,false,false,true,false,true,"Yes, I started working on MTurk after the recession.","I work more on MTurk after the recession.","Mturk is the best marketing place for both workers and requesters. It is useful to my studies because it gives income. I'm veryglad to working with this unit. Thank you!","This is a very useful hit."]
["NYHZYE9RABEZ74ZTEY80K0XZ2HDPCX0YY5Z4KY1Z","Thu Jan 28 18:49:44 GMT 2010",275,"Female",1967,"High School Graduate","Less than $10,000","married","Yes, 3 children","5+","Other","Nevada","United States","10-20 HITs per week","6-12 months","$5-$10 per week","2-4 hours per week","primary_income|secondary_income|unemployed",false,false,false,true,true,true,"Yes, I started working on MTurk after the recession.","I work the same amount of time on MTurk as before.","Some of the tasks are fun and interesting.  I am a stay at home mom so making a little extra cash is always good especially to help with the groceries or buying lunch at school for the kids."]
["NYHZYE9RABEZ74ZTEY80727ZVRMVH1FZXPYX0WN0","Sat Jan 30 07:43:54 GMT 2010",275,"Female",1971,"Some college, no degree","$40,500 - $59,999","married","Yes, 2 children",4,"White","Idaho","United States",{"$nulls":4},"secondary_income",false,false,false,false,true,false,null,null,"I do these to buy video games, uniforms and camping gear on Amazon.com","Thanks"]
["NYHZYE9RABEZ74ZTEY807WZZYDMTRW8TKPH9QHE0","Thu Feb 04 06:50:40 GMT 2010",275,"Male",1979,"Graduate degree, Masters","Less than $10,000","married","No",2,"Asian",null,"India","20-50 HITs per week","3-6 months","$1-$5 per week","8-20 hours per week","fruitful",true,false,false,false,false,false,"Yes, I started working on MTurk after the recession.","I work more on MTurk after the recession.","It is very useful to do the tasks and to earn income."]
["NYHZYE9RABEZ74ZTEY80J3HZ1EMNYV3ZN1514080","Tue Feb 09 23:37:33 GMT 2010",275,"Female",1957,"High School Graduate","$25,000 - $39,499","married","Yes, 2 children",3,"White","California","United States","1000-5000 HITs per week","3-6 months","$50-$100 per week","8-20 hours per week","fruitful|primary_income|secondary_income|entertainment",true,true,false,true,true,false,"I started working on MTurk after the recession but the recession has nothing to do with my decision","I work the same amount of time on MTurk as before."]
["NYHZYE9RABEZ74ZTEY80KHDRPRYA2TS85ZWBTYW0","Tue Feb 09 21:19:09 GMT 2010",276,"Female",1961,"Bachelors degree","$75,000 - $99,999","married","Yes, 3 children","5+","White","Illinois","United States","1-5 HITs per week","0-3 months","Less than $1 per week","1-2 hours per week","secondary_income|entertainment|unemployed",false,true,false,false,true,true,"I started working on MTurk after the recession but the recession has nothing to do with my decision","I was not active before the recession.","I need the extra money.","I'm very new to mechanical turk!"]
["NYHZYE9RABEZ74ZTEY808XTZJ5NNEGDW2VYS8XHZ","Thu Feb 11 04:27:28 GMT 2010",276,"Male",1991,"Some High School","$25,000 - $39,499","single","No",4,"White","Maine","United States","50-100 HITs per week","0-3 months","$5-$10 per week","8-20 hours per week","unemployed",false,false,false,false,false,true,"I started working on MTurk after the recession but the recession has nothing to do with my decision","I work more on MTurk after the recession.",null,"why are you guys wondering why people use mturk."]
["NYHZYE9RABEZ74ZTEY80BTV6RRCKP2GZK3YBFWFZ","Fri Jan 29 18:15:18 GMT 2010",277,"Male",1977,"Graduate degree, Doctorate","$25,000 - $39,499","married","Yes, 2 children",4,"Asian",null,"India","200-500 HITs per week","3-6 months","$5-$10 per week","4-8 hours per week","secondary_income|killtime",false,false,true,false,true,false,"No, I was active before the recession.","I work the same amount of time on MTurk as before.","I would like to kill time  and same time i iwant to improve my communications skills.","In IST morning  time we don't have much hits. Please increase the hits"]
["NYHZYE9RABEZ74ZTEY80XWGPJDZA0VAY57Y5C2EZ","Fri Jan 29 07:12:42 GMT 2010",279,"Female",1980,"Some college, no degree","$25,000 - $39,499","married","No",2,"White","Texas","United States","1000-5000 HITs per week","3-6 months","$50-$100 per week","20-40 hours per week","primary_income|unemployed",false,false,false,true,false,true,"I started working on MTurk after the recession but the recession has nothing to do with my decision","I was not active before the recession.","I am able to temporarily work at home. I wish more companies would utilize this site so I could make more and make it more like a part time job."]
["NYHZYE9RABEZ74ZTEY80FGCZM1DZCBZZ7GYZQGPZ","Thu Jan 28 18:12:08 GMT 2010",280,"Female",1974,"Graduate degree, Masters","Less than $10,000","married","Yes, 1 child",3,"Asian",null,"India","500-1000 HITs per week","1-2 years","$10-$20 per week","20-40 hours per week","primary_income",false,false,false,true,false,false,"No, I was active before the recession.","I work the same amount of time on MTurk as before.","To earn in money during my free time."]
["NYHZYE9RABEZ74ZTEY808WMZREYE8X6A6QYBX01Z","Sat Jan 30 16:45:55 GMT 2010",280,"Male",1984,"Some High School","Less than $10,000","single","No",3,"White","Non-US","Australia","5-10 HITs per week","0-3 months","$1-$5 per week","2-4 hours per week","secondary_income|unemployed",false,false,false,false,true,true,"No, I was active before the recession.","I was not active before the recession.","I do not own a credit card to buy something i want from amazon so this is the only other way (that i know of) to put $ in my account."]
["NYHZYE9RABEZ74ZTEY80HXMAKHN5WYCYRK8WKWD0","Tue Feb 02 18:00:10 GMT 2010",280,"Female",1985,"Some college, no degree","$15,000 - $24,999","engaged","No",2,"White","Florida","United States","20-50 HITs per week","3-6 months","$1-$5 per week","2-4 hours per week","fruitful|secondary_income|killtime|entertainment|unemployed",true,true,true,false,true,true,"I started working on MTurk after the recession but the recession has nothing to do with my decision","I work the same amount of time on MTurk as before."]
["NYHZYE9RABEZ74ZTEY800RXZK3HDPAD6YNY5DJR0","Wed Feb 10 05:10:34 GMT 2010",282,"Female",1978,"Some college, no degree","$25,000 - $39,499","divorced","Yes, 2 children",4,"White","Michigan","United States","50-100 HITs per week","6-12 months","$1-$5 per week","2-4 hours per week","killtime",false,false,true,false,false,false,"I started working on MTurk after the recession but the recession has nothing to do with my decision","I was not active before the recession.","I usually sit with my laptop while I'm watching tv at night. If I can make a few extra dollars while I'm sitting, I'll do a few tasks."]
["NYHZYE9RABEZ74ZTEY80AY5ZJRZY6VJZYKZRZWD0","Thu Jan 28 00:35:32 GMT 2010",283,"Female",1983,"Bachelors degree","$150,000 - $199,999","married","No",2,"Asian","Colorado","United States","5-10 HITs per week","3-6 months","Less than $1 per week","1-2 hours per week","secondary_income",false,false,false,false,true,false,"I started working on MTurk after the recession but the recession has nothing to do with my decision","I work the same amount of time on MTurk as before."]
["NYHZYE9RABEZ74ZTEY80FWEGQPZDS80ZYPZ3GWCZ","Fri Jan 29 13:51:35 GMT 2010",283,"Male",1973,"Bachelors degree","$40,500 - $59,999","married","Yes, 1 child",1,"White","Idaho","United States","10-20 HITs per week","2-4 years","$1-$5 per week","1-2 hours per week","fruitful|secondary_income",true,false,false,false,true,false,"No, I was active before the recession.","I work more on MTurk after the recession.","with a tight budget, mturk provides one of the few ways for me to buy the little \"extras\" in life."]
["NYHZYE9RABEZ74ZTEY80HX4ZMVSEJHTZ1TNZ6RA0","Fri Jan 29 14:03:39 GMT 2010",283,"Male",1942,null,"$60,000 - $74,999","married","Yes, 1 child",4,"White",null,"United States","10-20 HITs per week","0-3 months","$1-$5 per week","4-8 hours per week","fruitful|secondary_income|entertainment",true,true,false,false,true,false,"Yes, I started working on MTurk after the recession.","I was not active before the recession.","I am a retired teacher who finds the more academic hits stimulating."]
["NYHZYE9RABEZ74ZTEY80S2M8YWRHPHDZH0Z1QXT0","Wed Feb 03 05:20:42 GMT 2010",283,"Female",1970,"Bachelors degree","$25,000 - $39,499","married","Yes, 2 children",4,"Asian","Non-US","India","100-200 HITs per week","6-12 months","$10-$20 per week","20-40 hours per week","fruitful|primary_income",true,false,false,true,false,false,"Yes, I started working on MTurk after the recession.","I work more on MTurk after the recession.",null,"This is very useful site for all."]
["NYHZYE9RABEZ74ZTEY80AR4ZVE53H3XZNYY3PYCZ","Sun Feb 07 08:24:01 GMT 2010",283,"Male",1977,"Bachelors degree","$25,000 - $39,499","married","Yes, 1 child",3,"Asian",null,"India","5-10 HITs per week","0-3 months","$1-$5 per week","4-8 hours per week","fruitful|secondary_income",true,false,false,false,true,false,"Yes, I started working on MTurk after the recession.","I was not active before the recession."]
["NYHZYE9RABEZ74ZTEY80RR9ZZ4SMJW7Z0X1K0G90","Wed Feb 10 15:12:40 GMT 2010",283,"Female",1973,"Bachelors degree","$100,000 - $149,999","married","Yes, 1 child",3,"Asian",null,"India","10-20 HITs per week","0-3 months","$1-$5 per week","4-8 hours per week","fruitful",true,false,false,false,false,false,"I started working on MTurk after the recession but the recession has nothing to do with my decision","I work the same amount of time on MTurk as before."]
["NYHZYE9RABEZ74ZTEY805W3M5NY9M2YZXNY97SWZ","Wed Feb 03 14:33:54 GMT 2010",284,"Male",1990,"Some college, no degree","Less than $10,000","single","No",3,"Asian",null,"India","50-100 HITs per week","0-3 months","$5-$10 per week","8-20 hours per week","primary_income|secondary_income",false,false,false,true,true,false,"Yes, I started working on MTurk after the recession.","I work the same amount of time on MTurk as before."]
["NYHZYE9RABEZ74ZTEY802WTZVEY42H5ZXV5SBXQZ","Sat Feb 06 18:51:35 GMT 2010",284,"Female",1985,"Bachelors degree","$25,000 - $39,499","married","No",4,"Asian",null,"India","20-50 HITs per week","0-3 months","$1-$5 per week","8-20 hours per week","fruitful",true,false,false,false,false,false,"Yes, I started working on MTurk after the recession.","I was not active before the recession.","Just to spend my time and its a good source of income.if i simply watch tv its of no use. but if i do this i will get an good way of income","i am happy to work in mturk and i enjoy it"]
["NYHZYE9RABEZ74ZTEY80JZ78SWMKKRJP5GZ0NZ40","Sun Feb 07 09:53:29 GMT 2010",284,"Male",1980,"Bachelors degree","Less than $10,000","married","Yes, 2 children",4,"Asian",null,"India","50-100 HITs per week","0-3 months","$1-$5 per week","4-8 hours per week","primary_income|unemployed",false,false,false,true,false,true,"I started working on MTurk after the recession but the recession has nothing to do with my decision","I was not active before the recession.",null,"Thanks for the oppurtunity to work with you!"]
["NYHZYE9RABEZ74ZTEY80QXK0V1YSEZ5ZK5YC9WHZ","Thu Feb 11 14:41:48 GMT 2010",284,"Female",1975,"Graduate degree, Masters","$60,000 - $74,999","single","No",1,"White","New York","United States","10-20 HITs per week","0-3 months","$1-$5 per week","4-8 hours per week","secondary_income",false,false,false,false,true,false,"Yes, I started working on MTurk after the recession.","I was not active before the recession.","work a f/t job and am looking to earn extra $ from home."]
["NYHZYE9RABEZ74ZTEY809W1ZPKY61WD0Y2YTZJN0","Wed Jan 27 23:52:45 GMT 2010",285,"Male",1964,"Graduate degree, Doctorate","$75,000 - $99,999","married","Yes, 2 children",4,"White","Non-US","Italy","200-500 HITs per week","6-12 months","$20-$50 per week","4-8 hours per week","secondary_income",false,false,false,false,true,false,"No, I was active before the recession.","I work the same amount of time on MTurk as before.","I'm an Italian researcher in computer science. Since I buy a lot of books from Amazon, using mturk money I feel more free to spend."]
["NYHZYE9RABEZ74ZTEY80XWNYWXCF6ZTZTJRHFB40","Thu Feb 04 13:03:52 GMT 2010",285,"Female",1987,"Bachelors degree","Less than $10,000","single","No",4,"Asian","Non-US","India","100-200 HITs per week","1-2 years","$1-$5 per week","8-20 hours per week","fruitful|primary_income|secondary_income|unemployed",true,false,false,true,true,true,"No, I was active before the recession.","I was not active before the recession."]
["NYHZYE9RABEZ74ZTEY80BJDZMN93WY9Z6RY1YXB0","Mon Feb 08 15:04:49 GMT 2010",287,"Female",1980,"Graduate degree, Masters","$40,500 - $59,999","married","Yes, 1 child",3,"Asian",null,"United Kingdom","20-50 HITs per week","0-3 months","$5-$10 per week","2-4 hours per week","fruitful",true,false,false,false,false,false,"Yes, I started working on MTurk after the recession.","I was not active before the recession."]
["NYHZYE9RABEZ74ZTEY80HXTYYSR8CXRE7E0YVSGZ","Wed Jan 27 23:49:48 GMT 2010",288,"Female",1966,"High School Graduate","$40,500 - $59,999","married","Yes, 2 children",4,"White","Minnesota","United States","50-100 HITs per week","1-2 years","$1-$5 per week","2-4 hours per week","fruitful|entertainment|unemployed",true,true,false,false,false,true,"Yes, I started working on MTurk after the recession.","I work more on MTurk after the recession."]
["NYHZYE9RABEZ74ZTEY80FWVZQ4MWEY6ZWR580ZG0","Thu Jan 28 00:13:38 GMT 2010",288,"Male",1983,"Some college, no degree","$40,500 - $59,999","cohabitating","No",4,"White","Non-US","Republic of Macedonia","50-100 HITs per week","6-12 months","$5-$10 per week","2-4 hours per week","fruitful|secondary_income|killtime|unemployed",true,false,true,false,true,true,"I started working on MTurk after the recession but the recession has nothing to do with my decision","I work the same amount of time on MTurk as before."]
["NYHZYE9RABEZ74ZTEY806W8ZHEYFHBGZP7YNR3KZ","Thu Jan 28 14:00:35 GMT 2010",289,"Female",1960,"Some college, no degree","$25,000 - $39,499","divorced","No",2,"White","Florida","United States","50-100 HITs per week","0-3 months","$5-$10 per week","8-20 hours per week","fruitful|secondary_income|entertainment",true,true,false,false,true,false,"Yes, I started working on MTurk after the recession.","I was not active before the recession.","Many of the HIT's require you to think about things you normally wouldn't think about and some have really informative information."]
["NYHZYE9RABEZ74ZTEY809BMJTNXYTRTPX6Z8SKFZ","Wed Feb 10 05:18:53 GMT 2010",290,"Male",1986,"Graduate degree, Masters","Less than $10,000","single","No","5+","Asian",null,"India","50-100 HITs per week","0-3 months","$1-$5 per week","4-8 hours per week","fruitful|secondary_income|unemployed",true,false,false,false,true,true,"I started working on MTurk after the recession but the recession has nothing to do with my decision","I was not active before the recession."]
["NYHZYE9RABEZ74ZTEY80F8JZ5TG1FBYCJZZ18G9Z","Thu Jan 28 04:33:52 GMT 2010",291,"Male",1985,"Some college, no degree","Less than $10,000","single","No",4,"Asian",null,"India","20-50 HITs per week","2-4 years","$1-$5 per week","20-40 hours per week","unemployed",false,false,false,false,false,true,"No, I was active before the recession.","I work the same amount of time on MTurk as before."]
["NYHZYE9RABEZ74ZTEY807ZMZZ943HX0ZNKN2VSP0","Thu Jan 28 13:10:45 GMT 2010",291,"Male",1979,"Graduate degree, Masters","$40,500 - $59,999","single","No",3,"Asian","Non-US","India","20-50 HITs per week","3-6 months","$1-$5 per week","8-20 hours per week","secondary_income",false,false,false,false,true,false,"No, I was active before the recession.","I work the same amount of time on MTurk as before."]
["NYHZYE9RABEZ74ZTEY80415GZNY27W3GTF52WVE0","Sun Jan 31 19:39:24 GMT 2010",291,"Female",1949,"Bachelors degree","$10,000 - $14,999","single","No",1,"White","New York","United States","100-200 HITs per week","1-2 years","$1-$5 per week","2-4 hours per week","fruitful|entertainment",true,true,false,false,false,false,"No, I was active before the recession.","I work more on MTurk after the recession.","Some of the hits have led to the discovery of websites I enjoy and longer term jobs.","Experiences with mturk has led me to try other crowdsourcing experiments and to refer others to try this website.  I particularly enjoy the academic surveys."]
["NYHZYE9RABEZ74ZTEY806WW2X151KV06Y8GVSX4Z","Sat Feb 06 09:48:02 GMT 2010",291,"Female",1954,"Bachelors degree","$100,000 - $149,999","married","Yes, 2 children",2,"Other","California","United States","20-50 HITs per week","0-3 months","$1-$5 per week","4-8 hours per week","killtime|entertainment",false,true,true,false,false,false,"I started working on MTurk after the recession but the recession has nothing to do with my decision","I was not active before the recession.","I also like amazon gift certificates"]
["NYHZYE9RABEZ74ZTEY80NXBGS5572SQ2ZZZYQXW0","Tue Feb 09 10:24:39 GMT 2010",291,"Female",1976,"Graduate degree, Masters","$10,000 - $14,999","married","Yes, 1 child",3,"Asian",null,"India","500-1000 HITs per week","6-12 months","$5-$10 per week","20-40 hours per week","fruitful",true,false,false,false,false,false,"I started working on MTurk after the recession but the recession has nothing to do with my decision","I work the same amount of time on MTurk as before."]
["NYHZYE9RABEZ74ZTEY80AH3RMSN9JW82RAZREHY0","Wed Feb 10 08:29:33 GMT 2010",292,"Female",1991,"Some college, no degree","$60,000 - $74,999","single","No",4,"White","Connecticut","United States","50-100 HITs per week","0-3 months","$5-$10 per week","4-8 hours per week","fruitful|secondary_income|killtime|unemployed",true,false,true,false,true,true,"I started working on MTurk after the recession but the recession has nothing to do with my decision","I was not active before the recession."]
["NYHZYE9RABEZ74ZTEY80XZ0ZYY9G8ZKZRR4NG88Z","Thu Jan 28 03:20:54 GMT 2010",293,"Male",1979,"Graduate degree, Masters","$15,000 - $24,999","married","No",null,"Asian",null,"India","50-100 HITs per week","3-6 months","$5-$10 per week","4-8 hours per week","fruitful|secondary_income",true,false,false,false,true,false,"Yes, I started working on MTurk after the recession.","I work more on MTurk after the recession."]
["NYHZYE9RABEZ74ZTEY809RCTWGNJBYKZ23SCJ9YZ","Thu Jan 28 16:53:47 GMT 2010",293,"Female",1989,"Some college, no degree","Less than $10,000","single","No","5+","White","New York","United States","10-20 HITs per week","6-12 months","Less than $1 per week","2-4 hours per week","fruitful|killtime|entertainment|unemployed",true,true,true,false,false,true,"Yes, I started working on MTurk after the recession.","I work more on MTurk after the recession.",null,"Interesting survey."]
["NYHZYE9RABEZ74ZTEY808Y5Z7M001XFZX3ZS1TEZ","Thu Jan 28 15:37:32 GMT 2010",294,"Male",1967,"Some college, no degree","$40,500 - $59,999","married","Yes, 2 children",4,"White","Wisconsin","United States","100-200 HITs per week","1-2 years","$5-$10 per week","4-8 hours per week","fruitful|primary_income|entertainment",true,true,false,true,false,false,"No, I was active before the recession.","I work the same amount of time on MTurk as before.","I currently do this very part time, but would like to be able to make it a larger part of my income."]
["NYHZYE9RABEZ74ZTEY80XYZZVVZRJY4WJ9Y3TTYZ","Fri Jan 29 11:35:34 GMT 2010",294,"Female",1983,"Graduate degree, Masters","$10,000 - $14,999","single","No",4,"Asian","Non-US","United Arab Emirates","5-10 HITs per week","1-2 years","$1-$5 per week","2-4 hours per week","fruitful|secondary_income|entertainment",{"$f":"ISNUMBER(FIND(\"fruitful\", $R751))","v":true},true,false,false,true,false,"No, I was active before the recession.","I work less on MTurk after the recession.","its the best way to spend some time in a fruitful way...","no comments"]
["NYHZYE9RABEZ74ZTEY80RKWGKWY65SAYSKYFJ9YZ","Mon Feb 08 16:29:27 GMT 2010",294,"Male",1982,"High School Graduate","Less than $10,000","engaged","Yes, 2 children",4,"Black",null,"India","50-100 HITs per week","0-3 months","$1-$5 per week","2-4 hours per week","fruitful",true,false,false,false,false,false,"I started working on MTurk after the recession but the recession has nothing to do with my decision","I was not active before the recession."]
["NYHZYE9RABEZ74ZTEY80CZ7Z3CZXEZCJZ8ZEYSXZ","Wed Feb 10 05:11:28 GMT 2010",294,"Male",1984,"Bachelors degree","Less than $10,000","single","No",4,"Black","Non-US","India","20-50 HITs per week","6-12 months","$20-$50 per week","4-8 hours per week","primary_income",false,false,false,true,false,false,"No, I was active before the recession.","I work more on MTurk after the recession."]
["NYHZYE9RABEZ74ZTEY80PYR00G5PMB2ZHK853W2Z","Thu Feb 11 19:35:47 GMT 2010",294,"Male",1983,"Bachelors degree","Less than $10,000","single","No",3,"Asian","Non-US","India","500-1000 HITs per week","3-6 months","$10-$20 per week","4-8 hours per week","unemployed",false,false,false,false,false,true,"Yes, I started working on MTurk after the recession.","I work less on MTurk after the recession.","yes very good jobs given and then get more money"]
["NYHZYE9RABEZ74ZTEY80XZRZRHH34WCZTHR2ZX30","Fri Jan 29 07:19:14 GMT 2010",295,"Female",1974,"Bachelors degree","Less than $10,000","single","Yes, 3 children","5+","Asian",null,"Philippines","200-500 HITs per week","2-4 years","$5-$10 per week","20-40 hours per week","secondary_income",false,false,false,false,true,false,"No, I was active before the recession.","I work the same amount of time on MTurk as before.","Because its part of my work here in the office"]
["NYHZYE9RABEZ74ZTEY80W3W0Z0YKS2REY2ZB6J80","Sun Jan 31 03:34:43 GMT 2010",295,"Male",1980,"Bachelors degree","Less than $10,000","married","Yes, 1 child",3,"Asian",null,"India","50-100 HITs per week","6-12 months","$10-$20 per week","2-4 hours per week","secondary_income",false,false,false,false,true,false,"Yes, I started working on MTurk after the recession.","I was not active before the recession."]
["NYHZYE9RABEZ74ZTEY80J2MZ0S8YWYXZKXRT0H4Z","Sun Jan 31 12:24:09 GMT 2010",295,"Male",1979,"Graduate degree, Masters","$10,000 - $14,999","married","Yes, 1 child","5+","Asian",null,"India","20-50 HITs per week","0-3 months","$1-$5 per week","2-4 hours per week","fruitful",true,false,false,false,false,false,"Yes, I started working on MTurk after the recession.","I was not active before the recession."]
["NYHZYE9RABEZ74ZTEY801ZEPY4XEYYGTRBZ7SX00","Tue Feb 02 16:41:54 GMT 2010",295,"Female",1963,"Bachelors degree","$15,000 - $24,999","married","Yes, 2 children","5+","Asian","Non-US","India","200-500 HITs per week","0-3 months","$5-$10 per week","20-40 hours per week","fruitful|secondary_income|entertainment|unemployed",true,true,false,false,true,true,"I started working on MTurk after the recession but the recession has nothing to do with my decision","I was not active before the recession."]
["NYHZYE9RABEZ74ZTEY808YACWHYYJG8ZPEM8BY7Z","Thu Feb 04 20:01:35 GMT 2010",295,"Male",1988,"Bachelors degree","Less than $10,000","single","No",4,"Asian",null,"India","50-100 HITs per week","0-3 months","$1-$5 per week","2-4 hours per week","fruitful|secondary_income|entertainment",true,true,false,false,true,false,"I started working on MTurk after the recession but the recession has nothing to do with my decision","I work the same amount of time on MTurk as before."]
["NYHZYE9RABEZ74ZTEY802GYYZMY309TJ61YX5ZH0","Mon Feb 08 15:14:22 GMT 2010",295,"Male",1990,"Bachelors degree","$10,000 - $14,999","single","No",4,"Asian",null,"India","10-20 HITs per week","0-3 months","Less than $1 per week","2-4 hours per week","fruitful",true,false,false,false,false,false,"No, I was active before the recession.","I work the same amount of time on MTurk as before."]
["NYHZYE9RABEZ74ZTEY806SNZ7KR1YW4ZYM8XKYEZ","Thu Jan 28 03:12:26 GMT 2010",296,"Female",1957,"Bachelors degree","$40,500 - $59,999","married","Yes, 4 or more children","5+","White","Washington","United States","20-50 HITs per week","1-2 years","$10-$20 per week","2-4 hours per week","fruitful|secondary_income",true,false,false,false,true,false,"No, I was active before the recession.","I work more on MTurk after the recession."]
["NYHZYE9RABEZ74ZTEY80MA9ZRDYDAXA4Z3YB1Z60","Thu Jan 28 08:21:43 GMT 2010",297,"Male",1955,"Some college, no degree","$15,000 - $24,999","single","No",2,"White","Kansas","United States","20-50 HITs per week","2-4 years","$1-$5 per week","4-8 hours per week","fruitful",true,false,false,false,false,false,"No, I was active before the recession.","I work more on MTurk after the recession."]
["NYHZYE9RABEZ74ZTEY809XWZKEYSKRCZ6MYC5260","Mon Feb 08 04:54:31 GMT 2010",297,"Female",1979,"Graduate degree, Masters","$75,000 - $99,999","married","No",2,"White","Illinois","United States","10-20 HITs per week","6-12 months","$1-$5 per week","2-4 hours per week","fruitful",true,false,false,false,false,false,"No, I was active before the recession.","I work the same amount of time on MTurk as before.","I have a lot of time at work when I'm in front of computer but don't have a specific task to work on and can't really do anything for a long time like read a book - turk works to fill in the gaps and it pays a little extra on top."]
["NYHZYE9RABEZ74ZTEY80PAAZP3YKTYAZNGHZQYY0","Fri Feb 05 07:58:21 GMT 2010",298,"Male",1987,"Bachelors degree","Less than $10,000","single","No",2,"Asian","Non-US","India","50-100 HITs per week","6-12 months","$1-$5 per week","20-40 hours per week","fruitful|primary_income|unemployed",true,false,false,true,false,true,"Yes, I started working on MTurk after the recession.","I work more on MTurk after the recession.","Watching Television is dangerous to our health and due to working this site i will get more income for my studies. So MTurk is a good marketing place to give benefits to its users.","This is a very interesting hit."]
["NYHZYE9RABEZ74ZTEY80YT5Z37CBMAAGSYYCBW1Z","Mon Feb 08 15:04:48 GMT 2010",298,"Male",1983,"Bachelors degree","$10,000 - $14,999","single","No",1,"White","Florida","United States","More than 5000 HITs per week","6-12 months","$100-$200 per week","20-40 hours per week","fruitful|primary_income|secondary_income|unemployed",true,false,false,true,true,true,"Yes, I started working on MTurk after the recession.","I work more on MTurk after the recession.","I do it for extra money -","great hit thank you"]
["NYHZYE9RABEZ74ZTEY806XGMTWZNX8AA7HZE5GH0","Tue Feb 09 22:06:13 GMT 2010",298,"Female",1974,"Some college, no degree","$40,500 - $59,999","cohabitating","No",2,"Asian","Ohio","United States","10-20 HITs per week","6-12 months","$1-$5 per week","1-2 hours per week","fruitful|primary_income|secondary_income|killtime|entertainment",true,true,true,true,true,false,"Yes, I started working on MTurk after the recession.","I work less on MTurk after the recession.",null,"When I first started doing Mechanical Turk, I was able to make over one hundred dollars fairly quickly.  I took this survey when I just returned so my numbers and earnings that I used for the survey are no usualy for me but lo in all accounts."]
["NYHZYE9RABEZ74ZTEY805YSZ7W8RE8W24GM0B8BZ","Fri Feb 12 10:16:01 GMT 2010",298,"Female",1981,"Some college, no degree","$25,000 - $39,499","single","No",2,"Asian","Indiana","India","20-50 HITs per week","6-12 months","$10-$20 per week","2-4 hours per week","primary_income",false,false,false,true,false,false,"Yes, I started working on MTurk after the recession.","I was not active before the recession.","none"]
["NYHZYE9RABEZ74ZTEY8079WRXX567GEZSM0F81VZ","Fri Jan 29 17:02:47 GMT 2010",299,"Male",1984,"High School Graduate","Less than $10,000","single","No",4,"Asian",null,"India",null,"3-6 months","$1-$5 per week","1-2 hours per week","fruitful|primary_income|secondary_income|killtime|unemployed",true,false,true,true,true,true,"Yes, I started working on MTurk after the recession.","I work more on MTurk after the recession.","mturk give money and fun so i have used mturk","no"]
["NYHZYE9RABEZ74ZTEY807JAAGCH7RVY2WKYFHT0Z","Tue Feb 02 09:08:49 GMT 2010",299,"Male",1960,"Some college, no degree","$15,000 - $24,999","married","No",2,"White","Massachusetts","United States","200-500 HITs per week","0-3 months",null,"20-40 hours per week","fruitful|primary_income|unemployed",true,false,false,true,false,true,"Yes, I started working on MTurk after the recession.","I was not active before the recession."]
["NYHZYE9RABEZ74ZTEY80XXZZVEHV0XYZ6HY4HWKZ","Thu Feb 11 19:42:41 GMT 2010",299,"Male",1984,"Graduate degree, Masters","Less than $10,000","single","No",1,"White",null,"Romania","50-100 HITs per week","1-2 years","$20-$50 per week","8-20 hours per week","fruitful|secondary_income|unemployed",true,false,false,false,true,true,"Yes, I started working on MTurk after the recession.","I was not active before the recession.","for money.. :)","no comment. thank you. :)"]
["NYHZYE9RABEZ74ZTEY80VXJ0Z5YT69NZ7805HYX0","Tue Feb 02 04:10:14 GMT 2010",300,"Male",1981,"Bachelors degree","Less than $10,000","married","Yes, 1 child","5+","Asian","Non-US","India","100-200 HITs per week","3-6 months","$10-$20 per week","8-20 hours per week","fruitful|primary_income|secondary_income",true,{"$f":"ISNUMBER(FIND(\"entertainment\", $R771))","v":false},{"$f":"ISNUMBER(FIND(\"killtime\", $R771))","v":false},{"$f":"ISNUMBER(FIND(\"primary_income\", $R771))","v":true},{"$f":"ISNUMBER(FIND(\"secondary_income\", $R771))","v":true},{"$f":"ISNUMBER(FIND(\"unemployed\", R771))","v":false},"Yes, I started working on MTurk after the recession.","I work more on MTurk after the recession.","Need additional earnings for my living, so I work @ a call center (Tele Marketing) NIght shifts for US from India, and in Day time I work parttime with sites","Tkx for the HIT, would like to see more thanks"]
["NYHZYE9RABEZ74ZTEY809YW8TVZT4X7WR6ZC1WPZ","Thu Feb 11 07:26:32 GMT 2010",300,"Male",1980,"Graduate degree, Masters","$10,000 - $14,999","single","No",4,"Asian","Non-US","India","10-20 HITs per week","6-12 months","Less than $1 per week","8-20 hours per week","secondary_income",false,false,false,false,true,false,"No, I was active before the recession.","I was not active before the recession.","its very informative and reliable","no comments"]
["NYHZYE9RABEZ74ZTEY800K9ZTZYKDYZ6WDG9DYVZ","Fri Feb 12 10:18:22 GMT 2010",300,"Male",1982,"Graduate degree, Masters","Less than $10,000","married","No","5+","Black","Washington","India","200-500 HITs per week","6-12 months","$5-$10 per week","8-20 hours per week","primary_income",false,false,false,true,false,false,"Yes, I started working on MTurk after the recession.","I work more on MTurk after the recession.","good"]
["NYHZYE9RABEZ74ZTEY80AWWZP1YWGX36ZKW7RHQ0","Fri Jan 29 15:54:24 GMT 2010",301,"Female",1967,"Bachelors degree","$10,000 - $14,999","married","Yes, 2 children",4,"Asian",null,"Austria","20-50 HITs per week","0-3 months","$1-$5 per week","4-8 hours per week","secondary_income",false,false,false,false,true,false,"I started working on MTurk after the recession but the recession has nothing to do with my decision","I was not active before the recession."]
["NYHZYE9RABEZ74ZTEY809X0CJXY2TB3RZ0C7T0V0","Mon Feb 01 13:49:22 GMT 2010",301,"Male",1970,"Some college, no degree","Less than $10,000","married","No",2,"Asian",null,"India","10-20 HITs per week","0-3 months","$1-$5 per week","4-8 hours per week","secondary_income",false,false,false,false,true,false,"Yes, I started working on MTurk after the recession.","I was not active before the recession.",null,"very good survey"]
["NYHZYE9RABEZ74ZTEY80FKSAWS49NXPW74YM1ZBZ","Tue Feb 02 16:35:13 GMT 2010",301,"Female",1991,"Bachelors degree","Less than $10,000","single","No",3,"Other",null,"India","1-5 HITs per week","0-3 months","Less than $1 per week","1-2 hours per week","fruitful",true,false,false,false,false,false,"I started working on MTurk after the recession but the recession has nothing to do with my decision","I work the same amount of time on MTurk as before.",null,"good"]
["NYHZYE9RABEZ74ZTEY80EBN4TAR17X2Z47YQBZ8Z","Wed Feb 03 02:19:56 GMT 2010",301,"Male",1976,"Bachelors degree","$75,000 - $99,999","married","Yes, 1 child",3,"Other","Non-US","Venezuela","100-200 HITs per week","0-3 months","$5-$10 per week","2-4 hours per week","fruitful|killtime|entertainment",true,true,true,false,false,false,"I started working on MTurk after the recession but the recession has nothing to do with my decision","I was not active before the recession.","Usually I buy a lot of stuff in amazon. When I knew about Mturk and after exploring some hits, I found it interesting and trusted."]
["NYHZYE9RABEZ74ZTEY808V0MT4Y5EWAZWMY0YWV0","Sat Feb 06 07:34:44 GMT 2010",301,"Male",1987,"Bachelors degree","Less than $10,000","single","No",4,"Asian",null,"India","50-100 HITs per week","0-3 months","$5-$10 per week","8-20 hours per week","fruitful|primary_income|secondary_income",true,false,false,true,true,false,"I started working on MTurk after the recession but the recession has nothing to do with my decision","I was not active before the recession."]
["NYHZYE9RABEZ74ZTEY802XGATJZF5ZVYV7X39XT0","Thu Feb 11 14:27:15 GMT 2010",302,"Female",1980,"Bachelors degree","$10,000 - $14,999","married","Yes, 1 child",3,"Asian",null,"India","100-200 HITs per week","0-3 months","$5-$10 per week","4-8 hours per week","fruitful",true,false,false,false,false,false,"Yes, I started working on MTurk after the recession.","I was not active before the recession."]
["NYHZYE9RABEZ74ZTEY80X3SAXRWD1TTZ3A8EPY60","Mon Feb 08 12:28:17 GMT 2010",303,"Male",1989,"High School Graduate","Less than $10,000","single","No",2,"White","Non-US","Romania","20-50 HITs per week","0-3 months","$10-$20 per week","4-8 hours per week","fruitful|killtime",true,false,true,false,false,false,"I started working on MTurk after the recession but the recession has nothing to do with my decision","I was not active before the recession."]
["NYHZYE9RABEZ74ZTEY80327JZSZE0SF6HYZVMHXZ","Tue Feb 09 01:55:53 GMT 2010",303,"Male",1978,"Graduate degree, Masters","Less than $10,000","married","Yes, 2 children",4,"Asian",null,"India","50-100 HITs per week","0-3 months","$1-$5 per week","4-8 hours per week","primary_income",false,false,false,true,false,false,"I started working on MTurk after the recession but the recession has nothing to do with my decision","I work the same amount of time on MTurk as before."]
["NYHZYE9RABEZ74ZTEY80MTAZWMG8S1TZGYME0XSZ","Mon Feb 01 11:07:39 GMT 2010",304,"Female",1986,"Graduate degree, Masters","Less than $10,000","single","No","5+","Asian","California","India","20-50 HITs per week","0-3 months","Less than $1 per week","8-20 hours per week","fruitful|primary_income|secondary_income|killtime|entertainment|unemployed",true,true,true,true,true,true,"I started working on MTurk after the recession but the recession has nothing to do with my decision","I work the same amount of time on MTurk as before.","good","good"]
["NYHZYE9RABEZ74ZTEY80KSWZM1Y7A88J7KZSAWQ0","Sun Feb 07 21:10:41 GMT 2010",304,"Female",1965,"Some college, no degree","$25,000 - $39,499","married","No",2,"White",null,"Netherlands","1-5 HITs per week","0-3 months","Less than $1 per week","1-2 hours per week","fruitful|entertainment",true,true,false,false,false,false,"Yes, I started working on MTurk after the recession.","I work more on MTurk after the recession."]
["NYHZYE9RABEZ74ZTEY80DV4ZSRHZCT5ZG3CK0XC0","Thu Jan 28 08:35:29 GMT 2010",305,"Male",1987,"Graduate degree, Masters","Less than $10,000","single","No",3,"Asian","Non-US","India","20-50 HITs per week","0-3 months","$1-$5 per week","2-4 hours per week","fruitful",true,false,false,false,false,false,"Yes, I started working on MTurk after the recession.","I work less on MTurk after the recession.","Ya to make my remaining time as useful"]
["NYHZYE9RABEZ74ZTEY80XY1E4KYVHX1YKDYEMXSZ","Fri Jan 29 15:01:22 GMT 2010",306,"Male",1983,"Bachelors degree","Less than $10,000","single","No",4,"Asian",null,"India","100-200 HITs per week","3-6 months","$10-$20 per week","20-40 hours per week","fruitful|secondary_income|entertainment",true,true,false,false,true,false,"No, I was active before the recession.","I work the same amount of time on MTurk as before."]
["NYHZYE9RABEZ74ZTEY80TYQZ69GPAYWZ5XZS7KPZ","Tue Feb 02 14:21:55 GMT 2010",306,"Female",1951,"Bachelors degree","$75,000 - $99,999","married","Yes, 4 or more children",4,"White","Florida","United States","50-100 HITs per week","6-12 months","$5-$10 per week","4-8 hours per week","fruitful",true,false,false,false,false,false,"Yes, I started working on MTurk after the recession.","I work more on MTurk after the recession.","helps pay for my daughters gymnastics"]
["NYHZYE9RABEZ74ZTEY80ZZ1EP0YXPZDGXWZGHW00","Sat Jan 30 03:18:16 GMT 2010",307,"Male",1986,"Graduate degree, Masters","$15,000 - $24,999","single","No",4,"Asian",null,"India","100-200 HITs per week","3-6 months","$20-$50 per week","1-2 hours per week","fruitful|unemployed",true,false,false,false,false,true,"No, I was active before the recession.","I work the same amount of time on MTurk as before.","it is best way to earn money from internet. none another than.","mturk is the amazing way to earn cash."]
["NYHZYE9RABEZ74ZTEY80XWB2WEYJNGRA16YE9ZC0","Sun Feb 07 22:05:09 GMT 2010",307,"Male",1984,"Bachelors degree","$10,000 - $14,999","single","No",4,"Asian",null,"India","10-20 HITs per week","0-3 months","Less than $1 per week","1-2 hours per week","fruitful|entertainment",true,true,false,false,false,false,"I started working on MTurk after the recession but the recession has nothing to do with my decision","I work the same amount of time on MTurk as before.","its a nice way to earn while having fun and lots of nice interesting tasks providing an insight to various matters we come across."]
["NYHZYE9RABEZ74ZTEY80HXTZR4RCHYN6VFZMTRWZ","Tue Feb 09 12:44:33 GMT 2010",307,"Male",1985,"Some High School","Less than $10,000","single","Yes, 1 child",4,"White",null,"Mexico","200-500 HITs per week","0-3 months","$1-$5 per week","4-8 hours per week","unemployed",false,false,false,false,false,true,"I started working on MTurk after the recession but the recession has nothing to do with my decision","I work the same amount of time on MTurk as before.","Currently unemployed, looking to make some income online.","Looking for a job/to make some money online, willing to participate in any program/survey."]
["NYHZYE9RABEZ74ZTEY80AXGZJKZ6PZCTZBY5FKVZ","Fri Feb 12 10:19:52 GMT 2010",308,"Male",1980,"Bachelors degree","Less than $10,000","single","No","5+","Asian","Non-US","India","More than 5000 HITs per week","3-6 months","$100-$200 per week","More than 40 hours per week","primary_income|secondary_income|unemployed",false,false,false,true,true,true,"I started working on MTurk after the recession but the recession has nothing to do with my decision","I work the same amount of time on MTurk as before."]
["NYHZYE9RABEZ74ZTEY808AFZ17YT9J2EXTSRH2H0","Thu Feb 11 17:30:51 GMT 2010",309,"Male",1982,"Bachelors degree","Less than $10,000","single","No",4,"Asian",null,"China","50-100 HITs per week","3-6 months","$10-$20 per week","4-8 hours per week","fruitful",true,false,false,false,false,false,"No, I was active before the recession.","I work the same amount of time on MTurk as before."]
["NYHZYE9RABEZ74ZTEY808B3ZS3G9RBFMW081XSZZ","Thu Jan 28 03:54:26 GMT 2010",310,"Female",1960,"Bachelors degree","$300,000 or more","married","Yes, 2 children",4,"Other","Arizona","United States","200-500 HITs per week","0-3 months","$10-$20 per week","2-4 hours per week","fruitful|secondary_income|killtime|entertainment|unemployed",true,true,true,false,true,true,"I started working on MTurk after the recession but the recession has nothing to do with my decision","I was not active before the recession."]
["NYHZYE9RABEZ74ZTEY809ZD44NDHT1TZ1A9Y0920","Wed Feb 10 03:23:37 GMT 2010",310,"Female",1968,"Associates degree","$40,500 - $59,999","married","Yes, 1 child",3,"White","Virginia","United States","20-50 HITs per week","0-3 months","$5-$10 per week","8-20 hours per week","fruitful|secondary_income|entertainment|unemployed",true,true,false,false,true,true,"I started working on MTurk after the recession but the recession has nothing to do with my decision","I work the same amount of time on MTurk as before.","Because the hits are fun and easy. I enjoy making money while I am on the computer for a few hours each night."]
["NYHZYE9RABEZ74ZTEY80NZDJR5YRCWTR3RXP80QZ","Thu Jan 28 00:05:45 GMT 2010",311,"Male",1964,"High School Graduate","$15,000 - $24,999","cohabitating","Yes, 2 children",4,"White",null,"Canada","50-100 HITs per week","2-4 years","$5-$10 per week","4-8 hours per week","fruitful|secondary_income|killtime",true,false,true,false,true,false,"No, I was active before the recession.","I work the same amount of time on MTurk as before.","I like it to kill time once in awhile"]
["NYHZYE9RABEZ74ZTEY80M1TJR1H2XW02WZZSDZRZ","Mon Feb 01 17:29:17 GMT 2010",311,"Female",1978,"Graduate degree, Masters","Less than $10,000","married","Yes, 2 children",4,"Asian",null,"India","10-20 HITs per week","0-3 months","$1-$5 per week","8-20 hours per week","secondary_income",false,false,false,false,true,false,"I started working on MTurk after the recession but the recession has nothing to do with my decision","I work the same amount of time on MTurk as before.","The hits are really interesting and provides to improve the powers of mind application. Further some sort of satisfaction is obtained when a hit is completed with success.","I would be interested in knowing the outcome of this survey."]
["NYHZYE9RABEZ74ZTEY80SZNZM7ZBR3R8YCZYCZSZ","Thu Feb 04 17:30:27 GMT 2010",311,"Male",1969,"Some college, no degree","$60,000 - $74,999","single","No",2,"White",null,"Netherlands","1-5 HITs per week","0-3 months","Less than $1 per week","1-2 hours per week","fruitful|secondary_income|killtime",true,false,true,false,true,false,"I started working on MTurk after the recession but the recession has nothing to do with my decision","I was not active before the recession.","i read about it in a news paper, so i like to try."]
["NYHZYE9RABEZ74ZTEY800X8YKCMDHXEZ27YK4BW0","Mon Feb 01 02:23:20 GMT 2010",312,"Male",1950,"Bachelors degree","$25,000 - $39,499","married","Yes, 1 child",2,"White","Wisconsin","United States","5-10 HITs per week","6-12 months","$1-$5 per week","1-2 hours per week","fruitful",true,false,false,false,false,false,"No, I was active before the recession.","I work the same amount of time on MTurk as before.","I learn something most of the time and it forces me to think and be involved."]
["NYHZYE9RABEZ74ZTEY802W9ZXMCAW8XZVKCJFSSZ","Thu Feb 04 15:20:06 GMT 2010",312,"Female",1976,"Bachelors degree","Less than $10,000","single","No","5+","Other",null,"India","1-5 HITs per week","0-3 months","Less than $1 per week","Less than 1 hour per week","unemployed",false,false,false,false,false,true,"I started working on MTurk after the recession but the recession has nothing to do with my decision","I work the same amount of time on MTurk as before.","I am doing a part time job and am not able to earn enough for my commitments, hence the Mturk job."]
["NYHZYE9RABEZ74ZTEY80SBT8KXCQAW7ASQ9AGWG0","Thu Feb 11 14:51:31 GMT 2010",313,"Male",1987,"Graduate degree, Masters","Less than $10,000","single","No",4,"Asian","Non-US","India","200-500 HITs per week","6-12 months","$10-$20 per week","8-20 hours per week","fruitful|primary_income|secondary_income",true,false,false,true,true,false,"No, I was active before the recession.","I work the same amount of time on MTurk as before."]
["NYHZYE9RABEZ74ZTEY808YPZRDRBKWJZV2CC6ZS0","Tue Feb 09 05:36:42 GMT 2010",315,"Male",1984,"Graduate degree, Masters","Less than $10,000","single","No",4,"Asian","Non-US","India","200-500 HITs per week","0-3 months","$10-$20 per week","8-20 hours per week","fruitful|unemployed",true,false,false,false,false,true,"I started working on MTurk after the recession but the recession has nothing to do with my decision","I work the same amount of time on MTurk as before.","i have to spend time for internet to make money and also avoid boring time."]
["NYHZYE9RABEZ74ZTEY80RK5ZK9YPVWACWCGPNGN0","Wed Feb 10 05:05:00 GMT 2010",316,"Female",1982,"High School Graduate","Less than $10,000","married","Yes, 3 children","5+","Asian",null,"India","50-100 HITs per week","1-2 years","$1-$5 per week","8-20 hours per week","primary_income|secondary_income|unemployed",false,false,false,true,true,true,"No, I was active before the recession.","I work more on MTurk after the recession."]
["NYHZYE9RABEZ74ZTEY808WMJ0KZKAX7ZTJZXCJF0","Wed Feb 10 15:41:06 GMT 2010",316,"Female",1969,"Bachelors degree","$60,000 - $74,999","cohabitating","No",2,"White","North Carolina","France","20-50 HITs per week","0-3 months","$10-$20 per week","4-8 hours per week","fruitful|primary_income|entertainment|unemployed",true,true,false,true,false,true,"I started working on MTurk after the recession but the recession has nothing to do with my decision","I was not active before the recession."]
["NYHZYE9RABEZ74ZTEY80H2BEXNYBPZ22HDZ5WXKZ","Thu Jan 28 12:15:53 GMT 2010",317,"Male",1988,"Bachelors degree","$10,000 - $14,999","single","No",1,"White","Non-US","Greece","20-50 HITs per week","0-3 months","$1-$5 per week","2-4 hours per week","fruitful|secondary_income",true,false,false,false,true,false,"I started working on MTurk after the recession but the recession has nothing to do with my decision","I work the same amount of time on MTurk as before.","Somebody recommended the mechanical Turk for breaks between assignments, as something else to work on as a creative break. Moreover, it enables me to get a \"discount\" on things -for hobbies- on amazon to buy."]
["NYHZYE9RABEZ74ZTEY80QAGZ7ZM651ZZZAY20HDZ","Mon Feb 01 01:48:52 GMT 2010",317,"Female",1983,"Bachelors degree","$25,000 - $39,499","engaged","Yes, 2 children",4,"Black","Georgia","United States","20-50 HITs per week","3-6 months","$1-$5 per week","2-4 hours per week","secondary_income|unemployed",false,false,false,false,true,true,"I started working on MTurk after the recession but the recession has nothing to do with my decision","I was not active before the recession."]
["NYHZYE9RABEZ74ZTEY80GSYZ55RPHW1E2VR0KYMZ","Tue Feb 09 09:16:20 GMT 2010",317,"Female",1976,"Bachelors degree","Less than $10,000","married","Yes, 2 children","5+","Asian","Non-US","India","10-20 HITs per week","0-3 months","Less than $1 per week","2-4 hours per week","primary_income",false,false,false,true,false,false,"Yes, I started working on MTurk after the recession.","I work more on MTurk after the recession."]
["NYHZYE9RABEZ74ZTEY80JYGAN1XSCY7GTWDJ3Z00","Thu Jan 28 07:30:29 GMT 2010",318,"Male",1980,"Bachelors degree","Less than $10,000","single","No",null,"Asian",null,"India","100-200 HITs per week","0-3 months","$5-$10 per week","4-8 hours per week","fruitful|entertainment",true,true,false,false,false,false,"No, I was active before the recession.","I work less on MTurk after the recession."]
["NYHZYE9RABEZ74ZTEY80AZ3TWQZS08XZR3ZKRAN0","Sat Jan 30 05:39:09 GMT 2010",318,"Female",1963,"Bachelors degree",null,"single","No",4,"Asian",null,"Philippines","10-20 HITs per week","6-12 months","$1-$5 per week","2-4 hours per week","fruitful|entertainment|unemployed",true,true,false,false,false,true,"I started working on MTurk after the recession but the recession has nothing to do with my decision","I work the same amount of time on MTurk as before.","This is a fun way to exercise my brain power. :)"]
["NYHZYE9RABEZ74ZTEY80XVKMYZYENJ3Z0WZAXRQZ","Mon Feb 08 20:32:59 GMT 2010",319,"Female",1988,"Some college, no degree","$25,000 - $39,499","single","Yes, 1 child",3,"Other","Texas","United States","5-10 HITs per week","0-3 months","Less than $1 per week","2-4 hours per week","fruitful",true,false,false,false,false,false,"Yes, I started working on MTurk after the recession.","I was not active before the recession."]
["NYHZYE9RABEZ74ZTEY80WH8Z23ZQYYXMJ0YVPG50","Thu Jan 28 09:27:31 GMT 2010",321,"Female",1958,"Bachelors degree","$15,000 - $24,999","single","No",1,"White","Pennsylvania","United States","100-200 HITs per week","0-3 months","$10-$20 per week","8-20 hours per week","secondary_income",false,false,false,false,true,false,"I started working on MTurk after the recession but the recession has nothing to do with my decision","I work the same amount of time on MTurk as before.","I am on disability, so doing something at home that this gives me extra money is ideal.  It helps me to supplement caring for my geriatric pets."]
["NYHZYE9RABEZ74ZTEY80MSDY20ZRE9ZZ5V4Y1WXZ","Mon Feb 01 01:59:26 GMT 2010",321,"Female",1952,"Bachelors degree","$40,500 - $59,999","married","Yes, 3 children","5+","White","North Carolina","United States","10-20 HITs per week","1-2 years","$1-$5 per week","2-4 hours per week","fruitful",true,false,false,false,false,false,"No, I was active before the recession.","I work the same amount of time on MTurk as before.","sometimes the hits are interesting."]
["NYHZYE9RABEZ74ZTEY80TW90SV4DN2HZZ2GN5JC0","Thu Feb 11 19:48:47 GMT 2010",321,"Male",1990,"High School Graduate","Less than $10,000","single","No",4,"White","Non-US","India","5-10 HITs per week","0-3 months","Less than $1 per week","4-8 hours per week","primary_income|unemployed",false,false,false,true,false,true,"No, I was active before the recession.","I was not active before the recession.","yes sir","thanks for survey"]
["NYHZYE9RABEZ74ZTEY80ZX7A2BGAZX5WNEYMMTB0","Wed Feb 03 06:55:59 GMT 2010",322,"Male",1970,"High School Graduate","Less than $10,000","married","Yes, 2 children",2,"Asian","Non-US","India","50-100 HITs per week","1-2 years","$20-$50 per week","8-20 hours per week","fruitful|primary_income|killtime",true,false,true,true,false,false,"Yes, I started working on MTurk after the recession.","I work more on MTurk after the recession.","it is one of the excellent company compare to international level side and this job is very suitable on the unemployment person side","it is very excellent hits.i thing need some big cash of the hit"]
["NYHZYE9RABEZ74ZTEY80ZTQPHRXPVARG02D8CS9Z","Sun Jan 31 22:04:16 GMT 2010",323,"Male",1990,"Bachelors degree","Less than $10,000","single","No",3,"Asian",null,"India","100-200 HITs per week","0-3 months","Less than $1 per week","8-20 hours per week","fruitful",true,false,false,false,false,false,"I started working on MTurk after the recession but the recession has nothing to do with my decision","I was not active before the recession.","well the only reason being that i could add a bit more to my pocket","there are very less good paying hits for people outside US.... n how can i increase my earnings they r really low paying"]
["NYHZYE9RABEZ74ZTEY802WPPN6ZGRZNZ11Y4B38Z","Sun Feb 07 12:28:11 GMT 2010",323,"Male",1983,"Some college, no degree","Less than $10,000","single","No","5+","Asian","Non-US","India","200-500 HITs per week","0-3 months","$5-$10 per week","20-40 hours per week","unemployed",false,false,false,false,false,true,"I started working on MTurk after the recession but the recession has nothing to do with my decision","I work more on MTurk after the recession."]
["NYHZYE9RABEZ74ZTEY80X0CCT70NB09YJG0BV0R0","Thu Feb 11 02:11:47 GMT 2010",324,"Female",1989,"Some college, no degree","$60,000 - $74,999","single","No",4,"Other","California","United States","1-5 HITs per week","6-12 months","Less than $1 per week","2-4 hours per week","fruitful|killtime|entertainment",{"$f":"ISNUMBER(FIND(\"fruitful\", $R815))","v":true},true,true,false,false,false,"I started working on MTurk after the recession but the recession has nothing to do with my decision","I work less on MTurk after the recession."]
["NYHZYE9RABEZ74ZTEY80DK645881RZXEJFXC8X20","Thu Jan 28 09:41:09 GMT 2010",325,"Male",1989,"Bachelors degree","Less than $10,000","single","No",4,"Asian","Non-US","India","100-200 HITs per week","0-3 months","$1-$5 per week","8-20 hours per week","secondary_income",false,false,false,false,true,false,"No, I was active before the recession.","I work more on MTurk after the recession.","it's useful for pocket money."]
["NYHZYE9RABEZ74ZTEY80GTK4T756QT0ZMF8ZVJK0","Tue Feb 09 21:23:20 GMT 2010",325,"Female",null,"Graduate degree, Masters","Less than $10,000","single","No",null,"White","Indiana","United States","50-100 HITs per week","0-3 months","$1-$5 per week","2-4 hours per week","fruitful|secondary_income|killtime|entertainment",true,true,true,false,true,false,"I started working on MTurk after the recession but the recession has nothing to do with my decision","I was not active before the recession.","I find Mechanical Turk to be an easy way to earn money for a small amount of work that I enjoy doing."]
["NYHZYE9RABEZ74ZTEY801K3A76ZZ5W9ZTWDB1V6Z","Thu Jan 28 11:56:28 GMT 2010",326,"Female",1982,"Bachelors degree","$60,000 - $74,999","single","No",2,"White",null,"Turkey","1000-5000 HITs per week","0-3 months","$20-$50 per week","20-40 hours per week","fruitful",true,false,false,false,false,false,"I started working on MTurk after the recession but the recession has nothing to do with my decision","I work more on MTurk after the recession."]
["NYHZYE9RABEZ74ZTEY80AXKYXMZKDYVZMEYN7KT0","Wed Jan 27 23:49:51 GMT 2010",327,"Female",1959,"Some college, no degree","$40,500 - $59,999","cohabitating","Yes, 1 child",3,"White","Texas","United States","More than 5000 HITs per week","1-2 years","$200-$500 per week","20-40 hours per week","fruitful|secondary_income|entertainment|unemployed",true,true,false,false,true,true,"I started working on MTurk after the recession but the recession has nothing to do with my decision","I work the same amount of time on MTurk as before.","I am using MTurk money to fund my kid's college education instead of cashing in stocks and losing money","thanks for caring!"]
["NYHZYE9RABEZ74ZTEY80Z08ZZZ4GMX4Z5GZ95SK0","Sat Jan 30 14:56:02 GMT 2010",327,"Male",1955,"Graduate degree, Masters","$10,000 - $14,999","married","Yes, 3 children","5+","Asian",null,"India","500-1000 HITs per week","0-3 months","$10-$20 per week","20-40 hours per week","fruitful",true,false,false,false,false,false,"I started working on MTurk after the recession but the recession has nothing to do with my decision","I was not active before the recession."]
["NYHZYE9RABEZ74ZTEY809AJJWBZY9Z2YWSYNWWHZ","Wed Feb 10 04:56:25 GMT 2010",327,"Male",1987,"Bachelors degree","Less than $10,000","single","No",4,"Asian",null,"India","20-50 HITs per week","0-3 months","$5-$10 per week","4-8 hours per week","fruitful",true,false,false,false,false,false,"I started working on MTurk after the recession but the recession has nothing to do with my decision","I was not active before the recession.","Mechanical Turk is a very good site to utilize our free time. for some people it helps to get their work done and for others it is a source of pocket money."]
["NYHZYE9RABEZ74ZTEY80WXJZZVYAJW7ZZJSE4YPZ","Wed Feb 10 18:58:04 GMT 2010",327,"Male",1988,"Bachelors degree","Less than $10,000","single","No","5+","Asian",null,"India","5-10 HITs per week","0-3 months","Less than $1 per week","2-4 hours per week","secondary_income",false,false,false,false,true,false,"I started working on MTurk after the recession but the recession has nothing to do with my decision","I was not active before the recession.",null,"I am very much happy with the works which am doing in mturk."]
["NYHZYE9RABEZ74ZTEY8071RASTZQ6SDWH3SMAZSZ","Thu Jan 28 01:32:06 GMT 2010",329,"Female",1929,"High School Graduate","$25,000 - $39,499","married","Yes, 4 or more children",2,"White","Iowa","United States","50-100 HITs per week","1-2 years","$1-$5 per week","4-8 hours per week","fruitful|secondary_income|entertainment",true,true,false,false,true,false,"I started working on MTurk after the recession but the recession has nothing to do with my decision","I was not active before the recession.","I accidentally came upon this website and found it fascinating.  I still wonder at times what people do with the information I give on some of the Hits.  Sometimes there are no Hits that interest me and sometimes I find several that really do.","Mechanical Turk is quite addictive.  I find myself spending too much time thinking I will find a Hit that I can or want to do.  I have one concern - that I might get into something that will harm my computer.  So far, so good."]
["NYHZYE9RABEZ74ZTEY80RT0CRF5V7ZFCWR566WP0","Tue Feb 02 19:58:39 GMT 2010",329,"Male",1984,"Bachelors degree","$10,000 - $14,999","single","No","5+","Asian",null,"India","500-1000 HITs per week","0-3 months","$10-$20 per week","More than 40 hours per week","fruitful|secondary_income|unemployed",true,false,false,false,true,true,"I started working on MTurk after the recession but the recession has nothing to do with my decision","I was not active before the recession.",null,"May be you could first set the country and then take the question about the income....\r\nIts more easier to comprehend it in terms of your own currency.... easier to calculate"]
["NYHZYE9RABEZ74ZTEY80BVZYJWW2FW6ZHZ95QWHZ","Mon Feb 08 15:11:25 GMT 2010",330,"Male",1981,"Some college, no degree","$40,500 - $59,999","married","No","5+","White","Non-US","Israel","20-50 HITs per week","6-12 months","$1-$5 per week","4-8 hours per week","fruitful|killtime|entertainment",true,true,true,false,false,false,"No, I was active before the recession.","I work the same amount of time on MTurk as before.","i love survey.","nice survey!"]
["NYHZYE9RABEZ74ZTEY80ARKZSQ5ZT8P01AZ1D25Z","Mon Feb 01 13:03:47 GMT 2010",332,"Female",1988,"Bachelors degree","Less than $10,000","married","No","5+","Other",null,"India","20-50 HITs per week","0-3 months","$1-$5 per week","8-20 hours per week","fruitful",true,false,false,false,false,false,"Yes, I started working on MTurk after the recession.","I was not active before the recession."]
["NYHZYE9RABEZ74ZTEY80AXGZRNMTTX3WV4ZPS2W0","Fri Feb 12 11:00:08 GMT 2010",332,"Male",1987,"Some college, no degree","$25,000 - $39,499","single","No",4,"White","New York","United States","20-50 HITs per week","6-12 months","$20-$50 per week","4-8 hours per week","fruitful",true,false,false,false,false,false,"No, I was active before the recession.","I work the same amount of time on MTurk as before."]
["NYHZYE9RABEZ74ZTEY80XSTWX2ZDRT6ZTDN7HTZ0","Sat Jan 30 03:28:46 GMT 2010",333,"Female",1979,"Bachelors degree","$15,000 - $24,999","married","Yes, 1 child",3,"White","Georgia","United States","50-100 HITs per week","1-2 years","$1-$5 per week","2-4 hours per week","fruitful|primary_income|entertainment",true,true,false,true,false,false,"No, I was active before the recession.","I work more on MTurk after the recession."]
["NYHZYE9RABEZ74ZTEY804Z00Z7HR0J5ZY3N0X2B0","Thu Feb 11 14:28:39 GMT 2010",333,"Male",1987,"Bachelors degree","Less than $10,000","single","No","5+","Asian",null,"India","50-100 HITs per week","0-3 months","$1-$5 per week","4-8 hours per week","fruitful|primary_income|entertainment",true,true,false,true,false,false,"I started working on MTurk after the recession but the recession has nothing to do with my decision","I work the same amount of time on MTurk as before.",null,"it was good"]
["NYHZYE9RABEZ74ZTEY803TGZ2WHRFZ6YM1Y7AXQZ","Thu Jan 28 14:10:25 GMT 2010",335,"Male",1987,"Bachelors degree","Less than $10,000","single","No",4,"White",null,"Romania","20-50 HITs per week","0-3 months","$5-$10 per week","2-4 hours per week","fruitful|secondary_income",true,false,false,false,true,false,"I started working on MTurk after the recession but the recession has nothing to do with my decision","I was not active before the recession.","In 20-30 minutes you can earn more then 1 dollar. It's not that much of a sacrifice for one day."]
["NYHZYE9RABEZ74ZTEY80RHWZ3VS38GMZW7ZK2WEZ","Thu Jan 28 12:00:49 GMT 2010",336,"Female",1941,"Some college, no degree","$40,500 - $59,999","married","Yes, 2 children",2,"White","Georgia","United States","50-100 HITs per week","6-12 months","$10-$20 per week","8-20 hours per week","fruitful|secondary_income|entertainment",true,true,false,false,true,false,"Yes, I started working on MTurk after the recession.","I work the same amount of time on MTurk as before.","I am retired and I have found MTurk to be a good way to earn a little spending money.  I also like the fact that doing the hits heps to keep my mind active."]
["NYHZYE9RABEZ74ZTEY800WHMTZYCXT7WK8MPM8XZ","Thu Feb 04 08:57:49 GMT 2010",336,"Female",1982,"Some college, no degree","Less than $10,000","married","Yes, 1 child",3,"Asian","Non-US","India","20-50 HITs per week","0-3 months","Less than $1 per week","8-20 hours per week","primary_income",false,false,false,true,false,false,"I started working on MTurk after the recession but the recession has nothing to do with my decision","I work the same amount of time on MTurk as before.","MTurk is offering more jobs.Which we make it useful.Thankyou.","Give us more simple work. Thankyou."]
["NYHZYE9RABEZ74ZTEY80SRYZ5G472WC6ZC0GZWX0","Thu Feb 04 10:06:19 GMT 2010",336,"Female",1981,"Graduate degree, Masters","Less than $10,000","married","Yes, 1 child","5+","Black",null,"India","200-500 HITs per week","0-3 months","$20-$50 per week","8-20 hours per week","unemployed",false,false,false,false,false,true,"No, I was active before the recession.","I work more on MTurk after the recession."]
["NYHZYE9RABEZ74ZTEY80RJ86XESGMVZ0SGYHTK7Z","Thu Jan 28 04:23:45 GMT 2010",337,"Male",1987,"Bachelors degree","Less than $10,000","single","No",4,"Asian",null,"India","100-200 HITs per week","3-6 months","$5-$10 per week","8-20 hours per week","fruitful",true,false,false,false,false,false,"I started working on MTurk after the recession but the recession has nothing to do with my decision","I was not active before the recession."]
["NYHZYE9RABEZ74ZTEY802HP45R5NPXA4HJZZJZHZ","Thu Feb 04 12:51:34 GMT 2010",339,"Male",1981,"Bachelors degree","Less than $10,000","engaged","No",3,"Asian","Non-US","India","50-100 HITs per week","0-3 months","$5-$10 per week","2-4 hours per week","fruitful|primary_income|secondary_income|entertainment|unemployed",true,{"$f":"ISNUMBER(FIND(\"entertainment\", $R835))","v":true},{"$f":"ISNUMBER(FIND(\"killtime\", $R835))","v":false},{"$f":"ISNUMBER(FIND(\"primary_income\", $R835))","v":true},{"$f":"ISNUMBER(FIND(\"secondary_income\", $R835))","v":true},{"$f":"ISNUMBER(FIND(\"unemployed\", R835))","v":true},"I started working on MTurk after the recession but the recession has nothing to do with my decision","I work the same amount of time on MTurk as before.","The hits are very interesting to work with.","I like to work on hits of captcha, surveys, transcription, and translating.  Please provide it in future."]
["NYHZYE9RABEZ74ZTEY805RVEJGRN9ZBY7FZTBW5Z","Mon Feb 08 00:35:40 GMT 2010",339,"Female",1948,"Bachelors degree","$60,000 - $74,999","divorced","Yes, 2 children",1,"White","California","United States","500-1000 HITs per week","0-3 months","$10-$20 per week","8-20 hours per week","fruitful",true,false,false,false,false,false,"I started working on MTurk after the recession but the recession has nothing to do with my decision","I was not active before the recession.","The amount paid is not really fair for what is asked. But it is almost addictive-like seeing pennies and nickels and an occasional quarter on the street. You want to pick it up rather than walk by it. With a little effort it adds up. But I can see why some Turkers are not honest-you can't make money by taking your time and doing a good job. That ruins it for us who do try to follow directions-the hits get complex and convoluted beyond the ability to do them sometimes because Requesters are trying to catch Turkers who really don't try."]
["NYHZYE9RABEZ74ZTEY80BY8Z1MZ4HTZCPG8ZNX80","Mon Feb 08 11:23:05 GMT 2010",340,"Female",1988,"Bachelors degree","$10,000 - $14,999","engaged","No",3,"Asian",null,"Macau","5-10 HITs per week","0-3 months","Less than $1 per week","1-2 hours per week","secondary_income|killtime|entertainment",false,true,true,false,true,false,"I started working on MTurk after the recession but the recession has nothing to do with my decision","I was not active before the recession."]
["NYHZYE9RABEZ74ZTEY8059DZW7YCYT1JXEZ7RZ00","Thu Feb 04 10:37:23 GMT 2010",342,"Female",1991,"High School Graduate","$15,000 - $24,999","single","No",3,"Asian",null,"India","10-20 HITs per week","3-6 months","$1-$5 per week","4-8 hours per week","fruitful",true,false,false,false,false,false,"I started working on MTurk after the recession but the recession has nothing to do with my decision","I was not active before the recession.","sometimes i have a lot of free time and working here is the best way to spend time and to get extra pocket money.","enjoyed doing this survey........."]
["NYHZYE9RABEZ74ZTEY80EZ705RHBMWNZ1NGH9T8Z","Mon Feb 01 14:09:23 GMT 2010",343,"Male",1980,"Bachelors degree","Less than $10,000","single","No",3,"Black",null,"India","100-200 HITs per week","6-12 months","$5-$10 per week","20-40 hours per week","unemployed",false,false,false,false,false,true,"No, I was active before the recession.","I work the same amount of time on MTurk as before.","i am unemployed, so give lot of tasks. thank you!","Thank You!"]
["NYHZYE9RABEZ74ZTEY806YD0TFYMDXZZ7WYGZWJZ","Wed Feb 10 05:04:52 GMT 2010",345,"Male",1974,"Some college, no degree","$60,000 - $74,999","single","No",3,"White","Wisconsin","United States","200-500 HITs per week","2-4 years","$5-$10 per week","20-40 hours per week","fruitful|secondary_income|killtime|entertainment|unemployed",true,true,true,false,true,true,"No, I was active before the recession.","I work the same amount of time on MTurk as before."]
["NYHZYE9RABEZ74ZTEY80V2XZGQ09MYAZHWZG9Z40","Thu Jan 28 03:59:05 GMT 2010",347,"Male",1988,"Bachelors degree","Less than $10,000","single","No",3,"Asian",null,"Indonesia","20-50 HITs per week","0-3 months","$1-$5 per week","4-8 hours per week","fruitful|secondary_income",true,false,false,false,true,false,"I started working on MTurk after the recession but the recession has nothing to do with my decision","I was not active before the recession."]
["NYHZYE9RABEZ74ZTEY80FBCP01YBAXFZ0DD5NRF0","Mon Feb 01 15:59:40 GMT 2010",347,"Male",1988,"Bachelors degree","Less than $10,000","single","No",4,"Asian","Non-US","India","10-20 HITs per week","0-3 months","$1-$5 per week","2-4 hours per week","fruitful",true,false,false,false,false,false,"No, I was active before the recession.","I was not active before the recession.","I participated in mechanical truck for find works(HITS) and i am very happy to work with that works.And even to earn it is more useful to me.","Very nice to work like this kind of HITS, thankyou."]
["NYHZYE9RABEZ74ZTEY809YZ4YPYR980THPX61TR0","Sat Feb 06 10:14:14 GMT 2010",348,"Male",1986,"Bachelors degree","Less than $10,000","single","No",4,"Asian","Non-US","India","1-5 HITs per week","0-3 months","Less than $1 per week","1-2 hours per week","primary_income|secondary_income|entertainment",false,true,false,true,true,false,"I started working on MTurk after the recession but the recession has nothing to do with my decision","I work the same amount of time on MTurk as before.","I like to work on mturk because it gives me useful information from different tasks. It is one of the good way to spend time....","Its a good work for rating the mturk... keep it up."]
["NYHZYE9RABEZ74ZTEY80YXTZR8ZY9JAWMC50C9ZZ","Thu Feb 11 22:27:54 GMT 2010",348,"Male",1986,"Bachelors degree","Less than $10,000","single","No","5+","Asian",null,"India","10-20 HITs per week","0-3 months","$1-$5 per week","2-4 hours per week","fruitful",true,false,false,false,false,false,"No, I was active before the recession.","I was not active before the recession.",null,"thank you"]
["NYHZYE9RABEZ74ZTEY80RYBMK2GK3XSMRHZ0RYXZ","Tue Feb 02 16:28:47 GMT 2010",352,"Male",1948,"Bachelors degree","Less than $10,000","married","Yes, 2 children",4,"Asian",null,"India","5-10 HITs per week","0-3 months","Less than $1 per week","8-20 hours per week","fruitful",true,false,false,false,false,false,"I started working on MTurk after the recession but the recession has nothing to do with my decision","I was not active before the recession.","If the hits are accepted i will be able to get some money"]
["NYHZYE9RABEZ74ZTEY80HZWR6S8BAX9ZGJSZXYT0","Tue Feb 09 09:44:48 GMT 2010",352,"Male",1974,"High School Graduate","Less than $10,000","single","No",1,"White","Washington","United States","200-500 HITs per week","0-3 months","$5-$10 per week","2-4 hours per week","fruitful|entertainment|unemployed",true,true,false,false,false,true,"I started working on MTurk after the recession but the recession has nothing to do with my decision","I was not active before the recession.","Unemployed and need the money. Some of the jobs have been interesting. Hopefully I will figure out how to make more than a couple cents a minute on better jobs :D"]
["NYHZYE9RABEZ74ZTEY80K1ZZ2SG2ZKGMX6Y758F0","Wed Jan 27 23:50:59 GMT 2010",353,"Male",1976,"Associates degree","$300,000 or more","single","No",3,"White",null,"Finland","20-50 HITs per week","0-3 months","$1-$5 per week","4-8 hours per week","fruitful|secondary_income|killtime|entertainment|unemployed",true,true,true,false,true,true,"Yes, I started working on MTurk after the recession.","I was not active before the recession.","This give chance see American / Indian work model. I like work on American Indian company so it's help work like them.","Working on mturk is easier than collect bottles and cans. Yes you could get 1 - 20 EUR/week doing that."]
["NYHZYE9RABEZ74ZTEY802YZZVQYEK2ZZWVM74J0Z","Fri Jan 29 13:02:46 GMT 2010",353,"Female",1984,"Bachelors degree","$75,000 - $99,999","married","No",2,"Asian","New Jersey","United States","10-20 HITs per week","6-12 months","$1-$5 per week","4-8 hours per week","fruitful|entertainment",true,true,false,false,false,false,"I started working on MTurk after the recession but the recession has nothing to do with my decision","I work the same amount of time on MTurk as before.","easy way to spend time with fun."]
["NYHZYE9RABEZ74ZTEY80TW0T7D8HDH0YXJHZ3R60","Fri Jan 29 14:02:32 GMT 2010",353,"Female",1984,"Bachelors degree","$15,000 - $24,999","engaged","No",4,"Other","Non-US","India","1000-5000 HITs per week","6-12 months","$50-$100 per week","20-40 hours per week","fruitful|secondary_income|killtime|entertainment",true,true,true,false,true,false,"Yes, I started working on MTurk after the recession.","I work more on MTurk after the recession.","It is convenient to work at the comfort of one's own house and also at any time. There are tasks that are fun and also pay reasonably."]
["NYHZYE9RABEZ74ZTEY80KZAZXD40RV78SZ8CYWSZ","Mon Feb 08 04:10:49 GMT 2010",353,"Female",1975,"Graduate degree, Masters","$40,500 - $59,999","married","No",2,"White",null,"U.S. Virgin Islands","500-1000 HITs per week","6-12 months","$50-$100 per week","20-40 hours per week","secondary_income|unemployed",false,false,false,false,true,true,"Yes, I started working on MTurk after the recession.","I work more on MTurk after the recession.","I teach part-time at a nearby university.  I augment that income with MTurk.  Prior to the recession, I consulted."]
["NYHZYE9RABEZ74ZTEY801YPZWHXYW8VZ4Q8N6HF0","Wed Feb 10 05:08:51 GMT 2010",353,"Female",1964,"Associates degree","Less than $10,000","divorced","Yes, 3 children",1,"White","Arizona","United States","200-500 HITs per week","1-2 years","$20-$50 per week","4-8 hours per week","unemployed",false,false,false,false,false,true,"Yes, I started working on MTurk after the recession.","I work more on MTurk after the recession.","The economy is horrific where I live. The only way to get a job is if you \"know\" somebody and I did not grow up here so I don't know very many people who can help me. I do odd jobs to get by as I have lost everything. I now live in a 16 ft. travel trailer that leaks, with my two cats and little else besides my computer. You really learn fast what you can live without, when you have no choice so in some ways it's been a blessing. I turk because it helps pay for my living expenses."]
["NYHZYE9RABEZ74ZTEY80CZ4CN50YDGSJG2Z4SZSZ","Thu Feb 04 17:04:48 GMT 2010",354,"Female",1981,"Bachelors degree","Less than $10,000","single","No",4,"Asian",null,"India","10-20 HITs per week","6-12 months","$5-$10 per week","20-40 hours per week","fruitful",true,false,false,false,false,false,"Yes, I started working on MTurk after the recession.","I work less on MTurk after the recession."]
["NYHZYE9RABEZ74ZTEY80N0T4SQZWGZW6JPZPKSA0","Mon Feb 08 18:30:25 GMT 2010",354,"Male",1974,"Associates degree","Less than $10,000","married","Yes, 1 child",3,"White","Non-US","Ukraine","20-50 HITs per week","0-3 months","$1-$5 per week","1-2 hours per week","fruitful|entertainment",true,true,false,false,false,false,"I started working on MTurk after the recession but the recession has nothing to do with my decision","I was not active before the recession.","For get some cash and practice english language.","Thanks, interesing survey."]
["NYHZYE9RABEZ74ZTEY80E2YJZZYHTXRZ4EXHFGBZ","Fri Jan 29 10:32:54 GMT 2010",355,"Female",1964,"Graduate degree, Doctorate","$40,500 - $59,999","married","Yes, 2 children",4,"White",null,"New Zealand","20-50 HITs per week","2-4 years","$1-$5 per week","4-8 hours per week","fruitful|secondary_income",true,false,false,false,true,false,"No, I was active before the recession.","I work the same amount of time on MTurk as before.","\"only\" part-time?","\"In which country you live in?\" would be better as \"In which country do you live\""]
["NYHZYE9RABEZ74ZTEY80DZYZN5ZGGY4ZVGZY1X8Z","Sat Feb 06 01:13:30 GMT 2010",355,"Male",1978,"Bachelors degree","$10,000 - $14,999","single","No",4,"Asian",null,"India","100-200 HITs per week","0-3 months","$1-$5 per week","8-20 hours per week","fruitful",true,false,false,false,false,false,"Yes, I started working on MTurk after the recession.","I was not active before the recession.","it is more of a hobby while earning some money"]
["NYHZYE9RABEZ74ZTEY80XTWZG2ZR5XJZW2CHYRMZ","Mon Feb 08 04:17:18 GMT 2010",355,"Female",1956,"Some college, no degree","$25,000 - $39,499","divorced","Yes, 1 child",2,"White","Illinois","United States","10-20 HITs per week","2-4 years","Less than $1 per week","Less than 1 hour per week","fruitful|secondary_income|killtime",true,false,true,false,true,false,"No, I was active before the recession.","I work the same amount of time on MTurk as before.","I have only earned about $50 since I first signed up about three years ago. It's just a fun thing to do to pass time. I enjoy doing most of the HITS I work on."]
["NYHZYE9RABEZ74ZTEY803ZQ80R1E7XHZR45QJKAZ","Fri Jan 29 07:30:27 GMT 2010",357,"Male",1987,"High School Graduate","Less than $10,000","single","No",4,"Asian","Non-US","India","200-500 HITs per week","0-3 months","$5-$10 per week","8-20 hours per week","fruitful",true,false,false,false,false,false,"I started working on MTurk after the recession but the recession has nothing to do with my decision","I work more on MTurk after the recession.","I like this site because of earning cash through online.Thank you for this site owner.","I really appreciate with this site owner.Because this is very useful for me to earning money through online.Because i am coming from medium class family.So this is also useful for my family.Thank you for making this site."]
["NYHZYE9RABEZ74ZTEY807YJZN2ZY9YKZT5Z9HR4Z","Thu Jan 28 13:44:12 GMT 2010",358,"Male",1982,"Graduate degree, Masters","Less than $10,000","single","No",3,"Asian",null,"India","50-100 HITs per week","0-3 months","$1-$5 per week","8-20 hours per week","fruitful|killtime|entertainment",true,true,true,false,false,false,"I started working on MTurk after the recession but the recession has nothing to do with my decision","I was not active before the recession.",null,"FOR MORE QUERY YOU CAN CALL ME AT +919015065950"]
["NYHZYE9RABEZ74ZTEY8080VTSQWAZY5ZY8ZXN2HZ","Fri Feb 05 17:31:36 GMT 2010",358,"Male",1981,"Bachelors degree","Less than $10,000","single","No","5+","Asian","Non-US","India","100-200 HITs per week","3-6 months","$1-$5 per week","8-20 hours per week","fruitful",true,false,false,false,false,false,"I started working on MTurk after the recession but the recession has nothing to do with my decision","I was not active before the recession."]
["NYHZYE9RABEZ74ZTEY80JRE8XVYD83CZZ7HSDKD0","Thu Feb 11 06:01:47 GMT 2010",360,"Male",1986,"Some college, no degree","Less than $10,000","single","No","5+","Asian","Non-US","India","500-1000 HITs per week","0-3 months","$20-$50 per week","20-40 hours per week","fruitful|primary_income|secondary_income|killtime|entertainment|unemployed",true,true,true,true,true,true,"Yes, I started working on MTurk after the recession.","I work more on MTurk after the recession.","nothing","i like this hit"]
["NYHZYE9RABEZ74ZTEY8012FZS1YR71JJZBZ80XK0","Sat Jan 30 18:00:47 GMT 2010",361,"Male",1986,"Bachelors degree","Less than $10,000","single","No",4,"Asian",null,"India","1000-5000 HITs per week","0-3 months","$20-$50 per week","20-40 hours per week","fruitful",true,false,false,false,false,false,"I started working on MTurk after the recession but the recession has nothing to do with my decision","I was not active before the recession.","The more appropriate reason would be it helps me in my personal needs i.e I primarily do attempt article writing HITs and it helps me in improve my article writing skills."]
["NYHZYE9RABEZ74ZTEY80TZA4ZBYBEWG220C0VWC0","Fri Jan 29 06:20:25 GMT 2010",362,"Female",1985,"Bachelors degree","$200,000 - $249,999","married","Yes, 1 child",3,"Asian",null,"Philippines","200-500 HITs per week","2-4 years","$1-$5 per week","4-8 hours per week","fruitful|secondary_income",true,false,false,false,true,false,"No, I was active before the recession.","I work the same amount of time on MTurk as before."]
["NYHZYE9RABEZ74ZTEY809XZZZK90YAM430CBG05Z","Fri Jan 29 16:20:13 GMT 2010",362,"Male",1982,"Bachelors degree","Less than $10,000","married","Yes, 1 child",3,"Asian",null,"India","20-50 HITs per week","0-3 months","Less than $1 per week","2-4 hours per week","fruitful|entertainment",true,true,false,false,false,false,"No, I was active before the recession.","I work the same amount of time on MTurk as before.","intrested in physiological surveys/test. giving my opinion to people about their logo/products."]
["NYHZYE9RABEZ74ZTEY80YXRENACTDW38SRYAXKK0","Thu Jan 28 06:37:14 GMT 2010",364,"Female",1985,"Bachelors degree","$10,000 - $14,999","single","No",4,"Asian",null,"India","1-5 HITs per week","0-3 months","Less than $1 per week","1-2 hours per week","secondary_income",false,false,false,false,true,false,"I started working on MTurk after the recession but the recession has nothing to do with my decision","I work less on MTurk after the recession.","just to earn sufficient amount for fulfilling own expenses"]
["NYHZYE9RABEZ74ZTEY809W0W6RMNRK9ZV4YANZKZ","Sun Feb 07 14:15:36 GMT 2010",364,"Female",1987,null,"$10,000 - $14,999","single","No","5+","Other",null,"India","10-20 HITs per week","6-12 months","$1-$5 per week","4-8 hours per week","unemployed",false,false,false,false,false,true,"Yes, I started working on MTurk after the recession.","I work more on MTurk after the recession.","YOUR COMPANY JOBS ARE VERY USEFUL FOR EVERYONE.","thank you"]
["NYHZYE9RABEZ74ZTEY80EWDZ0FZNQWKZPGYCQ3KZ","Sun Jan 31 17:42:06 GMT 2010",365,"Female",1982,"Bachelors degree","Less than $10,000","engaged","No",4,"Other","New York","United States","100-200 HITs per week","0-3 months","$10-$20 per week","8-20 hours per week","fruitful|entertainment|unemployed",true,true,false,false,false,true,"Yes, I started working on MTurk after the recession.","I was not active before the recession."]
["NYHZYE9RABEZ74ZTEY80EXTZR7Y5MXKY4VYQZ970","Mon Feb 01 19:39:04 GMT 2010",367,"Male",1985,"Bachelors degree","$60,000 - $74,999","single","No","5+","Asian",null,"Philippines","200-500 HITs per week","3-6 months","$5-$10 per week","4-8 hours per week","fruitful|secondary_income|killtime|entertainment",true,true,true,false,true,false,"I started working on MTurk after the recession but the recession has nothing to do with my decision","I work the same amount of time on MTurk as before.","To spend my free time wisely and I enjoy working on the hits."]
["NYHZYE9RABEZ74ZTEY80TZMZJDWJ6W0ZNYZR2SF0","Wed Feb 03 15:40:59 GMT 2010",367,"Male",1974,"Bachelors degree","$10,000 - $14,999","married","No","5+","Asian","Non-US","India","50-100 HITs per week","0-3 months","$1-$5 per week","4-8 hours per week","secondary_income",false,false,false,false,true,false,"I started working on MTurk after the recession but the recession has nothing to do with my decision","I work the same amount of time on MTurk as before."]
["NYHZYE9RABEZ74ZTEY80J36GYTY7MBTZWJ9P5340","Sun Feb 07 02:50:50 GMT 2010",367,"Female",1990,"Some college, no degree","$15,000 - $24,999","single","No",2,"Black","Non-US","Cayman Islands","20-50 HITs per week","0-3 months","Less than $1 per week","20-40 hours per week","fruitful|entertainment|unemployed",true,true,false,false,false,true,"I started working on MTurk after the recession but the recession has nothing to do with my decision","I was not active before the recession.","well my classes are late in the evenings or sometimes i dont have classes so i am on amazon mechanical turk to have fun and not worry about being bored at home.","your survey was interested and i found it fun to do surveys not only for money but because it makes me think of what i'm going to say. keep em coming! its fun!"]
["NYHZYE9RABEZ74ZTEY809WRZRXCHEX2Z0FZRHBXZ","Sun Jan 31 14:21:44 GMT 2010",369,"Female",1984,"Graduate degree, Masters","$10,000 - $14,999","married","Yes, 1 child",3,"Asian","Non-US","India","100-200 HITs per week","3-6 months","$5-$10 per week","8-20 hours per week","primary_income|entertainment",false,true,false,true,false,false,"Yes, I started working on MTurk after the recession.","I work less on MTurk after the recession.","I find the mturk tasks improving my level of intelligence and accuracy to a great extent.","It would be great if you could increase the reward amount given to a HIT a minimum of 10 cents."]
["NYHZYE9RABEZ74ZTEY80ABGZYFY3WYZ632DVMJQ0","Wed Feb 03 14:27:24 GMT 2010",370,"Male",1991,"Some college, no degree","Less than $10,000","single","No",4,"Asian","Non-US","India","5-10 HITs per week","0-3 months","$1-$5 per week","1-2 hours per week","secondary_income|entertainment",false,true,false,false,true,false,"I started working on MTurk after the recession but the recession has nothing to do with my decision","I was not active before the recession."]
["NYHZYE9RABEZ74ZTEY805YNCTV04HGGEQ6MSYZAZ","Thu Jan 28 08:39:20 GMT 2010",371,"Female",1949,"Graduate degree, Masters","$10,000 - $14,999","single","No",1,"Asian",null,"China","20-50 HITs per week","6-12 months","Less than $1 per week","4-8 hours per week","fruitful|secondary_income|entertainment",true,true,false,false,true,false,"I started working on MTurk after the recession but the recession has nothing to do with my decision","I was not active before the recession.","Some hits are very interesting,and I also can earn some pocket money, at the same time I can know more about the world."]
["NYHZYE9RABEZ74ZTEY8061NZ7R5G23AM5KRH9X4Z","Fri Jan 29 09:45:23 GMT 2010",373,"Male",1987,"Graduate degree, Masters","Less than $10,000","single","No",4,"Other",null,"India","200-500 HITs per week","0-3 months","$5-$10 per week","20-40 hours per week","fruitful|primary_income",true,false,false,true,false,false,"I started working on MTurk after the recession but the recession has nothing to do with my decision","I work the same amount of time on MTurk as before.",null,"this is a very nice survey"]
["NYHZYE9RABEZ74ZTEY8091EMZPSHZAM2MA1SJHW0","Sat Jan 30 04:01:19 GMT 2010",373,"Male",1974,"Bachelors degree","$10,000 - $14,999","married","Yes, 1 child","5+","Asian",null,"India","10-20 HITs per week","3-6 months","$1-$5 per week","1-2 hours per week","fruitful",true,false,false,false,false,false,"I started working on MTurk after the recession but the recession has nothing to do with my decision","I was not active before the recession.","Just to earn some extra bucks when I've nothing else to do.","Please do not use the email address for spamming, as I've provided my basic ID & not a secondary one. Hope you understand my concerns. Thanks."]
["NYHZYE9RABEZ74ZTEY80MY3Z6JGTGWYZRTYEKW3Z","Sat Feb 06 13:14:22 GMT 2010",374,"Male",1978,"Bachelors degree","$15,000 - $24,999","single","No",3,"Asian","Non-US","India","50-100 HITs per week","0-3 months","$5-$10 per week","8-20 hours per week","fruitful|secondary_income",true,false,false,false,true,false,"I started working on MTurk after the recession but the recession has nothing to do with my decision","I was not active before the recession.","It is also a good way to check as to how one is doing in terms of the faculties and also a good method to self evaluate and retrospect if need be."]
["NYHZYE9RABEZ74ZTEY80MXVZPQR3ZKB0YFZK7BFZ","Mon Feb 08 16:16:36 GMT 2010",374,"Male",1989,"High School Graduate","$15,000 - $24,999","single","No",4,"Asian","Non-US","Pakistan","200-500 HITs per week","1-2 years","$20-$50 per week","8-20 hours per week","fruitful|secondary_income|unemployed",true,false,false,false,true,true,"I started working on MTurk after the recession but the recession has nothing to do with my decision","I work the same amount of time on MTurk as before.","I live in Pakistan, and I have certain hobbies which are far too expensive for me to afford on my small income as a student. Therefore, I use mturk as a way to earn money, and then buy things off Amazon.com to fulfill these hobbies of mine. In the past 6 months, I have bought 13 books, a mp3 player, and a couple of small accessories for my laptop -- all of this costing 400 USD in total (including shipping)."]
["NYHZYE9RABEZ74ZTEY80HJZZ3RYG6GDZ5ZYEKAKZ","Fri Jan 29 07:22:12 GMT 2010",375,"Male",1984,"Bachelors degree","$15,000 - $24,999","single","No",3,"Asian",null,"India","5-10 HITs per week","0-3 months","$1-$5 per week","2-4 hours per week","unemployed",false,false,false,false,false,true,"I started working on MTurk after the recession but the recession has nothing to do with my decision","I work more on MTurk after the recession.","To earn money for daily needs, looks genuine online job","Some questions are confusing, don't know why we do that."]
["NYHZYE9RABEZ74ZTEY80TY9RX6WRWZVZXM0GDYF0","Thu Feb 11 14:21:01 GMT 2010",375,"Female",1982,"Some college, no degree","$40,500 - $59,999","married","Yes, 3 children","5+","White","Alabama","United States","200-500 HITs per week","1-2 years","$20-$50 per week","4-8 hours per week","secondary_income",false,false,false,false,true,false,"Yes, I started working on MTurk after the recession.","I work more on MTurk after the recession."]
["NYHZYE9RABEZ74ZTEY80VWBZ40SR2ZDEWKZ8AX4Z","Sat Jan 30 07:11:16 GMT 2010",376,"Male",1989,"Bachelors degree","Less than $10,000","single","No",4,"Asian",null,"India","5-10 HITs per week","0-3 months","Less than $1 per week","2-4 hours per week","secondary_income",{"$f":"ISNUMBER(FIND(\"fruitful\", $R879))","v":false},false,false,false,true,false,"I started working on MTurk after the recession but the recession has nothing to do with my decision","I work the same amount of time on MTurk as before.","I WANT TO MAKE SOME EXTRA INCOME"]
["NYHZYE9RABEZ74ZTEY80135Z6ARXZJGZRMY5ZY50","Sat Jan 30 11:19:12 GMT 2010",377,"Male",1989,"Bachelors degree","$10,000 - $14,999","single","No",4,"Asian",null,"India","50-100 HITs per week","3-6 months","$1-$5 per week","8-20 hours per week","secondary_income",false,false,false,false,true,false,"I started working on MTurk after the recession but the recession has nothing to do with my decision","I was not active before the recession.","To know different kinds of process prevailed thorough out world and to earn for my pocket money"]
["NYHZYE9RABEZ74ZTEY80VJDZRAZZER8ZQNW5NV1Z","Tue Feb 09 19:40:14 GMT 2010",377,"Female",1936,"Associates degree","$10,000 - $14,999","separated","Yes, 4 or more children",1,"White",null,"Canada","5-10 HITs per week","0-3 months","$1-$5 per week","1-2 hours per week","fruitful|secondary_income|entertainment",true,true,false,false,true,false,"Yes, I started working on MTurk after the recession.","I was not active before the recession.","Since I am on a fixed pension income, I was looking for something to supplement my income when my son suggested I try mechanical Turk.  I find it stimulating and hope to earn a bit to help, as I have just recently started.","I think this is a good idea and hope to pursue it more.  I find it a bit difficult to answer the questions where one has to go to different browsers or other websites."]
["NYHZYE9RABEZ74ZTEY80GKDZ1MXFTW6WTRWX4YVZ","Thu Jan 28 10:49:29 GMT 2010",378,"Female",1967,"Bachelors degree","Less than $10,000","married","Yes, 1 child",3,"Asian",null,"India","100-200 HITs per week","0-3 months","$1-$5 per week","20-40 hours per week","fruitful|unemployed",true,false,false,false,false,true,"I started working on MTurk after the recession but the recession has nothing to do with my decision",null,null,"Please avail more easier works to get better income."]
["NYHZYE9RABEZ74ZTEY80Z02Z4ZYDDZ7ZT8N70X90","Thu Jan 28 12:19:13 GMT 2010",379,"Male",1955,"Bachelors degree","$15,000 - $24,999","single","No",1,"White","Ohio","United States","100-200 HITs per week","0-3 months","$10-$20 per week","8-20 hours per week","fruitful|primary_income",true,false,false,true,false,false,"Yes, I started working on MTurk after the recession.","I was not active before the recession.",null,"The pay is miniscule, and that's frustrating considering the hours I put in.  At least the work is intellectually stimulating and can be done at my convenience."]
["NYHZYE9RABEZ74ZTEY80FW8ZSDHRF1YAYNXGV89Z","Fri Feb 05 05:07:07 GMT 2010",380,"Male",1976,"Graduate degree, Masters","$10,000 - $14,999","married","Yes, 1 child",4,"Asian",null,"Bangladesh","20-50 HITs per week","0-3 months","$1-$5 per week","4-8 hours per week","secondary_income",false,false,false,false,true,false,"I started working on MTurk after the recession but the recession has nothing to do with my decision","I was not active before the recession.","And this is the trusted site.","Hit's earnings are too little. It's make me bore. Want more money for each hit."]
["NYHZYE9RABEZ74ZTEY80DRKZG8C2QWM8PZ4ETZN0","Wed Feb 10 15:06:02 GMT 2010",380,"Male",1991,"High School Graduate","$40,500 - $59,999","single","No",4,"Asian",null,"Malaysia","10-20 HITs per week","0-3 months","$1-$5 per week","4-8 hours per week","fruitful|secondary_income|killtime|entertainment|unemployed",true,true,true,false,true,true,"I started working on MTurk after the recession but the recession has nothing to do with my decision","I was not active before the recession.","To obtain \"internet credit\" without using any debit/credit card."]
["NYHZYE9RABEZ74ZTEY80CWG21BZHD0AZVSH2EXM0","Fri Jan 29 05:03:27 GMT 2010",381,"Male",1988,"Bachelors degree","$10,000 - $14,999","single","No","5+","Asian","Non-US","India","50-100 HITs per week","0-3 months","$10-$20 per week","20-40 hours per week","fruitful|secondary_income|entertainment",true,true,false,false,true,false,"I started working on MTurk after the recession but the recession has nothing to do with my decision","I was not active before the recession.","Instead of wasting time, doing HITS in Mechanical Turk also helps in gaining  additional Knowledge in Certain things and of course i enjoy doing these HITS."]
["NYHZYE9RABEZ74ZTEY80TW7PZEZPHX4ZS7MYCH00","Sat Feb 06 13:11:08 GMT 2010",381,"Female",1953,"Graduate degree, Masters","$25,000 - $39,499","divorced","Yes, 2 children",2,"White","Mississippi","United States","5-10 HITs per week","6-12 months","$1-$5 per week","2-4 hours per week","fruitful|secondary_income|killtime|entertainment",true,true,true,false,true,false,"Yes, I started working on MTurk after the recession.","I was not active before the recession."]
["NYHZYE9RABEZ74ZTEY80AJPZ26ZH1RYEGH1H8SG0","Mon Feb 08 04:31:18 GMT 2010",381,"Male",1972,"Graduate degree, Masters","$10,000 - $14,999","married","Yes, 2 children",4,"Asian",null,"India","5-10 HITs per week","0-3 months","$1-$5 per week","4-8 hours per week","fruitful",true,false,false,false,false,false,"I started working on MTurk after the recession but the recession has nothing to do with my decision","I was not active before the recession.",null,"I enjoy working with Mturk"]
["NYHZYE9RABEZ74ZTEY8038HZWN9JYA92HDYVSB80","Sun Jan 31 20:35:23 GMT 2010",383,"Female",1976,"Bachelors degree","$25,000 - $39,499","married","Yes, 1 child",3,"Black",null,"Jamaica","5-10 HITs per week","1-2 years","$1-$5 per week","1-2 hours per week","fruitful|secondary_income",true,false,false,false,true,false,"No, I was active before the recession.","I work the same amount of time on MTurk as before.","n/a","n/a"]
["NYHZYE9RABEZ74ZTEY80XXCG44Z5A9XZ6CYQAWB0","Sun Feb 07 18:58:03 GMT 2010",383,"Female",1973,"Bachelors degree","Less than $10,000","married","Yes, 2 children",4,"Asian",null,"India","50-100 HITs per week","0-3 months","$1-$5 per week","8-20 hours per week","unemployed",false,false,false,false,false,true,"I started working on MTurk after the recession but the recession has nothing to do with my decision","I work more on MTurk after the recession.","to buy some new clothes and bakery items for my children","please include some easier hits"]
["NYHZYE9RABEZ74ZTEY806XWT1AYBJYBZPZZN1X1Z","Wed Feb 10 06:29:56 GMT 2010",385,"Female",1964,"Graduate degree, Masters","Less than $10,000","married","Yes, 1 child",3,"White",null,"Romania","50-100 HITs per week","1-2 years","$5-$10 per week","8-20 hours per week","fruitful|secondary_income",true,false,false,false,true,false,"No, I was active before the recession.","I work more on MTurk after the recession.","I always set a goal regarding the money I earn here. This year, from the money I'll earn here, I want to buy a surprise gift for my husband's birthday."]
["NYHZYE9RABEZ74ZTEY80WA4ZWXSHZWHPQFRCQTFZ","Thu Jan 28 13:06:57 GMT 2010",386,"Male",1978,"Bachelors degree","$40,500 - $59,999","married","Yes, 1 child",3,"Black","South Carolina","United States","5-10 HITs per week","3-6 months","$5-$10 per week","2-4 hours per week","fruitful|killtime|entertainment",true,true,true,false,false,false,"I started working on MTurk after the recession but the recession has nothing to do with my decision","I was not active before the recession.","I participate on Mechanical Turk because I find Turk to be a fun, and exciting way to kill time, or when I am bored and have nothing to do. I enjoy logging on to Turk, and complete surveys and occasionally audio transcriptions. It's a very cool alternative to doing nothing online."]
["NYHZYE9RABEZ74ZTEY80933ZWHHFMRC01YZS3ZT0","Wed Feb 10 12:23:32 GMT 2010",392,"Male",1980,"Bachelors degree","$25,000 - $39,499","single","No",null,"Asian","Non-US","India","20-50 HITs per week","6-12 months",null,"More than 40 hours per week","primary_income|secondary_income",false,false,false,true,true,false,"Yes, I started working on MTurk after the recession.","I work more on MTurk after the recession.","it is amazon company very excellent company compare to international level side.but one problem,international annual award informed for the company improve purpose only.","it is very excellent hit"]
["NYHZYE9RABEZ74ZTEY80TTRZ16NVGWDPX05BHYP0","Thu Jan 28 17:53:55 GMT 2010",393,"Male",1989,"Bachelors degree","Less than $10,000","single","No",4,"Asian",null,"India","20-50 HITs per week","0-3 months","$1-$5 per week","8-20 hours per week","fruitful",true,false,false,false,false,false,"I started working on MTurk after the recession but the recession has nothing to do with my decision","I was not active before the recession."]
["NYHZYE9RABEZ74ZTEY8091CZY880SZ6Z61C40ZT0","Mon Feb 01 07:30:25 GMT 2010",394,"Female",1972,"Some college, no degree","$15,000 - $24,999","married","No",2,"White","Missouri","United States","20-50 HITs per week","0-3 months","$1-$5 per week","4-8 hours per week","entertainment|unemployed",false,true,false,false,false,true,"I started working on MTurk after the recession but the recession has nothing to do with my decision","I was not active before the recession.","I joined because I thought it would help me earn a little money. I can't work right now because of health issue.","This is not a great site. Requesters can reject for no reason and rejections can dramatically lower your average. There is currently no way to make people be honest unless you are a worker."]
["NYHZYE9RABEZ74ZTEY80ZWSZRJYFBW1ZW0WH6YW0","Wed Feb 10 01:56:37 GMT 2010",395,"Male",1979,"Bachelors degree","Less than $10,000","married","Yes, 1 child",4,"Asian","Non-US","India","50-100 HITs per week","6-12 months","$5-$10 per week","2-4 hours per week","secondary_income",false,false,false,false,true,false,"Yes, I started working on MTurk after the recession.","I work less on MTurk after the recession.","mturk helps lot really i,m happy to work with MTURK","That TEXT job really i like very much\r\n\r\nbut now day there is no TEXT hit available"]
["NYHZYE9RABEZ74ZTEY80B8D0ZDMSZZ3AHN064Z00","Thu Jan 28 00:05:45 GMT 2010",398,"Male",1988,"Associates degree","Less than $10,000","single","No",3,"Asian","Non-US","Philippines","100-200 HITs per week","6-12 months","$1-$5 per week","8-20 hours per week","secondary_income|entertainment",false,true,false,false,true,false,"I started working on MTurk after the recession but the recession has nothing to do with my decision","I work the same amount of time on MTurk as before.","I find the tasks fun and enjoyable especially the surveys, and I can earn from them"]
["NYHZYE9RABEZ74ZTEY80T16WQ9Y7AAEZXR94RXFZ","Wed Feb 10 00:49:20 GMT 2010",398,"Female",1964,"High School Graduate","$15,000 - $24,999","single","No",2,"White","Pennsylvania","United States","50-100 HITs per week","1-2 years","$1-$5 per week","8-20 hours per week","fruitful",true,false,false,false,false,false,"No, I was active before the recession.","I was not active before the recession.","earn extra money while watching tv is nice.  i can use the extra money for gas."]
["NYHZYE9RABEZ74ZTEY803ZGMXYZPMWTZW8YHSWS0","Fri Feb 05 08:04:04 GMT 2010",399,"Male",1988,"Bachelors degree","Less than $10,000","single","No",4,"Asian",null,"India","50-100 HITs per week","0-3 months","$10-$20 per week","More than 40 hours per week","secondary_income",false,{"$f":"ISNUMBER(FIND(\"entertainment\", $R899))","v":false},{"$f":"ISNUMBER(FIND(\"killtime\", $R899))","v":false},{"$f":"ISNUMBER(FIND(\"primary_income\", $R899))","v":false},{"$f":"ISNUMBER(FIND(\"secondary_income\", $R899))","v":true},{"$f":"ISNUMBER(FIND(\"unemployed\", R899))","v":false},"Yes, I started working on MTurk after the recession.","I work more on MTurk after the recession.","It is a earning site and this site given very interesting HIT's to the workers. so work more time and earning more cash."]
["NYHZYE9RABEZ74ZTEY80QJXZWMZGAWFZYF0XXS7Z","Thu Feb 11 16:03:45 GMT 2010",400,"Male",1987,"Bachelors degree","Less than $10,000","single","No",2,"Asian",null,"India","1-5 HITs per week","0-3 months","$1-$5 per week","1-2 hours per week","fruitful|secondary_income|entertainment",true,true,false,false,true,false,"I started working on MTurk after the recession but the recession has nothing to do with my decision","I work the same amount of time on MTurk as before."]
["NYHZYE9RABEZ74ZTEY80M11M65Z6V9PTJS11AKY0","Fri Feb 05 19:42:01 GMT 2010",402,"Male",1987,"High School Graduate","$10,000 - $14,999","married","No",4,"Asian","Non-US","Bangladesh","100-200 HITs per week","2-4 years","$20-$50 per week","4-8 hours per week","fruitful|primary_income|secondary_income|unemployed",true,false,false,true,true,true,"Yes, I started working on MTurk after the recession.","I was not active before the recession.","the site is very good. I want work this site.","the site is very good. I am very happy for this site."]
["NYHZYE9RABEZ74ZTEY80AZEZY2HNETWWZYYA9YCZ","Sun Feb 07 13:33:36 GMT 2010",403,"Male",1987,"High School Graduate","Less than $10,000","married","Yes, 1 child",3,"Asian","Non-US","India","10-20 HITs per week","0-3 months","$1-$5 per week","2-4 hours per week","secondary_income",false,false,false,false,true,false,"Yes, I started working on MTurk after the recession.","I was not active before the recession.","I am doing this as a part time job to earn money.","I really interested to work with this. Please approve the hits as soon as u can. Thank you!"]
["NYHZYE9RABEZ74ZTEY80HY8ZH7YNP1NYRSG7BY3Z","Fri Jan 29 18:53:06 GMT 2010",404,"Male",1975,"Bachelors degree","Less than $10,000","married","Yes, 1 child",3,"Asian",null,"India","100-200 HITs per week","3-6 months","$10-$20 per week","2-4 hours per week","fruitful|primary_income|secondary_income|entertainment|unemployed",true,true,false,true,true,true,"Yes, I started working on MTurk after the recession.","I work more on MTurk after the recession.",null,"very good and earn website for us"]
["NYHZYE9RABEZ74ZTEY801RHMSP90SYYZZ2Z4C3B0","Sun Feb 07 16:44:22 GMT 2010",404,"Female",1980,"Bachelors degree","Less than $10,000","married","Yes, 1 child",3,"Asian",null,"India","1000-5000 HITs per week","0-3 months","$20-$50 per week","8-20 hours per week","fruitful|entertainment",true,true,false,false,false,false,"No, I was active before the recession.","I work more on MTurk after the recession.","I am a homemaker with a small baby and since my baby is small I cannot go for work.MTurk is definitely a very useful site for me to earn some amount during my leisure time.","That was a great hit."]
["NYHZYE9RABEZ74ZTEY801KKZ41ZB909RT7ZXZB5Z","Thu Jan 28 05:19:27 GMT 2010",406,"Male",1986,"Bachelors degree","$10,000 - $14,999","single","No",2,"Asian","Non-US","India","50-100 HITs per week","1-2 years","$5-$10 per week","8-20 hours per week","fruitful|primary_income|secondary_income",true,false,false,true,true,false,"No, I was active before the recession.","I work the same amount of time on MTurk as before.","am very happy to be part of mturk... very helpful for secondary income purpose..am working more than 2 years in mturk...my heart full thanks to mturk amazon"]
["NYHZYE9RABEZ74ZTEY8018EZQ6XJV9TYKRNP2WY0","Thu Feb 04 20:56:33 GMT 2010",406,"Male",1989,"Bachelors degree","Less than $10,000","cohabitating","No",2,"White",null,"Romania","10-20 HITs per week","0-3 months","Less than $1 per week","4-8 hours per week","killtime",false,false,true,false,false,false,"I started working on MTurk after the recession but the recession has nothing to do with my decision","I was not active before the recession.","I'm obviously doing it to kill some time. And it's a good way to save some money for Playstation network games.","I enjoy doing your HITs although some of them are not worth the price they offer ."]
["NYHZYE9RABEZ74ZTEY80K0DZMNH6KSC0KWY243X0","Wed Feb 03 08:52:32 GMT 2010",408,"Female",1953,"Some college, no degree","$15,000 - $24,999","married","No",2,"White","Massachusetts","United States","20-50 HITs per week","0-3 months","$5-$10 per week","8-20 hours per week","fruitful|primary_income|entertainment|unemployed",true,true,false,true,false,true,"Yes, I started working on MTurk after the recession.","I was not active before the recession.","For years I have heard about getting paid for online jobs. Every single one has been a scam except for Mturk. Although the income is very low, it is more than I have made in over 2 years being unemployed!"]
["NYHZYE9RABEZ74ZTEY80QY3ZJDY802MGS2Y6EZBZ","Thu Feb 04 06:37:35 GMT 2010",409,"Female",1980,"Bachelors degree","$100,000 - $149,999","single","No","5+","White","Virginia","United States","100-200 HITs per week","6-12 months","$1-$5 per week","8-20 hours per week","secondary_income|entertainment|unemployed",false,true,false,false,true,true,"I started working on MTurk after the recession but the recession has nothing to do with my decision","I work more on MTurk after the recession."]
["NYHZYE9RABEZ74ZTEY806WZEVF9CJZ1Z33MBCYY0","Wed Feb 10 10:32:57 GMT 2010",409,"Female",1990,"Some college, no degree","$10,000 - $14,999","single","No",4,"Asian",null,"India","5-10 HITs per week","0-3 months","Less than $1 per week","4-8 hours per week","secondary_income",false,false,false,false,true,false,"Yes, I started working on MTurk after the recession.","I work the same amount of time on MTurk as before.",null,"no"]
["NYHZYE9RABEZ74ZTEY80GRC0Z7YT5ZBYJRYYGXCZ","Thu Jan 28 04:01:18 GMT 2010",410,"Female",1951,"Graduate degree, Doctorate","$25,000 - $39,499","married","Yes, 1 child",2,"Asian","Minnesota","United States","20-50 HITs per week","3-6 months","Less than $1 per week","1-2 hours per week","fruitful|entertainment",true,true,false,false,false,false,"I started working on MTurk after the recession but the recession has nothing to do with my decision","I was not active before the recession.","I like participating in the research studies that different universities are conducting."]
["NYHZYE9RABEZ74ZTEY80Q2RJKW4K6ZWZHE8QAKDZ","Sat Feb 06 13:53:35 GMT 2010",410,"Male",1963,"Bachelors degree","$25,000 - $39,499","married","Yes, 2 children","5+","Asian","California","Pakistan","20-50 HITs per week","0-3 months","$10-$20 per week","20-40 hours per week","fruitful|primary_income|secondary_income|entertainment|unemployed",true,true,false,true,true,true,"I started working on MTurk after the recession but the recession has nothing to do with my decision","I work the same amount of time on MTurk as before.",null,"I have lived in the USA for 30 years but now reside in Pakistan 6 months out of a year. However, there are certain tasks which I do not qualify when I work outside of USA. There should be some for me to qualify for this. I understand my IP address gets involved and disqualifies me."]
["NYHZYE9RABEZ74ZTEY80PZJZT3YXBK4ZSPY1M0X0","Sat Jan 30 18:30:13 GMT 2010",411,"Male",1987,"Associates degree","Less than $10,000","single","No",1,"White",null,"Greece","20-50 HITs per week","0-3 months","$1-$5 per week","4-8 hours per week","entertainment",false,true,false,false,false,false,"I started working on MTurk after the recession but the recession has nothing to do with my decision","I work more on MTurk after the recession.","some of the tasks are very interesting.i need some online money for some small buys and i get experience with things i don't know well too."]
["NYHZYE9RABEZ74ZTEY80C06Z7FZT6WRZSDZRB960","Wed Feb 10 21:16:43 GMT 2010",413,"Male",1990,"Some college, no degree","$25,000 - $39,499","single","No",4,"Other","New York","United States","5-10 HITs per week","0-3 months","Less than $1 per week","1-2 hours per week","secondary_income|unemployed",false,false,false,false,true,true,"I started working on MTurk after the recession but the recession has nothing to do with my decision","I was not active before the recession."]
["NYHZYE9RABEZ74ZTEY80AW1ZRR8X48PAHACPYBZ0","Thu Feb 11 14:22:12 GMT 2010",416,"Female",1961,"Bachelors degree","$40,500 - $59,999","married","Yes, 2 children","5+","White","Michigan","United States","50-100 HITs per week","6-12 months","$1-$5 per week","1-2 hours per week","primary_income|secondary_income|entertainment",false,true,false,true,true,false,"I started working on MTurk after the recession but the recession has nothing to do with my decision","I was not active before the recession.","My husband (45 years old) had a heart attack and was out of work for 3 months.  Then, I participated because we needed the money.  Now, he's back to work (thank God) and, as we crawl out of our financial hole, I use the MTurk money as \"found\" money for fun things!  I also get a kick out of seeing if my answers have been accepted and helping with research, even though I know I am not normally getting too much money for the time I invest."]
["NYHZYE9RABEZ74ZTEY800XXYYDZWES0ZG9YTDRMZ","Thu Jan 28 05:11:00 GMT 2010",417,"Female",1941,"High School Graduate","$25,000 - $39,499","married","Yes, 2 children",2,"White","Texas","United States","200-500 HITs per week","6-12 months","$10-$20 per week","4-8 hours per week","fruitful|secondary_income|entertainment",true,true,false,false,true,false,"I started working on MTurk after the recession but the recession has nothing to do with my decision","I work the same amount of time on MTurk as before.","I enjoy the exercise it gives my mind, more productive than doing crossword puzzles or something similar.  I like that it is useful and productive rather than just a \"pastime\"","I used to do more on Mechanical Turk than I do now.  I did a lot of work for Microsoft, but the MTurk site is becoming infested with \"scam\" HITs, and junk stuff.  It's sad, because I believe this is an excellent platform for this type of work, but Amazon should be FAR more vigilant in weeding out the trash HITs and scammers, because serious workers like myself (nearly 10,000 HITs in about seven months) are not coming around much anymore.  Mostly now, I do University surveys, etc."]
["NYHZYE9RABEZ74ZTEY80VXDZWWZJ4XAZW0Z3X3J0","Tue Feb 09 23:40:35 GMT 2010",419,"Male",1980,"Some college, no degree","$15,000 - $24,999","married","Yes, 1 child",3,"White","Utah","United States","50-100 HITs per week","6-12 months","$10-$20 per week","8-20 hours per week","primary_income|unemployed",false,false,false,true,false,true,"I started working on MTurk after the recession but the recession has nothing to do with my decision","I was not active before the recession.","It is a good way to make money online, but it lacks of good hit and better payment. I wish I could make mturk for a living. Right now I don't have job, so it is better than nothing."]
["NYHZYE9RABEZ74ZTEY805GKZ4HYVH07Z2ADZC1HZ","Fri Jan 29 13:42:48 GMT 2010",422,"Female",1986,"Bachelors degree","Less than $10,000","married","No",2,"Asian","Non-US","United Arab Emirates","10-20 HITs per week","0-3 months","$5-$10 per week","1-2 hours per week","unemployed",false,false,false,false,false,true,"Yes, I started working on MTurk after the recession.","I work more on MTurk after the recession.",null,"I am really happy to work."]
["NYHZYE9RABEZ74ZTEY80NXKG1K4A3XTZY006Q2V0","Sun Jan 31 09:39:10 GMT 2010",422,"Female",1975,"Graduate degree, Masters","$10,000 - $14,999","married","Yes, 1 child",3,"Asian","Non-US","India","10-20 HITs per week","0-3 months","$1-$5 per week","8-20 hours per week","unemployed",false,false,false,false,false,true,"Yes, I started working on MTurk after the recession.","I was not active before the recession.",null,"good evaluation. I felt that Indians are paid very poor for all the hits than US residents.  I  request you kindly to increase a little more our payments."]
["NYHZYE9RABEZ74ZTEY80SJQZ7Q9Z5H9TXP5KQS60","Wed Feb 10 05:24:46 GMT 2010",422,"Female",1989,"Some college, no degree","Less than $10,000","single","No",3,"Other","Ohio","United States","5-10 HITs per week","6-12 months","$1-$5 per week","1-2 hours per week","secondary_income|killtime|entertainment",false,true,true,false,true,false,"No, I was active before the recession.","I work the same amount of time on MTurk as before."]
["NYHZYE9RABEZ74ZTEY805Y4AHR80XZN6YGZ3ZT2Z","Thu Jan 28 23:57:00 GMT 2010",423,"Male",1958,"Some High School","Less than $10,000","married","Yes, 2 children",4,"Asian","Non-US","India","20-50 HITs per week","0-3 months","$1-$5 per week","8-20 hours per week","fruitful|secondary_income",true,false,false,false,true,false,"I started working on MTurk after the recession but the recession has nothing to do with my decision","I work the same amount of time on MTurk as before.","this where i can spend the time very usefully so that i earn for needs."]
["NYHZYE9RABEZ74ZTEY80TYFG4YN1WXDZZ0X7KZP0","Thu Jan 28 04:31:52 GMT 2010",424,"Male",1957,"Graduate degree, Doctorate","$75,000 - $99,999","married","Yes, 2 children",4,"White","New Jersey","United States","10-20 HITs per week","0-3 months","$1-$5 per week",null,"killtime|unemployed",false,false,true,false,false,true,"I started working on MTurk after the recession but the recession has nothing to do with my decision","I work the same amount of time on MTurk as before.","Anyone doing this or who says they are doing this for any reason other than to kill time, may be regarded as dangerous to both their own body and others.\r\n\r\nImagine, this will pay me 10 cents! That's more than answering a real question.","Better qualification processes, tighter control and ranking of members by specialty, expertise would be great priorities. Genuine incentive pay for targeted question types/categorizations, etc. would attract these individuals."]
["NYHZYE9RABEZ74ZTEY805X2ZGRSNNXEWR5YZ2A7Z","Fri Jan 29 07:12:42 GMT 2010",426,"Female",1980,"Graduate degree, Masters","$25,000 - $39,499","married","Yes, 1 child",3,"Asian",null,"India","10-20 HITs per week","6-12 months","$10-$20 per week","2-4 hours per week","primary_income",false,false,false,true,false,false,"Yes, I started working on MTurk after the recession.","I work more on MTurk after the recession.","Because it is very interesting the hits given makes us to think sometimes that is why i love to work it. I suggest this to my friends too who now r currently working on it.","good."]
["NYHZYE9RABEZ74ZTEY801VBZG99EDZY8H5G4XY9Z","Thu Feb 04 18:48:42 GMT 2010",426,"Male",1994,"Some High School","Less than $10,000","single","No","5+","White",null,"Romania","10-20 HITs per week","0-3 months","$1-$5 per week","Less than 1 hour per week","fruitful|secondary_income",true,false,false,false,true,false,"I started working on MTurk after the recession but the recession has nothing to do with my decision","I work the same amount of time on MTurk as before.","Because I'm a minor and I don't have another way to make money."]
["NYHZYE9RABEZ74ZTEY80X8P05RYGYS6EV5Y0SWZZ","Thu Feb 11 14:20:11 GMT 2010",426,"Female",1975,"Some High School","Less than $10,000","married","Yes, 2 children",4,"Other",null,"India","10-20 HITs per week","3-6 months","$1-$5 per week","4-8 hours per week","unemployed",false,false,false,false,false,true,"Yes, I started working on MTurk after the recession.","I work the same amount of time on MTurk as before.",null,"good thank you."]
["NYHZYE9RABEZ74ZTEY80GZVZKKD8RXMZGXZ42BMZ","Mon Feb 08 16:03:28 GMT 2010",428,"Female",1984,"Some college, no degree","$25,000 - $39,499","cohabitating","No",2,"White",null,"Netherlands","5-10 HITs per week","0-3 months","$1-$5 per week","4-8 hours per week","fruitful|secondary_income|killtime|entertainment",true,true,true,false,true,false,"I started working on MTurk after the recession but the recession has nothing to do with my decision","I work the same amount of time on MTurk as before.","I find myself bored at work breaks and such. I thought I'd better try to make some  extra money while school costs me a lot.... I did start only very recently (last week), but I am sure I will stic k around as long as I haven't found a better paying and more challenging job.","It might be that my answers on the amount of hits I work on per week and the money I earn with it will differ with reality in about 2 weeks (for example) because I just started and hope to increase my hits and earnings soon."]
["NYHZYE9RABEZ74ZTEY80QTHZZKZFKT4ZTRNQVZWZ","Sat Feb 06 17:31:24 GMT 2010",431,"Male",1951,"Graduate degree, Doctorate","$75,000 - $99,999","married","Yes, 4 or more children","5+","White","Virginia","United States","100-200 HITs per week","3-6 months","$10-$20 per week","4-8 hours per week","fruitful|secondary_income|entertainment",true,true,false,false,true,false,"Yes, I started working on MTurk after the recession.","I was not active before the recession."]
["NYHZYE9RABEZ74ZTEY806SZZRDG24YHA2XYC9XT0","Mon Feb 08 16:26:15 GMT 2010",431,"Female",1985,"Bachelors degree","$100,000 - $149,999","engaged","No",2,"White","North Carolina","United States","20-50 HITs per week","0-3 months","$5-$10 per week","4-8 hours per week","fruitful|secondary_income",true,false,false,false,true,false,"I started working on MTurk after the recession but the recession has nothing to do with my decision","I was not active before the recession.","I am trying to make a little extra money for my honeymoon."]
["NYHZYE9RABEZ74ZTEY80WXNZY75T4BVJZ2YKEK0Z","Mon Feb 08 12:02:13 GMT 2010",434,"Male",1960,"Some college, no degree","Less than $10,000","married","Yes, 2 children",4,"Asian",null,"India","50-100 HITs per week","0-3 months","$1-$5 per week","20-40 hours per week","unemployed",false,false,false,false,false,true,"Yes, I started working on MTurk after the recession.","I work more on MTurk after the recession."]
["NYHZYE9RABEZ74ZTEY80EWQ20ECB0HXZSX9W4WRZ","Tue Feb 09 07:16:36 GMT 2010",438,"Male",1974,"High School Graduate","$15,000 - $24,999","cohabitating","No",4,"Other","Oregon","United States","5-10 HITs per week","0-3 months","Less than $1 per week","2-4 hours per week","fruitful|secondary_income|killtime|entertainment|unemployed",true,true,true,false,true,true,"Yes, I started working on MTurk after the recession.","I was not active before the recession.","I live on a fixed income and wanted to loosen the belt and take the edge off the economic hard times for me. This also is a good way to spend time learning new things and not just play video games all day long.","Many more people are seeking a way to get income. The economic recession has clamped down on all forms of spending. I found Mturk out of desperation because I was bored and wanted a second from of income besides my social security."]
["NYHZYE9RABEZ74ZTEY80GYQZ0SYSSWXZNHD780V0","Thu Feb 11 17:49:45 GMT 2010",439,"Male",1985,"High School Graduate","$10,000 - $14,999","married","No","5+","Asian",null,"India","1-5 HITs per week","0-3 months","Less than $1 per week","4-8 hours per week","secondary_income",false,false,false,false,true,false,"Yes, I started working on MTurk after the recession.","I work more on MTurk after the recession.","I need more money","give me more works"]
["NYHZYE9RABEZ74ZTEY801KKZHXY8HZ1ZT7Y0992Z","Sun Jan 31 12:40:22 GMT 2010",442,"Female",1991,"High School Graduate","Less than $10,000","single","No","5+","Asian",null,"India","50-100 HITs per week","0-3 months","$1-$5 per week","2-4 hours per week","fruitful|primary_income|entertainment",true,true,false,true,false,false,"I started working on MTurk after the recession but the recession has nothing to do with my decision","I was not active before the recession.","it is a best way for me to earn a money without any difficulty.i enjoy to work on it very much.i don't want to do any job if M Turk provide me this money work .","IT IS A VERY INTERESTING TASK.PLEASE,PROVIDE IN LARGE NUMBER."]
["NYHZYE9RABEZ74ZTEY80WZTAG7YTAZH2ZVZXGZRZ","Mon Feb 01 03:52:34 GMT 2010",442,"Female",1959,"Associates degree","Less than $10,000","divorced","No",1,"White","North Carolina","United States","200-500 HITs per week","0-3 months","$5-$10 per week","8-20 hours per week","primary_income",false,false,false,true,false,false,"Yes, I started working on MTurk after the recession.","I was not active before the recession."]
["NYHZYE9RABEZ74ZTEY80PKTZTVY9JVDZS6Y918F0","Mon Feb 08 12:41:25 GMT 2010",443,"Male",1975,"Graduate degree, Masters","$60,000 - $74,999","married","Yes, 1 child",3,"Asian",null,"India","10-20 HITs per week","0-3 months","$1-$5 per week","2-4 hours per week","unemployed",false,false,false,false,false,true,"Yes, I started working on MTurk after the recession.","I was not active before the recession.","1) Its a good past time ie instead of watching TV etc you can do some productive things\r\n2) I am looking for options these days so while i send mails to potential employers , i keep participating in HITs."]
["NYHZYE9RABEZ74ZTEY80N95ZM9ZGYZQ8VQZVW2KZ","Wed Feb 03 16:13:33 GMT 2010",444,"Male",1974,"Bachelors degree","Less than $10,000","married","No",4,"Asian","Non-US","India","20-50 HITs per week","0-3 months","$1-$5 per week","4-8 hours per week","fruitful",true,false,false,false,false,false,"I started working on MTurk after the recession but the recession has nothing to do with my decision","I was not active before the recession.","Mechanical Turk helps me to find the money for internet bill and at the same time it helps me to increase my general knowledge as well as the writing skill in a noticeable way."]
["NYHZYE9RABEZ74ZTEY80CWFZVCYZ9Y9ZHSY2WHEZ","Fri Feb 12 11:52:21 GMT 2010",450,"Male",1986,"Bachelors degree","Less than $10,000","single","No","5+","Other",null,"Lebanon","100-200 HITs per week","0-3 months","$5-$10 per week","2-4 hours per week","fruitful",true,false,false,false,false,false,"I started working on MTurk after the recession but the recession has nothing to do with my decision","I was not active before the recession.","I choose easy tasks that don't take time, and I surf the internet at the same time. So I do the tasks while the pages are loading etc...","mechanical turk works better for low income countries like India and China, but I am using it here in Lebanon as a way to generate money online"]
["NYHZYE9RABEZ74ZTEY80CYD0WRXV2JSE3JR8GKRZ","Sun Jan 31 16:22:44 GMT 2010",454,"Female",1986,"High School Graduate","Less than $10,000","married","No",3,"Black","Indiana","India","50-100 HITs per week","0-3 months","$1-$5 per week","2-4 hours per week","primary_income|unemployed",false,false,false,true,false,true,"I started working on MTurk after the recession but the recession has nothing to do with my decision","I work the same amount of time on MTurk as before.","IT GIVES THE MONEY VERY QUICKLY WITHOUT ANY SPAM","IT IS VERY HELPFUL TO ME"]
["NYHZYE9RABEZ74ZTEY80XWNZYNMW9VF42KD7SSM0","Fri Feb 05 04:48:37 GMT 2010",454,"Female",1966,"Bachelors degree","Less than $10,000","single","No","5+","Asian","Kentucky","India","20-50 HITs per week","0-3 months","$1-$5 per week","20-40 hours per week","fruitful|primary_income|unemployed",true,false,false,true,false,true,"No, I was active before the recession.",null,"some question is very difficult to understand and how to answer the questions"]
["NYHZYE9RABEZ74ZTEY800Y5TP8YN6VNZVER3C1A0","Thu Jan 28 16:35:48 GMT 2010",460,"Male",1983,"Graduate degree, Masters","Less than $10,000","single","No",3,"Asian","Non-US","India","1-5 HITs per week","0-3 months","Less than $1 per week","1-2 hours per week","fruitful|secondary_income",true,false,false,false,true,false,"I started working on MTurk after the recession but the recession has nothing to do with my decision","I work the same amount of time on MTurk as before.",null,"Hope more surveys and hits will be available for Indians too rather than making the surveys for US residents only !"]
["NYHZYE9RABEZ74ZTEY80EZJZXQSTWYXZWVXPNVR0","Fri Jan 29 07:16:48 GMT 2010",463,"Female",1979,"High School Graduate","$10,000 - $14,999","cohabitating","Yes, 2 children",4,"White","North Dakota","United States","200-500 HITs per week","3-6 months","$50-$100 per week","More than 40 hours per week","primary_income|unemployed",false,false,false,true,false,true,"Yes, I started working on MTurk after the recession.","I was not active before the recession.","No available jobs in my area, have applied to over 40 jobs no calls so far been 3 months.  Do it to pay my bills which includes rent and diapers for my kids until I find work again.","Should make a hit some day that asks what the future of mturk may be like from us turkers."]
["NYHZYE9RABEZ74ZTEY80BYY83VD7KW9AH8ZQ4B7Z","Mon Feb 01 05:31:49 GMT 2010",469,"Male",1970,"Graduate degree, Masters","$15,000 - $24,999","married","Yes, 2 children",4,"Asian","Non-US","India","100-200 HITs per week","0-3 months","$20-$50 per week","20-40 hours per week","fruitful",true,false,false,false,false,false,"I started working on MTurk after the recession but the recession has nothing to do with my decision","I work the same amount of time on MTurk as before.","It serve two purposes.\r\n1. Some of its tasks are really interesting.\r\n2. Spend spare time more fruitfully.","None"]
["NYHZYE9RABEZ74ZTEY809Y9T6PYS9S4PZZD33WKZ","Wed Jan 27 23:52:44 GMT 2010",471,"Female",1984,"Bachelors degree","$40,500 - $59,999","cohabitating","No",2,"White","Non-US","United Kingdom","500-1000 HITs per week","1-2 years","$10-$20 per week","2-4 hours per week","fruitful|secondary_income|killtime",true,false,true,false,true,false,"No, I was active before the recession.","I work the same amount of time on MTurk as before.","Most of my earnings from my 'real job' tend to go on the usual household expenses - bills, food, etc. So I tend to participate in a lot of online surveys - they're great, but slow going and can be limited in what you can choose for your rewards. When I discovered Mechanical Turk I was really pleased, I can earn at my own rate depending on how much free time I have to kill, and I can spend my earnings on absolutely anything I like from Amazon's website - brilliant! So I use it to treat myself meaning I can spend my 'real job' cash on the boring essentials without depriving myself of more fun things."]
["NYHZYE9RABEZ74ZTEY80KYW83BY7DZ5WV2Y97ZP0","Sun Jan 31 10:26:56 GMT 2010",479,"Male",1981,"Bachelors degree","Less than $10,000","single","No","5+","Asian",null,"India","50-100 HITs per week","0-3 months","$1-$5 per week","8-20 hours per week","secondary_income",false,false,false,false,true,false,"I started working on MTurk after the recession but the recession has nothing to do with my decision","I work the same amount of time on MTurk as before.",null,"Plz also add some more questions in your survey like as:\r\nhow many days spent to received check from mechanical turk after your withdraw\r\nAre you face any problem with requester of mturk etc."]
["NYHZYE9RABEZ74ZTEY80BVGGSK14SYHZ44M2EJH0","Mon Feb 01 10:41:41 GMT 2010",479,"Female",1986,"Bachelors degree","$10,000 - $14,999","single","No",4,"Asian",null,"India","100-200 HITs per week","1-2 years","$10-$20 per week","8-20 hours per week","fruitful|primary_income|unemployed",{"$f":"ISNUMBER(FIND(\"fruitful\", $R943))","v":true},false,false,true,false,true,"I started working on MTurk after the recession but the recession has nothing to do with my decision","I work more on MTurk after the recession.","Good timepass and can know more things.I learn  many new things and we can have good earning"]
["NYHZYE9RABEZ74ZTEY804Z4Z4GSEQYTZX0NFKG3Z","Sat Feb 06 17:27:10 GMT 2010",480,"Male",1987,"Associates degree","$10,000 - $14,999","engaged","No",3,"White","Florida","United States","20-50 HITs per week","0-3 months","$5-$10 per week","2-4 hours per week","unemployed",false,false,false,false,false,true,"Yes, I started working on MTurk after the recession.","I work more on MTurk after the recession.","Because we want a well paid work to supplement income"]
["NYHZYE9RABEZ74ZTEY80M9RTSBGXBXJ628YDRAMZ","Thu Jan 28 09:25:53 GMT 2010",482,"Female",1987,"Graduate degree, Masters","Less than $10,000","single","No",4,"Asian","Non-US","India","50-100 HITs per week","6-12 months","$1-$5 per week","2-4 hours per week","fruitful|secondary_income|unemployed",true,false,false,false,true,true,"No, I was active before the recession.","I work more on MTurk after the recession."]
["NYHZYE9RABEZ74ZTEY80EXNZWPY8QZFR3GZ2Q0BZ","Wed Feb 10 05:16:03 GMT 2010",484,"Male",1984,"Bachelors degree","Less than $10,000","single","No",4,"Asian",null,"India","1000-5000 HITs per week","3-6 months","$20-$50 per week","4-8 hours per week","fruitful|secondary_income|entertainment|unemployed",true,true,false,false,true,true,"Yes, I started working on MTurk after the recession.","I work more on MTurk after the recession.","Mechanical Turk is very good on-line outsourcing company. No cheating. Some of the on-line outsourcing companies to be fraud. But mturk is Good Company. They give lot of work and give a correct amount for each work.","Mechanical Turk do not stop work any condition or situation."]
["NYHZYE9RABEZ74ZTEY80FXEZS9ZBKYEZZPY9GG20","Fri Jan 29 20:08:02 GMT 2010",490,"Female",1971,"Associates degree","$40,500 - $59,999","married","Yes, 3 children","5+","Asian","Virginia","United States","10-20 HITs per week","0-3 months","$1-$5 per week","2-4 hours per week","fruitful|killtime",true,false,true,false,false,false,"Yes, I started working on MTurk after the recession.","I work the same amount of time on MTurk as before.","This is something you can do in spare time and get money. Better than nothing. Money accumulate and will be able to buy something for my children at Amazon.\r\nIt is also interesting to see this kind of opportunities. I interesting concept. People / organization who are paying for this kind of things."]
["NYHZYE9RABEZ74ZTEY80AYSW3EY26XKJRHN5YTKZ","Thu Jan 28 14:41:47 GMT 2010",492,"Female",1963,"Graduate degree, Masters","Less than $10,000","married","Yes, 1 child",3,"Asian","Non-US","India","5-10 HITs per week","0-3 months","Less than $1 per week","2-4 hours per week","fruitful",true,false,false,false,false,false,"Yes, I started working on MTurk after the recession.","I was not active before the recession.","hi,\r\nyes i like it. some hits are very interesting i like surveys. next tracking things. most of my time i do very interesting hits."]
["NYHZYE9RABEZ74ZTEY80CYEZSY8V2WSZ48Z71J9Z","Sun Feb 07 12:44:20 GMT 2010",492,"Female",1953,"Bachelors degree","$60,000 - $74,999","married","Yes, 4 or more children",2,"Other","Washington","United States","50-100 HITs per week","0-3 months","$1-$5 per week","4-8 hours per week",null,false,false,false,false,false,false,"I started working on MTurk after the recession but the recession has nothing to do with my decision","I was not active before the recession.","i do it to earn credits for Facebook Las Vegas Slots   ... i do a task, earn some cash, then convert it to credits.  At least that is my intent ... i'm new to both the LV Slots game and MTurk.  More info, i could use a credit card to by playing credits but that feels like cheating ... this was it feels earned."]
["NYHZYE9RABEZ74ZTEY80VA0CPRZS6ZDZ12ZTQ1Y0","Tue Feb 09 21:13:59 GMT 2010",495,"Male",1986,"Bachelors degree","$25,000 - $39,499","single","No",1,"White","Virginia","United States","1000-5000 HITs per week","1-2 years","$100-$200 per week","8-20 hours per week","fruitful|secondary_income|killtime",true,false,true,false,true,false,"I started working on MTurk after the recession but the recession has nothing to do with my decision","I was not active before the recession."]
["NYHZYE9RABEZ74ZTEY807X2Z62SD9X8CW84TWJJZ","Sun Jan 31 08:16:15 GMT 2010",500,"Male",1980,"Bachelors degree","$10,000 - $14,999","single","No",2,"Asian","Non-US","India","20-50 HITs per week","0-3 months","$20-$50 per week","20-40 hours per week","unemployed",false,false,false,false,false,true,"Yes, I started working on MTurk after the recession.","I work the same amount of time on MTurk as before.","I lost my full time job because of the economic recession. So Mturk helps me make some money.","No comments."]
["NYHZYE9RABEZ74ZTEY808AHZGSYGEVXP1QSZ8X90","Fri Jan 29 15:48:15 GMT 2010",502,"Male",1984,"Some college, no degree","Less than $10,000","single","No","5+","Asian",null,"India","200-500 HITs per week","0-3 months","$5-$10 per week","20-40 hours per week","primary_income",false,false,false,true,false,false,"I started working on MTurk after the recession but the recession has nothing to do with my decision","I work the same amount of time on MTurk as before.","It is my primary income source. I knew about it just few weeks ago by my friend.\r\nwith this money only i Will continue my studies."]
["NYHZYE9RABEZ74ZTEY80MYNM5AG05XM6S7Y3NHP0","Sat Jan 30 07:23:06 GMT 2010",507,"Female",1953,"Graduate degree, Doctorate","$75,000 - $99,999","divorced","No",1,"White",null,"Israel","20-50 HITs per week","2-4 years","$1-$5 per week","1-2 hours per week","fruitful",true,false,false,false,false,false,"No, I was active before the recession.","I work the same amount of time on MTurk as before.","It can be fun, depending on the nature of the hits. Occasionally it can be motivating to learn or polish new skills, such as transcription. I have actually come in contact with real-world writers thanks to transcription hits and been able to join projects I would not have know about otherwise - including research and translation for a book. \r\nI use my 'income' to buy gifts for the members of my family living in the US and Canada, since it is impossible for me to withdraw cash under the present terms. The income is not an important factor for me.","Thank you!"]
["NYHZYE9RABEZ74ZTEY80ZAXYHTYAMY38Z38GXR1Z","Fri Feb 12 13:53:18 GMT 2010",509,"Female",1965,"Associates degree","$60,000 - $74,999","married","Yes, 1 child",null,"Black",null,"Saint Lucia","10-20 HITs per week","1-2 years","$1-$5 per week","2-4 hours per week","secondary_income|entertainment",false,true,false,false,true,false,"No, I was active before the recession.","I work the same amount of time on MTurk as before.","I find that Mechanical Turk, keeps me thinking and always have me occupied, even when I am having an unpleasant day."]
["NYHZYE9RABEZ74ZTEY80HJYZTTHPXYPES7Y9D9MZ","Tue Feb 02 09:26:23 GMT 2010",510,"Male",1977,"Bachelors degree","$15,000 - $24,999","married","Yes, 1 child",3,"Asian",null,"India","20-50 HITs per week","0-3 months","$1-$5 per week","4-8 hours per week","secondary_income",false,false,false,false,true,false,"I started working on MTurk after the recession but the recession has nothing to do with my decision","I work more on MTurk after the recession."]
["NYHZYE9RABEZ74ZTEY80021MR08PBY7ZWBH6G0V0","Thu Feb 11 07:18:29 GMT 2010",510,"Male",1985,"High School Graduate","Less than $10,000","single","No",4,"Asian",null,"India","100-200 HITs per week","0-3 months","$5-$10 per week","20-40 hours per week",null,false,false,false,false,false,false,"I started working on MTurk after the recession but the recession has nothing to do with my decision","I work more on MTurk after the recession.","Iam a student,to get tution fees or pocket money","Amazon mturk is very helpful to my studies"]
["NYHZYE9RABEZ74ZTEY807J4Z010QDX5Z3PHZCBCZ","Mon Feb 08 04:08:36 GMT 2010",514,"Female",1976,"Graduate degree, Masters","Less than $10,000","married","Yes, 1 child","5+","Asian",null,"India","10-20 HITs per week","0-3 months","$1-$5 per week","4-8 hours per week","fruitful",true,false,false,false,false,false,"I started working on MTurk after the recession but the recession has nothing to do with my decision","I was not active before the recession.","I am working as teacher and my salary is not enough to fullfil my needs so i am looking for some more money. That is why i am participating on Mechanical Turk."]
["NYHZYE9RABEZ74ZTEY80FXYTHZY0E1RZ6MZ9DR2Z","Mon Feb 01 10:05:11 GMT 2010",518,"Male",1988,"Bachelors degree","$25,000 - $39,499","single","No",4,"Asian",null,"India","10-20 HITs per week","0-3 months","$1-$5 per week","20-40 hours per week","unemployed",false,false,false,false,false,true,"No, I was active before the recession.","I was not active before the recession.","Save the money getting from it.","Please make a section for verification documents setup for payment."]
["NYHZYE9RABEZ74ZTEY80KXKPNWZCHYG2JCZRDWB0","Mon Feb 08 15:17:50 GMT 2010",529,"Female",1983,"Bachelors degree","Less than $10,000","married","No",2,"Asian","Non-US","India","20-50 HITs per week","0-3 months","$1-$5 per week","4-8 hours per week","fruitful",true,false,false,false,false,false,"I started working on MTurk after the recession but the recession has nothing to do with my decision","I was not active before the recession.","Time is money and I can spend my free time to meke money.","Its good to work at free time on this site. I like it the most."]
["NYHZYE9RABEZ74ZTEY80SAZT2WY90WX43VZTCRTZ","Sun Feb 07 09:03:05 GMT 2010",535,"Male",1983,"Bachelors degree","$10,000 - $14,999","single","No","5+","Asian","Non-US","India","1000-5000 HITs per week","3-6 months","$50-$100 per week","4-8 hours per week","fruitful|entertainment|unemployed",true,true,false,false,false,true,"No, I was active before the recession.","I work the same amount of time on MTurk as before.","Mturk really give many knowledge about everything... Instead of spending time wastefully...","Mturk is the great job provider... Thanks for this opportunity..."]
["NYHZYE9RABEZ74ZTEY80CS4ZWC1EZY1ZRKZZBZS0","Fri Feb 12 10:51:03 GMT 2010",544,"Female",1971,"High School Graduate","$25,000 - $39,499","divorced","Yes, 1 child",1,"White","Virginia","United States","1000-5000 HITs per week","1-2 years","$20-$50 per week","8-20 hours per week","fruitful|secondary_income|killtime|entertainment",true,true,true,false,true,false,"No, I was active before the recession.","I work the same amount of time on MTurk as before.","I treat it as a hobby.  I'm using most of my earnings to pay off credit card debt or to buy items that I feel are too frivilous to be paid for out of earnings from my full-time job (eg. dvds, handbags).","The amount of time spent on Mturk and the earnings vary depending on the kind of HITS available.  Some days I make less than a dollar, and other days I can make as much as $20."]
["NYHZYE9RABEZ74ZTEY80PTBZ3CZQJZKC3HY2FBNZ","Mon Feb 08 05:10:44 GMT 2010",551,"Female",1960,"Some college, no degree","$100,000 - $149,999","married","Yes, 3 children",2,"Asian","Indiana","United States","200-500 HITs per week","2-4 years","$10-$20 per week","8-20 hours per week","entertainment",false,true,false,false,false,false,"No, I was active before the recession.","I work the same amount of time on MTurk as before.","I like the idea of using my brain and seeing how well I can do at certain hits.  I have an approval rating of 99.9 with over 44000 hits and I like the challenge of just doing well.  I don't turk for the money - I put it all in a gift cert that is just available for fun items."]
["NYHZYE9RABEZ74ZTEY80EVM8WHY96XWZ1TY7GYJ0","Thu Jan 28 05:29:45 GMT 2010",552,"Female",1984,"Bachelors degree","$10,000 - $14,999","single","No",2,"Asian","Non-US",null,"200-500 HITs per week","1-2 years","$20-$50 per week","20-40 hours per week","primary_income",false,{"$f":"ISNUMBER(FIND(\"entertainment\", $R963))","v":false},{"$f":"ISNUMBER(FIND(\"killtime\", $R963))","v":false},{"$f":"ISNUMBER(FIND(\"primary_income\", $R963))","v":true},{"$f":"ISNUMBER(FIND(\"secondary_income\", $R963))","v":false},{"$f":"ISNUMBER(FIND(\"unemployed\", R963))","v":false},"Yes, I started working on MTurk after the recession.","I work more on MTurk after the recession.","Because it is very easy way to earn.","We are expecting more tasks for Indians."]
["NYHZYE9RABEZ74ZTEY80EHDW2RYA1YQZRWYRPXMZ","Mon Feb 01 15:00:04 GMT 2010",554,"Male",1977,"Bachelors degree","Less than $10,000","engaged","No",2,"Asian","Non-US","India","20-50 HITs per week","0-3 months","$5-$10 per week","4-8 hours per week","fruitful|primary_income|secondary_income",true,false,false,true,true,false,"No, I was active before the recession.","I work the same amount of time on MTurk as before.","The hits provided by Mechanical Turk are very interesting.","I would like to work on transcription and transliteration hits.  Please provide those hits."]
["NYHZYE9RABEZ74ZTEY80Y19ZHEYRVZGYJJ05XZ5Z","Fri Jan 29 07:23:18 GMT 2010",562,"Female",1958,"Some college, no degree","$40,500 - $59,999","married","No",2,"White","Alabama","United States","1000-5000 HITs per week","6-12 months","$200-$500 per week","20-40 hours per week","unemployed",false,false,false,false,false,true,"I started working on MTurk after the recession but the recession has nothing to do with my decision","I work the same amount of time on MTurk as before.","You didn't really have a category that fit my circumstances.  Because of physical disability I am unable to work in a \"regular\" job.  I have to have lots of flexibility for doctor appointments and be able to do strange things like put my leg up with an ice pack and tie heat packs on my left shoulder. I have limitations with any type of repetitive movements.  For instance, I can do \"point and clicks\" all day long but data entry for more than 3 hours puts me in extreme pain. Most offices will not deal with that.  I am waiting on my disability appeal and have always been a workaholic.  MTurk allows me to fulfill my need to work...earn extra money for home improvements and I feel better about myself knowing that I am helping others with work that they have.  In the beginning it was frustrating working on MTurk knowing I was being paid much less than my capabilities are worth but with patience I am starting to build relationships with some requesters based on good work practices and honesty and am being rewarded with higher pay and bonuses.","I hope this study is something that will improve employer/employee relations in MTurk.  If my participation means that the end result could help week out the \"bad apples\" and build MTurk into a reliable, safe workplace for others like me (cannot work in \"regular\" job environment) I would be more than happy to participate.\r\n\r\nThanks!"]
["NYHZYE9RABEZ74ZTEY80FZMZJY8TNKDZXYZ90Y40","Sat Feb 06 12:42:22 GMT 2010",564,"Male",1977,"Bachelors degree","Less than $10,000","married","Yes, 1 child",3,"Asian",null,"India","5-10 HITs per week","6-12 months","Less than $1 per week","1-2 hours per week","secondary_income",false,false,false,false,true,false,"I started working on MTurk after the recession but the recession has nothing to do with my decision","I work the same amount of time on MTurk as before.","to get more exposure, and fun"]
["NYHZYE9RABEZ74ZTEY80XWFZVHHVB8EZ0JYPHXQ0","Mon Feb 08 23:00:18 GMT 2010",575,"Male",1985,"Bachelors degree","Less than $10,000","single","No",4,"Asian",null,"Philippines","100-200 HITs per week","2-4 years","$5-$10 per week","4-8 hours per week","fruitful|primary_income|secondary_income|entertainment",true,true,false,true,true,false,"No, I was active before the recession.","I work the same amount of time on MTurk as before.","To earn some cash and also to have fun for a challenging task."]
["NYHZYE9RABEZ74ZTEY80NY34TPZ5VYDZXXZV7950","Fri Feb 05 07:02:01 GMT 2010",577,"Male",1987,"Bachelors degree","$10,000 - $14,999","married","Yes, 1 child",4,"Other","Non-US","India","50-100 HITs per week","0-3 months","$5-$10 per week","2-4 hours per week","primary_income|unemployed",false,false,false,true,false,true,"Yes, I started working on MTurk after the recession.","I was not active before the recession.",null,"I like to work on MTurk"]
["NYHZYE9RABEZ74ZTEY80D2GRPXZRAA3ZTJZP3XNZ","Thu Jan 28 05:21:54 GMT 2010",598,"Male",1987,"Associates degree","$10,000 - $14,999","single","No","5+","Asian","Non-US","India","1000-5000 HITs per week","3-6 months","$10-$20 per week","20-40 hours per week","secondary_income",false,false,false,false,true,false,"Yes, I started working on MTurk after the recession.","I work less on MTurk after the recession.","I can participate on Mechanical Turk to find some money for  secondary purpose of me. Mechanical Turk work is very intelligence task that can earn money.","It is a very good survey."]
["NYHZYE9RABEZ74ZTEY80QZFZZB177BC422ZJHZ20","Thu Feb 11 16:14:06 GMT 2010",599,"Male",1946,"Bachelors degree","$10,000 - $14,999","married","Yes, 2 children","5+","Asian",null,"India","20-50 HITs per week","3-6 months","$1-$5 per week","8-20 hours per week","entertainment",false,true,false,false,false,false,"I started working on MTurk after the recession but the recession has nothing to do with my decision","I work the same amount of time on MTurk as before.","For solving hits, several times I have to check websites.  While viewing the web sites, I get some additional knowledge.  Apart from this I get some pocket money also."]
["NYHZYE9RABEZ74ZTEY80FXJZZYY3083Z5DYP8KXZ","Thu Jan 28 01:35:03 GMT 2010",605,"Female",1956,"High School Graduate","$25,000 - $39,499","married","No",2,"White","Florida","United States","200-500 HITs per week","6-12 months","$5-$10 per week","8-20 hours per week","fruitful|secondary_income|entertainment",true,true,false,false,true,false,"Yes, I started working on MTurk after the recession.","I work more on MTurk after the recession.","An additiona reason is to stimulate the brain.  It's a better use of time than doing word search puzles and you get some cash out of it as well.","I wish there were more organizations like Amazon Mechanical Turk.  I see similar adds on the internet but hesitae due to the fact I don't know if they are legitimate.  My current approved HITS is 12,900."]
["NYHZYE9RABEZ74ZTEY80T3301B0QVXAZ4VNNT9G0","Sat Jan 30 06:05:12 GMT 2010",613,"Female",1982,"Bachelors degree","Less than $10,000","married","Yes, 1 child",3,"Asian","Non-US","India","20-50 HITs per week","0-3 months","$5-$10 per week","4-8 hours per week","fruitful|secondary_income|killtime|entertainment|unemployed",true,true,true,false,true,true,"I started working on MTurk after the recession but the recession has nothing to do with my decision","I work the same amount of time on MTurk as before.","I have lot of free time. So i want to kill my time on useful way. Watching Tv is very bad habit.I hate it. Mturk is a good way for earning some money. Money is used for many purpose. and also the given hits are very interesting and useful. I improve my internet knowledge through this. Thanks to Mturk.","Give lot more hits. Thanks to MTURK"]
["NYHZYE9RABEZ74ZTEY80SB5ZT2ZWTZSZMQY0ZX70","Thu Jan 28 14:38:33 GMT 2010",639,"Female",1973,"Bachelors degree","$40,500 - $59,999","single","No",2,"White","Illinois","United States","20-50 HITs per week","1-2 years","$5-$10 per week","2-4 hours per week","secondary_income|entertainment",false,true,false,false,true,false,"Yes, I started working on MTurk after the recession.","I work more on MTurk after the recession.","When I started working for mTurk it was a primary source of income (but not the only one). I had a small business that was not doing well because of the recession so I needed something to make up for the money I was losing. It's better than nothing, and I'm glad I had it, but the pay is extremely low. Now I have a \"real\" job, so I don't need to do mTurk but I still do it once in a while if I find something fun. I especially like the academic surveys."]
["NYHZYE9RABEZ74ZTEY80WYRZWZD04W6E150TF2PZ","Mon Feb 08 06:43:50 GMT 2010",641,"Male",1952,"Some college, no degree","$75,000 - $99,999","married","Yes, 1 child",3,"White","Indiana","United States","5-10 HITs per week","6-12 months","$5-$10 per week","4-8 hours per week","fruitful|secondary_income",true,false,false,false,true,false,"Yes, I started working on MTurk after the recession.","I work the same amount of time on MTurk as before.","I am trying to find a higher paying internet job, and this will suffice for now.","My pay on mturk depends on the quality of HITs that I can do, as well as how much time I have available to do this because I work ten hours a day on my regular job."]
["NYHZYE9RABEZ74ZTEY80AWBZG3ZJ92VZK90S3Y50","Wed Feb 10 18:35:54 GMT 2010",643,"Male",1987,"Bachelors degree","Less than $10,000","single","No",2,"Asian","Non-US","India","20-50 HITs per week","0-3 months","$1-$5 per week","4-8 hours per week","primary_income",false,false,false,true,false,false,"Yes, I started working on MTurk after the recession.","I work more on MTurk after the recession.","My main opinion to participate on Mechanical Turk is to earn some money and it also help me keep my mind fresh.","It was a great survey for me because it asked me qustion about participation on Mechanical Turk which gave me get great pleasure in doing so."]
["NYHZYE9RABEZ74ZTEY8009CTR5YC02Y8NR4H1TZZ","Sat Jan 30 11:09:53 GMT 2010",644,"Male",1989,"Bachelors degree","Less than $10,000","single","No",3,"Other",null,"India","20-50 HITs per week","0-3 months","$1-$5 per week","4-8 hours per week","unemployed",false,false,false,false,false,true,"I started working on MTurk after the recession but the recession has nothing to do with my decision","I work the same amount of time on MTurk as before.","I am a student and i need money to come out of some problems.I found this mturk is the best to earn money in legal way","Please improve he features,i mean when i search the hit which i like after completion of hit,again i need to type the key word to get the that model of hits,Thank you."]
["NYHZYE9RABEZ74ZTEY802X5W7TX6J3A204XHMYR0","Thu Jan 28 12:56:05 GMT 2010",646,"Male",1988,"Some college, no degree","$10,000 - $14,999","single","No",3,"Asian","Non-US","India","20-50 HITs per week","0-3 months","$1-$5 per week","8-20 hours per week","fruitful",true,false,false,false,false,false,"I started working on MTurk after the recession but the recession has nothing to do with my decision","I work the same amount of time on MTurk as before.",null,"its better to elaborate the questions otherwise nice survey"]
["NYHZYE9RABEZ74ZTEY80PV90SRY30R1ZRVMK0SY0","Sat Jan 30 12:16:24 GMT 2010",670,"Male",1969,"Some college, no degree","$25,000 - $39,499","cohabitating","No",2,"White","Non-US","Canada","50-100 HITs per week","0-3 months","$1-$5 per week","8-20 hours per week","fruitful|secondary_income|killtime|entertainment",true,true,true,false,true,false,"I started working on MTurk after the recession but the recession has nothing to do with my decision","I was not active before the recession.","I like the idea of earning a little cash from my computer.","I like the idea of earning a little cash from my computer. When I say a little, I mean a little. Lately it has been increasingly frustrating because I earn so little from the Mturk Hits and I am thinking of giving up. In my opinion, this is a program for very low income earners and more suited for people from third world countries. I took me 3 months to earn $100 and countless hours, I would guess I made about 30 cents an hour on average."]
["NYHZYE9RABEZ74ZTEY80WKDW409YGZFZ3HSGS0E0","Fri Jan 29 11:27:03 GMT 2010",680,"Female",1988,"Bachelors degree","$15,000 - $24,999","single","No",4,"Asian",null,"India","20-50 HITs per week","0-3 months","$5-$10 per week","4-8 hours per week","fruitful|secondary_income",true,false,false,false,true,false,"I started working on MTurk after the recession but the recession has nothing to do with my decision","I was not active before the recession.","I have made a decision to donate money to some orphanage every month. So I thought working on Mturk would help me.","I enjoy spending time working on mturk. This survey is absolutely good."]
["NYHZYE9RABEZ74ZTEY804Z5RVHZ2FGM67F5082EZ","Sat Jan 30 11:36:02 GMT 2010",692,"Male",1973,"Bachelors degree","$15,000 - $24,999","married","Yes, 1 child",3,"Other","Non-US","India","100-200 HITs per week","0-3 months","$20-$50 per week","20-40 hours per week","secondary_income",false,false,false,false,true,false,"I started working on MTurk after the recession but the recession has nothing to do with my decision","I was not active before the recession.","I joined mTurk only about 24 hours ago, and am still finding my feet regarding efficient use of this program. But I'm already enjoying it to the hilt, and what better way to earn money than by doing something that one enjoys too.","I must first congratulate all the people at Amazon who came up with mTurk, for doing such an awesome job. Let me tell you that in me, you have a life-time member. Having joined mTurk recently, I believe I do not, yet, deserve to pass any critique or negative judgement on this website."]
["NYHZYE9RABEZ74ZTEY805W8Z03ZZTJ9ZR8ZV9XN0","Thu Feb 11 06:58:05 GMT 2010",692,"Male",1986,"Bachelors degree","$60,000 - $74,999","single","No",4,"Asian","Non-US","India","500-1000 HITs per week","6-12 months","$10-$20 per week","20-40 hours per week","primary_income",false,false,false,true,false,false,"I started working on MTurk after the recession but the recession has nothing to do with my decision","I was not active before the recession."]
["NYHZYE9RABEZ74ZTEY80BJVZ19Z8T3S2ZENNCABZ","Sat Jan 30 00:07:57 GMT 2010",713,"Female",1970,"Graduate degree, Masters","$15,000 - $24,999","engaged","Yes, 1 child",4,"Asian",null,"India","100-200 HITs per week","0-3 months","$5-$10 per week","4-8 hours per week","fruitful|entertainment",true,true,false,false,false,false,null,"I was not active before the recession."]
["NYHZYE9RABEZ74ZTEY80CW86YZNRHK2ZWYZD98C0","Fri Feb 12 10:24:50 GMT 2010",721,"Male",1982,"High School Graduate","$10,000 - $14,999","single","No",1,"White","Non-US","Czech Republic","20-50 HITs per week","0-3 months","$1-$5 per week","4-8 hours per week","fruitful",true,false,false,false,false,false,"I started working on MTurk after the recession but the recession has nothing to do with my decision","I was not active before the recession."]
["NYHZYE9RABEZ74ZTEY801XJGGSY1G9RWT3MZT9G0","Mon Feb 01 16:11:46 GMT 2010",734,"Female",1983,"Bachelors degree","$15,000 - $24,999","single","No",1,"White","Non-US","Taiwan","10-20 HITs per week","6-12 months","$1-$5 per week","1-2 hours per week","fruitful",true,false,false,false,false,false,"I started working on MTurk after the recession but the recession has nothing to do with my decision","I work the same amount of time on MTurk as before.","It is an easy way to make cash being an American teaching abroad.... I can't get a job anywhere else because I don't speak chinese."]
["NYHZYE9RABEZ74ZTEY80P90ZP7YWNW4044GTPYZ0","Sat Feb 06 15:42:51 GMT 2010",774,"Female",1976,"Bachelors degree","$15,000 - $24,999","single","Yes, 1 child",2,"White","Non-US","United Kingdom","20-50 HITs per week","0-3 months","$5-$10 per week","8-20 hours per week","fruitful|secondary_income|entertainment",true,true,false,false,true,false,"I started working on MTurk after the recession but the recession has nothing to do with my decision","I was not active before the recession.","Since I am from the UK you can not receive payment into Paypal as yet and the vouchers only work on Amazon.com and some things cannot be shipped abroad so the incentive is alot less than would be otherwise, to earn some extra pocket money. So at present the only thing that I use the Mechanical Turks for is to exchange the dollars for favour points on a game on facebook called Mobsters.  The favour points can be used to buy special items in the shop or gambled on one of the missions to win special items and one one you can win some favour points back aswell on the slots. However, as I am new here I have not exchanged for any favour points yet, I am just trying to get to a decent level before I do e.g.$10.  Some payments are slower than others however and I would be there but for the slow payments so am doing other tasks to make it quicker and hopefully get more favour points.","After speaking with Amazon Turks they said they may make it so non US members can receive Paypal payments but as yet they do not.  Also I found it a bit confusing at first if I could not complete a task but was also told by them that I could click return HIT and would it would not affect my rating, I did not know this at first so had one HIT rejected which has lowered my score."]
["NYHZYE9RABEZ74ZTEY80QT0Z7DYXZ0BEH4Z60WJZ","Wed Feb 10 06:10:11 GMT 2010",794,"Female",1985,"Bachelors degree","Less than $10,000","single","No",4,"Asian","Non-US","India","50-100 HITs per week","0-3 months","$1-$5 per week","8-20 hours per week","unemployed",false,false,false,false,false,true,"I started working on MTurk after the recession but the recession has nothing to do with my decision","I work the same amount of time on MTurk as before.","its give a knowledge to me.","mturk give a good opportunity earn money from home.so you continue this on future and you will give many hits for us."]
["NYHZYE9RABEZ74ZTEY80JZSZVXZTYH8MTCDWVHC0","Wed Feb 03 12:27:58 GMT 2010",855,"Male",1986,"Graduate degree, Masters","Less than $10,000","single","No","5+","Asian",null,"India","50-100 HITs per week","0-3 months","Less than $1 per week","8-20 hours per week","fruitful",true,false,false,false,false,false,"I started working on MTurk after the recession but the recession has nothing to do with my decision","I was not active before the recession.","An easy way to turn my free time in cash."]
["NYHZYE9RABEZ74ZTEY804324RP5B1A5CHWXAFYT0","Sun Jan 31 03:00:43 GMT 2010",863,"Female",1952,"Graduate degree, Masters","Less than $10,000","divorced","No",4,"Other",null,"Venezuela","100-200 HITs per week","0-3 months","$1-$5 per week","8-20 hours per week","fruitful|secondary_income",true,false,false,false,true,false,"I started working on MTurk after the recession but the recession has nothing to do with my decision","I was not active before the recession.","I like to participate on Mechanical Turk for secondary income purposes and to spend free time and get some cash"]
["NYHZYE9RABEZ74ZTEY801Z3ZTRYRAZNA67DYQ1DZ","Wed Feb 10 08:42:26 GMT 2010",873,"Female",1982,"Bachelors degree","Less than $10,000","married","Yes, 1 child",4,"Asian",null,"India","50-100 HITs per week","0-3 months","$1-$5 per week","1-2 hours per week","secondary_income",false,false,false,false,true,false,"No, I was active before the recession.","I work more on MTurk after the recession.","i am a house wife. And i have a kid. I am managing my family as well as my kid so the reason i will that job is part time, when i ll free."]
["NYHZYE9RABEZ74ZTEY80CZD6R35PG8KYY1YXQHDZ","Sat Jan 30 11:23:54 GMT 2010",874,"Male",1986,"Some college, no degree","$40,500 - $59,999","single","No",3,"White","Ohio","United States","5-10 HITs per week","2-4 years","$1-$5 per week","1-2 hours per week","fruitful|secondary_income|killtime|unemployed",true,false,true,false,true,true,"No, I was active before the recession.","I work more on MTurk after the recession.","For a little extra spending money."]
["NYHZYE9RABEZ74ZTEY80GXVZJQZVE11Z10C1N8KZ","Thu Jan 28 17:46:05 GMT 2010",922,"Female",1974,"Bachelors degree","$15,000 - $24,999","single","No",3,"Asian","Non-US","India","50-100 HITs per week","1-2 years","$5-$10 per week","8-20 hours per week","fruitful|secondary_income|entertainment|unemployed",true,true,false,false,true,true,"Yes, I started working on MTurk after the recession.","I work more on MTurk after the recession.","Mturk has given me a sense of conviction that 'I can'. I have started to believe in myself and the journey has been so enriching. I just love this place and when we get paid for something we love - nothing like it.\r\n\r\nThanks to mturk.","Mturk has been elevating in all respect. It gives me immense joy to have my approval rate going up and also feels upsetting after a downturn in the rate. Day before yesterday, when my rate went down considerably for a 19 hit rejection, I was shattered. I still am. apparently, it was due to mistake from the requester's part who personally apologised and I really appreciate. But the fact of the matter remained. My rating went down. \r\n\r\nI just wish mturk has certain kinda access and privilege to intervene to fix such mistakes. At the end of the day my percentage will NOT be the same.\r\n\r\nThanks."]
["NYHZYE9RABEZ74ZTEY80BYFZZDYYVYXZ6Q8THWT0","Thu Feb 04 19:03:41 GMT 2010",995,"Male",1990,"High School Graduate","$15,000 - $24,999","single","No",4,"White","Alaska","Romania","1-5 HITs per week","0-3 months","$1-$5 per week","1-2 hours per week","fruitful|secondary_income|entertainment",true,true,false,false,true,false,"I started working on MTurk after the recession but the recession has nothing to do with my decision","I was not active before the recession."]
["NYHZYE9RABEZ74ZTEY80AA0ZVYZ0EXDCZ05BMRV0","Thu Feb 11 00:08:10 GMT 2010",998,"Female",1958,"High School Graduate","$40,500 - $59,999","married","Yes, 2 children",3,"White",null,"Canada","20-50 HITs per week","1-2 years","$1-$5 per week","1-2 hours per week","secondary_income|unemployed",false,false,false,false,true,true,"Yes, I started working on MTurk after the recession.","I work more on MTurk after the recession.",null,"I would do more hits if Canadian residents could get paid in cash rather than merchandise. Lots of merchandise can't even be sent to Canada."]
["NYHZYE9RABEZ74ZTEY801XRG26ZX5WHZN247VY10","Mon Feb 08 15:43:56 GMT 2010",1004,"Female",1958,"Bachelors degree","$40,500 - $59,999","married","Yes, 2 children",4,"Asian",null,"India","50-100 HITs per week","3-6 months","$5-$10 per week","8-20 hours per week","fruitful|secondary_income",true,false,false,false,true,false,"Yes, I started working on MTurk after the recession.","I work more on MTurk after the recession."]
["NYHZYE9RABEZ74ZTEY80X3VZG7YEY9SZWQ1BEB50","Tue Feb 09 21:42:56 GMT 2010",1185,"Female",1983,"Bachelors degree","$25,000 - $39,499","cohabitating","No",2,"Asian","Hawaii","United States","10-20 HITs per week","1-2 years","$1-$5 per week","2-4 hours per week","fruitful|secondary_income|killtime",true,false,true,false,true,false,"No, I was active before the recession.","I work more on MTurk after the recession."]
["NYHZYE9RABEZ74ZTEY807WMJTRDC2KEZ4NGFAHB0","Thu Jan 28 21:48:53 GMT 2010",1257,"Male",1969,"Some college, no degree","Less than $10,000","married","Yes, 2 children",4,"Asian","Non-US","India","50-100 HITs per week","0-3 months","$10-$20 per week","More than 40 hours per week","unemployed",false,false,false,false,false,true,"No, I was active before the recession.","I work more on MTurk after the recession.","Mechanical Turk work is not only for money. This is an experience of the worldwide working methods.There are different kinds of hits.  Every hit on this turk is challenge to our knowledge. So I like this job very much.","It is an efficient survey. This survey result is most useful to unemployed persons. Amazon mechanical Turk is a God's gift to the worldwide unemployed persons. There is no boss.Work is our choice. Earning is our choice. This is amazing for on line job seekers. Thank you."]
["NYHZYE9RABEZ74ZTEY80BYZM6M0PHS7A7Q1PHJ60","Mon Feb 08 05:20:17 GMT 2010",1363,"Female",1991,"Some college, no degree","$60,000 - $74,999","single","No",4,"White","Pennsylvania","United States","50-100 HITs per week","0-3 months","$5-$10 per week","4-8 hours per week","fruitful|secondary_income|unemployed",true,false,false,false,true,true,"I started working on MTurk after the recession but the recession has nothing to do with my decision","I work the same amount of time on MTurk as before."]
["NYHZYE9RABEZ74ZTEY8089PA2W0BE8SZNX4GHSY0","Wed Feb 10 11:51:38 GMT 2010",1370,"Female",1981,"Graduate degree, Masters","Less than $10,000","married","No",2,"Asian",null,"India","50-100 HITs per week","0-3 months",null,"8-20 hours per week","fruitful|secondary_income|unemployed",true,false,false,false,true,true,"I started working on MTurk after the recession but the recession has nothing to do with my decision","I was not active before the recession."]
["NYHZYE9RABEZ74ZTEY80G30ZPTZZ1YBPK0NANWP0","Sat Jan 30 08:47:56 GMT 2010",1421,"Male",1987,"Bachelors degree","Less than $10,000","single","No","5+","Asian","Non-US","India","10-20 HITs per week","0-3 months","$1-$5 per week","4-8 hours per week","fruitful|secondary_income",true,false,false,false,true,false,"No, I was active before the recession.","I work more on MTurk after the recession."]
["NYHZYE9RABEZ74ZTEY80VYDRT10NWJBZ5ACV7WPZ","Sat Jan 30 04:44:58 GMT 2010",2360,"Male",1980,"Some college, no degree","Less than $10,000","married","No",1,"Asian","Non-US","India","20-50 HITs per week","0-3 months","$1-$5 per week","8-20 hours per week","fruitful|primary_income",true,false,false,true,false,false,"No, I was active before the recession.","I work more on MTurk after the recession.",null,"itâ€™s pretty remarkable. Basically, people post tedious jobs that can be done online for ridiculously small amounts of money. Funds are collected by Amazon from the people posting the jobs, and disbursed when the completed tasks are approved. Workers can either have the funds transferred to their bank accounts, or to an Amazon gift certificate."]
["NYHZYE9RABEZ74ZTEY80AZWZ034EGXR03Q5SFXYZ","Wed Feb 03 07:50:17 GMT 2010",2606,"Male",1986,"Bachelors degree","$25,000 - $39,499","single","No",4,"Asian",null,"India","100-200 HITs per week","6-12 months","$20-$50 per week","8-20 hours per week","fruitful|secondary_income|entertainment",true,true,false,false,true,false,"I started working on MTurk after the recession but the recession has nothing to do with my decision","I work more on MTurk after the recession.","for enjoy and earn extra money","no"]